Workbook

Sheet Simulador
B5: SIMULADOR FLEXIAHORRO
B6: Fecha Actualización: Junio 2025
B9: Paso 1
B11: Ahorro inicial
B12: ¿Con cuánto quieres empezar?
B13: 10
B14: Monto
B17: Paso 2
B19: Ahorro mensual automático
B20: ¿Cuánto dinero quieres ahorrar mensualmente?
B21: 50
B22: Monto
B25: ¿Qué día del mes deseas realizar el aporte?
B27: 21
B28: Día del mes
B32: Paso 3
B34: Tiempo
B36: Fecha inicio de simulación | C36: =+TODAY() -> 2025-07-20
B38: ¿Por cuánto tiempo quieres simular tu ahorro?
B40: 90
B41: Días
B43: Fecha fin de simulación | C43: =+INDEX(Tabla!C10:AAU10,B40+1) -> 2025-10-18
B45: Paso 4
B47: Potenciadores
B48: Funcionalidades que te hacen ahorrar y ganar más
B50: Ahorro Blindado | C50: No
B51: Al activarlo, seleccionas un tiempo durante el cual tu cuenta estará blindada para evitar retiros, y a cambio puedes obtener un tasa de interés mejor dependiendo del tiempo.
B55: Reto de 52 semanas | C55: No
B56: Al activarlo, por 52 semanas te debitaremos $1 incremental por semana: -Semana 1: $1 -Semana 2: $2 -Semana 52: $52 Al final del ciclo habrás ahorrado $1.378.
B60: Resultado simulador | E60: Recomendación 1 | H60: Recomendación 2
B61: =+"Rendimiento al"&" "&TEXT(C43,"dd-mmm-yy") -> Rendimiento al 18-oct-25
B62: Total Ahorrado | C62: =+IF(C50="No",INDEX(Tabla!C30:AAU30,B40),INDEX(Tabla!C30:AAU30,B40+1)) -> 160 | E62: Total Ahorrado | F62: =+IFERROR(IF(C50="No",INDEX(Tabla!C41:AAU41,F72),INDEX(Tabla!C41:AAU41,F72+1)),"N/A") -> 210 | H62: Total Ahorrado | I62: =+IF(C50="No",INDEX(Tabla!C52:AAU52,I72),INDEX(Tabla!C52:AAU52,I72+1)) -> 610
B63: Tasa de interés | C63: =+IF(C50="No",5%,VLOOKUP($B$40,Rangos!$B$3:$D$8,3,TRUE)) -> 0.05 | E63: Tasa de interés | F63: =+IF(C50="No",5%,VLOOKUP($F$72,Rangos!$B$3:$D$8,3,TRUE)) -> 0.05 | H63: Tasa de interés | I63: =+IF(C50="No",5%,VLOOKUP($I$72,Rangos!$B$3:$D$8,3,TRUE)) -> 0.05
B65: Ahorro + Interés | E65: Ahorro + Interés | H65: Ahorro + Interés
B66: =+IF(C50="Si",INDEX(Tabla!C34:AAU34,B40+1),INDEX(Tabla!C34:AAU34,B40))+(IF($C$50="No",INDEX(Tabla!C36:AAU36,B40),0)) -> 161.47 | E66: =+IFERROR(IF(C50="Si",INDEX(Tabla!C45:AAU45,+F72+1),INDEX(Tabla!C45:AAU45,F72)+INDEX(Tabla!C47:AAU47,F72)),"N/A") -> 212.34 | H66: =+IF(C50="Si",INDEX(Tabla!C56:AAU56,I72+1),INDEX(Tabla!C56:AAU56,I72)+INDEX(Tabla!C58:AAU58,I72)) -> 627.38
B67: Monto | E67: Monto | H67: Monto
B69: Interés Ganado | E69: Interés Ganado | H69: Interés Ganado
B70: =+B66-C62 -> 1.47 | E70: =+IFERROR(E66-F62,"N/A") -> 2.34 | H70: =+H66-I62 -> 17.38
B71: Monto | E71: Monto | H71: Monto
B72: Fecha Vencimiento Blindado | C72: =+IF(C50="Si",INDEX(Tabla!C10:AAU10,B40+1),"No Aplica") -> No Aplica | E72: Tiempo sugerido (días) | F72: =+B40+VLOOKUP(B40,Rangos!$G$2:$K$8,4) -> 120 | H72: Tiempo sugerido (días) | I72: 365
E73: Fecha Vencimiento Blindado | F73: =+IF(C50="Si",INDEX(Tabla!C10:AAU10,F72+1),"No Aplica") -> No Aplica | H73: Fecha Vencimiento Blindado | I73: =+IF(C50="Si",INDEX(Tabla!C10:AAU10,I72+1),"No Aplica") -> No Aplica
B74: El cálculo es referencial. Las tasa están sujetas a condiciones. | E74: El cálculo es referencial. Las tasa están sujetas a condiciones. | H74: El cálculo es referencial. Las tasa están sujetas a condiciones.

Sheet Tabla (hidden)
C9: =+IF(DAY(EOMONTH(C10,0))<Simulador!$B$27,(Simulador!$B$27-DAY(EOMONTH(C10,0)))+DAY(EOMONTH(C10,0)),31) -> 31 | D9: =+IF(DAY(EOMONTH(D10,0))<Simulador!$B$27,(Simulador!$B$27-DAY(EOMONTH(D10,0)))+DAY(EOMONTH(D10,0)),31) -> 31 | E9: =+IF(DAY(EOMONTH(E10,0))<Simulador!$B$27,(Simulador!$B$27-DAY(EOMONTH(E10,0)))+DAY(EOMONTH(E10,0)),31) -> 31 | F9: =+IF(DAY(EOMONTH(F10,0))<Simulador!$B$27,(Simulador!$B$27-DAY(EOMONTH(F10,0)))+DAY(EOMONTH(F10,0)),31) -> 31 | G9: =+IF(DAY(EOMONTH(G10,0))<Simulador!$B$27,(Simulador!$B$27-DAY(EOMONTH(G10,0)))+DAY(EOMONTH(G10,0)),31) -> 31 | H9: =+IF(DAY(EOMONTH(H10,0))<Simulador!$B$27,(Simulador!$B$27-DAY(EOMONTH(H10,0)))+DAY(EOMONTH(H10,0)),31) -> 31 | I9: =+IF(DAY(EOMONTH(I10,0))<Simulador!$B$27,(Simulador!$B$27-DAY(EOMONTH(I10,0)))+DAY(EOMONTH(I10,0)),31) -> 31 | J9: =+IF(DAY(EOMONTH(J10,0))<Simulador!$B$27,(Simulador!$B$27-DAY(EOMONTH(J10,0)))+DAY(EOMONTH(J10,0)),31) -> 31 | K9: =+IF(DAY(EOMONTH(K10,0))<Simulador!$B$27,(Simulador!$B$27-DAY(EOMONTH(K10,0)))+DAY(EOMONTH(K10,0)),31) -> 31 | L9: =+IF(DAY(EOMONTH(L10,0))<Simulador!$B$27,(Simulador!$B$27-DAY(EOMONTH(L10,0)))+DAY(EOMONTH(L10,0)),31) -> 31 | M9: =+IF(DAY(EOMONTH(M10,0))<Simulador!$B$27,(Simulador!$B$27-DAY(EOMONTH(M10,0)))+DAY(EOMONTH(M10,0)),31) -> 31 | N9: =+IF(DAY(EOMONTH(N10,0))<Simulador!$B$27,(Simulador!$B$27-DAY(EOMONTH(N10,0)))+DAY(EOMONTH(N10,0)),31) -> 31 | O9: =+IF(DAY(EOMONTH(O10,0))<Simulador!$B$27,(Simulador!$B$27-DAY(EOMONTH(O10,0)))+DAY(EOMONTH(O10,0)),31) -> 31 | P9: =+IF(DAY(EOMONTH(P10,0))<Simulador!$B$27,(Simulador!$B$27-DAY(EOMONTH(P10,0)))+DAY(EOMONTH(P10,0)),31) -> 31 | Q9: =+IF(DAY(EOMONTH(Q10,0))<Simulador!$B$27,(Simulador!$B$27-DAY(EOMONTH(Q10,0)))+DAY(EOMONTH(Q10,0)),31) -> 31 | R9: =+IF(DAY(EOMONTH(R10,0))<Simulador!$B$27,(Simulador!$B$27-DAY(EOMONTH(R10,0)))+DAY(EOMONTH(R10,0)),31) -> 31 | S9: =+IF(DAY(EOMONTH(S10,0))<Simulador!$B$27,(Simulador!$B$27-DAY(EOMONTH(S10,0)))+DAY(EOMONTH(S10,0)),31) -> 31 | T9: =+IF(DAY(EOMONTH(T10,0))<Simulador!$B$27,(Simulador!$B$27-DAY(EOMONTH(T10,0)))+DAY(EOMONTH(T10,0)),31) -> 31 | U9: =+IF(DAY(EOMONTH(U10,0))<Simulador!$B$27,(Simulador!$B$27-DAY(EOMONTH(U10,0)))+DAY(EOMONTH(U10,0)),31) -> 31 | V9: =+IF(DAY(EOMONTH(V10,0))<Simulador!$B$27,(Simulador!$B$27-DAY(EOMONTH(V10,0)))+DAY(EOMONTH(V10,0)),31) -> 31 | W9: =+IF(DAY(EOMONTH(W10,0))<Simulador!$B$27,(Simulador!$B$27-DAY(EOMONTH(W10,0)))+DAY(EOMONTH(W10,0)),31) -> 31 | X9: =+IF(DAY(EOMONTH(X10,0))<Simulador!$B$27,(Simulador!$B$27-DAY(EOMONTH(X10,0)))+DAY(EOMONTH(X10,0)),31) -> 31 | Y9: =+IF(DAY(EOMONTH(Y10,0))<Simulador!$B$27,(Simulador!$B$27-DAY(EOMONTH(Y10,0)))+DAY(EOMONTH(Y10,0)),31) -> 31 | Z9: =+IF(DAY(EOMONTH(Z10,0))<Simulador!$B$27,(Simulador!$B$27-DAY(EOMONTH(Z10,0)))+DAY(EOMONTH(Z10,0)),31) -> 31 | AA9: =+IF(DAY(EOMONTH(AA10,0))<Simulador!$B$27,(Simulador!$B$27-DAY(EOMONTH(AA10,0)))+DAY(EOMONTH(AA10,0)),31) -> 31 | AB9: =+IF(DAY(EOMONTH(AB10,0))<Simulador!$B$27,(Simulador!$B$27-DAY(EOMONTH(AB10,0)))+DAY(EOMONTH(AB10,0)),31) -> 31 | AC9: =+IF(DAY(EOMONTH(AC10,0))<Simulador!$B$27,(Simulador!$B$27-DAY(EOMONTH(AC10,0)))+DAY(EOMONTH(AC10,0)),31) -> 31 | AD9: =+IF(DAY(EOMONTH(AD10,0))<Simulador!$B$27,(Simulador!$B$27-DAY(EOMONTH(AD10,0)))+DAY(EOMONTH(AD10,0)),31) -> 31 | AE9: =+IF(DAY(EOMONTH(AE10,0))<Simulador!$B$27,(Simulador!$B$27-DAY(EOMONTH(AE10,0)))+DAY(EOMONTH(AE10,0)),31) -> 31 | AF9: =+IF(DAY(EOMONTH(AF10,0))<Simulador!$B$27,(Simulador!$B$27-DAY(EOMONTH(AF10,0)))+DAY(EOMONTH(AF10,0)),31) -> 31 | AG9: =+IF(DAY(EOMONTH(AG10,0))<Simulador!$B$27,(Simulador!$B$27-DAY(EOMONTH(AG10,0)))+DAY(EOMONTH(AG10,0)),31) -> 31 | AH9: =+IF(DAY(EOMONTH(AH10,0))<Simulador!$B$27,(Simulador!$B$27-DAY(EOMONTH(AH10,0)))+DAY(EOMONTH(AH10,0)),31) -> 31 | AI9: =+IF(DAY(EOMONTH(AI10,0))<Simulador!$B$27,(Simulador!$B$27-DAY(EOMONTH(AI10,0)))+DAY(EOMONTH(AI10,0)),31) -> 31 | AJ9: =+IF(DAY(EOMONTH(AJ10,0))<Simulador!$B$27,(Simulador!$B$27-DAY(EOMONTH(AJ10,0)))+DAY(EOMONTH(AJ10,0)),31) -> 31 | AK9: =+IF(DAY(EOMONTH(AK10,0))<Simulador!$B$27,(Simulador!$B$27-DAY(EOMONTH(AK10,0)))+DAY(EOMONTH(AK10,0)),31) -> 31 | AL9: =+IF(DAY(EOMONTH(AL10,0))<Simulador!$B$27,(Simulador!$B$27-DAY(EOMONTH(AL10,0)))+DAY(EOMONTH(AL10,0)),31) -> 31 | AM9: =+IF(DAY(EOMONTH(AM10,0))<Simulador!$B$27,(Simulador!$B$27-DAY(EOMONTH(AM10,0)))+DAY(EOMONTH(AM10,0)),31) -> 31 | AN9: =+IF(DAY(EOMONTH(AN10,0))<Simulador!$B$27,(Simulador!$B$27-DAY(EOMONTH(AN10,0)))+DAY(EOMONTH(AN10,0)),31) -> 31 | AO9: =+IF(DAY(EOMONTH(AO10,0))<Simulador!$B$27,(Simulador!$B$27-DAY(EOMONTH(AO10,0)))+DAY(EOMONTH(AO10,0)),31) -> 31 | AP9: =+IF(DAY(EOMONTH(AP10,0))<Simulador!$B$27,(Simulador!$B$27-DAY(EOMONTH(AP10,0)))+DAY(EOMONTH(AP10,0)),31) -> 31 | AQ9: =+IF(DAY(EOMONTH(AQ10,0))<Simulador!$B$27,(Simulador!$B$27-DAY(EOMONTH(AQ10,0)))+DAY(EOMONTH(AQ10,0)),31) -> 31 | AR9: =+IF(DAY(EOMONTH(AR10,0))<Simulador!$B$27,(Simulador!$B$27-DAY(EOMONTH(AR10,0)))+DAY(EOMONTH(AR10,0)),31) -> 31 | AS9: =+IF(DAY(EOMONTH(AS10,0))<Simulador!$B$27,(Simulador!$B$27-DAY(EOMONTH(AS10,0)))+DAY(EOMONTH(AS10,0)),31) -> 31 | AT9: =+IF(DAY(EOMONTH(AT10,0))<Simulador!$B$27,(Simulador!$B$27-DAY(EOMONTH(AT10,0)))+DAY(EOMONTH(AT10,0)),31) -> 31 | AU9: =+IF(DAY(EOMONTH(AU10,0))<Simulador!$B$27,(Simulador!$B$27-DAY(EOMONTH(AU10,0)))+DAY(EOMONTH(AU10,0)),31) -> 31 | AV9: =+IF(DAY(EOMONTH(AV10,0))<Simulador!$B$27,(Simulador!$B$27-DAY(EOMONTH(AV10,0)))+DAY(EOMONTH(AV10,0)),31) -> 31 | AW9: =+IF(DAY(EOMONTH(AW10,0))<Simulador!$B$27,(Simulador!$B$27-DAY(EOMONTH(AW10,0)))+DAY(EOMONTH(AW10,0)),31) -> 31 | AX9: =+IF(DAY(EOMONTH(AX10,0))<Simulador!$B$27,(Simulador!$B$27-DAY(EOMONTH(AX10,0)))+DAY(EOMONTH(AX10,0)),31) -> 31 | AY9: =+IF(DAY(EOMONTH(AY10,0))<Simulador!$B$27,(Simulador!$B$27-DAY(EOMONTH(AY10,0)))+DAY(EOMONTH(AY10,0)),31) -> 31 | AZ9: =+IF(DAY(EOMONTH(AZ10,0))<Simulador!$B$27,(Simulador!$B$27-DAY(EOMONTH(AZ10,0)))+DAY(EOMONTH(AZ10,0)),31) -> 31 | BA9: =+IF(DAY(EOMONTH(BA10,0))<Simulador!$B$27,(Simulador!$B$27-DAY(EOMONTH(BA10,0)))+DAY(EOMONTH(BA10,0)),31) -> 31 | BB9: =+IF(DAY(EOMONTH(BB10,0))<Simulador!$B$27,(Simulador!$B$27-DAY(EOMONTH(BB10,0)))+DAY(EOMONTH(BB10,0)),31) -> 31 | BC9: =+IF(DAY(EOMONTH(BC10,0))<Simulador!$B$27,(Simulador!$B$27-DAY(EOMONTH(BC10,0)))+DAY(EOMONTH(BC10,0)),31) -> 31 | BD9: =+IF(DAY(EOMONTH(BD10,0))<Simulador!$B$27,(Simulador!$B$27-DAY(EOMONTH(BD10,0)))+DAY(EOMONTH(BD10,0)),31) -> 31 | BE9: =+IF(DAY(EOMONTH(BE10,0))<Simulador!$B$27,(Simulador!$B$27-DAY(EOMONTH(BE10,0)))+DAY(EOMONTH(BE10,0)),31) -> 31 | BF9: =+IF(DAY(EOMONTH(BF10,0))<Simulador!$B$27,(Simulador!$B$27-DAY(EOMONTH(BF10,0)))+DAY(EOMONTH(BF10,0)),31) -> 31 | BG9: =+IF(DAY(EOMONTH(BG10,0))<Simulador!$B$27,(Simulador!$B$27-DAY(EOMONTH(BG10,0)))+DAY(EOMONTH(BG10,0)),31) -> 31 | BH9: =+IF(DAY(EOMONTH(BH10,0))<Simulador!$B$27,(Simulador!$B$27-DAY(EOMONTH(BH10,0)))+DAY(EOMONTH(BH10,0)),31) -> 31 | BI9: =+IF(DAY(EOMONTH(BI10,0))<Simulador!$B$27,(Simulador!$B$27-DAY(EOMONTH(BI10,0)))+DAY(EOMONTH(BI10,0)),31) -> 31 | BJ9: =+IF(DAY(EOMONTH(BJ10,0))<Simulador!$B$27,(Simulador!$B$27-DAY(EOMONTH(BJ10,0)))+DAY(EOMONTH(BJ10,0)),31) -> 31 | BK9: =+IF(DAY(EOMONTH(BK10,0))<Simulador!$B$27,(Simulador!$B$27-DAY(EOMONTH(BK10,0)))+DAY(EOMONTH(BK10,0)),31) -> 31 | BL9: =+IF(DAY(EOMONTH(BL10,0))<Simulador!$B$27,(Simulador!$B$27-DAY(EOMONTH(BL10,0)))+DAY(EOMONTH(BL10,0)),31) -> 31 | BM9: =+IF(DAY(EOMONTH(BM10,0))<Simulador!$B$27,(Simulador!$B$27-DAY(EOMONTH(BM10,0)))+DAY(EOMONTH(BM10,0)),31) -> 31 | BN9: =+IF(DAY(EOMONTH(BN10,0))<Simulador!$B$27,(Simulador!$B$27-DAY(EOMONTH(BN10,0)))+DAY(EOMONTH(BN10,0)),31) -> 31 | BO9: =+IF(DAY(EOMONTH(BO10,0))<Simulador!$B$27,(Simulador!$B$27-DAY(EOMONTH(BO10,0)))+DAY(EOMONTH(BO10,0)),31) -> 31 | BP9: =+IF(DAY(EOMONTH(BP10,0))<Simulador!$B$27,(Simulador!$B$27-DAY(EOMONTH(BP10,0)))+DAY(EOMONTH(BP10,0)),31) -> 31 | BQ9: =+IF(DAY(EOMONTH(BQ10,0))<Simulador!$B$27,(Simulador!$B$27-DAY(EOMONTH(BQ10,0)))+DAY(EOMONTH(BQ10,0)),31) -> 31 | BR9: =+IF(DAY(EOMONTH(BR10,0))<Simulador!$B$27,(Simulador!$B$27-DAY(EOMONTH(BR10,0)))+DAY(EOMONTH(BR10,0)),31) -> 31 | BS9: =+IF(DAY(EOMONTH(BS10,0))<Simulador!$B$27,(Simulador!$B$27-DAY(EOMONTH(BS10,0)))+DAY(EOMONTH(BS10,0)),31) -> 31 | BT9: =+IF(DAY(EOMONTH(BT10,0))<Simulador!$B$27,(Simulador!$B$27-DAY(EOMONTH(BT10,0)))+DAY(EOMONTH(BT10,0)),31) -> 31 | BU9: =+IF(DAY(EOMONTH(BU10,0))<Simulador!$B$27,(Simulador!$B$27-DAY(EOMONTH(BU10,0)))+DAY(EOMONTH(BU10,0)),31) -> 31 | BV9: =+IF(DAY(EOMONTH(BV10,0))<Simulador!$B$27,(Simulador!$B$27-DAY(EOMONTH(BV10,0)))+DAY(EOMONTH(BV10,0)),31) -> 31 | BW9: =+IF(DAY(EOMONTH(BW10,0))<Simulador!$B$27,(Simulador!$B$27-DAY(EOMONTH(BW10,0)))+DAY(EOMONTH(BW10,0)),31) -> 31 | BX9: =+IF(DAY(EOMONTH(BX10,0))<Simulador!$B$27,(Simulador!$B$27-DAY(EOMONTH(BX10,0)))+DAY(EOMONTH(BX10,0)),31) -> 31 | BY9: =+IF(DAY(EOMONTH(BY10,0))<Simulador!$B$27,(Simulador!$B$27-DAY(EOMONTH(BY10,0)))+DAY(EOMONTH(BY10,0)),31) -> 31 | BZ9: =+IF(DAY(EOMONTH(BZ10,0))<Simulador!$B$27,(Simulador!$B$27-DAY(EOMONTH(BZ10,0)))+DAY(EOMONTH(BZ10,0)),31) -> 31 | CA9: =+IF(DAY(EOMONTH(CA10,0))<Simulador!$B$27,(Simulador!$B$27-DAY(EOMONTH(CA10,0)))+DAY(EOMONTH(CA10,0)),31) -> 31 | CB9: =+IF(DAY(EOMONTH(CB10,0))<Simulador!$B$27,(Simulador!$B$27-DAY(EOMONTH(CB10,0)))+DAY(EOMONTH(CB10,0)),31) -> 31 | CC9: =+IF(DAY(EOMONTH(CC10,0))<Simulador!$B$27,(Simulador!$B$27-DAY(EOMONTH(CC10,0)))+DAY(EOMONTH(CC10,0)),31) -> 31 | CD9: =+IF(DAY(EOMONTH(CD10,0))<Simulador!$B$27,(Simulador!$B$27-DAY(EOMONTH(CD10,0)))+DAY(EOMONTH(CD10,0)),31) -> 31 | CE9: =+IF(DAY(EOMONTH(CE10,0))<Simulador!$B$27,(Simulador!$B$27-DAY(EOMONTH(CE10,0)))+DAY(EOMONTH(CE10,0)),31) -> 31 | CF9: =+IF(DAY(EOMONTH(CF10,0))<Simulador!$B$27,(Simulador!$B$27-DAY(EOMONTH(CF10,0)))+DAY(EOMONTH(CF10,0)),31) -> 31 | CG9: =+IF(DAY(EOMONTH(CG10,0))<Simulador!$B$27,(Simulador!$B$27-DAY(EOMONTH(CG10,0)))+DAY(EOMONTH(CG10,0)),31) -> 31 | CH9: =+IF(DAY(EOMONTH(CH10,0))<Simulador!$B$27,(Simulador!$B$27-DAY(EOMONTH(CH10,0)))+DAY(EOMONTH(CH10,0)),31) -> 31 | CI9: =+IF(DAY(EOMONTH(CI10,0))<Simulador!$B$27,(Simulador!$B$27-DAY(EOMONTH(CI10,0)))+DAY(EOMONTH(CI10,0)),31) -> 31 | CJ9: =+IF(DAY(EOMONTH(CJ10,0))<Simulador!$B$27,(Simulador!$B$27-DAY(EOMONTH(CJ10,0)))+DAY(EOMONTH(CJ10,0)),31) -> 31 | CK9: =+IF(DAY(EOMONTH(CK10,0))<Simulador!$B$27,(Simulador!$B$27-DAY(EOMONTH(CK10,0)))+DAY(EOMONTH(CK10,0)),31) -> 31 | CL9: =+IF(DAY(EOMONTH(CL10,0))<Simulador!$B$27,(Simulador!$B$27-DAY(EOMONTH(CL10,0)))+DAY(EOMONTH(CL10,0)),31) -> 31 | CM9: =+IF(DAY(EOMONTH(CM10,0))<Simulador!$B$27,(Simulador!$B$27-DAY(EOMONTH(CM10,0)))+DAY(EOMONTH(CM10,0)),31) -> 31 | CN9: =+IF(DAY(EOMONTH(CN10,0))<Simulador!$B$27,(Simulador!$B$27-DAY(EOMONTH(CN10,0)))+DAY(EOMONTH(CN10,0)),31) -> 31 | CO9: =+IF(DAY(EOMONTH(CO10,0))<Simulador!$B$27,(Simulador!$B$27-DAY(EOMONTH(CO10,0)))+DAY(EOMONTH(CO10,0)),31) -> 31 | CP9: =+IF(DAY(EOMONTH(CP10,0))<Simulador!$B$27,(Simulador!$B$27-DAY(EOMONTH(CP10,0)))+DAY(EOMONTH(CP10,0)),31) -> 31 | CQ9: =+IF(DAY(EOMONTH(CQ10,0))<Simulador!$B$27,(Simulador!$B$27-DAY(EOMONTH(CQ10,0)))+DAY(EOMONTH(CQ10,0)),31) -> 31 | CR9: =+IF(DAY(EOMONTH(CR10,0))<Simulador!$B$27,(Simulador!$B$27-DAY(EOMONTH(CR10,0)))+DAY(EOMONTH(CR10,0)),31) -> 31 | CS9: =+IF(DAY(EOMONTH(CS10,0))<Simulador!$B$27,(Simulador!$B$27-DAY(EOMONTH(CS10,0)))+DAY(EOMONTH(CS10,0)),31) -> 31 | CT9: =+IF(DAY(EOMONTH(CT10,0))<Simulador!$B$27,(Simulador!$B$27-DAY(EOMONTH(CT10,0)))+DAY(EOMONTH(CT10,0)),31) -> 31 | CU9: =+IF(DAY(EOMONTH(CU10,0))<Simulador!$B$27,(Simulador!$B$27-DAY(EOMONTH(CU10,0)))+DAY(EOMONTH(CU10,0)),31) -> 31 | CV9: =+IF(DAY(EOMONTH(CV10,0))<Simulador!$B$27,(Simulador!$B$27-DAY(EOMONTH(CV10,0)))+DAY(EOMONTH(CV10,0)),31) -> 31 | CW9: =+IF(DAY(EOMONTH(CW10,0))<Simulador!$B$27,(Simulador!$B$27-DAY(EOMONTH(CW10,0)))+DAY(EOMONTH(CW10,0)),31) -> 31 | CX9: =+IF(DAY(EOMONTH(CX10,0))<Simulador!$B$27,(Simulador!$B$27-DAY(EOMONTH(CX10,0)))+DAY(EOMONTH(CX10,0)),31) -> 31 | CY9: =+IF(DAY(EOMONTH(CY10,0))<Simulador!$B$27,(Simulador!$B$27-DAY(EOMONTH(CY10,0)))+DAY(EOMONTH(CY10,0)),31) -> 31 | CZ9: =+IF(DAY(EOMONTH(CZ10,0))<Simulador!$B$27,(Simulador!$B$27-DAY(EOMONTH(CZ10,0)))+DAY(EOMONTH(CZ10,0)),31) -> 31 | DA9: =+IF(DAY(EOMONTH(DA10,0))<Simulador!$B$27,(Simulador!$B$27-DAY(EOMONTH(DA10,0)))+DAY(EOMONTH(DA10,0)),31) -> 31 | DB9: =+IF(DAY(EOMONTH(DB10,0))<Simulador!$B$27,(Simulador!$B$27-DAY(EOMONTH(DB10,0)))+DAY(EOMONTH(DB10,0)),31) -> 31 | DC9: =+IF(DAY(EOMONTH(DC10,0))<Simulador!$B$27,(Simulador!$B$27-DAY(EOMONTH(DC10,0)))+DAY(EOMONTH(DC10,0)),31) -> 31 | DD9: =+IF(DAY(EOMONTH(DD10,0))<Simulador!$B$27,(Simulador!$B$27-DAY(EOMONTH(DD10,0)))+DAY(EOMONTH(DD10,0)),31) -> 31 | DE9: =+IF(DAY(EOMONTH(DE10,0))<Simulador!$B$27,(Simulador!$B$27-DAY(EOMONTH(DE10,0)))+DAY(EOMONTH(DE10,0)),31) -> 31 | DF9: =+IF(DAY(EOMONTH(DF10,0))<Simulador!$B$27,(Simulador!$B$27-DAY(EOMONTH(DF10,0)))+DAY(EOMONTH(DF10,0)),31) -> 31 | DG9: =+IF(DAY(EOMONTH(DG10,0))<Simulador!$B$27,(Simulador!$B$27-DAY(EOMONTH(DG10,0)))+DAY(EOMONTH(DG10,0)),31) -> 31 | DH9: =+IF(DAY(EOMONTH(DH10,0))<Simulador!$B$27,(Simulador!$B$27-DAY(EOMONTH(DH10,0)))+DAY(EOMONTH(DH10,0)),31) -> 31 | DI9: =+IF(DAY(EOMONTH(DI10,0))<Simulador!$B$27,(Simulador!$B$27-DAY(EOMONTH(DI10,0)))+DAY(EOMONTH(DI10,0)),31) -> 31 | DJ9: =+IF(DAY(EOMONTH(DJ10,0))<Simulador!$B$27,(Simulador!$B$27-DAY(EOMONTH(DJ10,0)))+DAY(EOMONTH(DJ10,0)),31) -> 31 | DK9: =+IF(DAY(EOMONTH(DK10,0))<Simulador!$B$27,(Simulador!$B$27-DAY(EOMONTH(DK10,0)))+DAY(EOMONTH(DK10,0)),31) -> 31 | DL9: =+IF(DAY(EOMONTH(DL10,0))<Simulador!$B$27,(Simulador!$B$27-DAY(EOMONTH(DL10,0)))+DAY(EOMONTH(DL10,0)),31) -> 31 | DM9: =+IF(DAY(EOMONTH(DM10,0))<Simulador!$B$27,(Simulador!$B$27-DAY(EOMONTH(DM10,0)))+DAY(EOMONTH(DM10,0)),31) -> 31 | DN9: =+IF(DAY(EOMONTH(DN10,0))<Simulador!$B$27,(Simulador!$B$27-DAY(EOMONTH(DN10,0)))+DAY(EOMONTH(DN10,0)),31) -> 31 | DO9: =+IF(DAY(EOMONTH(DO10,0))<Simulador!$B$27,(Simulador!$B$27-DAY(EOMONTH(DO10,0)))+DAY(EOMONTH(DO10,0)),31) -> 31 | DP9: =+IF(DAY(EOMONTH(DP10,0))<Simulador!$B$27,(Simulador!$B$27-DAY(EOMONTH(DP10,0)))+DAY(EOMONTH(DP10,0)),31) -> 31 | DQ9: =+IF(DAY(EOMONTH(DQ10,0))<Simulador!$B$27,(Simulador!$B$27-DAY(EOMONTH(DQ10,0)))+DAY(EOMONTH(DQ10,0)),31) -> 31 | DR9: =+IF(DAY(EOMONTH(DR10,0))<Simulador!$B$27,(Simulador!$B$27-DAY(EOMONTH(DR10,0)))+DAY(EOMONTH(DR10,0)),31) -> 31 | DS9: =+IF(DAY(EOMONTH(DS10,0))<Simulador!$B$27,(Simulador!$B$27-DAY(EOMONTH(DS10,0)))+DAY(EOMONTH(DS10,0)),31) -> 31 | DT9: =+IF(DAY(EOMONTH(DT10,0))<Simulador!$B$27,(Simulador!$B$27-DAY(EOMONTH(DT10,0)))+DAY(EOMONTH(DT10,0)),31) -> 31 | DU9: =+IF(DAY(EOMONTH(DU10,0))<Simulador!$B$27,(Simulador!$B$27-DAY(EOMONTH(DU10,0)))+DAY(EOMONTH(DU10,0)),31) -> 31 | DV9: =+IF(DAY(EOMONTH(DV10,0))<Simulador!$B$27,(Simulador!$B$27-DAY(EOMONTH(DV10,0)))+DAY(EOMONTH(DV10,0)),31) -> 31 | DW9: =+IF(DAY(EOMONTH(DW10,0))<Simulador!$B$27,(Simulador!$B$27-DAY(EOMONTH(DW10,0)))+DAY(EOMONTH(DW10,0)),31) -> 31 | DX9: =+IF(DAY(EOMONTH(DX10,0))<Simulador!$B$27,(Simulador!$B$27-DAY(EOMONTH(DX10,0)))+DAY(EOMONTH(DX10,0)),31) -> 31 | DY9: =+IF(DAY(EOMONTH(DY10,0))<Simulador!$B$27,(Simulador!$B$27-DAY(EOMONTH(DY10,0)))+DAY(EOMONTH(DY10,0)),31) -> 31 | DZ9: =+IF(DAY(EOMONTH(DZ10,0))<Simulador!$B$27,(Simulador!$B$27-DAY(EOMONTH(DZ10,0)))+DAY(EOMONTH(DZ10,0)),31) -> 31 | EA9: =+IF(DAY(EOMONTH(EA10,0))<Simulador!$B$27,(Simulador!$B$27-DAY(EOMONTH(EA10,0)))+DAY(EOMONTH(EA10,0)),31) -> 31 | EB9: =+IF(DAY(EOMONTH(EB10,0))<Simulador!$B$27,(Simulador!$B$27-DAY(EOMONTH(EB10,0)))+DAY(EOMONTH(EB10,0)),31) -> 31 | EC9: =+IF(DAY(EOMONTH(EC10,0))<Simulador!$B$27,(Simulador!$B$27-DAY(EOMONTH(EC10,0)))+DAY(EOMONTH(EC10,0)),31) -> 31 | ED9: =+IF(DAY(EOMONTH(ED10,0))<Simulador!$B$27,(Simulador!$B$27-DAY(EOMONTH(ED10,0)))+DAY(EOMONTH(ED10,0)),31) -> 31 | EE9: =+IF(DAY(EOMONTH(EE10,0))<Simulador!$B$27,(Simulador!$B$27-DAY(EOMONTH(EE10,0)))+DAY(EOMONTH(EE10,0)),31) -> 31 | EF9: =+IF(DAY(EOMONTH(EF10,0))<Simulador!$B$27,(Simulador!$B$27-DAY(EOMONTH(EF10,0)))+DAY(EOMONTH(EF10,0)),31) -> 31 | EG9: =+IF(DAY(EOMONTH(EG10,0))<Simulador!$B$27,(Simulador!$B$27-DAY(EOMONTH(EG10,0)))+DAY(EOMONTH(EG10,0)),31) -> 31 | EH9: =+IF(DAY(EOMONTH(EH10,0))<Simulador!$B$27,(Simulador!$B$27-DAY(EOMONTH(EH10,0)))+DAY(EOMONTH(EH10,0)),31) -> 31 | EI9: =+IF(DAY(EOMONTH(EI10,0))<Simulador!$B$27,(Simulador!$B$27-DAY(EOMONTH(EI10,0)))+DAY(EOMONTH(EI10,0)),31) -> 31 | EJ9: =+IF(DAY(EOMONTH(EJ10,0))<Simulador!$B$27,(Simulador!$B$27-DAY(EOMONTH(EJ10,0)))+DAY(EOMONTH(EJ10,0)),31) -> 31 | EK9: =+IF(DAY(EOMONTH(EK10,0))<Simulador!$B$27,(Simulador!$B$27-DAY(EOMONTH(EK10,0)))+DAY(EOMONTH(EK10,0)),31) -> 31 | EL9: =+IF(DAY(EOMONTH(EL10,0))<Simulador!$B$27,(Simulador!$B$27-DAY(EOMONTH(EL10,0)))+DAY(EOMONTH(EL10,0)),31) -> 31 | EM9: =+IF(DAY(EOMONTH(EM10,0))<Simulador!$B$27,(Simulador!$B$27-DAY(EOMONTH(EM10,0)))+DAY(EOMONTH(EM10,0)),31) -> 31 | EN9: =+IF(DAY(EOMONTH(EN10,0))<Simulador!$B$27,(Simulador!$B$27-DAY(EOMONTH(EN10,0)))+DAY(EOMONTH(EN10,0)),31) -> 31 | EO9: =+IF(DAY(EOMONTH(EO10,0))<Simulador!$B$27,(Simulador!$B$27-DAY(EOMONTH(EO10,0)))+DAY(EOMONTH(EO10,0)),31) -> 31 | EP9: =+IF(DAY(EOMONTH(EP10,0))<Simulador!$B$27,(Simulador!$B$27-DAY(EOMONTH(EP10,0)))+DAY(EOMONTH(EP10,0)),31) -> 31 | EQ9: =+IF(DAY(EOMONTH(EQ10,0))<Simulador!$B$27,(Simulador!$B$27-DAY(EOMONTH(EQ10,0)))+DAY(EOMONTH(EQ10,0)),31) -> 31 | ER9: =+IF(DAY(EOMONTH(ER10,0))<Simulador!$B$27,(Simulador!$B$27-DAY(EOMONTH(ER10,0)))+DAY(EOMONTH(ER10,0)),31) -> 31 | ES9: =+IF(DAY(EOMONTH(ES10,0))<Simulador!$B$27,(Simulador!$B$27-DAY(EOMONTH(ES10,0)))+DAY(EOMONTH(ES10,0)),31) -> 31 | ET9: =+IF(DAY(EOMONTH(ET10,0))<Simulador!$B$27,(Simulador!$B$27-DAY(EOMONTH(ET10,0)))+DAY(EOMONTH(ET10,0)),31) -> 31 | EU9: =+IF(DAY(EOMONTH(EU10,0))<Simulador!$B$27,(Simulador!$B$27-DAY(EOMONTH(EU10,0)))+DAY(EOMONTH(EU10,0)),31) -> 31 | EV9: =+IF(DAY(EOMONTH(EV10,0))<Simulador!$B$27,(Simulador!$B$27-DAY(EOMONTH(EV10,0)))+DAY(EOMONTH(EV10,0)),31) -> 31 | EW9: =+IF(DAY(EOMONTH(EW10,0))<Simulador!$B$27,(Simulador!$B$27-DAY(EOMONTH(EW10,0)))+DAY(EOMONTH(EW10,0)),31) -> 31 | EX9: =+IF(DAY(EOMONTH(EX10,0))<Simulador!$B$27,(Simulador!$B$27-DAY(EOMONTH(EX10,0)))+DAY(EOMONTH(EX10,0)),31) -> 31 | EY9: =+IF(DAY(EOMONTH(EY10,0))<Simulador!$B$27,(Simulador!$B$27-DAY(EOMONTH(EY10,0)))+DAY(EOMONTH(EY10,0)),31) -> 31 | EZ9: =+IF(DAY(EOMONTH(EZ10,0))<Simulador!$B$27,(Simulador!$B$27-DAY(EOMONTH(EZ10,0)))+DAY(EOMONTH(EZ10,0)),31) -> 31 | FA9: =+IF(DAY(EOMONTH(FA10,0))<Simulador!$B$27,(Simulador!$B$27-DAY(EOMONTH(FA10,0)))+DAY(EOMONTH(FA10,0)),31) -> 31 | FB9: =+IF(DAY(EOMONTH(FB10,0))<Simulador!$B$27,(Simulador!$B$27-DAY(EOMONTH(FB10,0)))+DAY(EOMONTH(FB10,0)),31) -> 31 | FC9: =+IF(DAY(EOMONTH(FC10,0))<Simulador!$B$27,(Simulador!$B$27-DAY(EOMONTH(FC10,0)))+DAY(EOMONTH(FC10,0)),31) -> 31 | FD9: =+IF(DAY(EOMONTH(FD10,0))<Simulador!$B$27,(Simulador!$B$27-DAY(EOMONTH(FD10,0)))+DAY(EOMONTH(FD10,0)),31) -> 31 | FE9: =+IF(DAY(EOMONTH(FE10,0))<Simulador!$B$27,(Simulador!$B$27-DAY(EOMONTH(FE10,0)))+DAY(EOMONTH(FE10,0)),31) -> 31 | FF9: =+IF(DAY(EOMONTH(FF10,0))<Simulador!$B$27,(Simulador!$B$27-DAY(EOMONTH(FF10,0)))+DAY(EOMONTH(FF10,0)),31) -> 31 | FG9: =+IF(DAY(EOMONTH(FG10,0))<Simulador!$B$27,(Simulador!$B$27-DAY(EOMONTH(FG10,0)))+DAY(EOMONTH(FG10,0)),31) -> 31 | FH9: =+IF(DAY(EOMONTH(FH10,0))<Simulador!$B$27,(Simulador!$B$27-DAY(EOMONTH(FH10,0)))+DAY(EOMONTH(FH10,0)),31) -> 31 | FI9: =+IF(DAY(EOMONTH(FI10,0))<Simulador!$B$27,(Simulador!$B$27-DAY(EOMONTH(FI10,0)))+DAY(EOMONTH(FI10,0)),31) -> 31 | FJ9: =+IF(DAY(EOMONTH(FJ10,0))<Simulador!$B$27,(Simulador!$B$27-DAY(EOMONTH(FJ10,0)))+DAY(EOMONTH(FJ10,0)),31) -> 31 | FK9: =+IF(DAY(EOMONTH(FK10,0))<Simulador!$B$27,(Simulador!$B$27-DAY(EOMONTH(FK10,0)))+DAY(EOMONTH(FK10,0)),31) -> 31 | FL9: =+IF(DAY(EOMONTH(FL10,0))<Simulador!$B$27,(Simulador!$B$27-DAY(EOMONTH(FL10,0)))+DAY(EOMONTH(FL10,0)),31) -> 31 | FM9: =+IF(DAY(EOMONTH(FM10,0))<Simulador!$B$27,(Simulador!$B$27-DAY(EOMONTH(FM10,0)))+DAY(EOMONTH(FM10,0)),31) -> 31 | FN9: =+IF(DAY(EOMONTH(FN10,0))<Simulador!$B$27,(Simulador!$B$27-DAY(EOMONTH(FN10,0)))+DAY(EOMONTH(FN10,0)),31) -> 31 | FO9: =+IF(DAY(EOMONTH(FO10,0))<Simulador!$B$27,(Simulador!$B$27-DAY(EOMONTH(FO10,0)))+DAY(EOMONTH(FO10,0)),31) -> 31 | FP9: =+IF(DAY(EOMONTH(FP10,0))<Simulador!$B$27,(Simulador!$B$27-DAY(EOMONTH(FP10,0)))+DAY(EOMONTH(FP10,0)),31) -> 31 | FQ9: =+IF(DAY(EOMONTH(FQ10,0))<Simulador!$B$27,(Simulador!$B$27-DAY(EOMONTH(FQ10,0)))+DAY(EOMONTH(FQ10,0)),31) -> 31 | FR9: =+IF(DAY(EOMONTH(FR10,0))<Simulador!$B$27,(Simulador!$B$27-DAY(EOMONTH(FR10,0)))+DAY(EOMONTH(FR10,0)),31) -> 31 | FS9: =+IF(DAY(EOMONTH(FS10,0))<Simulador!$B$27,(Simulador!$B$27-DAY(EOMONTH(FS10,0)))+DAY(EOMONTH(FS10,0)),31) -> 31 | FT9: =+IF(DAY(EOMONTH(FT10,0))<Simulador!$B$27,(Simulador!$B$27-DAY(EOMONTH(FT10,0)))+DAY(EOMONTH(FT10,0)),31) -> 31 | FU9: =+IF(DAY(EOMONTH(FU10,0))<Simulador!$B$27,(Simulador!$B$27-DAY(EOMONTH(FU10,0)))+DAY(EOMONTH(FU10,0)),31) -> 31 | FV9: =+IF(DAY(EOMONTH(FV10,0))<Simulador!$B$27,(Simulador!$B$27-DAY(EOMONTH(FV10,0)))+DAY(EOMONTH(FV10,0)),31) -> 31 | FW9: =+IF(DAY(EOMONTH(FW10,0))<Simulador!$B$27,(Simulador!$B$27-DAY(EOMONTH(FW10,0)))+DAY(EOMONTH(FW10,0)),31) -> 31 | FX9: =+IF(DAY(EOMONTH(FX10,0))<Simulador!$B$27,(Simulador!$B$27-DAY(EOMONTH(FX10,0)))+DAY(EOMONTH(FX10,0)),31) -> 31 | FY9: =+IF(DAY(EOMONTH(FY10,0))<Simulador!$B$27,(Simulador!$B$27-DAY(EOMONTH(FY10,0)))+DAY(EOMONTH(FY10,0)),31) -> 31 | FZ9: =+IF(DAY(EOMONTH(FZ10,0))<Simulador!$B$27,(Simulador!$B$27-DAY(EOMONTH(FZ10,0)))+DAY(EOMONTH(FZ10,0)),31) -> 31 | GA9: =+IF(DAY(EOMONTH(GA10,0))<Simulador!$B$27,(Simulador!$B$27-DAY(EOMONTH(GA10,0)))+DAY(EOMONTH(GA10,0)),31) -> 31 | GB9: =+IF(DAY(EOMONTH(GB10,0))<Simulador!$B$27,(Simulador!$B$27-DAY(EOMONTH(GB10,0)))+DAY(EOMONTH(GB10,0)),31) -> 31 | GC9: =+IF(DAY(EOMONTH(GC10,0))<Simulador!$B$27,(Simulador!$B$27-DAY(EOMONTH(GC10,0)))+DAY(EOMONTH(GC10,0)),31) -> 31 | GD9: =+IF(DAY(EOMONTH(GD10,0))<Simulador!$B$27,(Simulador!$B$27-DAY(EOMONTH(GD10,0)))+DAY(EOMONTH(GD10,0)),31) -> 31 | GE9: =+IF(DAY(EOMONTH(GE10,0))<Simulador!$B$27,(Simulador!$B$27-DAY(EOMONTH(GE10,0)))+DAY(EOMONTH(GE10,0)),31) -> 31 | GF9: =+IF(DAY(EOMONTH(GF10,0))<Simulador!$B$27,(Simulador!$B$27-DAY(EOMONTH(GF10,0)))+DAY(EOMONTH(GF10,0)),31) -> 31 | GG9: =+IF(DAY(EOMONTH(GG10,0))<Simulador!$B$27,(Simulador!$B$27-DAY(EOMONTH(GG10,0)))+DAY(EOMONTH(GG10,0)),31) -> 31 | GH9: =+IF(DAY(EOMONTH(GH10,0))<Simulador!$B$27,(Simulador!$B$27-DAY(EOMONTH(GH10,0)))+DAY(EOMONTH(GH10,0)),31) -> 31 | GI9: =+IF(DAY(EOMONTH(GI10,0))<Simulador!$B$27,(Simulador!$B$27-DAY(EOMONTH(GI10,0)))+DAY(EOMONTH(GI10,0)),31) -> 31 | GJ9: =+IF(DAY(EOMONTH(GJ10,0))<Simulador!$B$27,(Simulador!$B$27-DAY(EOMONTH(GJ10,0)))+DAY(EOMONTH(GJ10,0)),31) -> 31 | GK9: =+IF(DAY(EOMONTH(GK10,0))<Simulador!$B$27,(Simulador!$B$27-DAY(EOMONTH(GK10,0)))+DAY(EOMONTH(GK10,0)),31) -> 31 | GL9: =+IF(DAY(EOMONTH(GL10,0))<Simulador!$B$27,(Simulador!$B$27-DAY(EOMONTH(GL10,0)))+DAY(EOMONTH(GL10,0)),31) -> 31 | GM9: =+IF(DAY(EOMONTH(GM10,0))<Simulador!$B$27,(Simulador!$B$27-DAY(EOMONTH(GM10,0)))+DAY(EOMONTH(GM10,0)),31) -> 31 | GN9: =+IF(DAY(EOMONTH(GN10,0))<Simulador!$B$27,(Simulador!$B$27-DAY(EOMONTH(GN10,0)))+DAY(EOMONTH(GN10,0)),31) -> 31 | GO9: =+IF(DAY(EOMONTH(GO10,0))<Simulador!$B$27,(Simulador!$B$27-DAY(EOMONTH(GO10,0)))+DAY(EOMONTH(GO10,0)),31) -> 31 | GP9: =+IF(DAY(EOMONTH(GP10,0))<Simulador!$B$27,(Simulador!$B$27-DAY(EOMONTH(GP10,0)))+DAY(EOMONTH(GP10,0)),31) -> 31 | GQ9: =+IF(DAY(EOMONTH(GQ10,0))<Simulador!$B$27,(Simulador!$B$27-DAY(EOMONTH(GQ10,0)))+DAY(EOMONTH(GQ10,0)),31) -> 31 | GR9: =+IF(DAY(EOMONTH(GR10,0))<Simulador!$B$27,(Simulador!$B$27-DAY(EOMONTH(GR10,0)))+DAY(EOMONTH(GR10,0)),31) -> 31 | GS9: =+IF(DAY(EOMONTH(GS10,0))<Simulador!$B$27,(Simulador!$B$27-DAY(EOMONTH(GS10,0)))+DAY(EOMONTH(GS10,0)),31) -> 31 | GT9: =+IF(DAY(EOMONTH(GT10,0))<Simulador!$B$27,(Simulador!$B$27-DAY(EOMONTH(GT10,0)))+DAY(EOMONTH(GT10,0)),31) -> 31 | GU9: =+IF(DAY(EOMONTH(GU10,0))<Simulador!$B$27,(Simulador!$B$27-DAY(EOMONTH(GU10,0)))+DAY(EOMONTH(GU10,0)),31) -> 31 | GV9: =+IF(DAY(EOMONTH(GV10,0))<Simulador!$B$27,(Simulador!$B$27-DAY(EOMONTH(GV10,0)))+DAY(EOMONTH(GV10,0)),31) -> 31 | GW9: =+IF(DAY(EOMONTH(GW10,0))<Simulador!$B$27,(Simulador!$B$27-DAY(EOMONTH(GW10,0)))+DAY(EOMONTH(GW10,0)),31) -> 31 | GX9: =+IF(DAY(EOMONTH(GX10,0))<Simulador!$B$27,(Simulador!$B$27-DAY(EOMONTH(GX10,0)))+DAY(EOMONTH(GX10,0)),31) -> 31 | GY9: =+IF(DAY(EOMONTH(GY10,0))<Simulador!$B$27,(Simulador!$B$27-DAY(EOMONTH(GY10,0)))+DAY(EOMONTH(GY10,0)),31) -> 31 | GZ9: =+IF(DAY(EOMONTH(GZ10,0))<Simulador!$B$27,(Simulador!$B$27-DAY(EOMONTH(GZ10,0)))+DAY(EOMONTH(GZ10,0)),31) -> 31 | HA9: =+IF(DAY(EOMONTH(HA10,0))<Simulador!$B$27,(Simulador!$B$27-DAY(EOMONTH(HA10,0)))+DAY(EOMONTH(HA10,0)),31) -> 31 | HB9: =+IF(DAY(EOMONTH(HB10,0))<Simulador!$B$27,(Simulador!$B$27-DAY(EOMONTH(HB10,0)))+DAY(EOMONTH(HB10,0)),31) -> 31 | HC9: =+IF(DAY(EOMONTH(HC10,0))<Simulador!$B$27,(Simulador!$B$27-DAY(EOMONTH(HC10,0)))+DAY(EOMONTH(HC10,0)),31) -> 31 | HD9: =+IF(DAY(EOMONTH(HD10,0))<Simulador!$B$27,(Simulador!$B$27-DAY(EOMONTH(HD10,0)))+DAY(EOMONTH(HD10,0)),31) -> 31 | HE9: =+IF(DAY(EOMONTH(HE10,0))<Simulador!$B$27,(Simulador!$B$27-DAY(EOMONTH(HE10,0)))+DAY(EOMONTH(HE10,0)),31) -> 31 | HF9: =+IF(DAY(EOMONTH(HF10,0))<Simulador!$B$27,(Simulador!$B$27-DAY(EOMONTH(HF10,0)))+DAY(EOMONTH(HF10,0)),31) -> 31 | HG9: =+IF(DAY(EOMONTH(HG10,0))<Simulador!$B$27,(Simulador!$B$27-DAY(EOMONTH(HG10,0)))+DAY(EOMONTH(HG10,0)),31) -> 31 | HH9: =+IF(DAY(EOMONTH(HH10,0))<Simulador!$B$27,(Simulador!$B$27-DAY(EOMONTH(HH10,0)))+DAY(EOMONTH(HH10,0)),31) -> 31 | HI9: =+IF(DAY(EOMONTH(HI10,0))<Simulador!$B$27,(Simulador!$B$27-DAY(EOMONTH(HI10,0)))+DAY(EOMONTH(HI10,0)),31) -> 31 | HJ9: =+IF(DAY(EOMONTH(HJ10,0))<Simulador!$B$27,(Simulador!$B$27-DAY(EOMONTH(HJ10,0)))+DAY(EOMONTH(HJ10,0)),31) -> 31 | HK9: =+IF(DAY(EOMONTH(HK10,0))<Simulador!$B$27,(Simulador!$B$27-DAY(EOMONTH(HK10,0)))+DAY(EOMONTH(HK10,0)),31) -> 31 | HL9: =+IF(DAY(EOMONTH(HL10,0))<Simulador!$B$27,(Simulador!$B$27-DAY(EOMONTH(HL10,0)))+DAY(EOMONTH(HL10,0)),31) -> 31 | HM9: =+IF(DAY(EOMONTH(HM10,0))<Simulador!$B$27,(Simulador!$B$27-DAY(EOMONTH(HM10,0)))+DAY(EOMONTH(HM10,0)),31) -> 31 | HN9: =+IF(DAY(EOMONTH(HN10,0))<Simulador!$B$27,(Simulador!$B$27-DAY(EOMONTH(HN10,0)))+DAY(EOMONTH(HN10,0)),31) -> 31 | HO9: =+IF(DAY(EOMONTH(HO10,0))<Simulador!$B$27,(Simulador!$B$27-DAY(EOMONTH(HO10,0)))+DAY(EOMONTH(HO10,0)),31) -> 31 | HP9: =+IF(DAY(EOMONTH(HP10,0))<Simulador!$B$27,(Simulador!$B$27-DAY(EOMONTH(HP10,0)))+DAY(EOMONTH(HP10,0)),31) -> 31 | HQ9: =+IF(DAY(EOMONTH(HQ10,0))<Simulador!$B$27,(Simulador!$B$27-DAY(EOMONTH(HQ10,0)))+DAY(EOMONTH(HQ10,0)),31) -> 31 | HR9: =+IF(DAY(EOMONTH(HR10,0))<Simulador!$B$27,(Simulador!$B$27-DAY(EOMONTH(HR10,0)))+DAY(EOMONTH(HR10,0)),31) -> 31 | HS9: =+IF(DAY(EOMONTH(HS10,0))<Simulador!$B$27,(Simulador!$B$27-DAY(EOMONTH(HS10,0)))+DAY(EOMONTH(HS10,0)),31) -> 31 | HT9: =+IF(DAY(EOMONTH(HT10,0))<Simulador!$B$27,(Simulador!$B$27-DAY(EOMONTH(HT10,0)))+DAY(EOMONTH(HT10,0)),31) -> 31 | HU9: =+IF(DAY(EOMONTH(HU10,0))<Simulador!$B$27,(Simulador!$B$27-DAY(EOMONTH(HU10,0)))+DAY(EOMONTH(HU10,0)),31) -> 31 | HV9: =+IF(DAY(EOMONTH(HV10,0))<Simulador!$B$27,(Simulador!$B$27-DAY(EOMONTH(HV10,0)))+DAY(EOMONTH(HV10,0)),31) -> 31 | HW9: =+IF(DAY(EOMONTH(HW10,0))<Simulador!$B$27,(Simulador!$B$27-DAY(EOMONTH(HW10,0)))+DAY(EOMONTH(HW10,0)),31) -> 31 | HX9: =+IF(DAY(EOMONTH(HX10,0))<Simulador!$B$27,(Simulador!$B$27-DAY(EOMONTH(HX10,0)))+DAY(EOMONTH(HX10,0)),31) -> 31 | HY9: =+IF(DAY(EOMONTH(HY10,0))<Simulador!$B$27,(Simulador!$B$27-DAY(EOMONTH(HY10,0)))+DAY(EOMONTH(HY10,0)),31) -> 31 | HZ9: =+IF(DAY(EOMONTH(HZ10,0))<Simulador!$B$27,(Simulador!$B$27-DAY(EOMONTH(HZ10,0)))+DAY(EOMONTH(HZ10,0)),31) -> 31 | IA9: =+IF(DAY(EOMONTH(IA10,0))<Simulador!$B$27,(Simulador!$B$27-DAY(EOMONTH(IA10,0)))+DAY(EOMONTH(IA10,0)),31) -> 31 | IB9: =+IF(DAY(EOMONTH(IB10,0))<Simulador!$B$27,(Simulador!$B$27-DAY(EOMONTH(IB10,0)))+DAY(EOMONTH(IB10,0)),31) -> 31 | IC9: =+IF(DAY(EOMONTH(IC10,0))<Simulador!$B$27,(Simulador!$B$27-DAY(EOMONTH(IC10,0)))+DAY(EOMONTH(IC10,0)),31) -> 31 | ID9: =+IF(DAY(EOMONTH(ID10,0))<Simulador!$B$27,(Simulador!$B$27-DAY(EOMONTH(ID10,0)))+DAY(EOMONTH(ID10,0)),31) -> 31 | IE9: =+IF(DAY(EOMONTH(IE10,0))<Simulador!$B$27,(Simulador!$B$27-DAY(EOMONTH(IE10,0)))+DAY(EOMONTH(IE10,0)),31) -> 31 | IF9: =+IF(DAY(EOMONTH(IF10,0))<Simulador!$B$27,(Simulador!$B$27-DAY(EOMONTH(IF10,0)))+DAY(EOMONTH(IF10,0)),31) -> 31 | IG9: =+IF(DAY(EOMONTH(IG10,0))<Simulador!$B$27,(Simulador!$B$27-DAY(EOMONTH(IG10,0)))+DAY(EOMONTH(IG10,0)),31) -> 31 | IH9: =+IF(DAY(EOMONTH(IH10,0))<Simulador!$B$27,(Simulador!$B$27-DAY(EOMONTH(IH10,0)))+DAY(EOMONTH(IH10,0)),31) -> 31 | II9: =+IF(DAY(EOMONTH(II10,0))<Simulador!$B$27,(Simulador!$B$27-DAY(EOMONTH(II10,0)))+DAY(EOMONTH(II10,0)),31) -> 31 | IJ9: =+IF(DAY(EOMONTH(IJ10,0))<Simulador!$B$27,(Simulador!$B$27-DAY(EOMONTH(IJ10,0)))+DAY(EOMONTH(IJ10,0)),31) -> 31 | IK9: =+IF(DAY(EOMONTH(IK10,0))<Simulador!$B$27,(Simulador!$B$27-DAY(EOMONTH(IK10,0)))+DAY(EOMONTH(IK10,0)),31) -> 31 | IL9: =+IF(DAY(EOMONTH(IL10,0))<Simulador!$B$27,(Simulador!$B$27-DAY(EOMONTH(IL10,0)))+DAY(EOMONTH(IL10,0)),31) -> 31 | IM9: =+IF(DAY(EOMONTH(IM10,0))<Simulador!$B$27,(Simulador!$B$27-DAY(EOMONTH(IM10,0)))+DAY(EOMONTH(IM10,0)),31) -> 31 | IN9: =+IF(DAY(EOMONTH(IN10,0))<Simulador!$B$27,(Simulador!$B$27-DAY(EOMONTH(IN10,0)))+DAY(EOMONTH(IN10,0)),31) -> 31 | IO9: =+IF(DAY(EOMONTH(IO10,0))<Simulador!$B$27,(Simulador!$B$27-DAY(EOMONTH(IO10,0)))+DAY(EOMONTH(IO10,0)),31) -> 31 | IP9: =+IF(DAY(EOMONTH(IP10,0))<Simulador!$B$27,(Simulador!$B$27-DAY(EOMONTH(IP10,0)))+DAY(EOMONTH(IP10,0)),31) -> 31 | IQ9: =+IF(DAY(EOMONTH(IQ10,0))<Simulador!$B$27,(Simulador!$B$27-DAY(EOMONTH(IQ10,0)))+DAY(EOMONTH(IQ10,0)),31) -> 31 | IR9: =+IF(DAY(EOMONTH(IR10,0))<Simulador!$B$27,(Simulador!$B$27-DAY(EOMONTH(IR10,0)))+DAY(EOMONTH(IR10,0)),31) -> 31 | IS9: =+IF(DAY(EOMONTH(IS10,0))<Simulador!$B$27,(Simulador!$B$27-DAY(EOMONTH(IS10,0)))+DAY(EOMONTH(IS10,0)),31) -> 31 | IT9: =+IF(DAY(EOMONTH(IT10,0))<Simulador!$B$27,(Simulador!$B$27-DAY(EOMONTH(IT10,0)))+DAY(EOMONTH(IT10,0)),31) -> 31 | IU9: =+IF(DAY(EOMONTH(IU10,0))<Simulador!$B$27,(Simulador!$B$27-DAY(EOMONTH(IU10,0)))+DAY(EOMONTH(IU10,0)),31) -> 31 | IV9: =+IF(DAY(EOMONTH(IV10,0))<Simulador!$B$27,(Simulador!$B$27-DAY(EOMONTH(IV10,0)))+DAY(EOMONTH(IV10,0)),31) -> 31 | IW9: =+IF(DAY(EOMONTH(IW10,0))<Simulador!$B$27,(Simulador!$B$27-DAY(EOMONTH(IW10,0)))+DAY(EOMONTH(IW10,0)),31) -> 31 | IX9: =+IF(DAY(EOMONTH(IX10,0))<Simulador!$B$27,(Simulador!$B$27-DAY(EOMONTH(IX10,0)))+DAY(EOMONTH(IX10,0)),31) -> 31 | IY9: =+IF(DAY(EOMONTH(IY10,0))<Simulador!$B$27,(Simulador!$B$27-DAY(EOMONTH(IY10,0)))+DAY(EOMONTH(IY10,0)),31) -> 31 | IZ9: =+IF(DAY(EOMONTH(IZ10,0))<Simulador!$B$27,(Simulador!$B$27-DAY(EOMONTH(IZ10,0)))+DAY(EOMONTH(IZ10,0)),31) -> 31 | JA9: =+IF(DAY(EOMONTH(JA10,0))<Simulador!$B$27,(Simulador!$B$27-DAY(EOMONTH(JA10,0)))+DAY(EOMONTH(JA10,0)),31) -> 31 | JB9: =+IF(DAY(EOMONTH(JB10,0))<Simulador!$B$27,(Simulador!$B$27-DAY(EOMONTH(JB10,0)))+DAY(EOMONTH(JB10,0)),31) -> 31 | JC9: =+IF(DAY(EOMONTH(JC10,0))<Simulador!$B$27,(Simulador!$B$27-DAY(EOMONTH(JC10,0)))+DAY(EOMONTH(JC10,0)),31) -> 31 | JD9: =+IF(DAY(EOMONTH(JD10,0))<Simulador!$B$27,(Simulador!$B$27-DAY(EOMONTH(JD10,0)))+DAY(EOMONTH(JD10,0)),31) -> 31 | JE9: =+IF(DAY(EOMONTH(JE10,0))<Simulador!$B$27,(Simulador!$B$27-DAY(EOMONTH(JE10,0)))+DAY(EOMONTH(JE10,0)),31) -> 31 | JF9: =+IF(DAY(EOMONTH(JF10,0))<Simulador!$B$27,(Simulador!$B$27-DAY(EOMONTH(JF10,0)))+DAY(EOMONTH(JF10,0)),31) -> 31 | JG9: =+IF(DAY(EOMONTH(JG10,0))<Simulador!$B$27,(Simulador!$B$27-DAY(EOMONTH(JG10,0)))+DAY(EOMONTH(JG10,0)),31) -> 31 | JH9: =+IF(DAY(EOMONTH(JH10,0))<Simulador!$B$27,(Simulador!$B$27-DAY(EOMONTH(JH10,0)))+DAY(EOMONTH(JH10,0)),31) -> 31 | JI9: =+IF(DAY(EOMONTH(JI10,0))<Simulador!$B$27,(Simulador!$B$27-DAY(EOMONTH(JI10,0)))+DAY(EOMONTH(JI10,0)),31) -> 31 | JJ9: =+IF(DAY(EOMONTH(JJ10,0))<Simulador!$B$27,(Simulador!$B$27-DAY(EOMONTH(JJ10,0)))+DAY(EOMONTH(JJ10,0)),31) -> 31 | JK9: =+IF(DAY(EOMONTH(JK10,0))<Simulador!$B$27,(Simulador!$B$27-DAY(EOMONTH(JK10,0)))+DAY(EOMONTH(JK10,0)),31) -> 31 | JL9: =+IF(DAY(EOMONTH(JL10,0))<Simulador!$B$27,(Simulador!$B$27-DAY(EOMONTH(JL10,0)))+DAY(EOMONTH(JL10,0)),31) -> 31 | JM9: =+IF(DAY(EOMONTH(JM10,0))<Simulador!$B$27,(Simulador!$B$27-DAY(EOMONTH(JM10,0)))+DAY(EOMONTH(JM10,0)),31) -> 31 | JN9: =+IF(DAY(EOMONTH(JN10,0))<Simulador!$B$27,(Simulador!$B$27-DAY(EOMONTH(JN10,0)))+DAY(EOMONTH(JN10,0)),31) -> 31 | JO9: =+IF(DAY(EOMONTH(JO10,0))<Simulador!$B$27,(Simulador!$B$27-DAY(EOMONTH(JO10,0)))+DAY(EOMONTH(JO10,0)),31) -> 31 | JP9: =+IF(DAY(EOMONTH(JP10,0))<Simulador!$B$27,(Simulador!$B$27-DAY(EOMONTH(JP10,0)))+DAY(EOMONTH(JP10,0)),31) -> 31 | JQ9: =+IF(DAY(EOMONTH(JQ10,0))<Simulador!$B$27,(Simulador!$B$27-DAY(EOMONTH(JQ10,0)))+DAY(EOMONTH(JQ10,0)),31) -> 31 | JR9: =+IF(DAY(EOMONTH(JR10,0))<Simulador!$B$27,(Simulador!$B$27-DAY(EOMONTH(JR10,0)))+DAY(EOMONTH(JR10,0)),31) -> 31 | JS9: =+IF(DAY(EOMONTH(JS10,0))<Simulador!$B$27,(Simulador!$B$27-DAY(EOMONTH(JS10,0)))+DAY(EOMONTH(JS10,0)),31) -> 31 | JT9: =+IF(DAY(EOMONTH(JT10,0))<Simulador!$B$27,(Simulador!$B$27-DAY(EOMONTH(JT10,0)))+DAY(EOMONTH(JT10,0)),31) -> 31 | JU9: =+IF(DAY(EOMONTH(JU10,0))<Simulador!$B$27,(Simulador!$B$27-DAY(EOMONTH(JU10,0)))+DAY(EOMONTH(JU10,0)),31) -> 31 | JV9: =+IF(DAY(EOMONTH(JV10,0))<Simulador!$B$27,(Simulador!$B$27-DAY(EOMONTH(JV10,0)))+DAY(EOMONTH(JV10,0)),31) -> 31 | JW9: =+IF(DAY(EOMONTH(JW10,0))<Simulador!$B$27,(Simulador!$B$27-DAY(EOMONTH(JW10,0)))+DAY(EOMONTH(JW10,0)),31) -> 31 | JX9: =+IF(DAY(EOMONTH(JX10,0))<Simulador!$B$27,(Simulador!$B$27-DAY(EOMONTH(JX10,0)))+DAY(EOMONTH(JX10,0)),31) -> 31 | JY9: =+IF(DAY(EOMONTH(JY10,0))<Simulador!$B$27,(Simulador!$B$27-DAY(EOMONTH(JY10,0)))+DAY(EOMONTH(JY10,0)),31) -> 31 | JZ9: =+IF(DAY(EOMONTH(JZ10,0))<Simulador!$B$27,(Simulador!$B$27-DAY(EOMONTH(JZ10,0)))+DAY(EOMONTH(JZ10,0)),31) -> 31 | KA9: =+IF(DAY(EOMONTH(KA10,0))<Simulador!$B$27,(Simulador!$B$27-DAY(EOMONTH(KA10,0)))+DAY(EOMONTH(KA10,0)),31) -> 31 | KB9: =+IF(DAY(EOMONTH(KB10,0))<Simulador!$B$27,(Simulador!$B$27-DAY(EOMONTH(KB10,0)))+DAY(EOMONTH(KB10,0)),31) -> 31 | KC9: =+IF(DAY(EOMONTH(KC10,0))<Simulador!$B$27,(Simulador!$B$27-DAY(EOMONTH(KC10,0)))+DAY(EOMONTH(KC10,0)),31) -> 31 | KD9: =+IF(DAY(EOMONTH(KD10,0))<Simulador!$B$27,(Simulador!$B$27-DAY(EOMONTH(KD10,0)))+DAY(EOMONTH(KD10,0)),31) -> 31 | KE9: =+IF(DAY(EOMONTH(KE10,0))<Simulador!$B$27,(Simulador!$B$27-DAY(EOMONTH(KE10,0)))+DAY(EOMONTH(KE10,0)),31) -> 31 | KF9: =+IF(DAY(EOMONTH(KF10,0))<Simulador!$B$27,(Simulador!$B$27-DAY(EOMONTH(KF10,0)))+DAY(EOMONTH(KF10,0)),31) -> 31 | KG9: =+IF(DAY(EOMONTH(KG10,0))<Simulador!$B$27,(Simulador!$B$27-DAY(EOMONTH(KG10,0)))+DAY(EOMONTH(KG10,0)),31) -> 31 | KH9: =+IF(DAY(EOMONTH(KH10,0))<Simulador!$B$27,(Simulador!$B$27-DAY(EOMONTH(KH10,0)))+DAY(EOMONTH(KH10,0)),31) -> 31 | KI9: =+IF(DAY(EOMONTH(KI10,0))<Simulador!$B$27,(Simulador!$B$27-DAY(EOMONTH(KI10,0)))+DAY(EOMONTH(KI10,0)),31) -> 31 | KJ9: =+IF(DAY(EOMONTH(KJ10,0))<Simulador!$B$27,(Simulador!$B$27-DAY(EOMONTH(KJ10,0)))+DAY(EOMONTH(KJ10,0)),31) -> 31 | KK9: =+IF(DAY(EOMONTH(KK10,0))<Simulador!$B$27,(Simulador!$B$27-DAY(EOMONTH(KK10,0)))+DAY(EOMONTH(KK10,0)),31) -> 31 | KL9: =+IF(DAY(EOMONTH(KL10,0))<Simulador!$B$27,(Simulador!$B$27-DAY(EOMONTH(KL10,0)))+DAY(EOMONTH(KL10,0)),31) -> 31 | KM9: =+IF(DAY(EOMONTH(KM10,0))<Simulador!$B$27,(Simulador!$B$27-DAY(EOMONTH(KM10,0)))+DAY(EOMONTH(KM10,0)),31) -> 31 | KN9: =+IF(DAY(EOMONTH(KN10,0))<Simulador!$B$27,(Simulador!$B$27-DAY(EOMONTH(KN10,0)))+DAY(EOMONTH(KN10,0)),31) -> 31 | KO9: =+IF(DAY(EOMONTH(KO10,0))<Simulador!$B$27,(Simulador!$B$27-DAY(EOMONTH(KO10,0)))+DAY(EOMONTH(KO10,0)),31) -> 31 | KP9: =+IF(DAY(EOMONTH(KP10,0))<Simulador!$B$27,(Simulador!$B$27-DAY(EOMONTH(KP10,0)))+DAY(EOMONTH(KP10,0)),31) -> 31 | KQ9: =+IF(DAY(EOMONTH(KQ10,0))<Simulador!$B$27,(Simulador!$B$27-DAY(EOMONTH(KQ10,0)))+DAY(EOMONTH(KQ10,0)),31) -> 31 | KR9: =+IF(DAY(EOMONTH(KR10,0))<Simulador!$B$27,(Simulador!$B$27-DAY(EOMONTH(KR10,0)))+DAY(EOMONTH(KR10,0)),31) -> 31 | KS9: =+IF(DAY(EOMONTH(KS10,0))<Simulador!$B$27,(Simulador!$B$27-DAY(EOMONTH(KS10,0)))+DAY(EOMONTH(KS10,0)),31) -> 31 | KT9: =+IF(DAY(EOMONTH(KT10,0))<Simulador!$B$27,(Simulador!$B$27-DAY(EOMONTH(KT10,0)))+DAY(EOMONTH(KT10,0)),31) -> 31 | KU9: =+IF(DAY(EOMONTH(KU10,0))<Simulador!$B$27,(Simulador!$B$27-DAY(EOMONTH(KU10,0)))+DAY(EOMONTH(KU10,0)),31) -> 31 | KV9: =+IF(DAY(EOMONTH(KV10,0))<Simulador!$B$27,(Simulador!$B$27-DAY(EOMONTH(KV10,0)))+DAY(EOMONTH(KV10,0)),31) -> 31 | KW9: =+IF(DAY(EOMONTH(KW10,0))<Simulador!$B$27,(Simulador!$B$27-DAY(EOMONTH(KW10,0)))+DAY(EOMONTH(KW10,0)),31) -> 31 | KX9: =+IF(DAY(EOMONTH(KX10,0))<Simulador!$B$27,(Simulador!$B$27-DAY(EOMONTH(KX10,0)))+DAY(EOMONTH(KX10,0)),31) -> 31 | KY9: =+IF(DAY(EOMONTH(KY10,0))<Simulador!$B$27,(Simulador!$B$27-DAY(EOMONTH(KY10,0)))+DAY(EOMONTH(KY10,0)),31) -> 31 | KZ9: =+IF(DAY(EOMONTH(KZ10,0))<Simulador!$B$27,(Simulador!$B$27-DAY(EOMONTH(KZ10,0)))+DAY(EOMONTH(KZ10,0)),31) -> 31 | LA9: =+IF(DAY(EOMONTH(LA10,0))<Simulador!$B$27,(Simulador!$B$27-DAY(EOMONTH(LA10,0)))+DAY(EOMONTH(LA10,0)),31) -> 31 | LB9: =+IF(DAY(EOMONTH(LB10,0))<Simulador!$B$27,(Simulador!$B$27-DAY(EOMONTH(LB10,0)))+DAY(EOMONTH(LB10,0)),31) -> 31 | LC9: =+IF(DAY(EOMONTH(LC10,0))<Simulador!$B$27,(Simulador!$B$27-DAY(EOMONTH(LC10,0)))+DAY(EOMONTH(LC10,0)),31) -> 31 | LD9: =+IF(DAY(EOMONTH(LD10,0))<Simulador!$B$27,(Simulador!$B$27-DAY(EOMONTH(LD10,0)))+DAY(EOMONTH(LD10,0)),31) -> 31 | LE9: =+IF(DAY(EOMONTH(LE10,0))<Simulador!$B$27,(Simulador!$B$27-DAY(EOMONTH(LE10,0)))+DAY(EOMONTH(LE10,0)),31) -> 31 | LF9: =+IF(DAY(EOMONTH(LF10,0))<Simulador!$B$27,(Simulador!$B$27-DAY(EOMONTH(LF10,0)))+DAY(EOMONTH(LF10,0)),31) -> 31 | LG9: =+IF(DAY(EOMONTH(LG10,0))<Simulador!$B$27,(Simulador!$B$27-DAY(EOMONTH(LG10,0)))+DAY(EOMONTH(LG10,0)),31) -> 31 | LH9: =+IF(DAY(EOMONTH(LH10,0))<Simulador!$B$27,(Simulador!$B$27-DAY(EOMONTH(LH10,0)))+DAY(EOMONTH(LH10,0)),31) -> 31 | LI9: =+IF(DAY(EOMONTH(LI10,0))<Simulador!$B$27,(Simulador!$B$27-DAY(EOMONTH(LI10,0)))+DAY(EOMONTH(LI10,0)),31) -> 31 | LJ9: =+IF(DAY(EOMONTH(LJ10,0))<Simulador!$B$27,(Simulador!$B$27-DAY(EOMONTH(LJ10,0)))+DAY(EOMONTH(LJ10,0)),31) -> 31 | LK9: =+IF(DAY(EOMONTH(LK10,0))<Simulador!$B$27,(Simulador!$B$27-DAY(EOMONTH(LK10,0)))+DAY(EOMONTH(LK10,0)),31) -> 31 | LL9: =+IF(DAY(EOMONTH(LL10,0))<Simulador!$B$27,(Simulador!$B$27-DAY(EOMONTH(LL10,0)))+DAY(EOMONTH(LL10,0)),31) -> 31 | LM9: =+IF(DAY(EOMONTH(LM10,0))<Simulador!$B$27,(Simulador!$B$27-DAY(EOMONTH(LM10,0)))+DAY(EOMONTH(LM10,0)),31) -> 31 | LN9: =+IF(DAY(EOMONTH(LN10,0))<Simulador!$B$27,(Simulador!$B$27-DAY(EOMONTH(LN10,0)))+DAY(EOMONTH(LN10,0)),31) -> 31 | LO9: =+IF(DAY(EOMONTH(LO10,0))<Simulador!$B$27,(Simulador!$B$27-DAY(EOMONTH(LO10,0)))+DAY(EOMONTH(LO10,0)),31) -> 31 | LP9: =+IF(DAY(EOMONTH(LP10,0))<Simulador!$B$27,(Simulador!$B$27-DAY(EOMONTH(LP10,0)))+DAY(EOMONTH(LP10,0)),31) -> 31 | LQ9: =+IF(DAY(EOMONTH(LQ10,0))<Simulador!$B$27,(Simulador!$B$27-DAY(EOMONTH(LQ10,0)))+DAY(EOMONTH(LQ10,0)),31) -> 31 | LR9: =+IF(DAY(EOMONTH(LR10,0))<Simulador!$B$27,(Simulador!$B$27-DAY(EOMONTH(LR10,0)))+DAY(EOMONTH(LR10,0)),31) -> 31 | LS9: =+IF(DAY(EOMONTH(LS10,0))<Simulador!$B$27,(Simulador!$B$27-DAY(EOMONTH(LS10,0)))+DAY(EOMONTH(LS10,0)),31) -> 31 | LT9: =+IF(DAY(EOMONTH(LT10,0))<Simulador!$B$27,(Simulador!$B$27-DAY(EOMONTH(LT10,0)))+DAY(EOMONTH(LT10,0)),31) -> 31 | LU9: =+IF(DAY(EOMONTH(LU10,0))<Simulador!$B$27,(Simulador!$B$27-DAY(EOMONTH(LU10,0)))+DAY(EOMONTH(LU10,0)),31) -> 31 | LV9: =+IF(DAY(EOMONTH(LV10,0))<Simulador!$B$27,(Simulador!$B$27-DAY(EOMONTH(LV10,0)))+DAY(EOMONTH(LV10,0)),31) -> 31 | LW9: =+IF(DAY(EOMONTH(LW10,0))<Simulador!$B$27,(Simulador!$B$27-DAY(EOMONTH(LW10,0)))+DAY(EOMONTH(LW10,0)),31) -> 31 | LX9: =+IF(DAY(EOMONTH(LX10,0))<Simulador!$B$27,(Simulador!$B$27-DAY(EOMONTH(LX10,0)))+DAY(EOMONTH(LX10,0)),31) -> 31 | LY9: =+IF(DAY(EOMONTH(LY10,0))<Simulador!$B$27,(Simulador!$B$27-DAY(EOMONTH(LY10,0)))+DAY(EOMONTH(LY10,0)),31) -> 31 | LZ9: =+IF(DAY(EOMONTH(LZ10,0))<Simulador!$B$27,(Simulador!$B$27-DAY(EOMONTH(LZ10,0)))+DAY(EOMONTH(LZ10,0)),31) -> 31 | MA9: =+IF(DAY(EOMONTH(MA10,0))<Simulador!$B$27,(Simulador!$B$27-DAY(EOMONTH(MA10,0)))+DAY(EOMONTH(MA10,0)),31) -> 31 | MB9: =+IF(DAY(EOMONTH(MB10,0))<Simulador!$B$27,(Simulador!$B$27-DAY(EOMONTH(MB10,0)))+DAY(EOMONTH(MB10,0)),31) -> 31 | MC9: =+IF(DAY(EOMONTH(MC10,0))<Simulador!$B$27,(Simulador!$B$27-DAY(EOMONTH(MC10,0)))+DAY(EOMONTH(MC10,0)),31) -> 31 | MD9: =+IF(DAY(EOMONTH(MD10,0))<Simulador!$B$27,(Simulador!$B$27-DAY(EOMONTH(MD10,0)))+DAY(EOMONTH(MD10,0)),31) -> 31 | ME9: =+IF(DAY(EOMONTH(ME10,0))<Simulador!$B$27,(Simulador!$B$27-DAY(EOMONTH(ME10,0)))+DAY(EOMONTH(ME10,0)),31) -> 31 | MF9: =+IF(DAY(EOMONTH(MF10,0))<Simulador!$B$27,(Simulador!$B$27-DAY(EOMONTH(MF10,0)))+DAY(EOMONTH(MF10,0)),31) -> 31 | MG9: =+IF(DAY(EOMONTH(MG10,0))<Simulador!$B$27,(Simulador!$B$27-DAY(EOMONTH(MG10,0)))+DAY(EOMONTH(MG10,0)),31) -> 31 | MH9: =+IF(DAY(EOMONTH(MH10,0))<Simulador!$B$27,(Simulador!$B$27-DAY(EOMONTH(MH10,0)))+DAY(EOMONTH(MH10,0)),31) -> 31 | MI9: =+IF(DAY(EOMONTH(MI10,0))<Simulador!$B$27,(Simulador!$B$27-DAY(EOMONTH(MI10,0)))+DAY(EOMONTH(MI10,0)),31) -> 31 | MJ9: =+IF(DAY(EOMONTH(MJ10,0))<Simulador!$B$27,(Simulador!$B$27-DAY(EOMONTH(MJ10,0)))+DAY(EOMONTH(MJ10,0)),31) -> 31 | MK9: =+IF(DAY(EOMONTH(MK10,0))<Simulador!$B$27,(Simulador!$B$27-DAY(EOMONTH(MK10,0)))+DAY(EOMONTH(MK10,0)),31) -> 31 | ML9: =+IF(DAY(EOMONTH(ML10,0))<Simulador!$B$27,(Simulador!$B$27-DAY(EOMONTH(ML10,0)))+DAY(EOMONTH(ML10,0)),31) -> 31 | MM9: =+IF(DAY(EOMONTH(MM10,0))<Simulador!$B$27,(Simulador!$B$27-DAY(EOMONTH(MM10,0)))+DAY(EOMONTH(MM10,0)),31) -> 31 | MN9: =+IF(DAY(EOMONTH(MN10,0))<Simulador!$B$27,(Simulador!$B$27-DAY(EOMONTH(MN10,0)))+DAY(EOMONTH(MN10,0)),31) -> 31 | MO9: =+IF(DAY(EOMONTH(MO10,0))<Simulador!$B$27,(Simulador!$B$27-DAY(EOMONTH(MO10,0)))+DAY(EOMONTH(MO10,0)),31) -> 31 | MP9: =+IF(DAY(EOMONTH(MP10,0))<Simulador!$B$27,(Simulador!$B$27-DAY(EOMONTH(MP10,0)))+DAY(EOMONTH(MP10,0)),31) -> 31 | MQ9: =+IF(DAY(EOMONTH(MQ10,0))<Simulador!$B$27,(Simulador!$B$27-DAY(EOMONTH(MQ10,0)))+DAY(EOMONTH(MQ10,0)),31) -> 31 | MR9: =+IF(DAY(EOMONTH(MR10,0))<Simulador!$B$27,(Simulador!$B$27-DAY(EOMONTH(MR10,0)))+DAY(EOMONTH(MR10,0)),31) -> 31 | MS9: =+IF(DAY(EOMONTH(MS10,0))<Simulador!$B$27,(Simulador!$B$27-DAY(EOMONTH(MS10,0)))+DAY(EOMONTH(MS10,0)),31) -> 31 | MT9: =+IF(DAY(EOMONTH(MT10,0))<Simulador!$B$27,(Simulador!$B$27-DAY(EOMONTH(MT10,0)))+DAY(EOMONTH(MT10,0)),31) -> 31 | MU9: =+IF(DAY(EOMONTH(MU10,0))<Simulador!$B$27,(Simulador!$B$27-DAY(EOMONTH(MU10,0)))+DAY(EOMONTH(MU10,0)),31) -> 31 | MV9: =+IF(DAY(EOMONTH(MV10,0))<Simulador!$B$27,(Simulador!$B$27-DAY(EOMONTH(MV10,0)))+DAY(EOMONTH(MV10,0)),31) -> 31 | MW9: =+IF(DAY(EOMONTH(MW10,0))<Simulador!$B$27,(Simulador!$B$27-DAY(EOMONTH(MW10,0)))+DAY(EOMONTH(MW10,0)),31) -> 31 | MX9: =+IF(DAY(EOMONTH(MX10,0))<Simulador!$B$27,(Simulador!$B$27-DAY(EOMONTH(MX10,0)))+DAY(EOMONTH(MX10,0)),31) -> 31 | MY9: =+IF(DAY(EOMONTH(MY10,0))<Simulador!$B$27,(Simulador!$B$27-DAY(EOMONTH(MY10,0)))+DAY(EOMONTH(MY10,0)),31) -> 31 | MZ9: =+IF(DAY(EOMONTH(MZ10,0))<Simulador!$B$27,(Simulador!$B$27-DAY(EOMONTH(MZ10,0)))+DAY(EOMONTH(MZ10,0)),31) -> 31 | NA9: =+IF(DAY(EOMONTH(NA10,0))<Simulador!$B$27,(Simulador!$B$27-DAY(EOMONTH(NA10,0)))+DAY(EOMONTH(NA10,0)),31) -> 31 | NB9: =+IF(DAY(EOMONTH(NB10,0))<Simulador!$B$27,(Simulador!$B$27-DAY(EOMONTH(NB10,0)))+DAY(EOMONTH(NB10,0)),31) -> 31 | NC9: =+IF(DAY(EOMONTH(NC10,0))<Simulador!$B$27,(Simulador!$B$27-DAY(EOMONTH(NC10,0)))+DAY(EOMONTH(NC10,0)),31) -> 31 | ND9: =+IF(DAY(EOMONTH(ND10,0))<Simulador!$B$27,(Simulador!$B$27-DAY(EOMONTH(ND10,0)))+DAY(EOMONTH(ND10,0)),31) -> 31 | NE9: =+IF(DAY(EOMONTH(NE10,0))<Simulador!$B$27,(Simulador!$B$27-DAY(EOMONTH(NE10,0)))+DAY(EOMONTH(NE10,0)),31) -> 31 | NF9: =+IF(DAY(EOMONTH(NF10,0))<Simulador!$B$27,(Simulador!$B$27-DAY(EOMONTH(NF10,0)))+DAY(EOMONTH(NF10,0)),31) -> 31 | NG9: =+IF(DAY(EOMONTH(NG10,0))<Simulador!$B$27,(Simulador!$B$27-DAY(EOMONTH(NG10,0)))+DAY(EOMONTH(NG10,0)),31) -> 31 | NH9: =+IF(DAY(EOMONTH(NH10,0))<Simulador!$B$27,(Simulador!$B$27-DAY(EOMONTH(NH10,0)))+DAY(EOMONTH(NH10,0)),31) -> 31 | NI9: =+IF(DAY(EOMONTH(NI10,0))<Simulador!$B$27,(Simulador!$B$27-DAY(EOMONTH(NI10,0)))+DAY(EOMONTH(NI10,0)),31) -> 31 | NJ9: =+IF(DAY(EOMONTH(NJ10,0))<Simulador!$B$27,(Simulador!$B$27-DAY(EOMONTH(NJ10,0)))+DAY(EOMONTH(NJ10,0)),31) -> 31 | NK9: =+IF(DAY(EOMONTH(NK10,0))<Simulador!$B$27,(Simulador!$B$27-DAY(EOMONTH(NK10,0)))+DAY(EOMONTH(NK10,0)),31) -> 31 | NL9: =+IF(DAY(EOMONTH(NL10,0))<Simulador!$B$27,(Simulador!$B$27-DAY(EOMONTH(NL10,0)))+DAY(EOMONTH(NL10,0)),31) -> 31 | NM9: =+IF(DAY(EOMONTH(NM10,0))<Simulador!$B$27,(Simulador!$B$27-DAY(EOMONTH(NM10,0)))+DAY(EOMONTH(NM10,0)),31) -> 31 | NN9: =+IF(DAY(EOMONTH(NN10,0))<Simulador!$B$27,(Simulador!$B$27-DAY(EOMONTH(NN10,0)))+DAY(EOMONTH(NN10,0)),31) -> 31 | NO9: =+IF(DAY(EOMONTH(NO10,0))<Simulador!$B$27,(Simulador!$B$27-DAY(EOMONTH(NO10,0)))+DAY(EOMONTH(NO10,0)),31) -> 31 | NP9: =+IF(DAY(EOMONTH(NP10,0))<Simulador!$B$27,(Simulador!$B$27-DAY(EOMONTH(NP10,0)))+DAY(EOMONTH(NP10,0)),31) -> 31 | NQ9: =+IF(DAY(EOMONTH(NQ10,0))<Simulador!$B$27,(Simulador!$B$27-DAY(EOMONTH(NQ10,0)))+DAY(EOMONTH(NQ10,0)),31) -> 31 | NR9: =+IF(DAY(EOMONTH(NR10,0))<Simulador!$B$27,(Simulador!$B$27-DAY(EOMONTH(NR10,0)))+DAY(EOMONTH(NR10,0)),31) -> 31 | NS9: =+IF(DAY(EOMONTH(NS10,0))<Simulador!$B$27,(Simulador!$B$27-DAY(EOMONTH(NS10,0)))+DAY(EOMONTH(NS10,0)),31) -> 31 | NT9: =+IF(DAY(EOMONTH(NT10,0))<Simulador!$B$27,(Simulador!$B$27-DAY(EOMONTH(NT10,0)))+DAY(EOMONTH(NT10,0)),31) -> 31 | NU9: =+IF(DAY(EOMONTH(NU10,0))<Simulador!$B$27,(Simulador!$B$27-DAY(EOMONTH(NU10,0)))+DAY(EOMONTH(NU10,0)),31) -> 31 | NV9: =+IF(DAY(EOMONTH(NV10,0))<Simulador!$B$27,(Simulador!$B$27-DAY(EOMONTH(NV10,0)))+DAY(EOMONTH(NV10,0)),31) -> 31 | NW9: =+IF(DAY(EOMONTH(NW10,0))<Simulador!$B$27,(Simulador!$B$27-DAY(EOMONTH(NW10,0)))+DAY(EOMONTH(NW10,0)),31) -> 31 | NX9: =+IF(DAY(EOMONTH(NX10,0))<Simulador!$B$27,(Simulador!$B$27-DAY(EOMONTH(NX10,0)))+DAY(EOMONTH(NX10,0)),31) -> 31 | NY9: =+IF(DAY(EOMONTH(NY10,0))<Simulador!$B$27,(Simulador!$B$27-DAY(EOMONTH(NY10,0)))+DAY(EOMONTH(NY10,0)),31) -> 31 | NZ9: =+IF(DAY(EOMONTH(NZ10,0))<Simulador!$B$27,(Simulador!$B$27-DAY(EOMONTH(NZ10,0)))+DAY(EOMONTH(NZ10,0)),31) -> 31 | OA9: =+IF(DAY(EOMONTH(OA10,0))<Simulador!$B$27,(Simulador!$B$27-DAY(EOMONTH(OA10,0)))+DAY(EOMONTH(OA10,0)),31) -> 31 | OB9: =+IF(DAY(EOMONTH(OB10,0))<Simulador!$B$27,(Simulador!$B$27-DAY(EOMONTH(OB10,0)))+DAY(EOMONTH(OB10,0)),31) -> 31 | OC9: =+IF(DAY(EOMONTH(OC10,0))<Simulador!$B$27,(Simulador!$B$27-DAY(EOMONTH(OC10,0)))+DAY(EOMONTH(OC10,0)),31) -> 31 | OD9: =+IF(DAY(EOMONTH(OD10,0))<Simulador!$B$27,(Simulador!$B$27-DAY(EOMONTH(OD10,0)))+DAY(EOMONTH(OD10,0)),31) -> 31 | OE9: =+IF(DAY(EOMONTH(OE10,0))<Simulador!$B$27,(Simulador!$B$27-DAY(EOMONTH(OE10,0)))+DAY(EOMONTH(OE10,0)),31) -> 31 | OF9: =+IF(DAY(EOMONTH(OF10,0))<Simulador!$B$27,(Simulador!$B$27-DAY(EOMONTH(OF10,0)))+DAY(EOMONTH(OF10,0)),31) -> 31 | OG9: =+IF(DAY(EOMONTH(OG10,0))<Simulador!$B$27,(Simulador!$B$27-DAY(EOMONTH(OG10,0)))+DAY(EOMONTH(OG10,0)),31) -> 31 | OH9: =+IF(DAY(EOMONTH(OH10,0))<Simulador!$B$27,(Simulador!$B$27-DAY(EOMONTH(OH10,0)))+DAY(EOMONTH(OH10,0)),31) -> 31 | OI9: =+IF(DAY(EOMONTH(OI10,0))<Simulador!$B$27,(Simulador!$B$27-DAY(EOMONTH(OI10,0)))+DAY(EOMONTH(OI10,0)),31) -> 31 | OJ9: =+IF(DAY(EOMONTH(OJ10,0))<Simulador!$B$27,(Simulador!$B$27-DAY(EOMONTH(OJ10,0)))+DAY(EOMONTH(OJ10,0)),31) -> 31 | OK9: =+IF(DAY(EOMONTH(OK10,0))<Simulador!$B$27,(Simulador!$B$27-DAY(EOMONTH(OK10,0)))+DAY(EOMONTH(OK10,0)),31) -> 31 | OL9: =+IF(DAY(EOMONTH(OL10,0))<Simulador!$B$27,(Simulador!$B$27-DAY(EOMONTH(OL10,0)))+DAY(EOMONTH(OL10,0)),31) -> 31 | OM9: =+IF(DAY(EOMONTH(OM10,0))<Simulador!$B$27,(Simulador!$B$27-DAY(EOMONTH(OM10,0)))+DAY(EOMONTH(OM10,0)),31) -> 31 | ON9: =+IF(DAY(EOMONTH(ON10,0))<Simulador!$B$27,(Simulador!$B$27-DAY(EOMONTH(ON10,0)))+DAY(EOMONTH(ON10,0)),31) -> 31 | OO9: =+IF(DAY(EOMONTH(OO10,0))<Simulador!$B$27,(Simulador!$B$27-DAY(EOMONTH(OO10,0)))+DAY(EOMONTH(OO10,0)),31) -> 31 | OP9: =+IF(DAY(EOMONTH(OP10,0))<Simulador!$B$27,(Simulador!$B$27-DAY(EOMONTH(OP10,0)))+DAY(EOMONTH(OP10,0)),31) -> 31 | OQ9: =+IF(DAY(EOMONTH(OQ10,0))<Simulador!$B$27,(Simulador!$B$27-DAY(EOMONTH(OQ10,0)))+DAY(EOMONTH(OQ10,0)),31) -> 31 | OR9: =+IF(DAY(EOMONTH(OR10,0))<Simulador!$B$27,(Simulador!$B$27-DAY(EOMONTH(OR10,0)))+DAY(EOMONTH(OR10,0)),31) -> 31 | OS9: =+IF(DAY(EOMONTH(OS10,0))<Simulador!$B$27,(Simulador!$B$27-DAY(EOMONTH(OS10,0)))+DAY(EOMONTH(OS10,0)),31) -> 31 | OT9: =+IF(DAY(EOMONTH(OT10,0))<Simulador!$B$27,(Simulador!$B$27-DAY(EOMONTH(OT10,0)))+DAY(EOMONTH(OT10,0)),31) -> 31 | OU9: =+IF(DAY(EOMONTH(OU10,0))<Simulador!$B$27,(Simulador!$B$27-DAY(EOMONTH(OU10,0)))+DAY(EOMONTH(OU10,0)),31) -> 31 | OV9: =+IF(DAY(EOMONTH(OV10,0))<Simulador!$B$27,(Simulador!$B$27-DAY(EOMONTH(OV10,0)))+DAY(EOMONTH(OV10,0)),31) -> 31 | OW9: =+IF(DAY(EOMONTH(OW10,0))<Simulador!$B$27,(Simulador!$B$27-DAY(EOMONTH(OW10,0)))+DAY(EOMONTH(OW10,0)),31) -> 31 | OX9: =+IF(DAY(EOMONTH(OX10,0))<Simulador!$B$27,(Simulador!$B$27-DAY(EOMONTH(OX10,0)))+DAY(EOMONTH(OX10,0)),31) -> 31 | OY9: =+IF(DAY(EOMONTH(OY10,0))<Simulador!$B$27,(Simulador!$B$27-DAY(EOMONTH(OY10,0)))+DAY(EOMONTH(OY10,0)),31) -> 31 | OZ9: =+IF(DAY(EOMONTH(OZ10,0))<Simulador!$B$27,(Simulador!$B$27-DAY(EOMONTH(OZ10,0)))+DAY(EOMONTH(OZ10,0)),31) -> 31 | PA9: =+IF(DAY(EOMONTH(PA10,0))<Simulador!$B$27,(Simulador!$B$27-DAY(EOMONTH(PA10,0)))+DAY(EOMONTH(PA10,0)),31) -> 31 | PB9: =+IF(DAY(EOMONTH(PB10,0))<Simulador!$B$27,(Simulador!$B$27-DAY(EOMONTH(PB10,0)))+DAY(EOMONTH(PB10,0)),31) -> 31 | PC9: =+IF(DAY(EOMONTH(PC10,0))<Simulador!$B$27,(Simulador!$B$27-DAY(EOMONTH(PC10,0)))+DAY(EOMONTH(PC10,0)),31) -> 31 | PD9: =+IF(DAY(EOMONTH(PD10,0))<Simulador!$B$27,(Simulador!$B$27-DAY(EOMONTH(PD10,0)))+DAY(EOMONTH(PD10,0)),31) -> 31 | PE9: =+IF(DAY(EOMONTH(PE10,0))<Simulador!$B$27,(Simulador!$B$27-DAY(EOMONTH(PE10,0)))+DAY(EOMONTH(PE10,0)),31) -> 31 | PF9: =+IF(DAY(EOMONTH(PF10,0))<Simulador!$B$27,(Simulador!$B$27-DAY(EOMONTH(PF10,0)))+DAY(EOMONTH(PF10,0)),31) -> 31 | PG9: =+IF(DAY(EOMONTH(PG10,0))<Simulador!$B$27,(Simulador!$B$27-DAY(EOMONTH(PG10,0)))+DAY(EOMONTH(PG10,0)),31) -> 31 | PH9: =+IF(DAY(EOMONTH(PH10,0))<Simulador!$B$27,(Simulador!$B$27-DAY(EOMONTH(PH10,0)))+DAY(EOMONTH(PH10,0)),31) -> 31 | PI9: =+IF(DAY(EOMONTH(PI10,0))<Simulador!$B$27,(Simulador!$B$27-DAY(EOMONTH(PI10,0)))+DAY(EOMONTH(PI10,0)),31) -> 31 | PJ9: =+IF(DAY(EOMONTH(PJ10,0))<Simulador!$B$27,(Simulador!$B$27-DAY(EOMONTH(PJ10,0)))+DAY(EOMONTH(PJ10,0)),31) -> 31 | PK9: =+IF(DAY(EOMONTH(PK10,0))<Simulador!$B$27,(Simulador!$B$27-DAY(EOMONTH(PK10,0)))+DAY(EOMONTH(PK10,0)),31) -> 31 | PL9: =+IF(DAY(EOMONTH(PL10,0))<Simulador!$B$27,(Simulador!$B$27-DAY(EOMONTH(PL10,0)))+DAY(EOMONTH(PL10,0)),31) -> 31 | PM9: =+IF(DAY(EOMONTH(PM10,0))<Simulador!$B$27,(Simulador!$B$27-DAY(EOMONTH(PM10,0)))+DAY(EOMONTH(PM10,0)),31) -> 31 | PN9: =+IF(DAY(EOMONTH(PN10,0))<Simulador!$B$27,(Simulador!$B$27-DAY(EOMONTH(PN10,0)))+DAY(EOMONTH(PN10,0)),31) -> 31 | PO9: =+IF(DAY(EOMONTH(PO10,0))<Simulador!$B$27,(Simulador!$B$27-DAY(EOMONTH(PO10,0)))+DAY(EOMONTH(PO10,0)),31) -> 31 | PP9: =+IF(DAY(EOMONTH(PP10,0))<Simulador!$B$27,(Simulador!$B$27-DAY(EOMONTH(PP10,0)))+DAY(EOMONTH(PP10,0)),31) -> 31 | PQ9: =+IF(DAY(EOMONTH(PQ10,0))<Simulador!$B$27,(Simulador!$B$27-DAY(EOMONTH(PQ10,0)))+DAY(EOMONTH(PQ10,0)),31) -> 31 | PR9: =+IF(DAY(EOMONTH(PR10,0))<Simulador!$B$27,(Simulador!$B$27-DAY(EOMONTH(PR10,0)))+DAY(EOMONTH(PR10,0)),31) -> 31 | PS9: =+IF(DAY(EOMONTH(PS10,0))<Simulador!$B$27,(Simulador!$B$27-DAY(EOMONTH(PS10,0)))+DAY(EOMONTH(PS10,0)),31) -> 31 | PT9: =+IF(DAY(EOMONTH(PT10,0))<Simulador!$B$27,(Simulador!$B$27-DAY(EOMONTH(PT10,0)))+DAY(EOMONTH(PT10,0)),31) -> 31 | PU9: =+IF(DAY(EOMONTH(PU10,0))<Simulador!$B$27,(Simulador!$B$27-DAY(EOMONTH(PU10,0)))+DAY(EOMONTH(PU10,0)),31) -> 31 | PV9: =+IF(DAY(EOMONTH(PV10,0))<Simulador!$B$27,(Simulador!$B$27-DAY(EOMONTH(PV10,0)))+DAY(EOMONTH(PV10,0)),31) -> 31 | PW9: =+IF(DAY(EOMONTH(PW10,0))<Simulador!$B$27,(Simulador!$B$27-DAY(EOMONTH(PW10,0)))+DAY(EOMONTH(PW10,0)),31) -> 31 | PX9: =+IF(DAY(EOMONTH(PX10,0))<Simulador!$B$27,(Simulador!$B$27-DAY(EOMONTH(PX10,0)))+DAY(EOMONTH(PX10,0)),31) -> 31 | PY9: =+IF(DAY(EOMONTH(PY10,0))<Simulador!$B$27,(Simulador!$B$27-DAY(EOMONTH(PY10,0)))+DAY(EOMONTH(PY10,0)),31) -> 31 | PZ9: =+IF(DAY(EOMONTH(PZ10,0))<Simulador!$B$27,(Simulador!$B$27-DAY(EOMONTH(PZ10,0)))+DAY(EOMONTH(PZ10,0)),31) -> 31 | QA9: =+IF(DAY(EOMONTH(QA10,0))<Simulador!$B$27,(Simulador!$B$27-DAY(EOMONTH(QA10,0)))+DAY(EOMONTH(QA10,0)),31) -> 31 | QB9: =+IF(DAY(EOMONTH(QB10,0))<Simulador!$B$27,(Simulador!$B$27-DAY(EOMONTH(QB10,0)))+DAY(EOMONTH(QB10,0)),31) -> 31 | QC9: =+IF(DAY(EOMONTH(QC10,0))<Simulador!$B$27,(Simulador!$B$27-DAY(EOMONTH(QC10,0)))+DAY(EOMONTH(QC10,0)),31) -> 31 | QD9: =+IF(DAY(EOMONTH(QD10,0))<Simulador!$B$27,(Simulador!$B$27-DAY(EOMONTH(QD10,0)))+DAY(EOMONTH(QD10,0)),31) -> 31 | QE9: =+IF(DAY(EOMONTH(QE10,0))<Simulador!$B$27,(Simulador!$B$27-DAY(EOMONTH(QE10,0)))+DAY(EOMONTH(QE10,0)),31) -> 31 | QF9: =+IF(DAY(EOMONTH(QF10,0))<Simulador!$B$27,(Simulador!$B$27-DAY(EOMONTH(QF10,0)))+DAY(EOMONTH(QF10,0)),31) -> 31 | QG9: =+IF(DAY(EOMONTH(QG10,0))<Simulador!$B$27,(Simulador!$B$27-DAY(EOMONTH(QG10,0)))+DAY(EOMONTH(QG10,0)),31) -> 31 | QH9: =+IF(DAY(EOMONTH(QH10,0))<Simulador!$B$27,(Simulador!$B$27-DAY(EOMONTH(QH10,0)))+DAY(EOMONTH(QH10,0)),31) -> 31 | QI9: =+IF(DAY(EOMONTH(QI10,0))<Simulador!$B$27,(Simulador!$B$27-DAY(EOMONTH(QI10,0)))+DAY(EOMONTH(QI10,0)),31) -> 31 | QJ9: =+IF(DAY(EOMONTH(QJ10,0))<Simulador!$B$27,(Simulador!$B$27-DAY(EOMONTH(QJ10,0)))+DAY(EOMONTH(QJ10,0)),31) -> 31 | QK9: =+IF(DAY(EOMONTH(QK10,0))<Simulador!$B$27,(Simulador!$B$27-DAY(EOMONTH(QK10,0)))+DAY(EOMONTH(QK10,0)),31) -> 31 | QL9: =+IF(DAY(EOMONTH(QL10,0))<Simulador!$B$27,(Simulador!$B$27-DAY(EOMONTH(QL10,0)))+DAY(EOMONTH(QL10,0)),31) -> 31 | QM9: =+IF(DAY(EOMONTH(QM10,0))<Simulador!$B$27,(Simulador!$B$27-DAY(EOMONTH(QM10,0)))+DAY(EOMONTH(QM10,0)),31) -> 31 | QN9: =+IF(DAY(EOMONTH(QN10,0))<Simulador!$B$27,(Simulador!$B$27-DAY(EOMONTH(QN10,0)))+DAY(EOMONTH(QN10,0)),31) -> 31 | QO9: =+IF(DAY(EOMONTH(QO10,0))<Simulador!$B$27,(Simulador!$B$27-DAY(EOMONTH(QO10,0)))+DAY(EOMONTH(QO10,0)),31) -> 31 | QP9: =+IF(DAY(EOMONTH(QP10,0))<Simulador!$B$27,(Simulador!$B$27-DAY(EOMONTH(QP10,0)))+DAY(EOMONTH(QP10,0)),31) -> 31 | QQ9: =+IF(DAY(EOMONTH(QQ10,0))<Simulador!$B$27,(Simulador!$B$27-DAY(EOMONTH(QQ10,0)))+DAY(EOMONTH(QQ10,0)),31) -> 31 | QR9: =+IF(DAY(EOMONTH(QR10,0))<Simulador!$B$27,(Simulador!$B$27-DAY(EOMONTH(QR10,0)))+DAY(EOMONTH(QR10,0)),31) -> 31 | QS9: =+IF(DAY(EOMONTH(QS10,0))<Simulador!$B$27,(Simulador!$B$27-DAY(EOMONTH(QS10,0)))+DAY(EOMONTH(QS10,0)),31) -> 31 | QT9: =+IF(DAY(EOMONTH(QT10,0))<Simulador!$B$27,(Simulador!$B$27-DAY(EOMONTH(QT10,0)))+DAY(EOMONTH(QT10,0)),31) -> 31 | QU9: =+IF(DAY(EOMONTH(QU10,0))<Simulador!$B$27,(Simulador!$B$27-DAY(EOMONTH(QU10,0)))+DAY(EOMONTH(QU10,0)),31) -> 31 | QV9: =+IF(DAY(EOMONTH(QV10,0))<Simulador!$B$27,(Simulador!$B$27-DAY(EOMONTH(QV10,0)))+DAY(EOMONTH(QV10,0)),31) -> 31 | QW9: =+IF(DAY(EOMONTH(QW10,0))<Simulador!$B$27,(Simulador!$B$27-DAY(EOMONTH(QW10,0)))+DAY(EOMONTH(QW10,0)),31) -> 31 | QX9: =+IF(DAY(EOMONTH(QX10,0))<Simulador!$B$27,(Simulador!$B$27-DAY(EOMONTH(QX10,0)))+DAY(EOMONTH(QX10,0)),31) -> 31 | QY9: =+IF(DAY(EOMONTH(QY10,0))<Simulador!$B$27,(Simulador!$B$27-DAY(EOMONTH(QY10,0)))+DAY(EOMONTH(QY10,0)),31) -> 31 | QZ9: =+IF(DAY(EOMONTH(QZ10,0))<Simulador!$B$27,(Simulador!$B$27-DAY(EOMONTH(QZ10,0)))+DAY(EOMONTH(QZ10,0)),31) -> 31 | RA9: =+IF(DAY(EOMONTH(RA10,0))<Simulador!$B$27,(Simulador!$B$27-DAY(EOMONTH(RA10,0)))+DAY(EOMONTH(RA10,0)),31) -> 31 | RB9: =+IF(DAY(EOMONTH(RB10,0))<Simulador!$B$27,(Simulador!$B$27-DAY(EOMONTH(RB10,0)))+DAY(EOMONTH(RB10,0)),31) -> 31 | RC9: =+IF(DAY(EOMONTH(RC10,0))<Simulador!$B$27,(Simulador!$B$27-DAY(EOMONTH(RC10,0)))+DAY(EOMONTH(RC10,0)),31) -> 31 | RD9: =+IF(DAY(EOMONTH(RD10,0))<Simulador!$B$27,(Simulador!$B$27-DAY(EOMONTH(RD10,0)))+DAY(EOMONTH(RD10,0)),31) -> 31 | RE9: =+IF(DAY(EOMONTH(RE10,0))<Simulador!$B$27,(Simulador!$B$27-DAY(EOMONTH(RE10,0)))+DAY(EOMONTH(RE10,0)),31) -> 31 | RF9: =+IF(DAY(EOMONTH(RF10,0))<Simulador!$B$27,(Simulador!$B$27-DAY(EOMONTH(RF10,0)))+DAY(EOMONTH(RF10,0)),31) -> 31 | RG9: =+IF(DAY(EOMONTH(RG10,0))<Simulador!$B$27,(Simulador!$B$27-DAY(EOMONTH(RG10,0)))+DAY(EOMONTH(RG10,0)),31) -> 31 | RH9: =+IF(DAY(EOMONTH(RH10,0))<Simulador!$B$27,(Simulador!$B$27-DAY(EOMONTH(RH10,0)))+DAY(EOMONTH(RH10,0)),31) -> 31 | RI9: =+IF(DAY(EOMONTH(RI10,0))<Simulador!$B$27,(Simulador!$B$27-DAY(EOMONTH(RI10,0)))+DAY(EOMONTH(RI10,0)),31) -> 31 | RJ9: =+IF(DAY(EOMONTH(RJ10,0))<Simulador!$B$27,(Simulador!$B$27-DAY(EOMONTH(RJ10,0)))+DAY(EOMONTH(RJ10,0)),31) -> 31 | RK9: =+IF(DAY(EOMONTH(RK10,0))<Simulador!$B$27,(Simulador!$B$27-DAY(EOMONTH(RK10,0)))+DAY(EOMONTH(RK10,0)),31) -> 31 | RL9: =+IF(DAY(EOMONTH(RL10,0))<Simulador!$B$27,(Simulador!$B$27-DAY(EOMONTH(RL10,0)))+DAY(EOMONTH(RL10,0)),31) -> 31 | RM9: =+IF(DAY(EOMONTH(RM10,0))<Simulador!$B$27,(Simulador!$B$27-DAY(EOMONTH(RM10,0)))+DAY(EOMONTH(RM10,0)),31) -> 31 | RN9: =+IF(DAY(EOMONTH(RN10,0))<Simulador!$B$27,(Simulador!$B$27-DAY(EOMONTH(RN10,0)))+DAY(EOMONTH(RN10,0)),31) -> 31 | RO9: =+IF(DAY(EOMONTH(RO10,0))<Simulador!$B$27,(Simulador!$B$27-DAY(EOMONTH(RO10,0)))+DAY(EOMONTH(RO10,0)),31) -> 31 | RP9: =+IF(DAY(EOMONTH(RP10,0))<Simulador!$B$27,(Simulador!$B$27-DAY(EOMONTH(RP10,0)))+DAY(EOMONTH(RP10,0)),31) -> 31 | RQ9: =+IF(DAY(EOMONTH(RQ10,0))<Simulador!$B$27,(Simulador!$B$27-DAY(EOMONTH(RQ10,0)))+DAY(EOMONTH(RQ10,0)),31) -> 31 | RR9: =+IF(DAY(EOMONTH(RR10,0))<Simulador!$B$27,(Simulador!$B$27-DAY(EOMONTH(RR10,0)))+DAY(EOMONTH(RR10,0)),31) -> 31 | RS9: =+IF(DAY(EOMONTH(RS10,0))<Simulador!$B$27,(Simulador!$B$27-DAY(EOMONTH(RS10,0)))+DAY(EOMONTH(RS10,0)),31) -> 31 | RT9: =+IF(DAY(EOMONTH(RT10,0))<Simulador!$B$27,(Simulador!$B$27-DAY(EOMONTH(RT10,0)))+DAY(EOMONTH(RT10,0)),31) -> 31 | RU9: =+IF(DAY(EOMONTH(RU10,0))<Simulador!$B$27,(Simulador!$B$27-DAY(EOMONTH(RU10,0)))+DAY(EOMONTH(RU10,0)),31) -> 31 | RV9: =+IF(DAY(EOMONTH(RV10,0))<Simulador!$B$27,(Simulador!$B$27-DAY(EOMONTH(RV10,0)))+DAY(EOMONTH(RV10,0)),31) -> 31 | RW9: =+IF(DAY(EOMONTH(RW10,0))<Simulador!$B$27,(Simulador!$B$27-DAY(EOMONTH(RW10,0)))+DAY(EOMONTH(RW10,0)),31) -> 31 | RX9: =+IF(DAY(EOMONTH(RX10,0))<Simulador!$B$27,(Simulador!$B$27-DAY(EOMONTH(RX10,0)))+DAY(EOMONTH(RX10,0)),31) -> 31 | RY9: =+IF(DAY(EOMONTH(RY10,0))<Simulador!$B$27,(Simulador!$B$27-DAY(EOMONTH(RY10,0)))+DAY(EOMONTH(RY10,0)),31) -> 31 | RZ9: =+IF(DAY(EOMONTH(RZ10,0))<Simulador!$B$27,(Simulador!$B$27-DAY(EOMONTH(RZ10,0)))+DAY(EOMONTH(RZ10,0)),31) -> 31 | SA9: =+IF(DAY(EOMONTH(SA10,0))<Simulador!$B$27,(Simulador!$B$27-DAY(EOMONTH(SA10,0)))+DAY(EOMONTH(SA10,0)),31) -> 31 | SB9: =+IF(DAY(EOMONTH(SB10,0))<Simulador!$B$27,(Simulador!$B$27-DAY(EOMONTH(SB10,0)))+DAY(EOMONTH(SB10,0)),31) -> 31 | SC9: =+IF(DAY(EOMONTH(SC10,0))<Simulador!$B$27,(Simulador!$B$27-DAY(EOMONTH(SC10,0)))+DAY(EOMONTH(SC10,0)),31) -> 31 | SD9: =+IF(DAY(EOMONTH(SD10,0))<Simulador!$B$27,(Simulador!$B$27-DAY(EOMONTH(SD10,0)))+DAY(EOMONTH(SD10,0)),31) -> 31 | SE9: =+IF(DAY(EOMONTH(SE10,0))<Simulador!$B$27,(Simulador!$B$27-DAY(EOMONTH(SE10,0)))+DAY(EOMONTH(SE10,0)),31) -> 31 | SF9: =+IF(DAY(EOMONTH(SF10,0))<Simulador!$B$27,(Simulador!$B$27-DAY(EOMONTH(SF10,0)))+DAY(EOMONTH(SF10,0)),31) -> 31 | SG9: =+IF(DAY(EOMONTH(SG10,0))<Simulador!$B$27,(Simulador!$B$27-DAY(EOMONTH(SG10,0)))+DAY(EOMONTH(SG10,0)),31) -> 31 | SH9: =+IF(DAY(EOMONTH(SH10,0))<Simulador!$B$27,(Simulador!$B$27-DAY(EOMONTH(SH10,0)))+DAY(EOMONTH(SH10,0)),31) -> 31 | SI9: =+IF(DAY(EOMONTH(SI10,0))<Simulador!$B$27,(Simulador!$B$27-DAY(EOMONTH(SI10,0)))+DAY(EOMONTH(SI10,0)),31) -> 31 | SJ9: =+IF(DAY(EOMONTH(SJ10,0))<Simulador!$B$27,(Simulador!$B$27-DAY(EOMONTH(SJ10,0)))+DAY(EOMONTH(SJ10,0)),31) -> 31 | SK9: =+IF(DAY(EOMONTH(SK10,0))<Simulador!$B$27,(Simulador!$B$27-DAY(EOMONTH(SK10,0)))+DAY(EOMONTH(SK10,0)),31) -> 31 | SL9: =+IF(DAY(EOMONTH(SL10,0))<Simulador!$B$27,(Simulador!$B$27-DAY(EOMONTH(SL10,0)))+DAY(EOMONTH(SL10,0)),31) -> 31 | SM9: =+IF(DAY(EOMONTH(SM10,0))<Simulador!$B$27,(Simulador!$B$27-DAY(EOMONTH(SM10,0)))+DAY(EOMONTH(SM10,0)),31) -> 31 | SN9: =+IF(DAY(EOMONTH(SN10,0))<Simulador!$B$27,(Simulador!$B$27-DAY(EOMONTH(SN10,0)))+DAY(EOMONTH(SN10,0)),31) -> 31 | SO9: =+IF(DAY(EOMONTH(SO10,0))<Simulador!$B$27,(Simulador!$B$27-DAY(EOMONTH(SO10,0)))+DAY(EOMONTH(SO10,0)),31) -> 31 | SP9: =+IF(DAY(EOMONTH(SP10,0))<Simulador!$B$27,(Simulador!$B$27-DAY(EOMONTH(SP10,0)))+DAY(EOMONTH(SP10,0)),31) -> 31 | SQ9: =+IF(DAY(EOMONTH(SQ10,0))<Simulador!$B$27,(Simulador!$B$27-DAY(EOMONTH(SQ10,0)))+DAY(EOMONTH(SQ10,0)),31) -> 31 | SR9: =+IF(DAY(EOMONTH(SR10,0))<Simulador!$B$27,(Simulador!$B$27-DAY(EOMONTH(SR10,0)))+DAY(EOMONTH(SR10,0)),31) -> 31 | SS9: =+IF(DAY(EOMONTH(SS10,0))<Simulador!$B$27,(Simulador!$B$27-DAY(EOMONTH(SS10,0)))+DAY(EOMONTH(SS10,0)),31) -> 31 | ST9: =+IF(DAY(EOMONTH(ST10,0))<Simulador!$B$27,(Simulador!$B$27-DAY(EOMONTH(ST10,0)))+DAY(EOMONTH(ST10,0)),31) -> 31 | SU9: =+IF(DAY(EOMONTH(SU10,0))<Simulador!$B$27,(Simulador!$B$27-DAY(EOMONTH(SU10,0)))+DAY(EOMONTH(SU10,0)),31) -> 31 | SV9: =+IF(DAY(EOMONTH(SV10,0))<Simulador!$B$27,(Simulador!$B$27-DAY(EOMONTH(SV10,0)))+DAY(EOMONTH(SV10,0)),31) -> 31 | SW9: =+IF(DAY(EOMONTH(SW10,0))<Simulador!$B$27,(Simulador!$B$27-DAY(EOMONTH(SW10,0)))+DAY(EOMONTH(SW10,0)),31) -> 31 | SX9: =+IF(DAY(EOMONTH(SX10,0))<Simulador!$B$27,(Simulador!$B$27-DAY(EOMONTH(SX10,0)))+DAY(EOMONTH(SX10,0)),31) -> 31 | SY9: =+IF(DAY(EOMONTH(SY10,0))<Simulador!$B$27,(Simulador!$B$27-DAY(EOMONTH(SY10,0)))+DAY(EOMONTH(SY10,0)),31) -> 31 | SZ9: =+IF(DAY(EOMONTH(SZ10,0))<Simulador!$B$27,(Simulador!$B$27-DAY(EOMONTH(SZ10,0)))+DAY(EOMONTH(SZ10,0)),31) -> 31 | TA9: =+IF(DAY(EOMONTH(TA10,0))<Simulador!$B$27,(Simulador!$B$27-DAY(EOMONTH(TA10,0)))+DAY(EOMONTH(TA10,0)),31) -> 31 | TB9: =+IF(DAY(EOMONTH(TB10,0))<Simulador!$B$27,(Simulador!$B$27-DAY(EOMONTH(TB10,0)))+DAY(EOMONTH(TB10,0)),31) -> 31 | TC9: =+IF(DAY(EOMONTH(TC10,0))<Simulador!$B$27,(Simulador!$B$27-DAY(EOMONTH(TC10,0)))+DAY(EOMONTH(TC10,0)),31) -> 31 | TD9: =+IF(DAY(EOMONTH(TD10,0))<Simulador!$B$27,(Simulador!$B$27-DAY(EOMONTH(TD10,0)))+DAY(EOMONTH(TD10,0)),31) -> 31 | TE9: =+IF(DAY(EOMONTH(TE10,0))<Simulador!$B$27,(Simulador!$B$27-DAY(EOMONTH(TE10,0)))+DAY(EOMONTH(TE10,0)),31) -> 31 | TF9: =+IF(DAY(EOMONTH(TF10,0))<Simulador!$B$27,(Simulador!$B$27-DAY(EOMONTH(TF10,0)))+DAY(EOMONTH(TF10,0)),31) -> 31 | TG9: =+IF(DAY(EOMONTH(TG10,0))<Simulador!$B$27,(Simulador!$B$27-DAY(EOMONTH(TG10,0)))+DAY(EOMONTH(TG10,0)),31) -> 31 | TH9: =+IF(DAY(EOMONTH(TH10,0))<Simulador!$B$27,(Simulador!$B$27-DAY(EOMONTH(TH10,0)))+DAY(EOMONTH(TH10,0)),31) -> 31 | TI9: =+IF(DAY(EOMONTH(TI10,0))<Simulador!$B$27,(Simulador!$B$27-DAY(EOMONTH(TI10,0)))+DAY(EOMONTH(TI10,0)),31) -> 31 | TJ9: =+IF(DAY(EOMONTH(TJ10,0))<Simulador!$B$27,(Simulador!$B$27-DAY(EOMONTH(TJ10,0)))+DAY(EOMONTH(TJ10,0)),31) -> 31 | TK9: =+IF(DAY(EOMONTH(TK10,0))<Simulador!$B$27,(Simulador!$B$27-DAY(EOMONTH(TK10,0)))+DAY(EOMONTH(TK10,0)),31) -> 31 | TL9: =+IF(DAY(EOMONTH(TL10,0))<Simulador!$B$27,(Simulador!$B$27-DAY(EOMONTH(TL10,0)))+DAY(EOMONTH(TL10,0)),31) -> 31 | TM9: =+IF(DAY(EOMONTH(TM10,0))<Simulador!$B$27,(Simulador!$B$27-DAY(EOMONTH(TM10,0)))+DAY(EOMONTH(TM10,0)),31) -> 31 | TN9: =+IF(DAY(EOMONTH(TN10,0))<Simulador!$B$27,(Simulador!$B$27-DAY(EOMONTH(TN10,0)))+DAY(EOMONTH(TN10,0)),31) -> 31 | TO9: =+IF(DAY(EOMONTH(TO10,0))<Simulador!$B$27,(Simulador!$B$27-DAY(EOMONTH(TO10,0)))+DAY(EOMONTH(TO10,0)),31) -> 31 | TP9: =+IF(DAY(EOMONTH(TP10,0))<Simulador!$B$27,(Simulador!$B$27-DAY(EOMONTH(TP10,0)))+DAY(EOMONTH(TP10,0)),31) -> 31 | TQ9: =+IF(DAY(EOMONTH(TQ10,0))<Simulador!$B$27,(Simulador!$B$27-DAY(EOMONTH(TQ10,0)))+DAY(EOMONTH(TQ10,0)),31) -> 31 | TR9: =+IF(DAY(EOMONTH(TR10,0))<Simulador!$B$27,(Simulador!$B$27-DAY(EOMONTH(TR10,0)))+DAY(EOMONTH(TR10,0)),31) -> 31 | TS9: =+IF(DAY(EOMONTH(TS10,0))<Simulador!$B$27,(Simulador!$B$27-DAY(EOMONTH(TS10,0)))+DAY(EOMONTH(TS10,0)),31) -> 31 | TT9: =+IF(DAY(EOMONTH(TT10,0))<Simulador!$B$27,(Simulador!$B$27-DAY(EOMONTH(TT10,0)))+DAY(EOMONTH(TT10,0)),31) -> 31 | TU9: =+IF(DAY(EOMONTH(TU10,0))<Simulador!$B$27,(Simulador!$B$27-DAY(EOMONTH(TU10,0)))+DAY(EOMONTH(TU10,0)),31) -> 31 | TV9: =+IF(DAY(EOMONTH(TV10,0))<Simulador!$B$27,(Simulador!$B$27-DAY(EOMONTH(TV10,0)))+DAY(EOMONTH(TV10,0)),31) -> 31 | TW9: =+IF(DAY(EOMONTH(TW10,0))<Simulador!$B$27,(Simulador!$B$27-DAY(EOMONTH(TW10,0)))+DAY(EOMONTH(TW10,0)),31) -> 31 | TX9: =+IF(DAY(EOMONTH(TX10,0))<Simulador!$B$27,(Simulador!$B$27-DAY(EOMONTH(TX10,0)))+DAY(EOMONTH(TX10,0)),31) -> 31 | TY9: =+IF(DAY(EOMONTH(TY10,0))<Simulador!$B$27,(Simulador!$B$27-DAY(EOMONTH(TY10,0)))+DAY(EOMONTH(TY10,0)),31) -> 31 | TZ9: =+IF(DAY(EOMONTH(TZ10,0))<Simulador!$B$27,(Simulador!$B$27-DAY(EOMONTH(TZ10,0)))+DAY(EOMONTH(TZ10,0)),31) -> 31 | UA9: =+IF(DAY(EOMONTH(UA10,0))<Simulador!$B$27,(Simulador!$B$27-DAY(EOMONTH(UA10,0)))+DAY(EOMONTH(UA10,0)),31) -> 31 | UB9: =+IF(DAY(EOMONTH(UB10,0))<Simulador!$B$27,(Simulador!$B$27-DAY(EOMONTH(UB10,0)))+DAY(EOMONTH(UB10,0)),31) -> 31 | UC9: =+IF(DAY(EOMONTH(UC10,0))<Simulador!$B$27,(Simulador!$B$27-DAY(EOMONTH(UC10,0)))+DAY(EOMONTH(UC10,0)),31) -> 31 | UD9: =+IF(DAY(EOMONTH(UD10,0))<Simulador!$B$27,(Simulador!$B$27-DAY(EOMONTH(UD10,0)))+DAY(EOMONTH(UD10,0)),31) -> 31 | UE9: =+IF(DAY(EOMONTH(UE10,0))<Simulador!$B$27,(Simulador!$B$27-DAY(EOMONTH(UE10,0)))+DAY(EOMONTH(UE10,0)),31) -> 31 | UF9: =+IF(DAY(EOMONTH(UF10,0))<Simulador!$B$27,(Simulador!$B$27-DAY(EOMONTH(UF10,0)))+DAY(EOMONTH(UF10,0)),31) -> 31 | UG9: =+IF(DAY(EOMONTH(UG10,0))<Simulador!$B$27,(Simulador!$B$27-DAY(EOMONTH(UG10,0)))+DAY(EOMONTH(UG10,0)),31) -> 31 | UH9: =+IF(DAY(EOMONTH(UH10,0))<Simulador!$B$27,(Simulador!$B$27-DAY(EOMONTH(UH10,0)))+DAY(EOMONTH(UH10,0)),31) -> 31 | UI9: =+IF(DAY(EOMONTH(UI10,0))<Simulador!$B$27,(Simulador!$B$27-DAY(EOMONTH(UI10,0)))+DAY(EOMONTH(UI10,0)),31) -> 31 | UJ9: =+IF(DAY(EOMONTH(UJ10,0))<Simulador!$B$27,(Simulador!$B$27-DAY(EOMONTH(UJ10,0)))+DAY(EOMONTH(UJ10,0)),31) -> 31 | UK9: =+IF(DAY(EOMONTH(UK10,0))<Simulador!$B$27,(Simulador!$B$27-DAY(EOMONTH(UK10,0)))+DAY(EOMONTH(UK10,0)),31) -> 31 | UL9: =+IF(DAY(EOMONTH(UL10,0))<Simulador!$B$27,(Simulador!$B$27-DAY(EOMONTH(UL10,0)))+DAY(EOMONTH(UL10,0)),31) -> 31 | UM9: =+IF(DAY(EOMONTH(UM10,0))<Simulador!$B$27,(Simulador!$B$27-DAY(EOMONTH(UM10,0)))+DAY(EOMONTH(UM10,0)),31) -> 31 | UN9: =+IF(DAY(EOMONTH(UN10,0))<Simulador!$B$27,(Simulador!$B$27-DAY(EOMONTH(UN10,0)))+DAY(EOMONTH(UN10,0)),31) -> 31 | UO9: =+IF(DAY(EOMONTH(UO10,0))<Simulador!$B$27,(Simulador!$B$27-DAY(EOMONTH(UO10,0)))+DAY(EOMONTH(UO10,0)),31) -> 31 | UP9: =+IF(DAY(EOMONTH(UP10,0))<Simulador!$B$27,(Simulador!$B$27-DAY(EOMONTH(UP10,0)))+DAY(EOMONTH(UP10,0)),31) -> 31 | UQ9: =+IF(DAY(EOMONTH(UQ10,0))<Simulador!$B$27,(Simulador!$B$27-DAY(EOMONTH(UQ10,0)))+DAY(EOMONTH(UQ10,0)),31) -> 31 | UR9: =+IF(DAY(EOMONTH(UR10,0))<Simulador!$B$27,(Simulador!$B$27-DAY(EOMONTH(UR10,0)))+DAY(EOMONTH(UR10,0)),31) -> 31 | US9: =+IF(DAY(EOMONTH(US10,0))<Simulador!$B$27,(Simulador!$B$27-DAY(EOMONTH(US10,0)))+DAY(EOMONTH(US10,0)),31) -> 31 | UT9: =+IF(DAY(EOMONTH(UT10,0))<Simulador!$B$27,(Simulador!$B$27-DAY(EOMONTH(UT10,0)))+DAY(EOMONTH(UT10,0)),31) -> 31 | UU9: =+IF(DAY(EOMONTH(UU10,0))<Simulador!$B$27,(Simulador!$B$27-DAY(EOMONTH(UU10,0)))+DAY(EOMONTH(UU10,0)),31) -> 31 | UV9: =+IF(DAY(EOMONTH(UV10,0))<Simulador!$B$27,(Simulador!$B$27-DAY(EOMONTH(UV10,0)))+DAY(EOMONTH(UV10,0)),31) -> 31 | UW9: =+IF(DAY(EOMONTH(UW10,0))<Simulador!$B$27,(Simulador!$B$27-DAY(EOMONTH(UW10,0)))+DAY(EOMONTH(UW10,0)),31) -> 31 | UX9: =+IF(DAY(EOMONTH(UX10,0))<Simulador!$B$27,(Simulador!$B$27-DAY(EOMONTH(UX10,0)))+DAY(EOMONTH(UX10,0)),31) -> 31 | UY9: =+IF(DAY(EOMONTH(UY10,0))<Simulador!$B$27,(Simulador!$B$27-DAY(EOMONTH(UY10,0)))+DAY(EOMONTH(UY10,0)),31) -> 31 | UZ9: =+IF(DAY(EOMONTH(UZ10,0))<Simulador!$B$27,(Simulador!$B$27-DAY(EOMONTH(UZ10,0)))+DAY(EOMONTH(UZ10,0)),31) -> 31 | VA9: =+IF(DAY(EOMONTH(VA10,0))<Simulador!$B$27,(Simulador!$B$27-DAY(EOMONTH(VA10,0)))+DAY(EOMONTH(VA10,0)),31) -> 31 | VB9: =+IF(DAY(EOMONTH(VB10,0))<Simulador!$B$27,(Simulador!$B$27-DAY(EOMONTH(VB10,0)))+DAY(EOMONTH(VB10,0)),31) -> 31 | VC9: =+IF(DAY(EOMONTH(VC10,0))<Simulador!$B$27,(Simulador!$B$27-DAY(EOMONTH(VC10,0)))+DAY(EOMONTH(VC10,0)),31) -> 31 | VD9: =+IF(DAY(EOMONTH(VD10,0))<Simulador!$B$27,(Simulador!$B$27-DAY(EOMONTH(VD10,0)))+DAY(EOMONTH(VD10,0)),31) -> 31 | VE9: =+IF(DAY(EOMONTH(VE10,0))<Simulador!$B$27,(Simulador!$B$27-DAY(EOMONTH(VE10,0)))+DAY(EOMONTH(VE10,0)),31) -> 31 | VF9: =+IF(DAY(EOMONTH(VF10,0))<Simulador!$B$27,(Simulador!$B$27-DAY(EOMONTH(VF10,0)))+DAY(EOMONTH(VF10,0)),31) -> 31 | VG9: =+IF(DAY(EOMONTH(VG10,0))<Simulador!$B$27,(Simulador!$B$27-DAY(EOMONTH(VG10,0)))+DAY(EOMONTH(VG10,0)),31) -> 31 | VH9: =+IF(DAY(EOMONTH(VH10,0))<Simulador!$B$27,(Simulador!$B$27-DAY(EOMONTH(VH10,0)))+DAY(EOMONTH(VH10,0)),31) -> 31 | VI9: =+IF(DAY(EOMONTH(VI10,0))<Simulador!$B$27,(Simulador!$B$27-DAY(EOMONTH(VI10,0)))+DAY(EOMONTH(VI10,0)),31) -> 31 | VJ9: =+IF(DAY(EOMONTH(VJ10,0))<Simulador!$B$27,(Simulador!$B$27-DAY(EOMONTH(VJ10,0)))+DAY(EOMONTH(VJ10,0)),31) -> 31 | VK9: =+IF(DAY(EOMONTH(VK10,0))<Simulador!$B$27,(Simulador!$B$27-DAY(EOMONTH(VK10,0)))+DAY(EOMONTH(VK10,0)),31) -> 31 | VL9: =+IF(DAY(EOMONTH(VL10,0))<Simulador!$B$27,(Simulador!$B$27-DAY(EOMONTH(VL10,0)))+DAY(EOMONTH(VL10,0)),31) -> 31 | VM9: =+IF(DAY(EOMONTH(VM10,0))<Simulador!$B$27,(Simulador!$B$27-DAY(EOMONTH(VM10,0)))+DAY(EOMONTH(VM10,0)),31) -> 31 | VN9: =+IF(DAY(EOMONTH(VN10,0))<Simulador!$B$27,(Simulador!$B$27-DAY(EOMONTH(VN10,0)))+DAY(EOMONTH(VN10,0)),31) -> 31 | VO9: =+IF(DAY(EOMONTH(VO10,0))<Simulador!$B$27,(Simulador!$B$27-DAY(EOMONTH(VO10,0)))+DAY(EOMONTH(VO10,0)),31) -> 31 | VP9: =+IF(DAY(EOMONTH(VP10,0))<Simulador!$B$27,(Simulador!$B$27-DAY(EOMONTH(VP10,0)))+DAY(EOMONTH(VP10,0)),31) -> 31 | VQ9: =+IF(DAY(EOMONTH(VQ10,0))<Simulador!$B$27,(Simulador!$B$27-DAY(EOMONTH(VQ10,0)))+DAY(EOMONTH(VQ10,0)),31) -> 31 | VR9: =+IF(DAY(EOMONTH(VR10,0))<Simulador!$B$27,(Simulador!$B$27-DAY(EOMONTH(VR10,0)))+DAY(EOMONTH(VR10,0)),31) -> 31 | VS9: =+IF(DAY(EOMONTH(VS10,0))<Simulador!$B$27,(Simulador!$B$27-DAY(EOMONTH(VS10,0)))+DAY(EOMONTH(VS10,0)),31) -> 31 | VT9: =+IF(DAY(EOMONTH(VT10,0))<Simulador!$B$27,(Simulador!$B$27-DAY(EOMONTH(VT10,0)))+DAY(EOMONTH(VT10,0)),31) -> 31 | VU9: =+IF(DAY(EOMONTH(VU10,0))<Simulador!$B$27,(Simulador!$B$27-DAY(EOMONTH(VU10,0)))+DAY(EOMONTH(VU10,0)),31) -> 31 | VV9: =+IF(DAY(EOMONTH(VV10,0))<Simulador!$B$27,(Simulador!$B$27-DAY(EOMONTH(VV10,0)))+DAY(EOMONTH(VV10,0)),31) -> 31 | VW9: =+IF(DAY(EOMONTH(VW10,0))<Simulador!$B$27,(Simulador!$B$27-DAY(EOMONTH(VW10,0)))+DAY(EOMONTH(VW10,0)),31) -> 31 | VX9: =+IF(DAY(EOMONTH(VX10,0))<Simulador!$B$27,(Simulador!$B$27-DAY(EOMONTH(VX10,0)))+DAY(EOMONTH(VX10,0)),31) -> 31 | VY9: =+IF(DAY(EOMONTH(VY10,0))<Simulador!$B$27,(Simulador!$B$27-DAY(EOMONTH(VY10,0)))+DAY(EOMONTH(VY10,0)),31) -> 31 | VZ9: =+IF(DAY(EOMONTH(VZ10,0))<Simulador!$B$27,(Simulador!$B$27-DAY(EOMONTH(VZ10,0)))+DAY(EOMONTH(VZ10,0)),31) -> 31 | WA9: =+IF(DAY(EOMONTH(WA10,0))<Simulador!$B$27,(Simulador!$B$27-DAY(EOMONTH(WA10,0)))+DAY(EOMONTH(WA10,0)),31) -> 31 | WB9: =+IF(DAY(EOMONTH(WB10,0))<Simulador!$B$27,(Simulador!$B$27-DAY(EOMONTH(WB10,0)))+DAY(EOMONTH(WB10,0)),31) -> 31 | WC9: =+IF(DAY(EOMONTH(WC10,0))<Simulador!$B$27,(Simulador!$B$27-DAY(EOMONTH(WC10,0)))+DAY(EOMONTH(WC10,0)),31) -> 31 | WD9: =+IF(DAY(EOMONTH(WD10,0))<Simulador!$B$27,(Simulador!$B$27-DAY(EOMONTH(WD10,0)))+DAY(EOMONTH(WD10,0)),31) -> 31 | WE9: =+IF(DAY(EOMONTH(WE10,0))<Simulador!$B$27,(Simulador!$B$27-DAY(EOMONTH(WE10,0)))+DAY(EOMONTH(WE10,0)),31) -> 31 | WF9: =+IF(DAY(EOMONTH(WF10,0))<Simulador!$B$27,(Simulador!$B$27-DAY(EOMONTH(WF10,0)))+DAY(EOMONTH(WF10,0)),31) -> 31 | WG9: =+IF(DAY(EOMONTH(WG10,0))<Simulador!$B$27,(Simulador!$B$27-DAY(EOMONTH(WG10,0)))+DAY(EOMONTH(WG10,0)),31) -> 31 | WH9: =+IF(DAY(EOMONTH(WH10,0))<Simulador!$B$27,(Simulador!$B$27-DAY(EOMONTH(WH10,0)))+DAY(EOMONTH(WH10,0)),31) -> 31 | WI9: =+IF(DAY(EOMONTH(WI10,0))<Simulador!$B$27,(Simulador!$B$27-DAY(EOMONTH(WI10,0)))+DAY(EOMONTH(WI10,0)),31) -> 31 | WJ9: =+IF(DAY(EOMONTH(WJ10,0))<Simulador!$B$27,(Simulador!$B$27-DAY(EOMONTH(WJ10,0)))+DAY(EOMONTH(WJ10,0)),31) -> 31 | WK9: =+IF(DAY(EOMONTH(WK10,0))<Simulador!$B$27,(Simulador!$B$27-DAY(EOMONTH(WK10,0)))+DAY(EOMONTH(WK10,0)),31) -> 31 | WL9: =+IF(DAY(EOMONTH(WL10,0))<Simulador!$B$27,(Simulador!$B$27-DAY(EOMONTH(WL10,0)))+DAY(EOMONTH(WL10,0)),31) -> 31 | WM9: =+IF(DAY(EOMONTH(WM10,0))<Simulador!$B$27,(Simulador!$B$27-DAY(EOMONTH(WM10,0)))+DAY(EOMONTH(WM10,0)),31) -> 31 | WN9: =+IF(DAY(EOMONTH(WN10,0))<Simulador!$B$27,(Simulador!$B$27-DAY(EOMONTH(WN10,0)))+DAY(EOMONTH(WN10,0)),31) -> 31 | WO9: =+IF(DAY(EOMONTH(WO10,0))<Simulador!$B$27,(Simulador!$B$27-DAY(EOMONTH(WO10,0)))+DAY(EOMONTH(WO10,0)),31) -> 31 | WP9: =+IF(DAY(EOMONTH(WP10,0))<Simulador!$B$27,(Simulador!$B$27-DAY(EOMONTH(WP10,0)))+DAY(EOMONTH(WP10,0)),31) -> 31 | WQ9: =+IF(DAY(EOMONTH(WQ10,0))<Simulador!$B$27,(Simulador!$B$27-DAY(EOMONTH(WQ10,0)))+DAY(EOMONTH(WQ10,0)),31) -> 31 | WR9: =+IF(DAY(EOMONTH(WR10,0))<Simulador!$B$27,(Simulador!$B$27-DAY(EOMONTH(WR10,0)))+DAY(EOMONTH(WR10,0)),31) -> 31 | WS9: =+IF(DAY(EOMONTH(WS10,0))<Simulador!$B$27,(Simulador!$B$27-DAY(EOMONTH(WS10,0)))+DAY(EOMONTH(WS10,0)),31) -> 31 | WT9: =+IF(DAY(EOMONTH(WT10,0))<Simulador!$B$27,(Simulador!$B$27-DAY(EOMONTH(WT10,0)))+DAY(EOMONTH(WT10,0)),31) -> 31 | WU9: =+IF(DAY(EOMONTH(WU10,0))<Simulador!$B$27,(Simulador!$B$27-DAY(EOMONTH(WU10,0)))+DAY(EOMONTH(WU10,0)),31) -> 31 | WV9: =+IF(DAY(EOMONTH(WV10,0))<Simulador!$B$27,(Simulador!$B$27-DAY(EOMONTH(WV10,0)))+DAY(EOMONTH(WV10,0)),31) -> 31 | WW9: =+IF(DAY(EOMONTH(WW10,0))<Simulador!$B$27,(Simulador!$B$27-DAY(EOMONTH(WW10,0)))+DAY(EOMONTH(WW10,0)),31) -> 31 | WX9: =+IF(DAY(EOMONTH(WX10,0))<Simulador!$B$27,(Simulador!$B$27-DAY(EOMONTH(WX10,0)))+DAY(EOMONTH(WX10,0)),31) -> 31 | WY9: =+IF(DAY(EOMONTH(WY10,0))<Simulador!$B$27,(Simulador!$B$27-DAY(EOMONTH(WY10,0)))+DAY(EOMONTH(WY10,0)),31) -> 31 | WZ9: =+IF(DAY(EOMONTH(WZ10,0))<Simulador!$B$27,(Simulador!$B$27-DAY(EOMONTH(WZ10,0)))+DAY(EOMONTH(WZ10,0)),31) -> 31 | XA9: =+IF(DAY(EOMONTH(XA10,0))<Simulador!$B$27,(Simulador!$B$27-DAY(EOMONTH(XA10,0)))+DAY(EOMONTH(XA10,0)),31) -> 31 | XB9: =+IF(DAY(EOMONTH(XB10,0))<Simulador!$B$27,(Simulador!$B$27-DAY(EOMONTH(XB10,0)))+DAY(EOMONTH(XB10,0)),31) -> 31 | XC9: =+IF(DAY(EOMONTH(XC10,0))<Simulador!$B$27,(Simulador!$B$27-DAY(EOMONTH(XC10,0)))+DAY(EOMONTH(XC10,0)),31) -> 31 | XD9: =+IF(DAY(EOMONTH(XD10,0))<Simulador!$B$27,(Simulador!$B$27-DAY(EOMONTH(XD10,0)))+DAY(EOMONTH(XD10,0)),31) -> 31 | XE9: =+IF(DAY(EOMONTH(XE10,0))<Simulador!$B$27,(Simulador!$B$27-DAY(EOMONTH(XE10,0)))+DAY(EOMONTH(XE10,0)),31) -> 31 | XF9: =+IF(DAY(EOMONTH(XF10,0))<Simulador!$B$27,(Simulador!$B$27-DAY(EOMONTH(XF10,0)))+DAY(EOMONTH(XF10,0)),31) -> 31 | XG9: =+IF(DAY(EOMONTH(XG10,0))<Simulador!$B$27,(Simulador!$B$27-DAY(EOMONTH(XG10,0)))+DAY(EOMONTH(XG10,0)),31) -> 31 | XH9: =+IF(DAY(EOMONTH(XH10,0))<Simulador!$B$27,(Simulador!$B$27-DAY(EOMONTH(XH10,0)))+DAY(EOMONTH(XH10,0)),31) -> 31 | XI9: =+IF(DAY(EOMONTH(XI10,0))<Simulador!$B$27,(Simulador!$B$27-DAY(EOMONTH(XI10,0)))+DAY(EOMONTH(XI10,0)),31) -> 31 | XJ9: =+IF(DAY(EOMONTH(XJ10,0))<Simulador!$B$27,(Simulador!$B$27-DAY(EOMONTH(XJ10,0)))+DAY(EOMONTH(XJ10,0)),31) -> 31 | XK9: =+IF(DAY(EOMONTH(XK10,0))<Simulador!$B$27,(Simulador!$B$27-DAY(EOMONTH(XK10,0)))+DAY(EOMONTH(XK10,0)),31) -> 31 | XL9: =+IF(DAY(EOMONTH(XL10,0))<Simulador!$B$27,(Simulador!$B$27-DAY(EOMONTH(XL10,0)))+DAY(EOMONTH(XL10,0)),31) -> 31 | XM9: =+IF(DAY(EOMONTH(XM10,0))<Simulador!$B$27,(Simulador!$B$27-DAY(EOMONTH(XM10,0)))+DAY(EOMONTH(XM10,0)),31) -> 31 | XN9: =+IF(DAY(EOMONTH(XN10,0))<Simulador!$B$27,(Simulador!$B$27-DAY(EOMONTH(XN10,0)))+DAY(EOMONTH(XN10,0)),31) -> 31 | XO9: =+IF(DAY(EOMONTH(XO10,0))<Simulador!$B$27,(Simulador!$B$27-DAY(EOMONTH(XO10,0)))+DAY(EOMONTH(XO10,0)),31) -> 31 | XP9: =+IF(DAY(EOMONTH(XP10,0))<Simulador!$B$27,(Simulador!$B$27-DAY(EOMONTH(XP10,0)))+DAY(EOMONTH(XP10,0)),31) -> 31 | XQ9: =+IF(DAY(EOMONTH(XQ10,0))<Simulador!$B$27,(Simulador!$B$27-DAY(EOMONTH(XQ10,0)))+DAY(EOMONTH(XQ10,0)),31) -> 31 | XR9: =+IF(DAY(EOMONTH(XR10,0))<Simulador!$B$27,(Simulador!$B$27-DAY(EOMONTH(XR10,0)))+DAY(EOMONTH(XR10,0)),31) -> 31 | XS9: =+IF(DAY(EOMONTH(XS10,0))<Simulador!$B$27,(Simulador!$B$27-DAY(EOMONTH(XS10,0)))+DAY(EOMONTH(XS10,0)),31) -> 31 | XT9: =+IF(DAY(EOMONTH(XT10,0))<Simulador!$B$27,(Simulador!$B$27-DAY(EOMONTH(XT10,0)))+DAY(EOMONTH(XT10,0)),31) -> 31 | XU9: =+IF(DAY(EOMONTH(XU10,0))<Simulador!$B$27,(Simulador!$B$27-DAY(EOMONTH(XU10,0)))+DAY(EOMONTH(XU10,0)),31) -> 31 | XV9: =+IF(DAY(EOMONTH(XV10,0))<Simulador!$B$27,(Simulador!$B$27-DAY(EOMONTH(XV10,0)))+DAY(EOMONTH(XV10,0)),31) -> 31 | XW9: =+IF(DAY(EOMONTH(XW10,0))<Simulador!$B$27,(Simulador!$B$27-DAY(EOMONTH(XW10,0)))+DAY(EOMONTH(XW10,0)),31) -> 31 | XX9: =+IF(DAY(EOMONTH(XX10,0))<Simulador!$B$27,(Simulador!$B$27-DAY(EOMONTH(XX10,0)))+DAY(EOMONTH(XX10,0)),31) -> 31 | XY9: =+IF(DAY(EOMONTH(XY10,0))<Simulador!$B$27,(Simulador!$B$27-DAY(EOMONTH(XY10,0)))+DAY(EOMONTH(XY10,0)),31) -> 31 | XZ9: =+IF(DAY(EOMONTH(XZ10,0))<Simulador!$B$27,(Simulador!$B$27-DAY(EOMONTH(XZ10,0)))+DAY(EOMONTH(XZ10,0)),31) -> 31 | YA9: =+IF(DAY(EOMONTH(YA10,0))<Simulador!$B$27,(Simulador!$B$27-DAY(EOMONTH(YA10,0)))+DAY(EOMONTH(YA10,0)),31) -> 31 | YB9: =+IF(DAY(EOMONTH(YB10,0))<Simulador!$B$27,(Simulador!$B$27-DAY(EOMONTH(YB10,0)))+DAY(EOMONTH(YB10,0)),31) -> 31 | YC9: =+IF(DAY(EOMONTH(YC10,0))<Simulador!$B$27,(Simulador!$B$27-DAY(EOMONTH(YC10,0)))+DAY(EOMONTH(YC10,0)),31) -> 31 | YD9: =+IF(DAY(EOMONTH(YD10,0))<Simulador!$B$27,(Simulador!$B$27-DAY(EOMONTH(YD10,0)))+DAY(EOMONTH(YD10,0)),31) -> 31 | YE9: =+IF(DAY(EOMONTH(YE10,0))<Simulador!$B$27,(Simulador!$B$27-DAY(EOMONTH(YE10,0)))+DAY(EOMONTH(YE10,0)),31) -> 31 | YF9: =+IF(DAY(EOMONTH(YF10,0))<Simulador!$B$27,(Simulador!$B$27-DAY(EOMONTH(YF10,0)))+DAY(EOMONTH(YF10,0)),31) -> 31 | YG9: =+IF(DAY(EOMONTH(YG10,0))<Simulador!$B$27,(Simulador!$B$27-DAY(EOMONTH(YG10,0)))+DAY(EOMONTH(YG10,0)),31) -> 31 | YH9: =+IF(DAY(EOMONTH(YH10,0))<Simulador!$B$27,(Simulador!$B$27-DAY(EOMONTH(YH10,0)))+DAY(EOMONTH(YH10,0)),31) -> 31 | YI9: =+IF(DAY(EOMONTH(YI10,0))<Simulador!$B$27,(Simulador!$B$27-DAY(EOMONTH(YI10,0)))+DAY(EOMONTH(YI10,0)),31) -> 31 | YJ9: =+IF(DAY(EOMONTH(YJ10,0))<Simulador!$B$27,(Simulador!$B$27-DAY(EOMONTH(YJ10,0)))+DAY(EOMONTH(YJ10,0)),31) -> 31 | YK9: =+IF(DAY(EOMONTH(YK10,0))<Simulador!$B$27,(Simulador!$B$27-DAY(EOMONTH(YK10,0)))+DAY(EOMONTH(YK10,0)),31) -> 31 | YL9: =+IF(DAY(EOMONTH(YL10,0))<Simulador!$B$27,(Simulador!$B$27-DAY(EOMONTH(YL10,0)))+DAY(EOMONTH(YL10,0)),31) -> 31 | YM9: =+IF(DAY(EOMONTH(YM10,0))<Simulador!$B$27,(Simulador!$B$27-DAY(EOMONTH(YM10,0)))+DAY(EOMONTH(YM10,0)),31) -> 31 | YN9: =+IF(DAY(EOMONTH(YN10,0))<Simulador!$B$27,(Simulador!$B$27-DAY(EOMONTH(YN10,0)))+DAY(EOMONTH(YN10,0)),31) -> 31 | YO9: =+IF(DAY(EOMONTH(YO10,0))<Simulador!$B$27,(Simulador!$B$27-DAY(EOMONTH(YO10,0)))+DAY(EOMONTH(YO10,0)),31) -> 31 | YP9: =+IF(DAY(EOMONTH(YP10,0))<Simulador!$B$27,(Simulador!$B$27-DAY(EOMONTH(YP10,0)))+DAY(EOMONTH(YP10,0)),31) -> 31 | YQ9: =+IF(DAY(EOMONTH(YQ10,0))<Simulador!$B$27,(Simulador!$B$27-DAY(EOMONTH(YQ10,0)))+DAY(EOMONTH(YQ10,0)),31) -> 31 | YR9: =+IF(DAY(EOMONTH(YR10,0))<Simulador!$B$27,(Simulador!$B$27-DAY(EOMONTH(YR10,0)))+DAY(EOMONTH(YR10,0)),31) -> 31 | YS9: =+IF(DAY(EOMONTH(YS10,0))<Simulador!$B$27,(Simulador!$B$27-DAY(EOMONTH(YS10,0)))+DAY(EOMONTH(YS10,0)),31) -> 31 | YT9: =+IF(DAY(EOMONTH(YT10,0))<Simulador!$B$27,(Simulador!$B$27-DAY(EOMONTH(YT10,0)))+DAY(EOMONTH(YT10,0)),31) -> 31 | YU9: =+IF(DAY(EOMONTH(YU10,0))<Simulador!$B$27,(Simulador!$B$27-DAY(EOMONTH(YU10,0)))+DAY(EOMONTH(YU10,0)),31) -> 31 | YV9: =+IF(DAY(EOMONTH(YV10,0))<Simulador!$B$27,(Simulador!$B$27-DAY(EOMONTH(YV10,0)))+DAY(EOMONTH(YV10,0)),31) -> 31 | YW9: =+IF(DAY(EOMONTH(YW10,0))<Simulador!$B$27,(Simulador!$B$27-DAY(EOMONTH(YW10,0)))+DAY(EOMONTH(YW10,0)),31) -> 31 | YX9: =+IF(DAY(EOMONTH(YX10,0))<Simulador!$B$27,(Simulador!$B$27-DAY(EOMONTH(YX10,0)))+DAY(EOMONTH(YX10,0)),31) -> 31 | YY9: =+IF(DAY(EOMONTH(YY10,0))<Simulador!$B$27,(Simulador!$B$27-DAY(EOMONTH(YY10,0)))+DAY(EOMONTH(YY10,0)),31) -> 31 | YZ9: =+IF(DAY(EOMONTH(YZ10,0))<Simulador!$B$27,(Simulador!$B$27-DAY(EOMONTH(YZ10,0)))+DAY(EOMONTH(YZ10,0)),31) -> 31 | ZA9: =+IF(DAY(EOMONTH(ZA10,0))<Simulador!$B$27,(Simulador!$B$27-DAY(EOMONTH(ZA10,0)))+DAY(EOMONTH(ZA10,0)),31) -> 31 | ZB9: =+IF(DAY(EOMONTH(ZB10,0))<Simulador!$B$27,(Simulador!$B$27-DAY(EOMONTH(ZB10,0)))+DAY(EOMONTH(ZB10,0)),31) -> 31 | ZC9: =+IF(DAY(EOMONTH(ZC10,0))<Simulador!$B$27,(Simulador!$B$27-DAY(EOMONTH(ZC10,0)))+DAY(EOMONTH(ZC10,0)),31) -> 31 | ZD9: =+IF(DAY(EOMONTH(ZD10,0))<Simulador!$B$27,(Simulador!$B$27-DAY(EOMONTH(ZD10,0)))+DAY(EOMONTH(ZD10,0)),31) -> 31 | ZE9: =+IF(DAY(EOMONTH(ZE10,0))<Simulador!$B$27,(Simulador!$B$27-DAY(EOMONTH(ZE10,0)))+DAY(EOMONTH(ZE10,0)),31) -> 31 | ZF9: =+IF(DAY(EOMONTH(ZF10,0))<Simulador!$B$27,(Simulador!$B$27-DAY(EOMONTH(ZF10,0)))+DAY(EOMONTH(ZF10,0)),31) -> 31 | ZG9: =+IF(DAY(EOMONTH(ZG10,0))<Simulador!$B$27,(Simulador!$B$27-DAY(EOMONTH(ZG10,0)))+DAY(EOMONTH(ZG10,0)),31) -> 31 | ZH9: =+IF(DAY(EOMONTH(ZH10,0))<Simulador!$B$27,(Simulador!$B$27-DAY(EOMONTH(ZH10,0)))+DAY(EOMONTH(ZH10,0)),31) -> 31 | ZI9: =+IF(DAY(EOMONTH(ZI10,0))<Simulador!$B$27,(Simulador!$B$27-DAY(EOMONTH(ZI10,0)))+DAY(EOMONTH(ZI10,0)),31) -> 31 | ZJ9: =+IF(DAY(EOMONTH(ZJ10,0))<Simulador!$B$27,(Simulador!$B$27-DAY(EOMONTH(ZJ10,0)))+DAY(EOMONTH(ZJ10,0)),31) -> 31 | ZK9: =+IF(DAY(EOMONTH(ZK10,0))<Simulador!$B$27,(Simulador!$B$27-DAY(EOMONTH(ZK10,0)))+DAY(EOMONTH(ZK10,0)),31) -> 31 | ZL9: =+IF(DAY(EOMONTH(ZL10,0))<Simulador!$B$27,(Simulador!$B$27-DAY(EOMONTH(ZL10,0)))+DAY(EOMONTH(ZL10,0)),31) -> 31 | ZM9: =+IF(DAY(EOMONTH(ZM10,0))<Simulador!$B$27,(Simulador!$B$27-DAY(EOMONTH(ZM10,0)))+DAY(EOMONTH(ZM10,0)),31) -> 31 | ZN9: =+IF(DAY(EOMONTH(ZN10,0))<Simulador!$B$27,(Simulador!$B$27-DAY(EOMONTH(ZN10,0)))+DAY(EOMONTH(ZN10,0)),31) -> 31 | ZO9: =+IF(DAY(EOMONTH(ZO10,0))<Simulador!$B$27,(Simulador!$B$27-DAY(EOMONTH(ZO10,0)))+DAY(EOMONTH(ZO10,0)),31) -> 31 | ZP9: =+IF(DAY(EOMONTH(ZP10,0))<Simulador!$B$27,(Simulador!$B$27-DAY(EOMONTH(ZP10,0)))+DAY(EOMONTH(ZP10,0)),31) -> 31 | ZQ9: =+IF(DAY(EOMONTH(ZQ10,0))<Simulador!$B$27,(Simulador!$B$27-DAY(EOMONTH(ZQ10,0)))+DAY(EOMONTH(ZQ10,0)),31) -> 31 | ZR9: =+IF(DAY(EOMONTH(ZR10,0))<Simulador!$B$27,(Simulador!$B$27-DAY(EOMONTH(ZR10,0)))+DAY(EOMONTH(ZR10,0)),31) -> 31 | ZS9: =+IF(DAY(EOMONTH(ZS10,0))<Simulador!$B$27,(Simulador!$B$27-DAY(EOMONTH(ZS10,0)))+DAY(EOMONTH(ZS10,0)),31) -> 31 | ZT9: =+IF(DAY(EOMONTH(ZT10,0))<Simulador!$B$27,(Simulador!$B$27-DAY(EOMONTH(ZT10,0)))+DAY(EOMONTH(ZT10,0)),31) -> 31 | ZU9: =+IF(DAY(EOMONTH(ZU10,0))<Simulador!$B$27,(Simulador!$B$27-DAY(EOMONTH(ZU10,0)))+DAY(EOMONTH(ZU10,0)),31) -> 31 | ZV9: =+IF(DAY(EOMONTH(ZV10,0))<Simulador!$B$27,(Simulador!$B$27-DAY(EOMONTH(ZV10,0)))+DAY(EOMONTH(ZV10,0)),31) -> 31 | ZW9: =+IF(DAY(EOMONTH(ZW10,0))<Simulador!$B$27,(Simulador!$B$27-DAY(EOMONTH(ZW10,0)))+DAY(EOMONTH(ZW10,0)),31) -> 31 | ZX9: =+IF(DAY(EOMONTH(ZX10,0))<Simulador!$B$27,(Simulador!$B$27-DAY(EOMONTH(ZX10,0)))+DAY(EOMONTH(ZX10,0)),31) -> 31 | ZY9: =+IF(DAY(EOMONTH(ZY10,0))<Simulador!$B$27,(Simulador!$B$27-DAY(EOMONTH(ZY10,0)))+DAY(EOMONTH(ZY10,0)),31) -> 31 | ZZ9: =+IF(DAY(EOMONTH(ZZ10,0))<Simulador!$B$27,(Simulador!$B$27-DAY(EOMONTH(ZZ10,0)))+DAY(EOMONTH(ZZ10,0)),31) -> 31 | AAA9: =+IF(DAY(EOMONTH(AAA10,0))<Simulador!$B$27,(Simulador!$B$27-DAY(EOMONTH(AAA10,0)))+DAY(EOMONTH(AAA10,0)),31) -> 31 | AAB9: =+IF(DAY(EOMONTH(AAB10,0))<Simulador!$B$27,(Simulador!$B$27-DAY(EOMONTH(AAB10,0)))+DAY(EOMONTH(AAB10,0)),31) -> 31 | AAC9: =+IF(DAY(EOMONTH(AAC10,0))<Simulador!$B$27,(Simulador!$B$27-DAY(EOMONTH(AAC10,0)))+DAY(EOMONTH(AAC10,0)),31) -> 31 | AAD9: =+IF(DAY(EOMONTH(AAD10,0))<Simulador!$B$27,(Simulador!$B$27-DAY(EOMONTH(AAD10,0)))+DAY(EOMONTH(AAD10,0)),31) -> 31 | AAE9: =+IF(DAY(EOMONTH(AAE10,0))<Simulador!$B$27,(Simulador!$B$27-DAY(EOMONTH(AAE10,0)))+DAY(EOMONTH(AAE10,0)),31) -> 31 | AAF9: =+IF(DAY(EOMONTH(AAF10,0))<Simulador!$B$27,(Simulador!$B$27-DAY(EOMONTH(AAF10,0)))+DAY(EOMONTH(AAF10,0)),31) -> 31 | AAG9: =+IF(DAY(EOMONTH(AAG10,0))<Simulador!$B$27,(Simulador!$B$27-DAY(EOMONTH(AAG10,0)))+DAY(EOMONTH(AAG10,0)),31) -> 31 | AAH9: =+IF(DAY(EOMONTH(AAH10,0))<Simulador!$B$27,(Simulador!$B$27-DAY(EOMONTH(AAH10,0)))+DAY(EOMONTH(AAH10,0)),31) -> 31 | AAI9: =+IF(DAY(EOMONTH(AAI10,0))<Simulador!$B$27,(Simulador!$B$27-DAY(EOMONTH(AAI10,0)))+DAY(EOMONTH(AAI10,0)),31) -> 31 | AAJ9: =+IF(DAY(EOMONTH(AAJ10,0))<Simulador!$B$27,(Simulador!$B$27-DAY(EOMONTH(AAJ10,0)))+DAY(EOMONTH(AAJ10,0)),31) -> 31 | AAK9: =+IF(DAY(EOMONTH(AAK10,0))<Simulador!$B$27,(Simulador!$B$27-DAY(EOMONTH(AAK10,0)))+DAY(EOMONTH(AAK10,0)),31) -> 31 | AAL9: =+IF(DAY(EOMONTH(AAL10,0))<Simulador!$B$27,(Simulador!$B$27-DAY(EOMONTH(AAL10,0)))+DAY(EOMONTH(AAL10,0)),31) -> 31 | AAM9: =+IF(DAY(EOMONTH(AAM10,0))<Simulador!$B$27,(Simulador!$B$27-DAY(EOMONTH(AAM10,0)))+DAY(EOMONTH(AAM10,0)),31) -> 31 | AAN9: =+IF(DAY(EOMONTH(AAN10,0))<Simulador!$B$27,(Simulador!$B$27-DAY(EOMONTH(AAN10,0)))+DAY(EOMONTH(AAN10,0)),31) -> 31 | AAO9: =+IF(DAY(EOMONTH(AAO10,0))<Simulador!$B$27,(Simulador!$B$27-DAY(EOMONTH(AAO10,0)))+DAY(EOMONTH(AAO10,0)),31) -> 31 | AAP9: =+IF(DAY(EOMONTH(AAP10,0))<Simulador!$B$27,(Simulador!$B$27-DAY(EOMONTH(AAP10,0)))+DAY(EOMONTH(AAP10,0)),31) -> 31 | AAQ9: =+IF(DAY(EOMONTH(AAQ10,0))<Simulador!$B$27,(Simulador!$B$27-DAY(EOMONTH(AAQ10,0)))+DAY(EOMONTH(AAQ10,0)),31) -> 31 | AAR9: =+IF(DAY(EOMONTH(AAR10,0))<Simulador!$B$27,(Simulador!$B$27-DAY(EOMONTH(AAR10,0)))+DAY(EOMONTH(AAR10,0)),31) -> 31 | AAS9: =+IF(DAY(EOMONTH(AAS10,0))<Simulador!$B$27,(Simulador!$B$27-DAY(EOMONTH(AAS10,0)))+DAY(EOMONTH(AAS10,0)),31) -> 31 | AAT9: =+IF(DAY(EOMONTH(AAT10,0))<Simulador!$B$27,(Simulador!$B$27-DAY(EOMONTH(AAT10,0)))+DAY(EOMONTH(AAT10,0)),31) -> 31
B10: Fecha | C10: =+Simulador!C36 -> 2025-07-20 | D10: =+C10+1 -> 2025-07-21 | E10: 2025-07-22 | F10: 2025-07-23 | G10: 2025-07-24 | H10: 2025-07-25 | I10: 2025-07-26 | J10: 2025-07-27 | K10: 2025-07-28 | L10: 2025-07-29 | M10: 2025-07-30 | N10: 2025-07-31 | O10: 2025-08-01 | P10: 2025-08-02 | Q10: 2025-08-03 | R10: 2025-08-04 | S10: 2025-08-05 | T10: 2025-08-06 | U10: 2025-08-07 | V10: 2025-08-08 | W10: 2025-08-09 | X10: 2025-08-10 | Y10: 2025-08-11 | Z10: 2025-08-12 | AA10: 2025-08-13 | AB10: 2025-08-14 | AC10: 2025-08-15 | AD10: 2025-08-16 | AE10: 2025-08-17 | AF10: 2025-08-18 | AG10: 2025-08-19 | AH10: 2025-08-20 | AI10: 2025-08-21 | AJ10: 2025-08-22 | AK10: 2025-08-23 | AL10: 2025-08-24 | AM10: 2025-08-25 | AN10: 2025-08-26 | AO10: 2025-08-27 | AP10: 2025-08-28 | AQ10: 2025-08-29 | AR10: 2025-08-30 | AS10: 2025-08-31 | AT10: 2025-09-01 | AU10: 2025-09-02 | AV10: 2025-09-03 | AW10: 2025-09-04 | AX10: 2025-09-05 | AY10: 2025-09-06 | AZ10: 2025-09-07 | BA10: 2025-09-08 | BB10: 2025-09-09 | BC10: 2025-09-10 | BD10: 2025-09-11 | BE10: 2025-09-12 | BF10: 2025-09-13 | BG10: 2025-09-14 | BH10: 2025-09-15 | BI10: 2025-09-16 | BJ10: 2025-09-17 | BK10: 2025-09-18 | BL10: 2025-09-19 | BM10: 2025-09-20 | BN10: 2025-09-21 | BO10: 2025-09-22 | BP10: =+BO10+1 -> 2025-09-23 | BQ10: 2025-09-24 | BR10: 2025-09-25 | BS10: 2025-09-26 | BT10: 2025-09-27 | BU10: 2025-09-28 | BV10: 2025-09-29 | BW10: 2025-09-30 | BX10: 2025-10-01 | BY10: 2025-10-02 | BZ10: 2025-10-03 | CA10: 2025-10-04 | CB10: 2025-10-05 | CC10: 2025-10-06 | CD10: 2025-10-07 | CE10: 2025-10-08 | CF10: 2025-10-09 | CG10: 2025-10-10 | CH10: 2025-10-11 | CI10: 2025-10-12 | CJ10: 2025-10-13 | CK10: 2025-10-14 | CL10: 2025-10-15 | CM10: 2025-10-16 | CN10: 2025-10-17 | CO10: 2025-10-18 | CP10: 2025-10-19 | CQ10: 2025-10-20 | CR10: 2025-10-21 | CS10: 2025-10-22 | CT10: 2025-10-23 | CU10: 2025-10-24 | CV10: 2025-10-25 | CW10: 2025-10-26 | CX10: 2025-10-27 | CY10: 2025-10-28 | CZ10: 2025-10-29 | DA10: 2025-10-30 | DB10: 2025-10-31 | DC10: 2025-11-01 | DD10: 2025-11-02 | DE10: 2025-11-03 | DF10: 2025-11-04 | DG10: 2025-11-05 | DH10: 2025-11-06 | DI10: 2025-11-07 | DJ10: 2025-11-08 | DK10: 2025-11-09 | DL10: 2025-11-10 | DM10: 2025-11-11 | DN10: 2025-11-12 | DO10: 2025-11-13 | DP10: 2025-11-14 | DQ10: 2025-11-15 | DR10: 2025-11-16 | DS10: 2025-11-17 | DT10: 2025-11-18 | DU10: 2025-11-19 | DV10: 2025-11-20 | DW10: 2025-11-21 | DX10: 2025-11-22 | DY10: 2025-11-23 | DZ10: 2025-11-24 | EA10: 2025-11-25 | EB10: =+EA10+1 -> 2025-11-26 | EC10: 2025-11-27 | ED10: 2025-11-28 | EE10: 2025-11-29 | EF10: 2025-11-30 | EG10: 2025-12-01 | EH10: 2025-12-02 | EI10: 2025-12-03 | EJ10: 2025-12-04 | EK10: 2025-12-05 | EL10: 2025-12-06 | EM10: 2025-12-07 | EN10: 2025-12-08 | EO10: 2025-12-09 | EP10: 2025-12-10 | EQ10: 2025-12-11 | ER10: 2025-12-12 | ES10: 2025-12-13 | ET10: 2025-12-14 | EU10: 2025-12-15 | EV10: 2025-12-16 | EW10: 2025-12-17 | EX10: 2025-12-18 | EY10: 2025-12-19 | EZ10: 2025-12-20 | FA10: 2025-12-21 | FB10: 2025-12-22 | FC10: 2025-12-23 | FD10: 2025-12-24 | FE10: 2025-12-25 | FF10: 2025-12-26 | FG10: 2025-12-27 | FH10: 2025-12-28 | FI10: 2025-12-29 | FJ10: 2025-12-30 | FK10: 2025-12-31 | FL10: 2026-01-01 | FM10: 2026-01-02 | FN10: 2026-01-03 | FO10: 2026-01-04 | FP10: 2026-01-05 | FQ10: 2026-01-06 | FR10: 2026-01-07 | FS10: 2026-01-08 | FT10: 2026-01-09 | FU10: 2026-01-10 | FV10: 2026-01-11 | FW10: 2026-01-12 | FX10: 2026-01-13 | FY10: 2026-01-14 | FZ10: 2026-01-15 | GA10: 2026-01-16 | GB10: 2026-01-17 | GC10: 2026-01-18 | GD10: 2026-01-19 | GE10: 2026-01-20 | GF10: 2026-01-21 | GG10: 2026-01-22 | GH10: 2026-01-23 | GI10: 2026-01-24 | GJ10: 2026-01-25 | GK10: 2026-01-26 | GL10: 2026-01-27 | GM10: 2026-01-28 | GN10: =+GM10+1 -> 2026-01-29 | GO10: 2026-01-30 | GP10: 2026-01-31 | GQ10: 2026-02-01 | GR10: 2026-02-02 | GS10: 2026-02-03 | GT10: 2026-02-04 | GU10: 2026-02-05 | GV10: 2026-02-06 | GW10: 2026-02-07 | GX10: 2026-02-08 | GY10: 2026-02-09 | GZ10: 2026-02-10 | HA10: 2026-02-11 | HB10: 2026-02-12 | HC10: 2026-02-13 | HD10: 2026-02-14 | HE10: 2026-02-15 | HF10: 2026-02-16 | HG10: 2026-02-17 | HH10: 2026-02-18 | HI10: 2026-02-19 | HJ10: 2026-02-20 | HK10: 2026-02-21 | HL10: 2026-02-22 | HM10: 2026-02-23 | HN10: 2026-02-24 | HO10: 2026-02-25 | HP10: 2026-02-26 | HQ10: 2026-02-27 | HR10: 2026-02-28 | HS10: 2026-03-01 | HT10: 2026-03-02 | HU10: 2026-03-03 | HV10: 2026-03-04 | HW10: 2026-03-05 | HX10: 2026-03-06 | HY10: 2026-03-07 | HZ10: 2026-03-08 | IA10: 2026-03-09 | IB10: 2026-03-10 | IC10: 2026-03-11 | ID10: 2026-03-12 | IE10: 2026-03-13 | IF10: 2026-03-14 | IG10: 2026-03-15 | IH10: 2026-03-16 | II10: 2026-03-17 | IJ10: 2026-03-18 | IK10: 2026-03-19 | IL10: 2026-03-20 | IM10: 2026-03-21 | IN10: 2026-03-22 | IO10: 2026-03-23 | IP10: 2026-03-24 | IQ10: 2026-03-25 | IR10: 2026-03-26 | IS10: 2026-03-27 | IT10: 2026-03-28 | IU10: 2026-03-29 | IV10: 2026-03-30 | IW10: 2026-03-31 | IX10: 2026-04-01 | IY10: 2026-04-02 | IZ10: =+IY10+1 -> 2026-04-03 | JA10: 2026-04-04 | JB10: 2026-04-05 | JC10: 2026-04-06 | JD10: 2026-04-07 | JE10: 2026-04-08 | JF10: 2026-04-09 | JG10: 2026-04-10 | JH10: 2026-04-11 | JI10: 2026-04-12 | JJ10: 2026-04-13 | JK10: 2026-04-14 | JL10: 2026-04-15 | JM10: 2026-04-16 | JN10: 2026-04-17 | JO10: 2026-04-18 | JP10: 2026-04-19 | JQ10: 2026-04-20 | JR10: 2026-04-21 | JS10: 2026-04-22 | JT10: 2026-04-23 | JU10: 2026-04-24 | JV10: 2026-04-25 | JW10: 2026-04-26 | JX10: 2026-04-27 | JY10: 2026-04-28 | JZ10: 2026-04-29 | KA10: 2026-04-30 | KB10: 2026-05-01 | KC10: 2026-05-02 | KD10: 2026-05-03 | KE10: 2026-05-04 | KF10: 2026-05-05 | KG10: 2026-05-06 | KH10: 2026-05-07 | KI10: 2026-05-08 | KJ10: 2026-05-09 | KK10: 2026-05-10 | KL10: 2026-05-11 | KM10: 2026-05-12 | KN10: 2026-05-13 | KO10: 2026-05-14 | KP10: 2026-05-15 | KQ10: 2026-05-16 | KR10: 2026-05-17 | KS10: 2026-05-18 | KT10: 2026-05-19 | KU10: 2026-05-20 | KV10: 2026-05-21 | KW10: 2026-05-22 | KX10: 2026-05-23 | KY10: 2026-05-24 | KZ10: 2026-05-25 | LA10: 2026-05-26 | LB10: 2026-05-27 | LC10: 2026-05-28 | LD10: 2026-05-29 | LE10: 2026-05-30 | LF10: 2026-05-31 | LG10: 2026-06-01 | LH10: 2026-06-02 | LI10: 2026-06-03 | LJ10: 2026-06-04 | LK10: 2026-06-05 | LL10: =+LK10+1 -> 2026-06-06 | LM10: 2026-06-07 | LN10: 2026-06-08 | LO10: 2026-06-09 | LP10: 2026-06-10 | LQ10: 2026-06-11 | LR10: 2026-06-12 | LS10: 2026-06-13 | LT10: 2026-06-14 | LU10: 2026-06-15 | LV10: 2026-06-16 | LW10: 2026-06-17 | LX10: 2026-06-18 | LY10: 2026-06-19 | LZ10: 2026-06-20 | MA10: 2026-06-21 | MB10: 2026-06-22 | MC10: 2026-06-23 | MD10: 2026-06-24 | ME10: 2026-06-25 | MF10: 2026-06-26 | MG10: 2026-06-27 | MH10: 2026-06-28 | MI10: 2026-06-29 | MJ10: 2026-06-30 | MK10: 2026-07-01 | ML10: 2026-07-02 | MM10: 2026-07-03 | MN10: 2026-07-04 | MO10: 2026-07-05 | MP10: 2026-07-06 | MQ10: 2026-07-07 | MR10: 2026-07-08 | MS10: 2026-07-09 | MT10: 2026-07-10 | MU10: 2026-07-11 | MV10: 2026-07-12 | MW10: 2026-07-13 | MX10: 2026-07-14 | MY10: 2026-07-15 | MZ10: 2026-07-16 | NA10: 2026-07-17 | NB10: 2026-07-18 | NC10: 2026-07-19 | ND10: 2026-07-20 | NE10: 2026-07-21 | NF10: 2026-07-22 | NG10: 2026-07-23 | NH10: 2026-07-24 | NI10: 2026-07-25 | NJ10: 2026-07-26 | NK10: 2026-07-27 | NL10: 2026-07-28 | NM10: 2026-07-29 | NN10: 2026-07-30 | NO10: 2026-07-31 | NP10: 2026-08-01 | NQ10: 2026-08-02 | NR10: 2026-08-03 | NS10: 2026-08-04 | NT10: 2026-08-05 | NU10: 2026-08-06 | NV10: 2026-08-07 | NW10: 2026-08-08 | NX10: =+NW10+1 -> 2026-08-09 | NY10: 2026-08-10 | NZ10: 2026-08-11 | OA10: 2026-08-12 | OB10: 2026-08-13 | OC10: 2026-08-14 | OD10: 2026-08-15 | OE10: 2026-08-16 | OF10: 2026-08-17 | OG10: 2026-08-18 | OH10: 2026-08-19 | OI10: 2026-08-20 | OJ10: 2026-08-21 | OK10: 2026-08-22 | OL10: 2026-08-23 | OM10: 2026-08-24 | ON10: 2026-08-25 | OO10: 2026-08-26 | OP10: 2026-08-27 | OQ10: 2026-08-28 | OR10: 2026-08-29 | OS10: 2026-08-30 | OT10: 2026-08-31 | OU10: 2026-09-01 | OV10: 2026-09-02 | OW10: 2026-09-03 | OX10: 2026-09-04 | OY10: 2026-09-05 | OZ10: 2026-09-06 | PA10: 2026-09-07 | PB10: 2026-09-08 | PC10: 2026-09-09 | PD10: 2026-09-10 | PE10: 2026-09-11 | PF10: 2026-09-12 | PG10: 2026-09-13 | PH10: 2026-09-14 | PI10: 2026-09-15 | PJ10: 2026-09-16 | PK10: 2026-09-17 | PL10: 2026-09-18 | PM10: 2026-09-19 | PN10: 2026-09-20 | PO10: 2026-09-21 | PP10: 2026-09-22 | PQ10: 2026-09-23 | PR10: 2026-09-24 | PS10: 2026-09-25 | PT10: 2026-09-26 | PU10: 2026-09-27 | PV10: 2026-09-28 | PW10: 2026-09-29 | PX10: 2026-09-30 | PY10: 2026-10-01 | PZ10: 2026-10-02 | QA10: 2026-10-03 | QB10: 2026-10-04 | QC10: 2026-10-05 | QD10: 2026-10-06 | QE10: 2026-10-07 | QF10: 2026-10-08 | QG10: 2026-10-09 | QH10: 2026-10-10 | QI10: 2026-10-11 | QJ10: =+QI10+1 -> 2026-10-12 | QK10: 2026-10-13 | QL10: 2026-10-14 | QM10: 2026-10-15 | QN10: 2026-10-16 | QO10: 2026-10-17 | QP10: 2026-10-18 | QQ10: 2026-10-19 | QR10: 2026-10-20 | QS10: 2026-10-21 | QT10: 2026-10-22 | QU10: 2026-10-23 | QV10: 2026-10-24 | QW10: 2026-10-25 | QX10: 2026-10-26 | QY10: 2026-10-27 | QZ10: 2026-10-28 | RA10: 2026-10-29 | RB10: 2026-10-30 | RC10: 2026-10-31 | RD10: 2026-11-01 | RE10: 2026-11-02 | RF10: 2026-11-03 | RG10: 2026-11-04 | RH10: 2026-11-05 | RI10: 2026-11-06 | RJ10: 2026-11-07 | RK10: 2026-11-08 | RL10: 2026-11-09 | RM10: 2026-11-10 | RN10: 2026-11-11 | RO10: 2026-11-12 | RP10: 2026-11-13 | RQ10: 2026-11-14 | RR10: 2026-11-15 | RS10: 2026-11-16 | RT10: 2026-11-17 | RU10: 2026-11-18 | RV10: 2026-11-19 | RW10: 2026-11-20 | RX10: 2026-11-21 | RY10: 2026-11-22 | RZ10: 2026-11-23 | SA10: 2026-11-24 | SB10: 2026-11-25 | SC10: 2026-11-26 | SD10: 2026-11-27 | SE10: 2026-11-28 | SF10: 2026-11-29 | SG10: 2026-11-30 | SH10: 2026-12-01 | SI10: 2026-12-02 | SJ10: 2026-12-03 | SK10: 2026-12-04 | SL10: 2026-12-05 | SM10: 2026-12-06 | SN10: 2026-12-07 | SO10: 2026-12-08 | SP10: 2026-12-09 | SQ10: 2026-12-10 | SR10: 2026-12-11 | SS10: 2026-12-12 | ST10: 2026-12-13 | SU10: 2026-12-14 | SV10: =+SU10+1 -> 2026-12-15 | SW10: 2026-12-16 | SX10: 2026-12-17 | SY10: 2026-12-18 | SZ10: 2026-12-19 | TA10: 2026-12-20 | TB10: 2026-12-21 | TC10: 2026-12-22 | TD10: 2026-12-23 | TE10: 2026-12-24 | TF10: 2026-12-25 | TG10: 2026-12-26 | TH10: 2026-12-27 | TI10: 2026-12-28 | TJ10: 2026-12-29 | TK10: 2026-12-30 | TL10: 2026-12-31 | TM10: 2027-01-01 | TN10: 2027-01-02 | TO10: 2027-01-03 | TP10: 2027-01-04 | TQ10: 2027-01-05 | TR10: 2027-01-06 | TS10: 2027-01-07 | TT10: 2027-01-08 | TU10: 2027-01-09 | TV10: 2027-01-10 | TW10: 2027-01-11 | TX10: 2027-01-12 | TY10: 2027-01-13 | TZ10: 2027-01-14 | UA10: 2027-01-15 | UB10: 2027-01-16 | UC10: 2027-01-17 | UD10: 2027-01-18 | UE10: 2027-01-19 | UF10: 2027-01-20 | UG10: 2027-01-21 | UH10: 2027-01-22 | UI10: 2027-01-23 | UJ10: 2027-01-24 | UK10: 2027-01-25 | UL10: 2027-01-26 | UM10: 2027-01-27 | UN10: 2027-01-28 | UO10: 2027-01-29 | UP10: 2027-01-30 | UQ10: 2027-01-31 | UR10: 2027-02-01 | US10: 2027-02-02 | UT10: 2027-02-03 | UU10: 2027-02-04 | UV10: 2027-02-05 | UW10: 2027-02-06 | UX10: 2027-02-07 | UY10: 2027-02-08 | UZ10: 2027-02-09 | VA10: 2027-02-10 | VB10: 2027-02-11 | VC10: 2027-02-12 | VD10: 2027-02-13 | VE10: 2027-02-14 | VF10: 2027-02-15 | VG10: 2027-02-16 | VH10: =+VG10+1 -> 2027-02-17 | VI10: 2027-02-18 | VJ10: 2027-02-19 | VK10: 2027-02-20 | VL10: 2027-02-21 | VM10: 2027-02-22 | VN10: 2027-02-23 | VO10: 2027-02-24 | VP10: 2027-02-25 | VQ10: 2027-02-26 | VR10: 2027-02-27 | VS10: 2027-02-28 | VT10: 2027-03-01 | VU10: 2027-03-02 | VV10: 2027-03-03 | VW10: 2027-03-04 | VX10: 2027-03-05 | VY10: 2027-03-06 | VZ10: 2027-03-07 | WA10: 2027-03-08 | WB10: 2027-03-09 | WC10: 2027-03-10 | WD10: 2027-03-11 | WE10: 2027-03-12 | WF10: 2027-03-13 | WG10: 2027-03-14 | WH10: 2027-03-15 | WI10: 2027-03-16 | WJ10: 2027-03-17 | WK10: 2027-03-18 | WL10: 2027-03-19 | WM10: 2027-03-20 | WN10: 2027-03-21 | WO10: 2027-03-22 | WP10: 2027-03-23 | WQ10: 2027-03-24 | WR10: 2027-03-25 | WS10: 2027-03-26 | WT10: 2027-03-27 | WU10: 2027-03-28 | WV10: 2027-03-29 | WW10: 2027-03-30 | WX10: 2027-03-31 | WY10: 2027-04-01 | WZ10: 2027-04-02 | XA10: 2027-04-03 | XB10: 2027-04-04 | XC10: 2027-04-05 | XD10: 2027-04-06 | XE10: 2027-04-07 | XF10: 2027-04-08 | XG10: 2027-04-09 | XH10: 2027-04-10 | XI10: 2027-04-11 | XJ10: 2027-04-12 | XK10: 2027-04-13 | XL10: 2027-04-14 | XM10: 2027-04-15 | XN10: 2027-04-16 | XO10: 2027-04-17 | XP10: 2027-04-18 | XQ10: 2027-04-19 | XR10: 2027-04-20 | XS10: 2027-04-21 | XT10: =+XS10+1 -> 2027-04-22 | XU10: 2027-04-23 | XV10: 2027-04-24 | XW10: 2027-04-25 | XX10: 2027-04-26 | XY10: 2027-04-27 | XZ10: 2027-04-28 | YA10: 2027-04-29 | YB10: 2027-04-30 | YC10: 2027-05-01 | YD10: 2027-05-02 | YE10: 2027-05-03 | YF10: 2027-05-04 | YG10: 2027-05-05 | YH10: 2027-05-06 | YI10: 2027-05-07 | YJ10: 2027-05-08 | YK10: 2027-05-09 | YL10: 2027-05-10 | YM10: 2027-05-11 | YN10: 2027-05-12 | YO10: 2027-05-13 | YP10: 2027-05-14 | YQ10: 2027-05-15 | YR10: 2027-05-16 | YS10: 2027-05-17 | YT10: 2027-05-18 | YU10: 2027-05-19 | YV10: 2027-05-20 | YW10: 2027-05-21 | YX10: 2027-05-22 | YY10: 2027-05-23 | YZ10: 2027-05-24 | ZA10: 2027-05-25 | ZB10: 2027-05-26 | ZC10: 2027-05-27 | ZD10: 2027-05-28 | ZE10: 2027-05-29 | ZF10: 2027-05-30 | ZG10: 2027-05-31 | ZH10: 2027-06-01 | ZI10: 2027-06-02 | ZJ10: 2027-06-03 | ZK10: 2027-06-04 | ZL10: 2027-06-05 | ZM10: 2027-06-06 | ZN10: 2027-06-07 | ZO10: 2027-06-08 | ZP10: 2027-06-09 | ZQ10: 2027-06-10 | ZR10: 2027-06-11 | ZS10: 2027-06-12 | ZT10: 2027-06-13 | ZU10: 2027-06-14 | ZV10: 2027-06-15 | ZW10: 2027-06-16 | ZX10: 2027-06-17 | ZY10: 2027-06-18 | ZZ10: 2027-06-19 | AAA10: 2027-06-20 | AAB10: 2027-06-21 | AAC10: 2027-06-22 | AAD10: 2027-06-23 | AAE10: 2027-06-24 | AAF10: =+AAE10+1 -> 2027-06-25 | AAG10: 2027-06-26 | AAH10: 2027-06-27 | AAI10: 2027-06-28 | AAJ10: 2027-06-29 | AAK10: 2027-06-30 | AAL10: 2027-07-01 | AAM10: 2027-07-02 | AAN10: 2027-07-03 | AAO10: 2027-07-04 | AAP10: 2027-07-05 | AAQ10: 2027-07-06 | AAR10: 2027-07-07 | AAS10: 2027-07-08 | AAT10: 2027-07-09 | AAU10: 2027-07-10
B11: Día Laborable | C11: =IF(WEEKDAY(C10,2)=1,"Lunes", IF(WEEKDAY(C10,2)=2,"Martes", IF(WEEKDAY(C10,2)=3,"Miércoles", IF(WEEKDAY(C10,2)=4,"Jueves", IF(WEEKDAY(C10,2)=5,"Viernes", IF(WEEKDAY(C10,2)=6,"Sábado", IF(WEEKDAY(C10,2)=7,"Domingo","Revisar"))))))) -> Domingo | D11: Lunes | E11: Martes | F11: Miércoles | G11: Jueves | H11: Viernes | I11: Sábado | J11: Domingo | K11: Lunes | L11: Martes | M11: Miércoles | N11: Jueves | O11: Viernes | P11: Sábado | Q11: Domingo | R11: Lunes | S11: Martes | T11: Miércoles | U11: Jueves | V11: Viernes | W11: Sábado | X11: Domingo | Y11: Lunes | Z11: Martes | AA11: Miércoles | AB11: Jueves | AC11: Viernes | AD11: Sábado | AE11: Domingo | AF11: Lunes | AG11: Martes | AH11: Miércoles | AI11: Jueves | AJ11: Viernes | AK11: Sábado | AL11: Domingo | AM11: Lunes | AN11: Martes | AO11: Miércoles | AP11: Jueves | AQ11: Viernes | AR11: Sábado | AS11: Domingo | AT11: Lunes | AU11: Martes | AV11: Miércoles | AW11: Jueves | AX11: Viernes | AY11: Sábado | AZ11: Domingo | BA11: Lunes | BB11: Martes | BC11: Miércoles | BD11: Jueves | BE11: Viernes | BF11: Sábado | BG11: Domingo | BH11: Lunes | BI11: Martes | BJ11: Miércoles | BK11: Jueves | BL11: Viernes | BM11: Sábado | BN11: Domingo | BO11: =IF(WEEKDAY(BO10,2)=1,"Lunes", IF(WEEKDAY(BO10,2)=2,"Martes", IF(WEEKDAY(BO10,2)=3,"Miércoles", IF(WEEKDAY(BO10,2)=4,"Jueves", IF(WEEKDAY(BO10,2)=5,"Viernes", IF(WEEKDAY(BO10,2)=6,"Sábado", IF(WEEKDAY(BO10,2)=7,"Domingo","Revisar"))))))) -> Lunes | BP11: Martes | BQ11: Miércoles | BR11: Jueves | BS11: Viernes | BT11: Sábado | BU11: Domingo | BV11: Lunes | BW11: Martes | BX11: Miércoles | BY11: Jueves | BZ11: Viernes | CA11: Sábado | CB11: Domingo | CC11: Lunes | CD11: Martes | CE11: Miércoles | CF11: Jueves | CG11: Viernes | CH11: Sábado | CI11: Domingo | CJ11: Lunes | CK11: Martes | CL11: Miércoles | CM11: Jueves | CN11: Viernes | CO11: Sábado | CP11: Domingo | CQ11: Lunes | CR11: Martes | CS11: Miércoles | CT11: Jueves | CU11: Viernes | CV11: Sábado | CW11: Domingo | CX11: Lunes | CY11: Martes | CZ11: Miércoles | DA11: Jueves | DB11: Viernes | DC11: Sábado | DD11: Domingo | DE11: Lunes | DF11: Martes | DG11: Miércoles | DH11: Jueves | DI11: Viernes | DJ11: Sábado | DK11: Domingo | DL11: Lunes | DM11: Martes | DN11: Miércoles | DO11: Jueves | DP11: Viernes | DQ11: Sábado | DR11: Domingo | DS11: Lunes | DT11: Martes | DU11: Miércoles | DV11: Jueves | DW11: Viernes | DX11: Sábado | DY11: Domingo | DZ11: Lunes | EA11: =IF(WEEKDAY(EA10,2)=1,"Lunes", IF(WEEKDAY(EA10,2)=2,"Martes", IF(WEEKDAY(EA10,2)=3,"Miércoles", IF(WEEKDAY(EA10,2)=4,"Jueves", IF(WEEKDAY(EA10,2)=5,"Viernes", IF(WEEKDAY(EA10,2)=6,"Sábado", IF(WEEKDAY(EA10,2)=7,"Domingo","Revisar"))))))) -> Martes | EB11: Miércoles | EC11: Jueves | ED11: Viernes | EE11: Sábado | EF11: Domingo | EG11: Lunes | EH11: Martes | EI11: Miércoles | EJ11: Jueves | EK11: Viernes | EL11: Sábado | EM11: Domingo | EN11: Lunes | EO11: Martes | EP11: Miércoles | EQ11: Jueves | ER11: Viernes | ES11: Sábado | ET11: Domingo | EU11: Lunes | EV11: Martes | EW11: Miércoles | EX11: Jueves | EY11: Viernes | EZ11: Sábado | FA11: Domingo | FB11: Lunes | FC11: Martes | FD11: Miércoles | FE11: Jueves | FF11: Viernes | FG11: Sábado | FH11: Domingo | FI11: Lunes | FJ11: Martes | FK11: Miércoles | FL11: Jueves | FM11: Viernes | FN11: Sábado | FO11: Domingo | FP11: Lunes | FQ11: Martes | FR11: Miércoles | FS11: Jueves | FT11: Viernes | FU11: Sábado | FV11: Domingo | FW11: Lunes | FX11: Martes | FY11: Miércoles | FZ11: Jueves | GA11: Viernes | GB11: Sábado | GC11: Domingo | GD11: Lunes | GE11: Martes | GF11: Miércoles | GG11: Jueves | GH11: Viernes | GI11: Sábado | GJ11: Domingo | GK11: Lunes | GL11: Martes | GM11: =IF(WEEKDAY(GM10,2)=1,"Lunes", IF(WEEKDAY(GM10,2)=2,"Martes", IF(WEEKDAY(GM10,2)=3,"Miércoles", IF(WEEKDAY(GM10,2)=4,"Jueves", IF(WEEKDAY(GM10,2)=5,"Viernes", IF(WEEKDAY(GM10,2)=6,"Sábado", IF(WEEKDAY(GM10,2)=7,"Domingo","Revisar"))))))) -> Miércoles | GN11: Jueves | GO11: Viernes | GP11: Sábado | GQ11: Domingo | GR11: Lunes | GS11: Martes | GT11: Miércoles | GU11: Jueves | GV11: Viernes | GW11: Sábado | GX11: Domingo | GY11: Lunes | GZ11: Martes | HA11: Miércoles | HB11: Jueves | HC11: Viernes | HD11: Sábado | HE11: Domingo | HF11: Lunes | HG11: Martes | HH11: Miércoles | HI11: Jueves | HJ11: Viernes | HK11: Sábado | HL11: Domingo | HM11: Lunes | HN11: Martes | HO11: Miércoles | HP11: Jueves | HQ11: Viernes | HR11: Sábado | HS11: Domingo | HT11: Lunes | HU11: Martes | HV11: Miércoles | HW11: Jueves | HX11: Viernes | HY11: Sábado | HZ11: Domingo | IA11: Lunes | IB11: Martes | IC11: Miércoles | ID11: Jueves | IE11: Viernes | IF11: Sábado | IG11: Domingo | IH11: Lunes | II11: Martes | IJ11: Miércoles | IK11: Jueves | IL11: Viernes | IM11: Sábado | IN11: Domingo | IO11: Lunes | IP11: Martes | IQ11: Miércoles | IR11: Jueves | IS11: Viernes | IT11: Sábado | IU11: Domingo | IV11: Lunes | IW11: Martes | IX11: Miércoles | IY11: =IF(WEEKDAY(IY10,2)=1,"Lunes", IF(WEEKDAY(IY10,2)=2,"Martes", IF(WEEKDAY(IY10,2)=3,"Miércoles", IF(WEEKDAY(IY10,2)=4,"Jueves", IF(WEEKDAY(IY10,2)=5,"Viernes", IF(WEEKDAY(IY10,2)=6,"Sábado", IF(WEEKDAY(IY10,2)=7,"Domingo","Revisar"))))))) -> Jueves | IZ11: Viernes | JA11: Sábado | JB11: Domingo | JC11: Lunes | JD11: Martes | JE11: Miércoles | JF11: Jueves | JG11: Viernes | JH11: Sábado | JI11: Domingo | JJ11: Lunes | JK11: Martes | JL11: Miércoles | JM11: Jueves | JN11: Viernes | JO11: Sábado | JP11: Domingo | JQ11: Lunes | JR11: Martes | JS11: Miércoles | JT11: Jueves | JU11: Viernes | JV11: Sábado | JW11: Domingo | JX11: Lunes | JY11: Martes | JZ11: Miércoles | KA11: Jueves | KB11: Viernes | KC11: Sábado | KD11: Domingo | KE11: Lunes | KF11: Martes | KG11: Miércoles | KH11: Jueves | KI11: Viernes | KJ11: Sábado | KK11: Domingo | KL11: Lunes | KM11: Martes | KN11: Miércoles | KO11: Jueves | KP11: Viernes | KQ11: Sábado | KR11: Domingo | KS11: Lunes | KT11: Martes | KU11: Miércoles | KV11: Jueves | KW11: Viernes | KX11: Sábado | KY11: Domingo | KZ11: Lunes | LA11: Martes | LB11: Miércoles | LC11: Jueves | LD11: Viernes | LE11: Sábado | LF11: Domingo | LG11: Lunes | LH11: Martes | LI11: Miércoles | LJ11: Jueves | LK11: =IF(WEEKDAY(LK10,2)=1,"Lunes", IF(WEEKDAY(LK10,2)=2,"Martes", IF(WEEKDAY(LK10,2)=3,"Miércoles", IF(WEEKDAY(LK10,2)=4,"Jueves", IF(WEEKDAY(LK10,2)=5,"Viernes", IF(WEEKDAY(LK10,2)=6,"Sábado", IF(WEEKDAY(LK10,2)=7,"Domingo","Revisar"))))))) -> Viernes | LL11: Sábado | LM11: Domingo | LN11: Lunes | LO11: Martes | LP11: Miércoles | LQ11: Jueves | LR11: Viernes | LS11: Sábado | LT11: Domingo | LU11: Lunes | LV11: Martes | LW11: Miércoles | LX11: Jueves | LY11: Viernes | LZ11: Sábado | MA11: Domingo | MB11: Lunes | MC11: Martes | MD11: Miércoles | ME11: Jueves | MF11: Viernes | MG11: Sábado | MH11: Domingo | MI11: Lunes | MJ11: Martes | MK11: Miércoles | ML11: Jueves | MM11: Viernes | MN11: Sábado | MO11: Domingo | MP11: Lunes | MQ11: Martes | MR11: Miércoles | MS11: Jueves | MT11: Viernes | MU11: Sábado | MV11: Domingo | MW11: Lunes | MX11: Martes | MY11: Miércoles | MZ11: Jueves | NA11: Viernes | NB11: Sábado | NC11: Domingo | ND11: Lunes | NE11: Martes | NF11: Miércoles | NG11: Jueves | NH11: Viernes | NI11: Sábado | NJ11: Domingo | NK11: Lunes | NL11: Martes | NM11: Miércoles | NN11: Jueves | NO11: Viernes | NP11: Sábado | NQ11: Domingo | NR11: Lunes | NS11: Martes | NT11: Miércoles | NU11: Jueves | NV11: Viernes | NW11: =IF(WEEKDAY(NW10,2)=1,"Lunes", IF(WEEKDAY(NW10,2)=2,"Martes", IF(WEEKDAY(NW10,2)=3,"Miércoles", IF(WEEKDAY(NW10,2)=4,"Jueves", IF(WEEKDAY(NW10,2)=5,"Viernes", IF(WEEKDAY(NW10,2)=6,"Sábado", IF(WEEKDAY(NW10,2)=7,"Domingo","Revisar"))))))) -> Sábado | NX11: Domingo | NY11: Lunes | NZ11: Martes | OA11: Miércoles | OB11: Jueves | OC11: Viernes | OD11: Sábado | OE11: Domingo | OF11: Lunes | OG11: Martes | OH11: Miércoles | OI11: Jueves | OJ11: Viernes | OK11: Sábado | OL11: Domingo | OM11: Lunes | ON11: Martes | OO11: Miércoles | OP11: Jueves | OQ11: Viernes | OR11: Sábado | OS11: Domingo | OT11: Lunes | OU11: Martes | OV11: Miércoles | OW11: Jueves | OX11: Viernes | OY11: Sábado | OZ11: Domingo | PA11: Lunes | PB11: Martes | PC11: Miércoles | PD11: Jueves | PE11: Viernes | PF11: Sábado | PG11: Domingo | PH11: Lunes | PI11: Martes | PJ11: Miércoles | PK11: Jueves | PL11: Viernes | PM11: Sábado | PN11: Domingo | PO11: Lunes | PP11: Martes | PQ11: Miércoles | PR11: Jueves | PS11: Viernes | PT11: Sábado | PU11: Domingo | PV11: Lunes | PW11: Martes | PX11: Miércoles | PY11: Jueves | PZ11: Viernes | QA11: Sábado | QB11: Domingo | QC11: Lunes | QD11: Martes | QE11: Miércoles | QF11: Jueves | QG11: Viernes | QH11: Sábado | QI11: =IF(WEEKDAY(QI10,2)=1,"Lunes", IF(WEEKDAY(QI10,2)=2,"Martes", IF(WEEKDAY(QI10,2)=3,"Miércoles", IF(WEEKDAY(QI10,2)=4,"Jueves", IF(WEEKDAY(QI10,2)=5,"Viernes", IF(WEEKDAY(QI10,2)=6,"Sábado", IF(WEEKDAY(QI10,2)=7,"Domingo","Revisar"))))))) -> Domingo | QJ11: Lunes | QK11: Martes | QL11: Miércoles | QM11: Jueves | QN11: Viernes | QO11: Sábado | QP11: Domingo | QQ11: Lunes | QR11: Martes | QS11: Miércoles | QT11: Jueves | QU11: Viernes | QV11: Sábado | QW11: Domingo | QX11: Lunes | QY11: Martes | QZ11: Miércoles | RA11: Jueves | RB11: Viernes | RC11: Sábado | RD11: Domingo | RE11: Lunes | RF11: Martes | RG11: Miércoles | RH11: Jueves | RI11: Viernes | RJ11: Sábado | RK11: Domingo | RL11: Lunes | RM11: Martes | RN11: Miércoles | RO11: Jueves | RP11: Viernes | RQ11: Sábado | RR11: Domingo | RS11: Lunes | RT11: Martes | RU11: Miércoles | RV11: Jueves | RW11: Viernes | RX11: Sábado | RY11: Domingo | RZ11: Lunes | SA11: Martes | SB11: Miércoles | SC11: Jueves | SD11: Viernes | SE11: Sábado | SF11: Domingo | SG11: Lunes | SH11: Martes | SI11: Miércoles | SJ11: Jueves | SK11: Viernes | SL11: Sábado | SM11: Domingo | SN11: Lunes | SO11: Martes | SP11: Miércoles | SQ11: Jueves | SR11: Viernes | SS11: Sábado | ST11: Domingo | SU11: =IF(WEEKDAY(SU10,2)=1,"Lunes", IF(WEEKDAY(SU10,2)=2,"Martes", IF(WEEKDAY(SU10,2)=3,"Miércoles", IF(WEEKDAY(SU10,2)=4,"Jueves", IF(WEEKDAY(SU10,2)=5,"Viernes", IF(WEEKDAY(SU10,2)=6,"Sábado", IF(WEEKDAY(SU10,2)=7,"Domingo","Revisar"))))))) -> Lunes | SV11: Martes | SW11: Miércoles | SX11: Jueves | SY11: Viernes | SZ11: Sábado | TA11: Domingo | TB11: Lunes | TC11: Martes | TD11: Miércoles | TE11: Jueves | TF11: Viernes | TG11: Sábado | TH11: Domingo | TI11: Lunes | TJ11: Martes | TK11: Miércoles | TL11: Jueves | TM11: Viernes | TN11: Sábado | TO11: Domingo | TP11: Lunes | TQ11: Martes | TR11: Miércoles | TS11: Jueves | TT11: Viernes | TU11: Sábado | TV11: Domingo | TW11: Lunes | TX11: Martes | TY11: Miércoles | TZ11: Jueves | UA11: Viernes | UB11: Sábado | UC11: Domingo | UD11: Lunes | UE11: Martes | UF11: Miércoles | UG11: Jueves | UH11: Viernes | UI11: Sábado | UJ11: Domingo | UK11: Lunes | UL11: Martes | UM11: Miércoles | UN11: Jueves | UO11: Viernes | UP11: Sábado | UQ11: Domingo | UR11: Lunes | US11: Martes | UT11: Miércoles | UU11: Jueves | UV11: Viernes | UW11: Sábado | UX11: Domingo | UY11: Lunes | UZ11: Martes | VA11: Miércoles | VB11: Jueves | VC11: Viernes | VD11: Sábado | VE11: Domingo | VF11: Lunes | VG11: =IF(WEEKDAY(VG10,2)=1,"Lunes", IF(WEEKDAY(VG10,2)=2,"Martes", IF(WEEKDAY(VG10,2)=3,"Miércoles", IF(WEEKDAY(VG10,2)=4,"Jueves", IF(WEEKDAY(VG10,2)=5,"Viernes", IF(WEEKDAY(VG10,2)=6,"Sábado", IF(WEEKDAY(VG10,2)=7,"Domingo","Revisar"))))))) -> Martes | VH11: Miércoles | VI11: Jueves | VJ11: Viernes | VK11: Sábado | VL11: Domingo | VM11: Lunes | VN11: Martes | VO11: Miércoles | VP11: Jueves | VQ11: Viernes | VR11: Sábado | VS11: Domingo | VT11: Lunes | VU11: Martes | VV11: Miércoles | VW11: Jueves | VX11: Viernes | VY11: Sábado | VZ11: Domingo | WA11: Lunes | WB11: Martes | WC11: Miércoles | WD11: Jueves | WE11: Viernes | WF11: Sábado | WG11: Domingo | WH11: Lunes | WI11: Martes | WJ11: Miércoles | WK11: Jueves | WL11: Viernes | WM11: Sábado | WN11: Domingo | WO11: Lunes | WP11: Martes | WQ11: Miércoles | WR11: Jueves | WS11: Viernes | WT11: Sábado | WU11: Domingo | WV11: Lunes | WW11: Martes | WX11: Miércoles | WY11: Jueves | WZ11: Viernes | XA11: Sábado | XB11: Domingo | XC11: Lunes | XD11: Martes | XE11: Miércoles | XF11: Jueves | XG11: Viernes | XH11: Sábado | XI11: Domingo | XJ11: Lunes | XK11: Martes | XL11: Miércoles | XM11: Jueves | XN11: Viernes | XO11: Sábado | XP11: Domingo | XQ11: Lunes | XR11: Martes | XS11: =IF(WEEKDAY(XS10,2)=1,"Lunes", IF(WEEKDAY(XS10,2)=2,"Martes", IF(WEEKDAY(XS10,2)=3,"Miércoles", IF(WEEKDAY(XS10,2)=4,"Jueves", IF(WEEKDAY(XS10,2)=5,"Viernes", IF(WEEKDAY(XS10,2)=6,"Sábado", IF(WEEKDAY(XS10,2)=7,"Domingo","Revisar"))))))) -> Miércoles | XT11: Jueves | XU11: Viernes | XV11: Sábado | XW11: Domingo | XX11: Lunes | XY11: Martes | XZ11: Miércoles | YA11: Jueves | YB11: Viernes | YC11: Sábado | YD11: Domingo | YE11: Lunes | YF11: Martes | YG11: Miércoles | YH11: Jueves | YI11: Viernes | YJ11: Sábado | YK11: Domingo | YL11: Lunes | YM11: Martes | YN11: Miércoles | YO11: Jueves | YP11: Viernes | YQ11: Sábado | YR11: Domingo | YS11: Lunes | YT11: Martes | YU11: Miércoles | YV11: Jueves | YW11: Viernes | YX11: Sábado | YY11: Domingo | YZ11: Lunes | ZA11: Martes | ZB11: Miércoles | ZC11: Jueves | ZD11: Viernes | ZE11: Sábado | ZF11: Domingo | ZG11: Lunes | ZH11: Martes | ZI11: Miércoles | ZJ11: Jueves | ZK11: Viernes | ZL11: Sábado | ZM11: Domingo | ZN11: Lunes | ZO11: Martes | ZP11: Miércoles | ZQ11: Jueves | ZR11: Viernes | ZS11: Sábado | ZT11: Domingo | ZU11: Lunes | ZV11: Martes | ZW11: Miércoles | ZX11: Jueves | ZY11: Viernes | ZZ11: Sábado | AAA11: Domingo | AAB11: Lunes | AAC11: Martes | AAD11: Miércoles | AAE11: =IF(WEEKDAY(AAE10,2)=1,"Lunes", IF(WEEKDAY(AAE10,2)=2,"Martes", IF(WEEKDAY(AAE10,2)=3,"Miércoles", IF(WEEKDAY(AAE10,2)=4,"Jueves", IF(WEEKDAY(AAE10,2)=5,"Viernes", IF(WEEKDAY(AAE10,2)=6,"Sábado", IF(WEEKDAY(AAE10,2)=7,"Domingo","Revisar"))))))) -> Jueves | AAF11: Viernes | AAG11: Sábado | AAH11: Domingo | AAI11: Lunes | AAJ11: Martes | AAK11: Miércoles | AAL11: Jueves | AAM11: Viernes | AAN11: Sábado | AAO11: Domingo | AAP11: Lunes | AAQ11: Martes | AAR11: Miércoles | AAS11: Jueves | AAT11: Viernes | AAU11: Sábado
B12: Día Festivo | C12: =+_xlfn.XLOOKUP(C10,Rangos!$B$22:$B$67,Rangos!$C$22:$C$67,"") ->  | D12: =+_xlfn.XLOOKUP(D10,Rangos!$B$22:$B$67,Rangos!$C$22:$C$67,"") ->  | E12: =+_xlfn.XLOOKUP(E10,Rangos!$B$22:$B$67,Rangos!$C$22:$C$67,"") ->  | F12: =+_xlfn.XLOOKUP(F10,Rangos!$B$22:$B$67,Rangos!$C$22:$C$67,"") ->  | G12: =+_xlfn.XLOOKUP(G10,Rangos!$B$22:$B$67,Rangos!$C$22:$C$67,"") ->  | H12: =+_xlfn.XLOOKUP(H10,Rangos!$B$22:$B$67,Rangos!$C$22:$C$67,"") ->  | I12: =+_xlfn.XLOOKUP(I10,Rangos!$B$22:$B$67,Rangos!$C$22:$C$67,"") ->  | J12: =+_xlfn.XLOOKUP(J10,Rangos!$B$22:$B$67,Rangos!$C$22:$C$67,"") ->  | K12: =+_xlfn.XLOOKUP(K10,Rangos!$B$22:$B$67,Rangos!$C$22:$C$67,"") ->  | L12: =+_xlfn.XLOOKUP(L10,Rangos!$B$22:$B$67,Rangos!$C$22:$C$67,"") ->  | M12: =+_xlfn.XLOOKUP(M10,Rangos!$B$22:$B$67,Rangos!$C$22:$C$67,"") ->  | N12: =+_xlfn.XLOOKUP(N10,Rangos!$B$22:$B$67,Rangos!$C$22:$C$67,"") ->  | O12: =+_xlfn.XLOOKUP(O10,Rangos!$B$22:$B$67,Rangos!$C$22:$C$67,"") ->  | P12: =+_xlfn.XLOOKUP(P10,Rangos!$B$22:$B$67,Rangos!$C$22:$C$67,"") ->  | Q12: =+_xlfn.XLOOKUP(Q10,Rangos!$B$22:$B$67,Rangos!$C$22:$C$67,"") ->  | R12: =+_xlfn.XLOOKUP(R10,Rangos!$B$22:$B$67,Rangos!$C$22:$C$67,"") ->  | S12: =+_xlfn.XLOOKUP(S10,Rangos!$B$22:$B$67,Rangos!$C$22:$C$67,"") ->  | T12: =+_xlfn.XLOOKUP(T10,Rangos!$B$22:$B$67,Rangos!$C$22:$C$67,"") ->  | U12: =+_xlfn.XLOOKUP(U10,Rangos!$B$22:$B$67,Rangos!$C$22:$C$67,"") ->  | V12: =+_xlfn.XLOOKUP(V10,Rangos!$B$22:$B$67,Rangos!$C$22:$C$67,"") ->  | W12: =+_xlfn.XLOOKUP(W10,Rangos!$B$22:$B$67,Rangos!$C$22:$C$67,"") ->  | X12: =+_xlfn.XLOOKUP(X10,Rangos!$B$22:$B$67,Rangos!$C$22:$C$67,"") ->  | Y12: =+_xlfn.XLOOKUP(Y10,Rangos!$B$22:$B$67,Rangos!$C$22:$C$67,"") -> Feriado | Z12: =+_xlfn.XLOOKUP(Z10,Rangos!$B$22:$B$67,Rangos!$C$22:$C$67,"") ->  | AA12: =+_xlfn.XLOOKUP(AA10,Rangos!$B$22:$B$67,Rangos!$C$22:$C$67,"") ->  | AB12: =+_xlfn.XLOOKUP(AB10,Rangos!$B$22:$B$67,Rangos!$C$22:$C$67,"") ->  | AC12: =+_xlfn.XLOOKUP(AC10,Rangos!$B$22:$B$67,Rangos!$C$22:$C$67,"") ->  | AD12: =+_xlfn.XLOOKUP(AD10,Rangos!$B$22:$B$67,Rangos!$C$22:$C$67,"") ->  | AE12: =+_xlfn.XLOOKUP(AE10,Rangos!$B$22:$B$67,Rangos!$C$22:$C$67,"") ->  | AF12: =+_xlfn.XLOOKUP(AF10,Rangos!$B$22:$B$67,Rangos!$C$22:$C$67,"") ->  | AG12: =+_xlfn.XLOOKUP(AG10,Rangos!$B$22:$B$67,Rangos!$C$22:$C$67,"") ->  | AH12: =+_xlfn.XLOOKUP(AH10,Rangos!$B$22:$B$67,Rangos!$C$22:$C$67,"") ->  | AI12: =+_xlfn.XLOOKUP(AI10,Rangos!$B$22:$B$67,Rangos!$C$22:$C$67,"") ->  | AJ12: =+_xlfn.XLOOKUP(AJ10,Rangos!$B$22:$B$67,Rangos!$C$22:$C$67,"") ->  | AK12: =+_xlfn.XLOOKUP(AK10,Rangos!$B$22:$B$67,Rangos!$C$22:$C$67,"") ->  | AL12: =+_xlfn.XLOOKUP(AL10,Rangos!$B$22:$B$67,Rangos!$C$22:$C$67,"") ->  | AM12: =+_xlfn.XLOOKUP(AM10,Rangos!$B$22:$B$67,Rangos!$C$22:$C$67,"") ->  | AN12: =+_xlfn.XLOOKUP(AN10,Rangos!$B$22:$B$67,Rangos!$C$22:$C$67,"") ->  | AO12: =+_xlfn.XLOOKUP(AO10,Rangos!$B$22:$B$67,Rangos!$C$22:$C$67,"") ->  | AP12: =+_xlfn.XLOOKUP(AP10,Rangos!$B$22:$B$67,Rangos!$C$22:$C$67,"") ->  | AQ12: =+_xlfn.XLOOKUP(AQ10,Rangos!$B$22:$B$67,Rangos!$C$22:$C$67,"") ->  | AR12: =+_xlfn.XLOOKUP(AR10,Rangos!$B$22:$B$67,Rangos!$C$22:$C$67,"") ->  | AS12: =+_xlfn.XLOOKUP(AS10,Rangos!$B$22:$B$67,Rangos!$C$22:$C$67,"") ->  | AT12: =+_xlfn.XLOOKUP(AT10,Rangos!$B$22:$B$67,Rangos!$C$22:$C$67,"") ->  | AU12: =+_xlfn.XLOOKUP(AU10,Rangos!$B$22:$B$67,Rangos!$C$22:$C$67,"") ->  | AV12: =+_xlfn.XLOOKUP(AV10,Rangos!$B$22:$B$67,Rangos!$C$22:$C$67,"") ->  | AW12: =+_xlfn.XLOOKUP(AW10,Rangos!$B$22:$B$67,Rangos!$C$22:$C$67,"") ->  | AX12: =+_xlfn.XLOOKUP(AX10,Rangos!$B$22:$B$67,Rangos!$C$22:$C$67,"") ->  | AY12: =+_xlfn.XLOOKUP(AY10,Rangos!$B$22:$B$67,Rangos!$C$22:$C$67,"") ->  | AZ12: =+_xlfn.XLOOKUP(AZ10,Rangos!$B$22:$B$67,Rangos!$C$22:$C$67,"") ->  | BA12: =+_xlfn.XLOOKUP(BA10,Rangos!$B$22:$B$67,Rangos!$C$22:$C$67,"") ->  | BB12: =+_xlfn.XLOOKUP(BB10,Rangos!$B$22:$B$67,Rangos!$C$22:$C$67,"") ->  | BC12: =+_xlfn.XLOOKUP(BC10,Rangos!$B$22:$B$67,Rangos!$C$22:$C$67,"") ->  | BD12: =+_xlfn.XLOOKUP(BD10,Rangos!$B$22:$B$67,Rangos!$C$22:$C$67,"") ->  | BE12: =+_xlfn.XLOOKUP(BE10,Rangos!$B$22:$B$67,Rangos!$C$22:$C$67,"") ->  | BF12: =+_xlfn.XLOOKUP(BF10,Rangos!$B$22:$B$67,Rangos!$C$22:$C$67,"") ->  | BG12: =+_xlfn.XLOOKUP(BG10,Rangos!$B$22:$B$67,Rangos!$C$22:$C$67,"") ->  | BH12: =+_xlfn.XLOOKUP(BH10,Rangos!$B$22:$B$67,Rangos!$C$22:$C$67,"") ->  | BI12: =+_xlfn.XLOOKUP(BI10,Rangos!$B$22:$B$67,Rangos!$C$22:$C$67,"") ->  | BJ12: =+_xlfn.XLOOKUP(BJ10,Rangos!$B$22:$B$67,Rangos!$C$22:$C$67,"") ->  | BK12: =+_xlfn.XLOOKUP(BK10,Rangos!$B$22:$B$67,Rangos!$C$22:$C$67,"") ->  | BL12: =+_xlfn.XLOOKUP(BL10,Rangos!$B$22:$B$67,Rangos!$C$22:$C$67,"") ->  | BM12: =+_xlfn.XLOOKUP(BM10,Rangos!$B$22:$B$67,Rangos!$C$22:$C$67,"") ->  | BN12: =+_xlfn.XLOOKUP(BN10,Rangos!$B$22:$B$67,Rangos!$C$22:$C$67,"") ->  | BO12: =+_xlfn.XLOOKUP(BO10,Rangos!$B$22:$B$67,Rangos!$C$22:$C$67,"") ->  | BP12: =+_xlfn.XLOOKUP(BP10,Rangos!$B$22:$B$67,Rangos!$C$22:$C$67,"") ->  | BQ12: =+_xlfn.XLOOKUP(BQ10,Rangos!$B$22:$B$67,Rangos!$C$22:$C$67,"") ->  | BR12: =+_xlfn.XLOOKUP(BR10,Rangos!$B$22:$B$67,Rangos!$C$22:$C$67,"") ->  | BS12: =+_xlfn.XLOOKUP(BS10,Rangos!$B$22:$B$67,Rangos!$C$22:$C$67,"") ->  | BT12: =+_xlfn.XLOOKUP(BT10,Rangos!$B$22:$B$67,Rangos!$C$22:$C$67,"") ->  | BU12: =+_xlfn.XLOOKUP(BU10,Rangos!$B$22:$B$67,Rangos!$C$22:$C$67,"") ->  | BV12: =+_xlfn.XLOOKUP(BV10,Rangos!$B$22:$B$67,Rangos!$C$22:$C$67,"") ->  | BW12: =+_xlfn.XLOOKUP(BW10,Rangos!$B$22:$B$67,Rangos!$C$22:$C$67,"") ->  | BX12: =+_xlfn.XLOOKUP(BX10,Rangos!$B$22:$B$67,Rangos!$C$22:$C$67,"") ->  | BY12: =+_xlfn.XLOOKUP(BY10,Rangos!$B$22:$B$67,Rangos!$C$22:$C$67,"") ->  | BZ12: =+_xlfn.XLOOKUP(BZ10,Rangos!$B$22:$B$67,Rangos!$C$22:$C$67,"") ->  | CA12: =+_xlfn.XLOOKUP(CA10,Rangos!$B$22:$B$67,Rangos!$C$22:$C$67,"") ->  | CB12: =+_xlfn.XLOOKUP(CB10,Rangos!$B$22:$B$67,Rangos!$C$22:$C$67,"") ->  | CC12: =+_xlfn.XLOOKUP(CC10,Rangos!$B$22:$B$67,Rangos!$C$22:$C$67,"") ->  | CD12: =+_xlfn.XLOOKUP(CD10,Rangos!$B$22:$B$67,Rangos!$C$22:$C$67,"") ->  | CE12: =+_xlfn.XLOOKUP(CE10,Rangos!$B$22:$B$67,Rangos!$C$22:$C$67,"") ->  | CF12: =+_xlfn.XLOOKUP(CF10,Rangos!$B$22:$B$67,Rangos!$C$22:$C$67,"") ->  | CG12: =+_xlfn.XLOOKUP(CG10,Rangos!$B$22:$B$67,Rangos!$C$22:$C$67,"") -> Feriado | CH12: =+_xlfn.XLOOKUP(CH10,Rangos!$B$22:$B$67,Rangos!$C$22:$C$67,"") ->  | CI12: =+_xlfn.XLOOKUP(CI10,Rangos!$B$22:$B$67,Rangos!$C$22:$C$67,"") ->  | CJ12: =+_xlfn.XLOOKUP(CJ10,Rangos!$B$22:$B$67,Rangos!$C$22:$C$67,"") ->  | CK12: =+_xlfn.XLOOKUP(CK10,Rangos!$B$22:$B$67,Rangos!$C$22:$C$67,"") ->  | CL12: =+_xlfn.XLOOKUP(CL10,Rangos!$B$22:$B$67,Rangos!$C$22:$C$67,"") ->  | CM12: =+_xlfn.XLOOKUP(CM10,Rangos!$B$22:$B$67,Rangos!$C$22:$C$67,"") ->  | CN12: =+_xlfn.XLOOKUP(CN10,Rangos!$B$22:$B$67,Rangos!$C$22:$C$67,"") ->  | CO12: =+_xlfn.XLOOKUP(CO10,Rangos!$B$22:$B$67,Rangos!$C$22:$C$67,"") ->  | CP12: =+_xlfn.XLOOKUP(CP10,Rangos!$B$22:$B$67,Rangos!$C$22:$C$67,"") ->  | CQ12: =+_xlfn.XLOOKUP(CQ10,Rangos!$B$22:$B$67,Rangos!$C$22:$C$67,"") ->  | CR12: =+_xlfn.XLOOKUP(CR10,Rangos!$B$22:$B$67,Rangos!$C$22:$C$67,"") ->  | CS12: =+_xlfn.XLOOKUP(CS10,Rangos!$B$22:$B$67,Rangos!$C$22:$C$67,"") ->  | CT12: =+_xlfn.XLOOKUP(CT10,Rangos!$B$22:$B$67,Rangos!$C$22:$C$67,"") ->  | CU12: =+_xlfn.XLOOKUP(CU10,Rangos!$B$22:$B$67,Rangos!$C$22:$C$67,"") ->  | CV12: =+_xlfn.XLOOKUP(CV10,Rangos!$B$22:$B$67,Rangos!$C$22:$C$67,"") ->  | CW12: =+_xlfn.XLOOKUP(CW10,Rangos!$B$22:$B$67,Rangos!$C$22:$C$67,"") ->  | CX12: =+_xlfn.XLOOKUP(CX10,Rangos!$B$22:$B$67,Rangos!$C$22:$C$67,"") ->  | CY12: =+_xlfn.XLOOKUP(CY10,Rangos!$B$22:$B$67,Rangos!$C$22:$C$67,"") ->  | CZ12: =+_xlfn.XLOOKUP(CZ10,Rangos!$B$22:$B$67,Rangos!$C$22:$C$67,"") ->  | DA12: =+_xlfn.XLOOKUP(DA10,Rangos!$B$22:$B$67,Rangos!$C$22:$C$67,"") ->  | DB12: =+_xlfn.XLOOKUP(DB10,Rangos!$B$22:$B$67,Rangos!$C$22:$C$67,"") ->  | DC12: =+_xlfn.XLOOKUP(DC10,Rangos!$B$22:$B$67,Rangos!$C$22:$C$67,"") ->  | DD12: =+_xlfn.XLOOKUP(DD10,Rangos!$B$22:$B$67,Rangos!$C$22:$C$67,"") ->  | DE12: =+_xlfn.XLOOKUP(DE10,Rangos!$B$22:$B$67,Rangos!$C$22:$C$67,"") -> Feriado | DF12: =+_xlfn.XLOOKUP(DF10,Rangos!$B$22:$B$67,Rangos!$C$22:$C$67,"") ->  | DG12: =+_xlfn.XLOOKUP(DG10,Rangos!$B$22:$B$67,Rangos!$C$22:$C$67,"") ->  | DH12: =+_xlfn.XLOOKUP(DH10,Rangos!$B$22:$B$67,Rangos!$C$22:$C$67,"") ->  | DI12: =+_xlfn.XLOOKUP(DI10,Rangos!$B$22:$B$67,Rangos!$C$22:$C$67,"") ->  | DJ12: =+_xlfn.XLOOKUP(DJ10,Rangos!$B$22:$B$67,Rangos!$C$22:$C$67,"") ->  | DK12: =+_xlfn.XLOOKUP(DK10,Rangos!$B$22:$B$67,Rangos!$C$22:$C$67,"") ->  | DL12: =+_xlfn.XLOOKUP(DL10,Rangos!$B$22:$B$67,Rangos!$C$22:$C$67,"") ->  | DM12: =+_xlfn.XLOOKUP(DM10,Rangos!$B$22:$B$67,Rangos!$C$22:$C$67,"") ->  | DN12: =+_xlfn.XLOOKUP(DN10,Rangos!$B$22:$B$67,Rangos!$C$22:$C$67,"") ->  | DO12: =+_xlfn.XLOOKUP(DO10,Rangos!$B$22:$B$67,Rangos!$C$22:$C$67,"") ->  | DP12: =+_xlfn.XLOOKUP(DP10,Rangos!$B$22:$B$67,Rangos!$C$22:$C$67,"") ->  | DQ12: =+_xlfn.XLOOKUP(DQ10,Rangos!$B$22:$B$67,Rangos!$C$22:$C$67,"") ->  | DR12: =+_xlfn.XLOOKUP(DR10,Rangos!$B$22:$B$67,Rangos!$C$22:$C$67,"") ->  | DS12: =+_xlfn.XLOOKUP(DS10,Rangos!$B$22:$B$67,Rangos!$C$22:$C$67,"") ->  | DT12: =+_xlfn.XLOOKUP(DT10,Rangos!$B$22:$B$67,Rangos!$C$22:$C$67,"") ->  | DU12: =+_xlfn.XLOOKUP(DU10,Rangos!$B$22:$B$67,Rangos!$C$22:$C$67,"") ->  | DV12: =+_xlfn.XLOOKUP(DV10,Rangos!$B$22:$B$67,Rangos!$C$22:$C$67,"") ->  | DW12: =+_xlfn.XLOOKUP(DW10,Rangos!$B$22:$B$67,Rangos!$C$22:$C$67,"") ->  | DX12: =+_xlfn.XLOOKUP(DX10,Rangos!$B$22:$B$67,Rangos!$C$22:$C$67,"") ->  | DY12: =+_xlfn.XLOOKUP(DY10,Rangos!$B$22:$B$67,Rangos!$C$22:$C$67,"") ->  | DZ12: =+_xlfn.XLOOKUP(DZ10,Rangos!$B$22:$B$67,Rangos!$C$22:$C$67,"") ->  | EA12: =+_xlfn.XLOOKUP(EA10,Rangos!$B$22:$B$67,Rangos!$C$22:$C$67,"") ->  | EB12: =+_xlfn.XLOOKUP(EB10,Rangos!$B$22:$B$67,Rangos!$C$22:$C$67,"") ->  | EC12: =+_xlfn.XLOOKUP(EC10,Rangos!$B$22:$B$67,Rangos!$C$22:$C$67,"") ->  | ED12: =+_xlfn.XLOOKUP(ED10,Rangos!$B$22:$B$67,Rangos!$C$22:$C$67,"") ->  | EE12: =+_xlfn.XLOOKUP(EE10,Rangos!$B$22:$B$67,Rangos!$C$22:$C$67,"") ->  | EF12: =+_xlfn.XLOOKUP(EF10,Rangos!$B$22:$B$67,Rangos!$C$22:$C$67,"") ->  | EG12: =+_xlfn.XLOOKUP(EG10,Rangos!$B$22:$B$67,Rangos!$C$22:$C$67,"") ->  | EH12: =+_xlfn.XLOOKUP(EH10,Rangos!$B$22:$B$67,Rangos!$C$22:$C$67,"") ->  | EI12: =+_xlfn.XLOOKUP(EI10,Rangos!$B$22:$B$67,Rangos!$C$22:$C$67,"") ->  | EJ12: =+_xlfn.XLOOKUP(EJ10,Rangos!$B$22:$B$67,Rangos!$C$22:$C$67,"") ->  | EK12: =+_xlfn.XLOOKUP(EK10,Rangos!$B$22:$B$67,Rangos!$C$22:$C$67,"") ->  | EL12: =+_xlfn.XLOOKUP(EL10,Rangos!$B$22:$B$67,Rangos!$C$22:$C$67,"") ->  | EM12: =+_xlfn.XLOOKUP(EM10,Rangos!$B$22:$B$67,Rangos!$C$22:$C$67,"") ->  | EN12: =+_xlfn.XLOOKUP(EN10,Rangos!$B$22:$B$67,Rangos!$C$22:$C$67,"") ->  | EO12: =+_xlfn.XLOOKUP(EO10,Rangos!$B$22:$B$67,Rangos!$C$22:$C$67,"") ->  | EP12: =+_xlfn.XLOOKUP(EP10,Rangos!$B$22:$B$67,Rangos!$C$22:$C$67,"") ->  | EQ12: =+_xlfn.XLOOKUP(EQ10,Rangos!$B$22:$B$67,Rangos!$C$22:$C$67,"") ->  | ER12: =+_xlfn.XLOOKUP(ER10,Rangos!$B$22:$B$67,Rangos!$C$22:$C$67,"") ->  | ES12: =+_xlfn.XLOOKUP(ES10,Rangos!$B$22:$B$67,Rangos!$C$22:$C$67,"") ->  | ET12: =+_xlfn.XLOOKUP(ET10,Rangos!$B$22:$B$67,Rangos!$C$22:$C$67,"") ->  | EU12: =+_xlfn.XLOOKUP(EU10,Rangos!$B$22:$B$67,Rangos!$C$22:$C$67,"") ->  | EV12: =+_xlfn.XLOOKUP(EV10,Rangos!$B$22:$B$67,Rangos!$C$22:$C$67,"") ->  | EW12: =+_xlfn.XLOOKUP(EW10,Rangos!$B$22:$B$67,Rangos!$C$22:$C$67,"") ->  | EX12: =+_xlfn.XLOOKUP(EX10,Rangos!$B$22:$B$67,Rangos!$C$22:$C$67,"") ->  | EY12: =+_xlfn.XLOOKUP(EY10,Rangos!$B$22:$B$67,Rangos!$C$22:$C$67,"") ->  | EZ12: =+_xlfn.XLOOKUP(EZ10,Rangos!$B$22:$B$67,Rangos!$C$22:$C$67,"") ->  | FA12: =+_xlfn.XLOOKUP(FA10,Rangos!$B$22:$B$67,Rangos!$C$22:$C$67,"") ->  | FB12: =+_xlfn.XLOOKUP(FB10,Rangos!$B$22:$B$67,Rangos!$C$22:$C$67,"") ->  | FC12: =+_xlfn.XLOOKUP(FC10,Rangos!$B$22:$B$67,Rangos!$C$22:$C$67,"") ->  | FD12: =+_xlfn.XLOOKUP(FD10,Rangos!$B$22:$B$67,Rangos!$C$22:$C$67,"") ->  | FE12: =+_xlfn.XLOOKUP(FE10,Rangos!$B$22:$B$67,Rangos!$C$22:$C$67,"") -> Feriado | FF12: =+_xlfn.XLOOKUP(FF10,Rangos!$B$22:$B$67,Rangos!$C$22:$C$67,"") ->  | FG12: =+_xlfn.XLOOKUP(FG10,Rangos!$B$22:$B$67,Rangos!$C$22:$C$67,"") ->  | FH12: =+_xlfn.XLOOKUP(FH10,Rangos!$B$22:$B$67,Rangos!$C$22:$C$67,"") ->  | FI12: =+_xlfn.XLOOKUP(FI10,Rangos!$B$22:$B$67,Rangos!$C$22:$C$67,"") ->  | FJ12: =+_xlfn.XLOOKUP(FJ10,Rangos!$B$22:$B$67,Rangos!$C$22:$C$67,"") ->  | FK12: =+_xlfn.XLOOKUP(FK10,Rangos!$B$22:$B$67,Rangos!$C$22:$C$67,"") -> Feriado | FL12: =+_xlfn.XLOOKUP(FL10,Rangos!$B$22:$B$67,Rangos!$C$22:$C$67,"") -> Feriado | FM12: =+_xlfn.XLOOKUP(FM10,Rangos!$B$22:$B$67,Rangos!$C$22:$C$67,"") ->  | FN12: =+_xlfn.XLOOKUP(FN10,Rangos!$B$22:$B$67,Rangos!$C$22:$C$67,"") ->  | FO12: =+_xlfn.XLOOKUP(FO10,Rangos!$B$22:$B$67,Rangos!$C$22:$C$67,"") ->  | FP12: =+_xlfn.XLOOKUP(FP10,Rangos!$B$22:$B$67,Rangos!$C$22:$C$67,"") ->  | FQ12: =+_xlfn.XLOOKUP(FQ10,Rangos!$B$22:$B$67,Rangos!$C$22:$C$67,"") ->  | FR12: =+_xlfn.XLOOKUP(FR10,Rangos!$B$22:$B$67,Rangos!$C$22:$C$67,"") ->  | FS12: =+_xlfn.XLOOKUP(FS10,Rangos!$B$22:$B$67,Rangos!$C$22:$C$67,"") ->  | FT12: =+_xlfn.XLOOKUP(FT10,Rangos!$B$22:$B$67,Rangos!$C$22:$C$67,"") ->  | FU12: =+_xlfn.XLOOKUP(FU10,Rangos!$B$22:$B$67,Rangos!$C$22:$C$67,"") ->  | FV12: =+_xlfn.XLOOKUP(FV10,Rangos!$B$22:$B$67,Rangos!$C$22:$C$67,"") ->  | FW12: =+_xlfn.XLOOKUP(FW10,Rangos!$B$22:$B$67,Rangos!$C$22:$C$67,"") ->  | FX12: =+_xlfn.XLOOKUP(FX10,Rangos!$B$22:$B$67,Rangos!$C$22:$C$67,"") ->  | FY12: =+_xlfn.XLOOKUP(FY10,Rangos!$B$22:$B$67,Rangos!$C$22:$C$67,"") ->  | FZ12: =+_xlfn.XLOOKUP(FZ10,Rangos!$B$22:$B$67,Rangos!$C$22:$C$67,"") ->  | GA12: =+_xlfn.XLOOKUP(GA10,Rangos!$B$22:$B$67,Rangos!$C$22:$C$67,"") ->  | GB12: =+_xlfn.XLOOKUP(GB10,Rangos!$B$22:$B$67,Rangos!$C$22:$C$67,"") ->  | GC12: =+_xlfn.XLOOKUP(GC10,Rangos!$B$22:$B$67,Rangos!$C$22:$C$67,"") ->  | GD12: =+_xlfn.XLOOKUP(GD10,Rangos!$B$22:$B$67,Rangos!$C$22:$C$67,"") ->  | GE12: =+_xlfn.XLOOKUP(GE10,Rangos!$B$22:$B$67,Rangos!$C$22:$C$67,"") ->  | GF12: =+_xlfn.XLOOKUP(GF10,Rangos!$B$22:$B$67,Rangos!$C$22:$C$67,"") ->  | GG12: =+_xlfn.XLOOKUP(GG10,Rangos!$B$22:$B$67,Rangos!$C$22:$C$67,"") ->  | GH12: =+_xlfn.XLOOKUP(GH10,Rangos!$B$22:$B$67,Rangos!$C$22:$C$67,"") ->  | GI12: =+_xlfn.XLOOKUP(GI10,Rangos!$B$22:$B$67,Rangos!$C$22:$C$67,"") ->  | GJ12: =+_xlfn.XLOOKUP(GJ10,Rangos!$B$22:$B$67,Rangos!$C$22:$C$67,"") ->  | GK12: =+_xlfn.XLOOKUP(GK10,Rangos!$B$22:$B$67,Rangos!$C$22:$C$67,"") ->  | GL12: =+_xlfn.XLOOKUP(GL10,Rangos!$B$22:$B$67,Rangos!$C$22:$C$67,"") ->  | GM12: =+_xlfn.XLOOKUP(GM10,Rangos!$B$22:$B$67,Rangos!$C$22:$C$67,"") ->  | GN12: =+_xlfn.XLOOKUP(GN10,Rangos!$B$22:$B$67,Rangos!$C$22:$C$67,"") ->  | GO12: =+_xlfn.XLOOKUP(GO10,Rangos!$B$22:$B$67,Rangos!$C$22:$C$67,"") ->  | GP12: =+_xlfn.XLOOKUP(GP10,Rangos!$B$22:$B$67,Rangos!$C$22:$C$67,"") ->  | GQ12: =+_xlfn.XLOOKUP(GQ10,Rangos!$B$22:$B$67,Rangos!$C$22:$C$67,"") ->  | GR12: =+_xlfn.XLOOKUP(GR10,Rangos!$B$22:$B$67,Rangos!$C$22:$C$67,"") ->  | GS12: =+_xlfn.XLOOKUP(GS10,Rangos!$B$22:$B$67,Rangos!$C$22:$C$67,"") ->  | GT12: =+_xlfn.XLOOKUP(GT10,Rangos!$B$22:$B$67,Rangos!$C$22:$C$67,"") ->  | GU12: =+_xlfn.XLOOKUP(GU10,Rangos!$B$22:$B$67,Rangos!$C$22:$C$67,"") ->  | GV12: =+_xlfn.XLOOKUP(GV10,Rangos!$B$22:$B$67,Rangos!$C$22:$C$67,"") ->  | GW12: =+_xlfn.XLOOKUP(GW10,Rangos!$B$22:$B$67,Rangos!$C$22:$C$67,"") ->  | GX12: =+_xlfn.XLOOKUP(GX10,Rangos!$B$22:$B$67,Rangos!$C$22:$C$67,"") ->  | GY12: =+_xlfn.XLOOKUP(GY10,Rangos!$B$22:$B$67,Rangos!$C$22:$C$67,"") ->  | GZ12: =+_xlfn.XLOOKUP(GZ10,Rangos!$B$22:$B$67,Rangos!$C$22:$C$67,"") ->  | HA12: =+_xlfn.XLOOKUP(HA10,Rangos!$B$22:$B$67,Rangos!$C$22:$C$67,"") ->  | HB12: =+_xlfn.XLOOKUP(HB10,Rangos!$B$22:$B$67,Rangos!$C$22:$C$67,"") ->  | HC12: =+_xlfn.XLOOKUP(HC10,Rangos!$B$22:$B$67,Rangos!$C$22:$C$67,"") ->  | HD12: =+_xlfn.XLOOKUP(HD10,Rangos!$B$22:$B$67,Rangos!$C$22:$C$67,"") ->  | HE12: =+_xlfn.XLOOKUP(HE10,Rangos!$B$22:$B$67,Rangos!$C$22:$C$67,"") ->  | HF12: =+_xlfn.XLOOKUP(HF10,Rangos!$B$22:$B$67,Rangos!$C$22:$C$67,"") -> Feriado | HG12: =+_xlfn.XLOOKUP(HG10,Rangos!$B$22:$B$67,Rangos!$C$22:$C$67,"") -> Feriado | HH12: =+_xlfn.XLOOKUP(HH10,Rangos!$B$22:$B$67,Rangos!$C$22:$C$67,"") ->  | HI12: =+_xlfn.XLOOKUP(HI10,Rangos!$B$22:$B$67,Rangos!$C$22:$C$67,"") ->  | HJ12: =+_xlfn.XLOOKUP(HJ10,Rangos!$B$22:$B$67,Rangos!$C$22:$C$67,"") ->  | HK12: =+_xlfn.XLOOKUP(HK10,Rangos!$B$22:$B$67,Rangos!$C$22:$C$67,"") ->  | HL12: =+_xlfn.XLOOKUP(HL10,Rangos!$B$22:$B$67,Rangos!$C$22:$C$67,"") ->  | HM12: =+_xlfn.XLOOKUP(HM10,Rangos!$B$22:$B$67,Rangos!$C$22:$C$67,"") ->  | HN12: =+_xlfn.XLOOKUP(HN10,Rangos!$B$22:$B$67,Rangos!$C$22:$C$67,"") ->  | HO12: =+_xlfn.XLOOKUP(HO10,Rangos!$B$22:$B$67,Rangos!$C$22:$C$67,"") ->  | HP12: =+_xlfn.XLOOKUP(HP10,Rangos!$B$22:$B$67,Rangos!$C$22:$C$67,"") ->  | HQ12: =+_xlfn.XLOOKUP(HQ10,Rangos!$B$22:$B$67,Rangos!$C$22:$C$67,"") ->  | HR12: =+_xlfn.XLOOKUP(HR10,Rangos!$B$22:$B$67,Rangos!$C$22:$C$67,"") ->  | HS12: =+_xlfn.XLOOKUP(HS10,Rangos!$B$22:$B$67,Rangos!$C$22:$C$67,"") ->  | HT12: =+_xlfn.XLOOKUP(HT10,Rangos!$B$22:$B$67,Rangos!$C$22:$C$67,"") ->  | HU12: =+_xlfn.XLOOKUP(HU10,Rangos!$B$22:$B$67,Rangos!$C$22:$C$67,"") ->  | HV12: =+_xlfn.XLOOKUP(HV10,Rangos!$B$22:$B$67,Rangos!$C$22:$C$67,"") ->  | HW12: =+_xlfn.XLOOKUP(HW10,Rangos!$B$22:$B$67,Rangos!$C$22:$C$67,"") ->  | HX12: =+_xlfn.XLOOKUP(HX10,Rangos!$B$22:$B$67,Rangos!$C$22:$C$67,"") ->  | HY12: =+_xlfn.XLOOKUP(HY10,Rangos!$B$22:$B$67,Rangos!$C$22:$C$67,"") ->  | HZ12: =+_xlfn.XLOOKUP(HZ10,Rangos!$B$22:$B$67,Rangos!$C$22:$C$67,"") ->  | IA12: =+_xlfn.XLOOKUP(IA10,Rangos!$B$22:$B$67,Rangos!$C$22:$C$67,"") ->  | IB12: =+_xlfn.XLOOKUP(IB10,Rangos!$B$22:$B$67,Rangos!$C$22:$C$67,"") ->  | IC12: =+_xlfn.XLOOKUP(IC10,Rangos!$B$22:$B$67,Rangos!$C$22:$C$67,"") ->  | ID12: =+_xlfn.XLOOKUP(ID10,Rangos!$B$22:$B$67,Rangos!$C$22:$C$67,"") ->  | IE12: =+_xlfn.XLOOKUP(IE10,Rangos!$B$22:$B$67,Rangos!$C$22:$C$67,"") ->  | IF12: =+_xlfn.XLOOKUP(IF10,Rangos!$B$22:$B$67,Rangos!$C$22:$C$67,"") ->  | IG12: =+_xlfn.XLOOKUP(IG10,Rangos!$B$22:$B$67,Rangos!$C$22:$C$67,"") ->  | IH12: =+_xlfn.XLOOKUP(IH10,Rangos!$B$22:$B$67,Rangos!$C$22:$C$67,"") ->  | II12: =+_xlfn.XLOOKUP(II10,Rangos!$B$22:$B$67,Rangos!$C$22:$C$67,"") ->  | IJ12: =+_xlfn.XLOOKUP(IJ10,Rangos!$B$22:$B$67,Rangos!$C$22:$C$67,"") ->  | IK12: =+_xlfn.XLOOKUP(IK10,Rangos!$B$22:$B$67,Rangos!$C$22:$C$67,"") ->  | IL12: =+_xlfn.XLOOKUP(IL10,Rangos!$B$22:$B$67,Rangos!$C$22:$C$67,"") ->  | IM12: =+_xlfn.XLOOKUP(IM10,Rangos!$B$22:$B$67,Rangos!$C$22:$C$67,"") ->  | IN12: =+_xlfn.XLOOKUP(IN10,Rangos!$B$22:$B$67,Rangos!$C$22:$C$67,"") ->  | IO12: =+_xlfn.XLOOKUP(IO10,Rangos!$B$22:$B$67,Rangos!$C$22:$C$67,"") ->  | IP12: =+_xlfn.XLOOKUP(IP10,Rangos!$B$22:$B$67,Rangos!$C$22:$C$67,"") ->  | IQ12: =+_xlfn.XLOOKUP(IQ10,Rangos!$B$22:$B$67,Rangos!$C$22:$C$67,"") ->  | IR12: =+_xlfn.XLOOKUP(IR10,Rangos!$B$22:$B$67,Rangos!$C$22:$C$67,"") ->  | IS12: =+_xlfn.XLOOKUP(IS10,Rangos!$B$22:$B$67,Rangos!$C$22:$C$67,"") ->  | IT12: =+_xlfn.XLOOKUP(IT10,Rangos!$B$22:$B$67,Rangos!$C$22:$C$67,"") ->  | IU12: =+_xlfn.XLOOKUP(IU10,Rangos!$B$22:$B$67,Rangos!$C$22:$C$67,"") ->  | IV12: =+_xlfn.XLOOKUP(IV10,Rangos!$B$22:$B$67,Rangos!$C$22:$C$67,"") ->  | IW12: =+_xlfn.XLOOKUP(IW10,Rangos!$B$22:$B$67,Rangos!$C$22:$C$67,"") ->  | IX12: =+_xlfn.XLOOKUP(IX10,Rangos!$B$22:$B$67,Rangos!$C$22:$C$67,"") ->  | IY12: =+_xlfn.XLOOKUP(IY10,Rangos!$B$22:$B$67,Rangos!$C$22:$C$67,"") ->  | IZ12: =+_xlfn.XLOOKUP(IZ10,Rangos!$B$22:$B$67,Rangos!$C$22:$C$67,"") -> Feriado | JA12: =+_xlfn.XLOOKUP(JA10,Rangos!$B$22:$B$67,Rangos!$C$22:$C$67,"") ->  | JB12: =+_xlfn.XLOOKUP(JB10,Rangos!$B$22:$B$67,Rangos!$C$22:$C$67,"") ->  | JC12: =+_xlfn.XLOOKUP(JC10,Rangos!$B$22:$B$67,Rangos!$C$22:$C$67,"") ->  | JD12: =+_xlfn.XLOOKUP(JD10,Rangos!$B$22:$B$67,Rangos!$C$22:$C$67,"") ->  | JE12: =+_xlfn.XLOOKUP(JE10,Rangos!$B$22:$B$67,Rangos!$C$22:$C$67,"") ->  | JF12: =+_xlfn.XLOOKUP(JF10,Rangos!$B$22:$B$67,Rangos!$C$22:$C$67,"") ->  | JG12: =+_xlfn.XLOOKUP(JG10,Rangos!$B$22:$B$67,Rangos!$C$22:$C$67,"") ->  | JH12: =+_xlfn.XLOOKUP(JH10,Rangos!$B$22:$B$67,Rangos!$C$22:$C$67,"") ->  | JI12: =+_xlfn.XLOOKUP(JI10,Rangos!$B$22:$B$67,Rangos!$C$22:$C$67,"") ->  | JJ12: =+_xlfn.XLOOKUP(JJ10,Rangos!$B$22:$B$67,Rangos!$C$22:$C$67,"") ->  | JK12: =+_xlfn.XLOOKUP(JK10,Rangos!$B$22:$B$67,Rangos!$C$22:$C$67,"") ->  | JL12: =+_xlfn.XLOOKUP(JL10,Rangos!$B$22:$B$67,Rangos!$C$22:$C$67,"") ->  | JM12: =+_xlfn.XLOOKUP(JM10,Rangos!$B$22:$B$67,Rangos!$C$22:$C$67,"") ->  | JN12: =+_xlfn.XLOOKUP(JN10,Rangos!$B$22:$B$67,Rangos!$C$22:$C$67,"") ->  | JO12: =+_xlfn.XLOOKUP(JO10,Rangos!$B$22:$B$67,Rangos!$C$22:$C$67,"") ->  | JP12: =+_xlfn.XLOOKUP(JP10,Rangos!$B$22:$B$67,Rangos!$C$22:$C$67,"") ->  | JQ12: =+_xlfn.XLOOKUP(JQ10,Rangos!$B$22:$B$67,Rangos!$C$22:$C$67,"") ->  | JR12: =+_xlfn.XLOOKUP(JR10,Rangos!$B$22:$B$67,Rangos!$C$22:$C$67,"") ->  | JS12: =+_xlfn.XLOOKUP(JS10,Rangos!$B$22:$B$67,Rangos!$C$22:$C$67,"") ->  | JT12: =+_xlfn.XLOOKUP(JT10,Rangos!$B$22:$B$67,Rangos!$C$22:$C$67,"") ->  | JU12: =+_xlfn.XLOOKUP(JU10,Rangos!$B$22:$B$67,Rangos!$C$22:$C$67,"") ->  | JV12: =+_xlfn.XLOOKUP(JV10,Rangos!$B$22:$B$67,Rangos!$C$22:$C$67,"") ->  | JW12: =+_xlfn.XLOOKUP(JW10,Rangos!$B$22:$B$67,Rangos!$C$22:$C$67,"") ->  | JX12: =+_xlfn.XLOOKUP(JX10,Rangos!$B$22:$B$67,Rangos!$C$22:$C$67,"") ->  | JY12: =+_xlfn.XLOOKUP(JY10,Rangos!$B$22:$B$67,Rangos!$C$22:$C$67,"") ->  | JZ12: =+_xlfn.XLOOKUP(JZ10,Rangos!$B$22:$B$67,Rangos!$C$22:$C$67,"") ->  | KA12: =+_xlfn.XLOOKUP(KA10,Rangos!$B$22:$B$67,Rangos!$C$22:$C$67,"") ->  | KB12: =+_xlfn.XLOOKUP(KB10,Rangos!$B$22:$B$67,Rangos!$C$22:$C$67,"") -> Feriado | KC12: =+_xlfn.XLOOKUP(KC10,Rangos!$B$22:$B$67,Rangos!$C$22:$C$67,"") ->  | KD12: =+_xlfn.XLOOKUP(KD10,Rangos!$B$22:$B$67,Rangos!$C$22:$C$67,"") ->  | KE12: =+_xlfn.XLOOKUP(KE10,Rangos!$B$22:$B$67,Rangos!$C$22:$C$67,"") ->  | KF12: =+_xlfn.XLOOKUP(KF10,Rangos!$B$22:$B$67,Rangos!$C$22:$C$67,"") ->  | KG12: =+_xlfn.XLOOKUP(KG10,Rangos!$B$22:$B$67,Rangos!$C$22:$C$67,"") ->  | KH12: =+_xlfn.XLOOKUP(KH10,Rangos!$B$22:$B$67,Rangos!$C$22:$C$67,"") ->  | KI12: =+_xlfn.XLOOKUP(KI10,Rangos!$B$22:$B$67,Rangos!$C$22:$C$67,"") ->  | KJ12: =+_xlfn.XLOOKUP(KJ10,Rangos!$B$22:$B$67,Rangos!$C$22:$C$67,"") ->  | KK12: =+_xlfn.XLOOKUP(KK10,Rangos!$B$22:$B$67,Rangos!$C$22:$C$67,"") ->  | KL12: =+_xlfn.XLOOKUP(KL10,Rangos!$B$22:$B$67,Rangos!$C$22:$C$67,"") ->  | KM12: =+_xlfn.XLOOKUP(KM10,Rangos!$B$22:$B$67,Rangos!$C$22:$C$67,"") ->  | KN12: =+_xlfn.XLOOKUP(KN10,Rangos!$B$22:$B$67,Rangos!$C$22:$C$67,"") ->  | KO12: =+_xlfn.XLOOKUP(KO10,Rangos!$B$22:$B$67,Rangos!$C$22:$C$67,"") ->  | KP12: =+_xlfn.XLOOKUP(KP10,Rangos!$B$22:$B$67,Rangos!$C$22:$C$67,"") ->  | KQ12: =+_xlfn.XLOOKUP(KQ10,Rangos!$B$22:$B$67,Rangos!$C$22:$C$67,"") ->  | KR12: =+_xlfn.XLOOKUP(KR10,Rangos!$B$22:$B$67,Rangos!$C$22:$C$67,"") ->  | KS12: =+_xlfn.XLOOKUP(KS10,Rangos!$B$22:$B$67,Rangos!$C$22:$C$67,"") ->  | KT12: =+_xlfn.XLOOKUP(KT10,Rangos!$B$22:$B$67,Rangos!$C$22:$C$67,"") ->  | KU12: =+_xlfn.XLOOKUP(KU10,Rangos!$B$22:$B$67,Rangos!$C$22:$C$67,"") ->  | KV12: =+_xlfn.XLOOKUP(KV10,Rangos!$B$22:$B$67,Rangos!$C$22:$C$67,"") ->  | KW12: =+_xlfn.XLOOKUP(KW10,Rangos!$B$22:$B$67,Rangos!$C$22:$C$67,"") ->  | KX12: =+_xlfn.XLOOKUP(KX10,Rangos!$B$22:$B$67,Rangos!$C$22:$C$67,"") ->  | KY12: =+_xlfn.XLOOKUP(KY10,Rangos!$B$22:$B$67,Rangos!$C$22:$C$67,"") ->  | KZ12: =+_xlfn.XLOOKUP(KZ10,Rangos!$B$22:$B$67,Rangos!$C$22:$C$67,"") -> Feriado | LA12: =+_xlfn.XLOOKUP(LA10,Rangos!$B$22:$B$67,Rangos!$C$22:$C$67,"") ->  | LB12: =+_xlfn.XLOOKUP(LB10,Rangos!$B$22:$B$67,Rangos!$C$22:$C$67,"") ->  | LC12: =+_xlfn.XLOOKUP(LC10,Rangos!$B$22:$B$67,Rangos!$C$22:$C$67,"") ->  | LD12: =+_xlfn.XLOOKUP(LD10,Rangos!$B$22:$B$67,Rangos!$C$22:$C$67,"") ->  | LE12: =+_xlfn.XLOOKUP(LE10,Rangos!$B$22:$B$67,Rangos!$C$22:$C$67,"") ->  | LF12: =+_xlfn.XLOOKUP(LF10,Rangos!$B$22:$B$67,Rangos!$C$22:$C$67,"") ->  | LG12: =+_xlfn.XLOOKUP(LG10,Rangos!$B$22:$B$67,Rangos!$C$22:$C$67,"") ->  | LH12: =+_xlfn.XLOOKUP(LH10,Rangos!$B$22:$B$67,Rangos!$C$22:$C$67,"") ->  | LI12: =+_xlfn.XLOOKUP(LI10,Rangos!$B$22:$B$67,Rangos!$C$22:$C$67,"") ->  | LJ12: =+_xlfn.XLOOKUP(LJ10,Rangos!$B$22:$B$67,Rangos!$C$22:$C$67,"") ->  | LK12: =+_xlfn.XLOOKUP(LK10,Rangos!$B$22:$B$67,Rangos!$C$22:$C$67,"") ->  | LL12: =+_xlfn.XLOOKUP(LL10,Rangos!$B$22:$B$67,Rangos!$C$22:$C$67,"") ->  | LM12: =+_xlfn.XLOOKUP(LM10,Rangos!$B$22:$B$67,Rangos!$C$22:$C$67,"") ->  | LN12: =+_xlfn.XLOOKUP(LN10,Rangos!$B$22:$B$67,Rangos!$C$22:$C$67,"") ->  | LO12: =+_xlfn.XLOOKUP(LO10,Rangos!$B$22:$B$67,Rangos!$C$22:$C$67,"") ->  | LP12: =+_xlfn.XLOOKUP(LP10,Rangos!$B$22:$B$67,Rangos!$C$22:$C$67,"") ->  | LQ12: =+_xlfn.XLOOKUP(LQ10,Rangos!$B$22:$B$67,Rangos!$C$22:$C$67,"") ->  | LR12: =+_xlfn.XLOOKUP(LR10,Rangos!$B$22:$B$67,Rangos!$C$22:$C$67,"") ->  | LS12: =+_xlfn.XLOOKUP(LS10,Rangos!$B$22:$B$67,Rangos!$C$22:$C$67,"") ->  | LT12: =+_xlfn.XLOOKUP(LT10,Rangos!$B$22:$B$67,Rangos!$C$22:$C$67,"") ->  | LU12: =+_xlfn.XLOOKUP(LU10,Rangos!$B$22:$B$67,Rangos!$C$22:$C$67,"") ->  | LV12: =+_xlfn.XLOOKUP(LV10,Rangos!$B$22:$B$67,Rangos!$C$22:$C$67,"") ->  | LW12: =+_xlfn.XLOOKUP(LW10,Rangos!$B$22:$B$67,Rangos!$C$22:$C$67,"") ->  | LX12: =+_xlfn.XLOOKUP(LX10,Rangos!$B$22:$B$67,Rangos!$C$22:$C$67,"") ->  | LY12: =+_xlfn.XLOOKUP(LY10,Rangos!$B$22:$B$67,Rangos!$C$22:$C$67,"") ->  | LZ12: =+_xlfn.XLOOKUP(LZ10,Rangos!$B$22:$B$67,Rangos!$C$22:$C$67,"") ->  | MA12: =+_xlfn.XLOOKUP(MA10,Rangos!$B$22:$B$67,Rangos!$C$22:$C$67,"") ->  | MB12: =+_xlfn.XLOOKUP(MB10,Rangos!$B$22:$B$67,Rangos!$C$22:$C$67,"") ->  | MC12: =+_xlfn.XLOOKUP(MC10,Rangos!$B$22:$B$67,Rangos!$C$22:$C$67,"") ->  | MD12: =+_xlfn.XLOOKUP(MD10,Rangos!$B$22:$B$67,Rangos!$C$22:$C$67,"") ->  | ME12: =+_xlfn.XLOOKUP(ME10,Rangos!$B$22:$B$67,Rangos!$C$22:$C$67,"") ->  | MF12: =+_xlfn.XLOOKUP(MF10,Rangos!$B$22:$B$67,Rangos!$C$22:$C$67,"") ->  | MG12: =+_xlfn.XLOOKUP(MG10,Rangos!$B$22:$B$67,Rangos!$C$22:$C$67,"") ->  | MH12: =+_xlfn.XLOOKUP(MH10,Rangos!$B$22:$B$67,Rangos!$C$22:$C$67,"") ->  | MI12: =+_xlfn.XLOOKUP(MI10,Rangos!$B$22:$B$67,Rangos!$C$22:$C$67,"") ->  | MJ12: =+_xlfn.XLOOKUP(MJ10,Rangos!$B$22:$B$67,Rangos!$C$22:$C$67,"") ->  | MK12: =+_xlfn.XLOOKUP(MK10,Rangos!$B$22:$B$67,Rangos!$C$22:$C$67,"") ->  | ML12: =+_xlfn.XLOOKUP(ML10,Rangos!$B$22:$B$67,Rangos!$C$22:$C$67,"") ->  | MM12: =+_xlfn.XLOOKUP(MM10,Rangos!$B$22:$B$67,Rangos!$C$22:$C$67,"") ->  | MN12: =+_xlfn.XLOOKUP(MN10,Rangos!$B$22:$B$67,Rangos!$C$22:$C$67,"") ->  | MO12: =+_xlfn.XLOOKUP(MO10,Rangos!$B$22:$B$67,Rangos!$C$22:$C$67,"") ->  | MP12: =+_xlfn.XLOOKUP(MP10,Rangos!$B$22:$B$67,Rangos!$C$22:$C$67,"") ->  | MQ12: =+_xlfn.XLOOKUP(MQ10,Rangos!$B$22:$B$67,Rangos!$C$22:$C$67,"") ->  | MR12: =+_xlfn.XLOOKUP(MR10,Rangos!$B$22:$B$67,Rangos!$C$22:$C$67,"") ->  | MS12: =+_xlfn.XLOOKUP(MS10,Rangos!$B$22:$B$67,Rangos!$C$22:$C$67,"") ->  | MT12: =+_xlfn.XLOOKUP(MT10,Rangos!$B$22:$B$67,Rangos!$C$22:$C$67,"") ->  | MU12: =+_xlfn.XLOOKUP(MU10,Rangos!$B$22:$B$67,Rangos!$C$22:$C$67,"") ->  | MV12: =+_xlfn.XLOOKUP(MV10,Rangos!$B$22:$B$67,Rangos!$C$22:$C$67,"") ->  | MW12: =+_xlfn.XLOOKUP(MW10,Rangos!$B$22:$B$67,Rangos!$C$22:$C$67,"") ->  | MX12: =+_xlfn.XLOOKUP(MX10,Rangos!$B$22:$B$67,Rangos!$C$22:$C$67,"") ->  | MY12: =+_xlfn.XLOOKUP(MY10,Rangos!$B$22:$B$67,Rangos!$C$22:$C$67,"") ->  | MZ12: =+_xlfn.XLOOKUP(MZ10,Rangos!$B$22:$B$67,Rangos!$C$22:$C$67,"") ->  | NA12: =+_xlfn.XLOOKUP(NA10,Rangos!$B$22:$B$67,Rangos!$C$22:$C$67,"") ->  | NB12: =+_xlfn.XLOOKUP(NB10,Rangos!$B$22:$B$67,Rangos!$C$22:$C$67,"") ->  | NC12: =+_xlfn.XLOOKUP(NC10,Rangos!$B$22:$B$67,Rangos!$C$22:$C$67,"") ->  | ND12: =+_xlfn.XLOOKUP(ND10,Rangos!$B$22:$B$67,Rangos!$C$22:$C$67,"") ->  | NE12: =+_xlfn.XLOOKUP(NE10,Rangos!$B$22:$B$67,Rangos!$C$22:$C$67,"") ->  | NF12: =+_xlfn.XLOOKUP(NF10,Rangos!$B$22:$B$67,Rangos!$C$22:$C$67,"") ->  | NG12: =+_xlfn.XLOOKUP(NG10,Rangos!$B$22:$B$67,Rangos!$C$22:$C$67,"") ->  | NH12: =+_xlfn.XLOOKUP(NH10,Rangos!$B$22:$B$67,Rangos!$C$22:$C$67,"") ->  | NI12: =+_xlfn.XLOOKUP(NI10,Rangos!$B$22:$B$67,Rangos!$C$22:$C$67,"") ->  | NJ12: =+_xlfn.XLOOKUP(NJ10,Rangos!$B$22:$B$67,Rangos!$C$22:$C$67,"") ->  | NK12: =+_xlfn.XLOOKUP(NK10,Rangos!$B$22:$B$67,Rangos!$C$22:$C$67,"") ->  | NL12: =+_xlfn.XLOOKUP(NL10,Rangos!$B$22:$B$67,Rangos!$C$22:$C$67,"") ->  | NM12: =+_xlfn.XLOOKUP(NM10,Rangos!$B$22:$B$67,Rangos!$C$22:$C$67,"") ->  | NN12: =+_xlfn.XLOOKUP(NN10,Rangos!$B$22:$B$67,Rangos!$C$22:$C$67,"") ->  | NO12: =+_xlfn.XLOOKUP(NO10,Rangos!$B$22:$B$67,Rangos!$C$22:$C$67,"") ->  | NP12: =+_xlfn.XLOOKUP(NP10,Rangos!$B$22:$B$67,Rangos!$C$22:$C$67,"") ->  | NQ12: =+_xlfn.XLOOKUP(NQ10,Rangos!$B$22:$B$67,Rangos!$C$22:$C$67,"") ->  | NR12: =+_xlfn.XLOOKUP(NR10,Rangos!$B$22:$B$67,Rangos!$C$22:$C$67,"") ->  | NS12: =+_xlfn.XLOOKUP(NS10,Rangos!$B$22:$B$67,Rangos!$C$22:$C$67,"") ->  | NT12: =+_xlfn.XLOOKUP(NT10,Rangos!$B$22:$B$67,Rangos!$C$22:$C$67,"") ->  | NU12: =+_xlfn.XLOOKUP(NU10,Rangos!$B$22:$B$67,Rangos!$C$22:$C$67,"") ->  | NV12: =+_xlfn.XLOOKUP(NV10,Rangos!$B$22:$B$67,Rangos!$C$22:$C$67,"") ->  | NW12: =+_xlfn.XLOOKUP(NW10,Rangos!$B$22:$B$67,Rangos!$C$22:$C$67,"") ->  | NX12: =+_xlfn.XLOOKUP(NX10,Rangos!$B$22:$B$67,Rangos!$C$22:$C$67,"") ->  | NY12: =+_xlfn.XLOOKUP(NY10,Rangos!$B$22:$B$67,Rangos!$C$22:$C$67,"") -> Feriado | NZ12: =+_xlfn.XLOOKUP(NZ10,Rangos!$B$22:$B$67,Rangos!$C$22:$C$67,"") ->  | OA12: =+_xlfn.XLOOKUP(OA10,Rangos!$B$22:$B$67,Rangos!$C$22:$C$67,"") ->  | OB12: =+_xlfn.XLOOKUP(OB10,Rangos!$B$22:$B$67,Rangos!$C$22:$C$67,"") ->  | OC12: =+_xlfn.XLOOKUP(OC10,Rangos!$B$22:$B$67,Rangos!$C$22:$C$67,"") ->  | OD12: =+_xlfn.XLOOKUP(OD10,Rangos!$B$22:$B$67,Rangos!$C$22:$C$67,"") ->  | OE12: =+_xlfn.XLOOKUP(OE10,Rangos!$B$22:$B$67,Rangos!$C$22:$C$67,"") ->  | OF12: =+_xlfn.XLOOKUP(OF10,Rangos!$B$22:$B$67,Rangos!$C$22:$C$67,"") ->  | OG12: =+_xlfn.XLOOKUP(OG10,Rangos!$B$22:$B$67,Rangos!$C$22:$C$67,"") ->  | OH12: =+_xlfn.XLOOKUP(OH10,Rangos!$B$22:$B$67,Rangos!$C$22:$C$67,"") ->  | OI12: =+_xlfn.XLOOKUP(OI10,Rangos!$B$22:$B$67,Rangos!$C$22:$C$67,"") ->  | OJ12: =+_xlfn.XLOOKUP(OJ10,Rangos!$B$22:$B$67,Rangos!$C$22:$C$67,"") ->  | OK12: =+_xlfn.XLOOKUP(OK10,Rangos!$B$22:$B$67,Rangos!$C$22:$C$67,"") ->  | OL12: =+_xlfn.XLOOKUP(OL10,Rangos!$B$22:$B$67,Rangos!$C$22:$C$67,"") ->  | OM12: =+_xlfn.XLOOKUP(OM10,Rangos!$B$22:$B$67,Rangos!$C$22:$C$67,"") ->  | ON12: =+_xlfn.XLOOKUP(ON10,Rangos!$B$22:$B$67,Rangos!$C$22:$C$67,"") ->  | OO12: =+_xlfn.XLOOKUP(OO10,Rangos!$B$22:$B$67,Rangos!$C$22:$C$67,"") ->  | OP12: =+_xlfn.XLOOKUP(OP10,Rangos!$B$22:$B$67,Rangos!$C$22:$C$67,"") ->  | OQ12: =+_xlfn.XLOOKUP(OQ10,Rangos!$B$22:$B$67,Rangos!$C$22:$C$67,"") ->  | OR12: =+_xlfn.XLOOKUP(OR10,Rangos!$B$22:$B$67,Rangos!$C$22:$C$67,"") ->  | OS12: =+_xlfn.XLOOKUP(OS10,Rangos!$B$22:$B$67,Rangos!$C$22:$C$67,"") ->  | OT12: =+_xlfn.XLOOKUP(OT10,Rangos!$B$22:$B$67,Rangos!$C$22:$C$67,"") ->  | OU12: =+_xlfn.XLOOKUP(OU10,Rangos!$B$22:$B$67,Rangos!$C$22:$C$67,"") ->  | OV12: =+_xlfn.XLOOKUP(OV10,Rangos!$B$22:$B$67,Rangos!$C$22:$C$67,"") ->  | OW12: =+_xlfn.XLOOKUP(OW10,Rangos!$B$22:$B$67,Rangos!$C$22:$C$67,"") ->  | OX12: =+_xlfn.XLOOKUP(OX10,Rangos!$B$22:$B$67,Rangos!$C$22:$C$67,"") ->  | OY12: =+_xlfn.XLOOKUP(OY10,Rangos!$B$22:$B$67,Rangos!$C$22:$C$67,"") ->  | OZ12: =+_xlfn.XLOOKUP(OZ10,Rangos!$B$22:$B$67,Rangos!$C$22:$C$67,"") ->  | PA12: =+_xlfn.XLOOKUP(PA10,Rangos!$B$22:$B$67,Rangos!$C$22:$C$67,"") ->  | PB12: =+_xlfn.XLOOKUP(PB10,Rangos!$B$22:$B$67,Rangos!$C$22:$C$67,"") ->  | PC12: =+_xlfn.XLOOKUP(PC10,Rangos!$B$22:$B$67,Rangos!$C$22:$C$67,"") ->  | PD12: =+_xlfn.XLOOKUP(PD10,Rangos!$B$22:$B$67,Rangos!$C$22:$C$67,"") ->  | PE12: =+_xlfn.XLOOKUP(PE10,Rangos!$B$22:$B$67,Rangos!$C$22:$C$67,"") ->  | PF12: =+_xlfn.XLOOKUP(PF10,Rangos!$B$22:$B$67,Rangos!$C$22:$C$67,"") ->  | PG12: =+_xlfn.XLOOKUP(PG10,Rangos!$B$22:$B$67,Rangos!$C$22:$C$67,"") ->  | PH12: =+_xlfn.XLOOKUP(PH10,Rangos!$B$22:$B$67,Rangos!$C$22:$C$67,"") ->  | PI12: =+_xlfn.XLOOKUP(PI10,Rangos!$B$22:$B$67,Rangos!$C$22:$C$67,"") ->  | PJ12: =+_xlfn.XLOOKUP(PJ10,Rangos!$B$22:$B$67,Rangos!$C$22:$C$67,"") ->  | PK12: =+_xlfn.XLOOKUP(PK10,Rangos!$B$22:$B$67,Rangos!$C$22:$C$67,"") ->  | PL12: =+_xlfn.XLOOKUP(PL10,Rangos!$B$22:$B$67,Rangos!$C$22:$C$67,"") ->  | PM12: =+_xlfn.XLOOKUP(PM10,Rangos!$B$22:$B$67,Rangos!$C$22:$C$67,"") ->  | PN12: =+_xlfn.XLOOKUP(PN10,Rangos!$B$22:$B$67,Rangos!$C$22:$C$67,"") ->  | PO12: =+_xlfn.XLOOKUP(PO10,Rangos!$B$22:$B$67,Rangos!$C$22:$C$67,"") ->  | PP12: =+_xlfn.XLOOKUP(PP10,Rangos!$B$22:$B$67,Rangos!$C$22:$C$67,"") ->  | PQ12: =+_xlfn.XLOOKUP(PQ10,Rangos!$B$22:$B$67,Rangos!$C$22:$C$67,"") ->  | PR12: =+_xlfn.XLOOKUP(PR10,Rangos!$B$22:$B$67,Rangos!$C$22:$C$67,"") ->  | PS12: =+_xlfn.XLOOKUP(PS10,Rangos!$B$22:$B$67,Rangos!$C$22:$C$67,"") ->  | PT12: =+_xlfn.XLOOKUP(PT10,Rangos!$B$22:$B$67,Rangos!$C$22:$C$67,"") ->  | PU12: =+_xlfn.XLOOKUP(PU10,Rangos!$B$22:$B$67,Rangos!$C$22:$C$67,"") ->  | PV12: =+_xlfn.XLOOKUP(PV10,Rangos!$B$22:$B$67,Rangos!$C$22:$C$67,"") ->  | PW12: =+_xlfn.XLOOKUP(PW10,Rangos!$B$22:$B$67,Rangos!$C$22:$C$67,"") ->  | PX12: =+_xlfn.XLOOKUP(PX10,Rangos!$B$22:$B$67,Rangos!$C$22:$C$67,"") ->  | PY12: =+_xlfn.XLOOKUP(PY10,Rangos!$B$22:$B$67,Rangos!$C$22:$C$67,"") ->  | PZ12: =+_xlfn.XLOOKUP(PZ10,Rangos!$B$22:$B$67,Rangos!$C$22:$C$67,"") ->  | QA12: =+_xlfn.XLOOKUP(QA10,Rangos!$B$22:$B$67,Rangos!$C$22:$C$67,"") ->  | QB12: =+_xlfn.XLOOKUP(QB10,Rangos!$B$22:$B$67,Rangos!$C$22:$C$67,"") ->  | QC12: =+_xlfn.XLOOKUP(QC10,Rangos!$B$22:$B$67,Rangos!$C$22:$C$67,"") ->  | QD12: =+_xlfn.XLOOKUP(QD10,Rangos!$B$22:$B$67,Rangos!$C$22:$C$67,"") ->  | QE12: =+_xlfn.XLOOKUP(QE10,Rangos!$B$22:$B$67,Rangos!$C$22:$C$67,"") ->  | QF12: =+_xlfn.XLOOKUP(QF10,Rangos!$B$22:$B$67,Rangos!$C$22:$C$67,"") ->  | QG12: =+_xlfn.XLOOKUP(QG10,Rangos!$B$22:$B$67,Rangos!$C$22:$C$67,"") -> Feriado | QH12: =+_xlfn.XLOOKUP(QH10,Rangos!$B$22:$B$67,Rangos!$C$22:$C$67,"") ->  | QI12: =+_xlfn.XLOOKUP(QI10,Rangos!$B$22:$B$67,Rangos!$C$22:$C$67,"") ->  | QJ12: =+_xlfn.XLOOKUP(QJ10,Rangos!$B$22:$B$67,Rangos!$C$22:$C$67,"") ->  | QK12: =+_xlfn.XLOOKUP(QK10,Rangos!$B$22:$B$67,Rangos!$C$22:$C$67,"") ->  | QL12: =+_xlfn.XLOOKUP(QL10,Rangos!$B$22:$B$67,Rangos!$C$22:$C$67,"") ->  | QM12: =+_xlfn.XLOOKUP(QM10,Rangos!$B$22:$B$67,Rangos!$C$22:$C$67,"") ->  | QN12: =+_xlfn.XLOOKUP(QN10,Rangos!$B$22:$B$67,Rangos!$C$22:$C$67,"") ->  | QO12: =+_xlfn.XLOOKUP(QO10,Rangos!$B$22:$B$67,Rangos!$C$22:$C$67,"") ->  | QP12: =+_xlfn.XLOOKUP(QP10,Rangos!$B$22:$B$67,Rangos!$C$22:$C$67,"") ->  | QQ12: =+_xlfn.XLOOKUP(QQ10,Rangos!$B$22:$B$67,Rangos!$C$22:$C$67,"") ->  | QR12: =+_xlfn.XLOOKUP(QR10,Rangos!$B$22:$B$67,Rangos!$C$22:$C$67,"") ->  | QS12: =+_xlfn.XLOOKUP(QS10,Rangos!$B$22:$B$67,Rangos!$C$22:$C$67,"") ->  | QT12: =+_xlfn.XLOOKUP(QT10,Rangos!$B$22:$B$67,Rangos!$C$22:$C$67,"") ->  | QU12: =+_xlfn.XLOOKUP(QU10,Rangos!$B$22:$B$67,Rangos!$C$22:$C$67,"") ->  | QV12: =+_xlfn.XLOOKUP(QV10,Rangos!$B$22:$B$67,Rangos!$C$22:$C$67,"") ->  | QW12: =+_xlfn.XLOOKUP(QW10,Rangos!$B$22:$B$67,Rangos!$C$22:$C$67,"") ->  | QX12: =+_xlfn.XLOOKUP(QX10,Rangos!$B$22:$B$67,Rangos!$C$22:$C$67,"") ->  | QY12: =+_xlfn.XLOOKUP(QY10,Rangos!$B$22:$B$67,Rangos!$C$22:$C$67,"") ->  | QZ12: =+_xlfn.XLOOKUP(QZ10,Rangos!$B$22:$B$67,Rangos!$C$22:$C$67,"") ->  | RA12: =+_xlfn.XLOOKUP(RA10,Rangos!$B$22:$B$67,Rangos!$C$22:$C$67,"") ->  | RB12: =+_xlfn.XLOOKUP(RB10,Rangos!$B$22:$B$67,Rangos!$C$22:$C$67,"") ->  | RC12: =+_xlfn.XLOOKUP(RC10,Rangos!$B$22:$B$67,Rangos!$C$22:$C$67,"") ->  | RD12: =+_xlfn.XLOOKUP(RD10,Rangos!$B$22:$B$67,Rangos!$C$22:$C$67,"") ->  | RE12: =+_xlfn.XLOOKUP(RE10,Rangos!$B$22:$B$67,Rangos!$C$22:$C$67,"") -> Feriado | RF12: =+_xlfn.XLOOKUP(RF10,Rangos!$B$22:$B$67,Rangos!$C$22:$C$67,"") -> Feriado | RG12: =+_xlfn.XLOOKUP(RG10,Rangos!$B$22:$B$67,Rangos!$C$22:$C$67,"") ->  | RH12: =+_xlfn.XLOOKUP(RH10,Rangos!$B$22:$B$67,Rangos!$C$22:$C$67,"") ->  | RI12: =+_xlfn.XLOOKUP(RI10,Rangos!$B$22:$B$67,Rangos!$C$22:$C$67,"") ->  | RJ12: =+_xlfn.XLOOKUP(RJ10,Rangos!$B$22:$B$67,Rangos!$C$22:$C$67,"") ->  | RK12: =+_xlfn.XLOOKUP(RK10,Rangos!$B$22:$B$67,Rangos!$C$22:$C$67,"") ->  | RL12: =+_xlfn.XLOOKUP(RL10,Rangos!$B$22:$B$67,Rangos!$C$22:$C$67,"") ->  | RM12: =+_xlfn.XLOOKUP(RM10,Rangos!$B$22:$B$67,Rangos!$C$22:$C$67,"") ->  | RN12: =+_xlfn.XLOOKUP(RN10,Rangos!$B$22:$B$67,Rangos!$C$22:$C$67,"") ->  | RO12: =+_xlfn.XLOOKUP(RO10,Rangos!$B$22:$B$67,Rangos!$C$22:$C$67,"") ->  | RP12: =+_xlfn.XLOOKUP(RP10,Rangos!$B$22:$B$67,Rangos!$C$22:$C$67,"") ->  | RQ12: =+_xlfn.XLOOKUP(RQ10,Rangos!$B$22:$B$67,Rangos!$C$22:$C$67,"") ->  | RR12: =+_xlfn.XLOOKUP(RR10,Rangos!$B$22:$B$67,Rangos!$C$22:$C$67,"") ->  | RS12: =+_xlfn.XLOOKUP(RS10,Rangos!$B$22:$B$67,Rangos!$C$22:$C$67,"") ->  | RT12: =+_xlfn.XLOOKUP(RT10,Rangos!$B$22:$B$67,Rangos!$C$22:$C$67,"") ->  | RU12: =+_xlfn.XLOOKUP(RU10,Rangos!$B$22:$B$67,Rangos!$C$22:$C$67,"") ->  | RV12: =+_xlfn.XLOOKUP(RV10,Rangos!$B$22:$B$67,Rangos!$C$22:$C$67,"") ->  | RW12: =+_xlfn.XLOOKUP(RW10,Rangos!$B$22:$B$67,Rangos!$C$22:$C$67,"") ->  | RX12: =+_xlfn.XLOOKUP(RX10,Rangos!$B$22:$B$67,Rangos!$C$22:$C$67,"") ->  | RY12: =+_xlfn.XLOOKUP(RY10,Rangos!$B$22:$B$67,Rangos!$C$22:$C$67,"") ->  | RZ12: =+_xlfn.XLOOKUP(RZ10,Rangos!$B$22:$B$67,Rangos!$C$22:$C$67,"") ->  | SA12: =+_xlfn.XLOOKUP(SA10,Rangos!$B$22:$B$67,Rangos!$C$22:$C$67,"") ->  | SB12: =+_xlfn.XLOOKUP(SB10,Rangos!$B$22:$B$67,Rangos!$C$22:$C$67,"") ->  | SC12: =+_xlfn.XLOOKUP(SC10,Rangos!$B$22:$B$67,Rangos!$C$22:$C$67,"") ->  | SD12: =+_xlfn.XLOOKUP(SD10,Rangos!$B$22:$B$67,Rangos!$C$22:$C$67,"") ->  | SE12: =+_xlfn.XLOOKUP(SE10,Rangos!$B$22:$B$67,Rangos!$C$22:$C$67,"") ->  | SF12: =+_xlfn.XLOOKUP(SF10,Rangos!$B$22:$B$67,Rangos!$C$22:$C$67,"") ->  | SG12: =+_xlfn.XLOOKUP(SG10,Rangos!$B$22:$B$67,Rangos!$C$22:$C$67,"") ->  | SH12: =+_xlfn.XLOOKUP(SH10,Rangos!$B$22:$B$67,Rangos!$C$22:$C$67,"") ->  | SI12: =+_xlfn.XLOOKUP(SI10,Rangos!$B$22:$B$67,Rangos!$C$22:$C$67,"") ->  | SJ12: =+_xlfn.XLOOKUP(SJ10,Rangos!$B$22:$B$67,Rangos!$C$22:$C$67,"") ->  | SK12: =+_xlfn.XLOOKUP(SK10,Rangos!$B$22:$B$67,Rangos!$C$22:$C$67,"") ->  | SL12: =+_xlfn.XLOOKUP(SL10,Rangos!$B$22:$B$67,Rangos!$C$22:$C$67,"") ->  | SM12: =+_xlfn.XLOOKUP(SM10,Rangos!$B$22:$B$67,Rangos!$C$22:$C$67,"") ->  | SN12: =+_xlfn.XLOOKUP(SN10,Rangos!$B$22:$B$67,Rangos!$C$22:$C$67,"") ->  | SO12: =+_xlfn.XLOOKUP(SO10,Rangos!$B$22:$B$67,Rangos!$C$22:$C$67,"") ->  | SP12: =+_xlfn.XLOOKUP(SP10,Rangos!$B$22:$B$67,Rangos!$C$22:$C$67,"") ->  | SQ12: =+_xlfn.XLOOKUP(SQ10,Rangos!$B$22:$B$67,Rangos!$C$22:$C$67,"") ->  | SR12: =+_xlfn.XLOOKUP(SR10,Rangos!$B$22:$B$67,Rangos!$C$22:$C$67,"") ->  | SS12: =+_xlfn.XLOOKUP(SS10,Rangos!$B$22:$B$67,Rangos!$C$22:$C$67,"") ->  | ST12: =+_xlfn.XLOOKUP(ST10,Rangos!$B$22:$B$67,Rangos!$C$22:$C$67,"") ->  | SU12: =+_xlfn.XLOOKUP(SU10,Rangos!$B$22:$B$67,Rangos!$C$22:$C$67,"") ->  | SV12: =+_xlfn.XLOOKUP(SV10,Rangos!$B$22:$B$67,Rangos!$C$22:$C$67,"") ->  | SW12: =+_xlfn.XLOOKUP(SW10,Rangos!$B$22:$B$67,Rangos!$C$22:$C$67,"") ->  | SX12: =+_xlfn.XLOOKUP(SX10,Rangos!$B$22:$B$67,Rangos!$C$22:$C$67,"") ->  | SY12: =+_xlfn.XLOOKUP(SY10,Rangos!$B$22:$B$67,Rangos!$C$22:$C$67,"") ->  | SZ12: =+_xlfn.XLOOKUP(SZ10,Rangos!$B$22:$B$67,Rangos!$C$22:$C$67,"") ->  | TA12: =+_xlfn.XLOOKUP(TA10,Rangos!$B$22:$B$67,Rangos!$C$22:$C$67,"") ->  | TB12: =+_xlfn.XLOOKUP(TB10,Rangos!$B$22:$B$67,Rangos!$C$22:$C$67,"") ->  | TC12: =+_xlfn.XLOOKUP(TC10,Rangos!$B$22:$B$67,Rangos!$C$22:$C$67,"") ->  | TD12: =+_xlfn.XLOOKUP(TD10,Rangos!$B$22:$B$67,Rangos!$C$22:$C$67,"") ->  | TE12: =+_xlfn.XLOOKUP(TE10,Rangos!$B$22:$B$67,Rangos!$C$22:$C$67,"") ->  | TF12: =+_xlfn.XLOOKUP(TF10,Rangos!$B$22:$B$67,Rangos!$C$22:$C$67,"") -> Feriado | TG12: =+_xlfn.XLOOKUP(TG10,Rangos!$B$22:$B$67,Rangos!$C$22:$C$67,"") ->  | TH12: =+_xlfn.XLOOKUP(TH10,Rangos!$B$22:$B$67,Rangos!$C$22:$C$67,"") ->  | TI12: =+_xlfn.XLOOKUP(TI10,Rangos!$B$22:$B$67,Rangos!$C$22:$C$67,"") ->  | TJ12: =+_xlfn.XLOOKUP(TJ10,Rangos!$B$22:$B$67,Rangos!$C$22:$C$67,"") ->  | TK12: =+_xlfn.XLOOKUP(TK10,Rangos!$B$22:$B$67,Rangos!$C$22:$C$67,"") ->  | TL12: =+_xlfn.XLOOKUP(TL10,Rangos!$B$22:$B$67,Rangos!$C$22:$C$67,"") -> Feriado | TM12: =+_xlfn.XLOOKUP(TM10,Rangos!$B$22:$B$67,Rangos!$C$22:$C$67,"") -> Feriado | TN12: =+_xlfn.XLOOKUP(TN10,Rangos!$B$22:$B$67,Rangos!$C$22:$C$67,"") ->  | TO12: =+_xlfn.XLOOKUP(TO10,Rangos!$B$22:$B$67,Rangos!$C$22:$C$67,"") ->  | TP12: =+_xlfn.XLOOKUP(TP10,Rangos!$B$22:$B$67,Rangos!$C$22:$C$67,"") ->  | TQ12: =+_xlfn.XLOOKUP(TQ10,Rangos!$B$22:$B$67,Rangos!$C$22:$C$67,"") ->  | TR12: =+_xlfn.XLOOKUP(TR10,Rangos!$B$22:$B$67,Rangos!$C$22:$C$67,"") ->  | TS12: =+_xlfn.XLOOKUP(TS10,Rangos!$B$22:$B$67,Rangos!$C$22:$C$67,"") ->  | TT12: =+_xlfn.XLOOKUP(TT10,Rangos!$B$22:$B$67,Rangos!$C$22:$C$67,"") ->  | TU12: =+_xlfn.XLOOKUP(TU10,Rangos!$B$22:$B$67,Rangos!$C$22:$C$67,"") ->  | TV12: =+_xlfn.XLOOKUP(TV10,Rangos!$B$22:$B$67,Rangos!$C$22:$C$67,"") ->  | TW12: =+_xlfn.XLOOKUP(TW10,Rangos!$B$22:$B$67,Rangos!$C$22:$C$67,"") ->  | TX12: =+_xlfn.XLOOKUP(TX10,Rangos!$B$22:$B$67,Rangos!$C$22:$C$67,"") ->  | TY12: =+_xlfn.XLOOKUP(TY10,Rangos!$B$22:$B$67,Rangos!$C$22:$C$67,"") ->  | TZ12: =+_xlfn.XLOOKUP(TZ10,Rangos!$B$22:$B$67,Rangos!$C$22:$C$67,"") ->  | UA12: =+_xlfn.XLOOKUP(UA10,Rangos!$B$22:$B$67,Rangos!$C$22:$C$67,"") ->  | UB12: =+_xlfn.XLOOKUP(UB10,Rangos!$B$22:$B$67,Rangos!$C$22:$C$67,"") ->  | UC12: =+_xlfn.XLOOKUP(UC10,Rangos!$B$22:$B$67,Rangos!$C$22:$C$67,"") ->  | UD12: =+_xlfn.XLOOKUP(UD10,Rangos!$B$22:$B$67,Rangos!$C$22:$C$67,"") ->  | UE12: =+_xlfn.XLOOKUP(UE10,Rangos!$B$22:$B$67,Rangos!$C$22:$C$67,"") ->  | UF12: =+_xlfn.XLOOKUP(UF10,Rangos!$B$22:$B$67,Rangos!$C$22:$C$67,"") ->  | UG12: =+_xlfn.XLOOKUP(UG10,Rangos!$B$22:$B$67,Rangos!$C$22:$C$67,"") ->  | UH12: =+_xlfn.XLOOKUP(UH10,Rangos!$B$22:$B$67,Rangos!$C$22:$C$67,"") ->  | UI12: =+_xlfn.XLOOKUP(UI10,Rangos!$B$22:$B$67,Rangos!$C$22:$C$67,"") ->  | UJ12: =+_xlfn.XLOOKUP(UJ10,Rangos!$B$22:$B$67,Rangos!$C$22:$C$67,"") ->  | UK12: =+_xlfn.XLOOKUP(UK10,Rangos!$B$22:$B$67,Rangos!$C$22:$C$67,"") ->  | UL12: =+_xlfn.XLOOKUP(UL10,Rangos!$B$22:$B$67,Rangos!$C$22:$C$67,"") ->  | UM12: =+_xlfn.XLOOKUP(UM10,Rangos!$B$22:$B$67,Rangos!$C$22:$C$67,"") ->  | UN12: =+_xlfn.XLOOKUP(UN10,Rangos!$B$22:$B$67,Rangos!$C$22:$C$67,"") ->  | UO12: =+_xlfn.XLOOKUP(UO10,Rangos!$B$22:$B$67,Rangos!$C$22:$C$67,"") ->  | UP12: =+_xlfn.XLOOKUP(UP10,Rangos!$B$22:$B$67,Rangos!$C$22:$C$67,"") ->  | UQ12: =+_xlfn.XLOOKUP(UQ10,Rangos!$B$22:$B$67,Rangos!$C$22:$C$67,"") ->  | UR12: =+_xlfn.XLOOKUP(UR10,Rangos!$B$22:$B$67,Rangos!$C$22:$C$67,"") ->  | US12: =+_xlfn.XLOOKUP(US10,Rangos!$B$22:$B$67,Rangos!$C$22:$C$67,"") ->  | UT12: =+_xlfn.XLOOKUP(UT10,Rangos!$B$22:$B$67,Rangos!$C$22:$C$67,"") ->  | UU12: =+_xlfn.XLOOKUP(UU10,Rangos!$B$22:$B$67,Rangos!$C$22:$C$67,"") ->  | UV12: =+_xlfn.XLOOKUP(UV10,Rangos!$B$22:$B$67,Rangos!$C$22:$C$67,"") ->  | UW12: =+_xlfn.XLOOKUP(UW10,Rangos!$B$22:$B$67,Rangos!$C$22:$C$67,"") ->  | UX12: =+_xlfn.XLOOKUP(UX10,Rangos!$B$22:$B$67,Rangos!$C$22:$C$67,"") ->  | UY12: =+_xlfn.XLOOKUP(UY10,Rangos!$B$22:$B$67,Rangos!$C$22:$C$67,"") -> Feriado | UZ12: =+_xlfn.XLOOKUP(UZ10,Rangos!$B$22:$B$67,Rangos!$C$22:$C$67,"") -> Feriado | VA12: =+_xlfn.XLOOKUP(VA10,Rangos!$B$22:$B$67,Rangos!$C$22:$C$67,"") ->  | VB12: =+_xlfn.XLOOKUP(VB10,Rangos!$B$22:$B$67,Rangos!$C$22:$C$67,"") ->  | VC12: =+_xlfn.XLOOKUP(VC10,Rangos!$B$22:$B$67,Rangos!$C$22:$C$67,"") ->  | VD12: =+_xlfn.XLOOKUP(VD10,Rangos!$B$22:$B$67,Rangos!$C$22:$C$67,"") ->  | VE12: =+_xlfn.XLOOKUP(VE10,Rangos!$B$22:$B$67,Rangos!$C$22:$C$67,"") ->  | VF12: =+_xlfn.XLOOKUP(VF10,Rangos!$B$22:$B$67,Rangos!$C$22:$C$67,"") ->  | VG12: =+_xlfn.XLOOKUP(VG10,Rangos!$B$22:$B$67,Rangos!$C$22:$C$67,"") ->  | VH12: =+_xlfn.XLOOKUP(VH10,Rangos!$B$22:$B$67,Rangos!$C$22:$C$67,"") ->  | VI12: =+_xlfn.XLOOKUP(VI10,Rangos!$B$22:$B$67,Rangos!$C$22:$C$67,"") ->  | VJ12: =+_xlfn.XLOOKUP(VJ10,Rangos!$B$22:$B$67,Rangos!$C$22:$C$67,"") ->  | VK12: =+_xlfn.XLOOKUP(VK10,Rangos!$B$22:$B$67,Rangos!$C$22:$C$67,"") ->  | VL12: =+_xlfn.XLOOKUP(VL10,Rangos!$B$22:$B$67,Rangos!$C$22:$C$67,"") ->  | VM12: =+_xlfn.XLOOKUP(VM10,Rangos!$B$22:$B$67,Rangos!$C$22:$C$67,"") ->  | VN12: =+_xlfn.XLOOKUP(VN10,Rangos!$B$22:$B$67,Rangos!$C$22:$C$67,"") ->  | VO12: =+_xlfn.XLOOKUP(VO10,Rangos!$B$22:$B$67,Rangos!$C$22:$C$67,"") ->  | VP12: =+_xlfn.XLOOKUP(VP10,Rangos!$B$22:$B$67,Rangos!$C$22:$C$67,"") ->  | VQ12: =+_xlfn.XLOOKUP(VQ10,Rangos!$B$22:$B$67,Rangos!$C$22:$C$67,"") ->  | VR12: =+_xlfn.XLOOKUP(VR10,Rangos!$B$22:$B$67,Rangos!$C$22:$C$67,"") ->  | VS12: =+_xlfn.XLOOKUP(VS10,Rangos!$B$22:$B$67,Rangos!$C$22:$C$67,"") ->  | VT12: =+_xlfn.XLOOKUP(VT10,Rangos!$B$22:$B$67,Rangos!$C$22:$C$67,"") ->  | VU12: =+_xlfn.XLOOKUP(VU10,Rangos!$B$22:$B$67,Rangos!$C$22:$C$67,"") ->  | VV12: =+_xlfn.XLOOKUP(VV10,Rangos!$B$22:$B$67,Rangos!$C$22:$C$67,"") ->  | VW12: =+_xlfn.XLOOKUP(VW10,Rangos!$B$22:$B$67,Rangos!$C$22:$C$67,"") ->  | VX12: =+_xlfn.XLOOKUP(VX10,Rangos!$B$22:$B$67,Rangos!$C$22:$C$67,"") ->  | VY12: =+_xlfn.XLOOKUP(VY10,Rangos!$B$22:$B$67,Rangos!$C$22:$C$67,"") ->  | VZ12: =+_xlfn.XLOOKUP(VZ10,Rangos!$B$22:$B$67,Rangos!$C$22:$C$67,"") ->  | WA12: =+_xlfn.XLOOKUP(WA10,Rangos!$B$22:$B$67,Rangos!$C$22:$C$67,"") ->  | WB12: =+_xlfn.XLOOKUP(WB10,Rangos!$B$22:$B$67,Rangos!$C$22:$C$67,"") ->  | WC12: =+_xlfn.XLOOKUP(WC10,Rangos!$B$22:$B$67,Rangos!$C$22:$C$67,"") ->  | WD12: =+_xlfn.XLOOKUP(WD10,Rangos!$B$22:$B$67,Rangos!$C$22:$C$67,"") ->  | WE12: =+_xlfn.XLOOKUP(WE10,Rangos!$B$22:$B$67,Rangos!$C$22:$C$67,"") ->  | WF12: =+_xlfn.XLOOKUP(WF10,Rangos!$B$22:$B$67,Rangos!$C$22:$C$67,"") ->  | WG12: =+_xlfn.XLOOKUP(WG10,Rangos!$B$22:$B$67,Rangos!$C$22:$C$67,"") ->  | WH12: =+_xlfn.XLOOKUP(WH10,Rangos!$B$22:$B$67,Rangos!$C$22:$C$67,"") ->  | WI12: =+_xlfn.XLOOKUP(WI10,Rangos!$B$22:$B$67,Rangos!$C$22:$C$67,"") ->  | WJ12: =+_xlfn.XLOOKUP(WJ10,Rangos!$B$22:$B$67,Rangos!$C$22:$C$67,"") ->  | WK12: =+_xlfn.XLOOKUP(WK10,Rangos!$B$22:$B$67,Rangos!$C$22:$C$67,"") ->  | WL12: =+_xlfn.XLOOKUP(WL10,Rangos!$B$22:$B$67,Rangos!$C$22:$C$67,"") ->  | WM12: =+_xlfn.XLOOKUP(WM10,Rangos!$B$22:$B$67,Rangos!$C$22:$C$67,"") ->  | WN12: =+_xlfn.XLOOKUP(WN10,Rangos!$B$22:$B$67,Rangos!$C$22:$C$67,"") ->  | WO12: =+_xlfn.XLOOKUP(WO10,Rangos!$B$22:$B$67,Rangos!$C$22:$C$67,"") ->  | WP12: =+_xlfn.XLOOKUP(WP10,Rangos!$B$22:$B$67,Rangos!$C$22:$C$67,"") ->  | WQ12: =+_xlfn.XLOOKUP(WQ10,Rangos!$B$22:$B$67,Rangos!$C$22:$C$67,"") ->  | WR12: =+_xlfn.XLOOKUP(WR10,Rangos!$B$22:$B$67,Rangos!$C$22:$C$67,"") ->  | WS12: =+_xlfn.XLOOKUP(WS10,Rangos!$B$22:$B$67,Rangos!$C$22:$C$67,"") -> Feriado | WT12: =+_xlfn.XLOOKUP(WT10,Rangos!$B$22:$B$67,Rangos!$C$22:$C$67,"") ->  | WU12: =+_xlfn.XLOOKUP(WU10,Rangos!$B$22:$B$67,Rangos!$C$22:$C$67,"") ->  | WV12: =+_xlfn.XLOOKUP(WV10,Rangos!$B$22:$B$67,Rangos!$C$22:$C$67,"") ->  | WW12: =+_xlfn.XLOOKUP(WW10,Rangos!$B$22:$B$67,Rangos!$C$22:$C$67,"") ->  | WX12: =+_xlfn.XLOOKUP(WX10,Rangos!$B$22:$B$67,Rangos!$C$22:$C$67,"") ->  | WY12: =+_xlfn.XLOOKUP(WY10,Rangos!$B$22:$B$67,Rangos!$C$22:$C$67,"") ->  | WZ12: =+_xlfn.XLOOKUP(WZ10,Rangos!$B$22:$B$67,Rangos!$C$22:$C$67,"") ->  | XA12: =+_xlfn.XLOOKUP(XA10,Rangos!$B$22:$B$67,Rangos!$C$22:$C$67,"") ->  | XB12: =+_xlfn.XLOOKUP(XB10,Rangos!$B$22:$B$67,Rangos!$C$22:$C$67,"") ->  | XC12: =+_xlfn.XLOOKUP(XC10,Rangos!$B$22:$B$67,Rangos!$C$22:$C$67,"") ->  | XD12: =+_xlfn.XLOOKUP(XD10,Rangos!$B$22:$B$67,Rangos!$C$22:$C$67,"") ->  | XE12: =+_xlfn.XLOOKUP(XE10,Rangos!$B$22:$B$67,Rangos!$C$22:$C$67,"") ->  | XF12: =+_xlfn.XLOOKUP(XF10,Rangos!$B$22:$B$67,Rangos!$C$22:$C$67,"") ->  | XG12: =+_xlfn.XLOOKUP(XG10,Rangos!$B$22:$B$67,Rangos!$C$22:$C$67,"") ->  | XH12: =+_xlfn.XLOOKUP(XH10,Rangos!$B$22:$B$67,Rangos!$C$22:$C$67,"") ->  | XI12: =+_xlfn.XLOOKUP(XI10,Rangos!$B$22:$B$67,Rangos!$C$22:$C$67,"") ->  | XJ12: =+_xlfn.XLOOKUP(XJ10,Rangos!$B$22:$B$67,Rangos!$C$22:$C$67,"") ->  | XK12: =+_xlfn.XLOOKUP(XK10,Rangos!$B$22:$B$67,Rangos!$C$22:$C$67,"") ->  | XL12: =+_xlfn.XLOOKUP(XL10,Rangos!$B$22:$B$67,Rangos!$C$22:$C$67,"") ->  | XM12: =+_xlfn.XLOOKUP(XM10,Rangos!$B$22:$B$67,Rangos!$C$22:$C$67,"") ->  | XN12: =+_xlfn.XLOOKUP(XN10,Rangos!$B$22:$B$67,Rangos!$C$22:$C$67,"") ->  | XO12: =+_xlfn.XLOOKUP(XO10,Rangos!$B$22:$B$67,Rangos!$C$22:$C$67,"") ->  | XP12: =+_xlfn.XLOOKUP(XP10,Rangos!$B$22:$B$67,Rangos!$C$22:$C$67,"") ->  | XQ12: =+_xlfn.XLOOKUP(XQ10,Rangos!$B$22:$B$67,Rangos!$C$22:$C$67,"") ->  | XR12: =+_xlfn.XLOOKUP(XR10,Rangos!$B$22:$B$67,Rangos!$C$22:$C$67,"") ->  | XS12: =+_xlfn.XLOOKUP(XS10,Rangos!$B$22:$B$67,Rangos!$C$22:$C$67,"") ->  | XT12: =+_xlfn.XLOOKUP(XT10,Rangos!$B$22:$B$67,Rangos!$C$22:$C$67,"") ->  | XU12: =+_xlfn.XLOOKUP(XU10,Rangos!$B$22:$B$67,Rangos!$C$22:$C$67,"") ->  | XV12: =+_xlfn.XLOOKUP(XV10,Rangos!$B$22:$B$67,Rangos!$C$22:$C$67,"") ->  | XW12: =+_xlfn.XLOOKUP(XW10,Rangos!$B$22:$B$67,Rangos!$C$22:$C$67,"") ->  | XX12: =+_xlfn.XLOOKUP(XX10,Rangos!$B$22:$B$67,Rangos!$C$22:$C$67,"") ->  | XY12: =+_xlfn.XLOOKUP(XY10,Rangos!$B$22:$B$67,Rangos!$C$22:$C$67,"") ->  | XZ12: =+_xlfn.XLOOKUP(XZ10,Rangos!$B$22:$B$67,Rangos!$C$22:$C$67,"") ->  | YA12: =+_xlfn.XLOOKUP(YA10,Rangos!$B$22:$B$67,Rangos!$C$22:$C$67,"") ->  | YB12: =+_xlfn.XLOOKUP(YB10,Rangos!$B$22:$B$67,Rangos!$C$22:$C$67,"") -> Feriado | YC12: =+_xlfn.XLOOKUP(YC10,Rangos!$B$22:$B$67,Rangos!$C$22:$C$67,"") ->  | YD12: =+_xlfn.XLOOKUP(YD10,Rangos!$B$22:$B$67,Rangos!$C$22:$C$67,"") ->  | YE12: =+_xlfn.XLOOKUP(YE10,Rangos!$B$22:$B$67,Rangos!$C$22:$C$67,"") ->  | YF12: =+_xlfn.XLOOKUP(YF10,Rangos!$B$22:$B$67,Rangos!$C$22:$C$67,"") ->  | YG12: =+_xlfn.XLOOKUP(YG10,Rangos!$B$22:$B$67,Rangos!$C$22:$C$67,"") ->  | YH12: =+_xlfn.XLOOKUP(YH10,Rangos!$B$22:$B$67,Rangos!$C$22:$C$67,"") ->  | YI12: =+_xlfn.XLOOKUP(YI10,Rangos!$B$22:$B$67,Rangos!$C$22:$C$67,"") ->  | YJ12: =+_xlfn.XLOOKUP(YJ10,Rangos!$B$22:$B$67,Rangos!$C$22:$C$67,"") ->  | YK12: =+_xlfn.XLOOKUP(YK10,Rangos!$B$22:$B$67,Rangos!$C$22:$C$67,"") ->  | YL12: =+_xlfn.XLOOKUP(YL10,Rangos!$B$22:$B$67,Rangos!$C$22:$C$67,"") ->  | YM12: =+_xlfn.XLOOKUP(YM10,Rangos!$B$22:$B$67,Rangos!$C$22:$C$67,"") ->  | YN12: =+_xlfn.XLOOKUP(YN10,Rangos!$B$22:$B$67,Rangos!$C$22:$C$67,"") ->  | YO12: =+_xlfn.XLOOKUP(YO10,Rangos!$B$22:$B$67,Rangos!$C$22:$C$67,"") ->  | YP12: =+_xlfn.XLOOKUP(YP10,Rangos!$B$22:$B$67,Rangos!$C$22:$C$67,"") ->  | YQ12: =+_xlfn.XLOOKUP(YQ10,Rangos!$B$22:$B$67,Rangos!$C$22:$C$67,"") ->  | YR12: =+_xlfn.XLOOKUP(YR10,Rangos!$B$22:$B$67,Rangos!$C$22:$C$67,"") ->  | YS12: =+_xlfn.XLOOKUP(YS10,Rangos!$B$22:$B$67,Rangos!$C$22:$C$67,"") ->  | YT12: =+_xlfn.XLOOKUP(YT10,Rangos!$B$22:$B$67,Rangos!$C$22:$C$67,"") ->  | YU12: =+_xlfn.XLOOKUP(YU10,Rangos!$B$22:$B$67,Rangos!$C$22:$C$67,"") ->  | YV12: =+_xlfn.XLOOKUP(YV10,Rangos!$B$22:$B$67,Rangos!$C$22:$C$67,"") ->  | YW12: =+_xlfn.XLOOKUP(YW10,Rangos!$B$22:$B$67,Rangos!$C$22:$C$67,"") ->  | YX12: =+_xlfn.XLOOKUP(YX10,Rangos!$B$22:$B$67,Rangos!$C$22:$C$67,"") ->  | YY12: =+_xlfn.XLOOKUP(YY10,Rangos!$B$22:$B$67,Rangos!$C$22:$C$67,"") ->  | YZ12: =+_xlfn.XLOOKUP(YZ10,Rangos!$B$22:$B$67,Rangos!$C$22:$C$67,"") -> Feriado | ZA12: =+_xlfn.XLOOKUP(ZA10,Rangos!$B$22:$B$67,Rangos!$C$22:$C$67,"") ->  | ZB12: =+_xlfn.XLOOKUP(ZB10,Rangos!$B$22:$B$67,Rangos!$C$22:$C$67,"") ->  | ZC12: =+_xlfn.XLOOKUP(ZC10,Rangos!$B$22:$B$67,Rangos!$C$22:$C$67,"") ->  | ZD12: =+_xlfn.XLOOKUP(ZD10,Rangos!$B$22:$B$67,Rangos!$C$22:$C$67,"") ->  | ZE12: =+_xlfn.XLOOKUP(ZE10,Rangos!$B$22:$B$67,Rangos!$C$22:$C$67,"") ->  | ZF12: =+_xlfn.XLOOKUP(ZF10,Rangos!$B$22:$B$67,Rangos!$C$22:$C$67,"") ->  | ZG12: =+_xlfn.XLOOKUP(ZG10,Rangos!$B$22:$B$67,Rangos!$C$22:$C$67,"") ->  | ZH12: =+_xlfn.XLOOKUP(ZH10,Rangos!$B$22:$B$67,Rangos!$C$22:$C$67,"") ->  | ZI12: =+_xlfn.XLOOKUP(ZI10,Rangos!$B$22:$B$67,Rangos!$C$22:$C$67,"") ->  | ZJ12: =+_xlfn.XLOOKUP(ZJ10,Rangos!$B$22:$B$67,Rangos!$C$22:$C$67,"") ->  | ZK12: =+_xlfn.XLOOKUP(ZK10,Rangos!$B$22:$B$67,Rangos!$C$22:$C$67,"") ->  | ZL12: =+_xlfn.XLOOKUP(ZL10,Rangos!$B$22:$B$67,Rangos!$C$22:$C$67,"") ->  | ZM12: =+_xlfn.XLOOKUP(ZM10,Rangos!$B$22:$B$67,Rangos!$C$22:$C$67,"") ->  | ZN12: =+_xlfn.XLOOKUP(ZN10,Rangos!$B$22:$B$67,Rangos!$C$22:$C$67,"") ->  | ZO12: =+_xlfn.XLOOKUP(ZO10,Rangos!$B$22:$B$67,Rangos!$C$22:$C$67,"") ->  | ZP12: =+_xlfn.XLOOKUP(ZP10,Rangos!$B$22:$B$67,Rangos!$C$22:$C$67,"") ->  | ZQ12: =+_xlfn.XLOOKUP(ZQ10,Rangos!$B$22:$B$67,Rangos!$C$22:$C$67,"") ->  | ZR12: =+_xlfn.XLOOKUP(ZR10,Rangos!$B$22:$B$67,Rangos!$C$22:$C$67,"") ->  | ZS12: =+_xlfn.XLOOKUP(ZS10,Rangos!$B$22:$B$67,Rangos!$C$22:$C$67,"") ->  | ZT12: =+_xlfn.XLOOKUP(ZT10,Rangos!$B$22:$B$67,Rangos!$C$22:$C$67,"") ->  | ZU12: =+_xlfn.XLOOKUP(ZU10,Rangos!$B$22:$B$67,Rangos!$C$22:$C$67,"") ->  | ZV12: =+_xlfn.XLOOKUP(ZV10,Rangos!$B$22:$B$67,Rangos!$C$22:$C$67,"") ->  | ZW12: =+_xlfn.XLOOKUP(ZW10,Rangos!$B$22:$B$67,Rangos!$C$22:$C$67,"") ->  | ZX12: =+_xlfn.XLOOKUP(ZX10,Rangos!$B$22:$B$67,Rangos!$C$22:$C$67,"") ->  | ZY12: =+_xlfn.XLOOKUP(ZY10,Rangos!$B$22:$B$67,Rangos!$C$22:$C$67,"") ->  | ZZ12: =+_xlfn.XLOOKUP(ZZ10,Rangos!$B$22:$B$67,Rangos!$C$22:$C$67,"") ->  | AAA12: =+_xlfn.XLOOKUP(AAA10,Rangos!$B$22:$B$67,Rangos!$C$22:$C$67,"") ->  | AAB12: =+_xlfn.XLOOKUP(AAB10,Rangos!$B$22:$B$67,Rangos!$C$22:$C$67,"") ->  | AAC12: =+_xlfn.XLOOKUP(AAC10,Rangos!$B$22:$B$67,Rangos!$C$22:$C$67,"") ->  | AAD12: =+_xlfn.XLOOKUP(AAD10,Rangos!$B$22:$B$67,Rangos!$C$22:$C$67,"") ->  | AAE12: =+_xlfn.XLOOKUP(AAE10,Rangos!$B$22:$B$67,Rangos!$C$22:$C$67,"") ->  | AAF12: =+_xlfn.XLOOKUP(AAF10,Rangos!$B$22:$B$67,Rangos!$C$22:$C$67,"") ->  | AAG12: =+_xlfn.XLOOKUP(AAG10,Rangos!$B$22:$B$67,Rangos!$C$22:$C$67,"") ->  | AAH12: =+_xlfn.XLOOKUP(AAH10,Rangos!$B$22:$B$67,Rangos!$C$22:$C$67,"") ->  | AAI12: =+_xlfn.XLOOKUP(AAI10,Rangos!$B$22:$B$67,Rangos!$C$22:$C$67,"") ->  | AAJ12: =+_xlfn.XLOOKUP(AAJ10,Rangos!$B$22:$B$67,Rangos!$C$22:$C$67,"") ->  | AAK12: =+_xlfn.XLOOKUP(AAK10,Rangos!$B$22:$B$67,Rangos!$C$22:$C$67,"") ->  | AAL12: =+_xlfn.XLOOKUP(AAL10,Rangos!$B$22:$B$67,Rangos!$C$22:$C$67,"") ->  | AAM12: =+_xlfn.XLOOKUP(AAM10,Rangos!$B$22:$B$67,Rangos!$C$22:$C$67,"") ->  | AAN12: =+_xlfn.XLOOKUP(AAN10,Rangos!$B$22:$B$67,Rangos!$C$22:$C$67,"") ->  | AAO12: =+_xlfn.XLOOKUP(AAO10,Rangos!$B$22:$B$67,Rangos!$C$22:$C$67,"") ->  | AAP12: =+_xlfn.XLOOKUP(AAP10,Rangos!$B$22:$B$67,Rangos!$C$22:$C$67,"") ->  | AAQ12: =+_xlfn.XLOOKUP(AAQ10,Rangos!$B$22:$B$67,Rangos!$C$22:$C$67,"") ->  | AAR12: =+_xlfn.XLOOKUP(AAR10,Rangos!$B$22:$B$67,Rangos!$C$22:$C$67,"") ->  | AAS12: =+_xlfn.XLOOKUP(AAS10,Rangos!$B$22:$B$67,Rangos!$C$22:$C$67,"") ->  | AAT12: =+_xlfn.XLOOKUP(AAT10,Rangos!$B$22:$B$67,Rangos!$C$22:$C$67,"") ->  | AAU12: =+_xlfn.XLOOKUP(AAU10,Rangos!$B$22:$B$67,Rangos!$C$22:$C$67,"") -> 
B13: ¿Es laborable? | C13: =IF(OR(C11="Sábado",C11="Domingo",C12="Feriado"),"No","Sí") -> No | D13: Sí | E13: Sí | F13: Sí | G13: Sí | H13: Sí | I13: No | J13: No | K13: Sí | L13: Sí | M13: Sí | N13: Sí | O13: Sí | P13: No | Q13: No | R13: Sí | S13: Sí | T13: Sí | U13: Sí | V13: Sí | W13: No | X13: No | Y13: No | Z13: Sí | AA13: Sí | AB13: Sí | AC13: Sí | AD13: No | AE13: No | AF13: Sí | AG13: Sí | AH13: Sí | AI13: Sí | AJ13: Sí | AK13: No | AL13: No | AM13: Sí | AN13: Sí | AO13: Sí | AP13: Sí | AQ13: Sí | AR13: No | AS13: No | AT13: Sí | AU13: Sí | AV13: Sí | AW13: Sí | AX13: Sí | AY13: No | AZ13: No | BA13: Sí | BB13: Sí | BC13: Sí | BD13: Sí | BE13: Sí | BF13: No | BG13: No | BH13: Sí | BI13: Sí | BJ13: Sí | BK13: Sí | BL13: Sí | BM13: No | BN13: No | BO13: =IF(OR(BO11="Sábado",BO11="Domingo",BO12="Feriado"),"No","Sí") -> Sí | BP13: Sí | BQ13: Sí | BR13: Sí | BS13: Sí | BT13: No | BU13: No | BV13: Sí | BW13: Sí | BX13: Sí | BY13: Sí | BZ13: Sí | CA13: No | CB13: No | CC13: Sí | CD13: Sí | CE13: Sí | CF13: Sí | CG13: No | CH13: No | CI13: No | CJ13: Sí | CK13: Sí | CL13: Sí | CM13: Sí | CN13: Sí | CO13: No | CP13: No | CQ13: Sí | CR13: Sí | CS13: Sí | CT13: Sí | CU13: Sí | CV13: No | CW13: No | CX13: Sí | CY13: Sí | CZ13: Sí | DA13: Sí | DB13: Sí | DC13: No | DD13: No | DE13: No | DF13: Sí | DG13: Sí | DH13: Sí | DI13: Sí | DJ13: No | DK13: No | DL13: Sí | DM13: Sí | DN13: Sí | DO13: Sí | DP13: Sí | DQ13: No | DR13: No | DS13: Sí | DT13: Sí | DU13: Sí | DV13: Sí | DW13: Sí | DX13: No | DY13: No | DZ13: Sí | EA13: =IF(OR(EA11="Sábado",EA11="Domingo",EA12="Feriado"),"No","Sí") -> Sí | EB13: Sí | EC13: Sí | ED13: Sí | EE13: No | EF13: No | EG13: Sí | EH13: Sí | EI13: Sí | EJ13: Sí | EK13: Sí | EL13: No | EM13: No | EN13: Sí | EO13: Sí | EP13: Sí | EQ13: Sí | ER13: Sí | ES13: No | ET13: No | EU13: Sí | EV13: Sí | EW13: Sí | EX13: Sí | EY13: Sí | EZ13: No | FA13: No | FB13: Sí | FC13: Sí | FD13: Sí | FE13: No | FF13: Sí | FG13: No | FH13: No | FI13: Sí | FJ13: Sí | FK13: No | FL13: No | FM13: Sí | FN13: No | FO13: No | FP13: Sí | FQ13: Sí | FR13: Sí | FS13: Sí | FT13: Sí | FU13: No | FV13: No | FW13: Sí | FX13: Sí | FY13: Sí | FZ13: Sí | GA13: Sí | GB13: No | GC13: No | GD13: Sí | GE13: Sí | GF13: Sí | GG13: Sí | GH13: Sí | GI13: No | GJ13: No | GK13: Sí | GL13: Sí | GM13: =IF(OR(GM11="Sábado",GM11="Domingo",GM12="Feriado"),"No","Sí") -> Sí | GN13: Sí | GO13: Sí | GP13: No | GQ13: No | GR13: Sí | GS13: Sí | GT13: Sí | GU13: Sí | GV13: Sí | GW13: No | GX13: No | GY13: Sí | GZ13: Sí | HA13: Sí | HB13: Sí | HC13: Sí | HD13: No | HE13: No | HF13: No | HG13: No | HH13: Sí | HI13: Sí | HJ13: Sí | HK13: No | HL13: No | HM13: Sí | HN13: Sí | HO13: Sí | HP13: Sí | HQ13: Sí | HR13: No | HS13: No | HT13: Sí | HU13: Sí | HV13: Sí | HW13: Sí | HX13: Sí | HY13: No | HZ13: No | IA13: Sí | IB13: Sí | IC13: Sí | ID13: Sí | IE13: Sí | IF13: No | IG13: No | IH13: Sí | II13: Sí | IJ13: Sí | IK13: Sí | IL13: Sí | IM13: No | IN13: No | IO13: Sí | IP13: Sí | IQ13: Sí | IR13: Sí | IS13: Sí | IT13: No | IU13: No | IV13: Sí | IW13: Sí | IX13: Sí | IY13: =IF(OR(IY11="Sábado",IY11="Domingo",IY12="Feriado"),"No","Sí") -> Sí | IZ13: No | JA13: No | JB13: No | JC13: Sí | JD13: Sí | JE13: Sí | JF13: Sí | JG13: Sí | JH13: No | JI13: No | JJ13: Sí | JK13: Sí | JL13: Sí | JM13: Sí | JN13: Sí | JO13: No | JP13: No | JQ13: Sí | JR13: Sí | JS13: Sí | JT13: Sí | JU13: Sí | JV13: No | JW13: No | JX13: Sí | JY13: Sí | JZ13: Sí | KA13: Sí | KB13: No | KC13: No | KD13: No | KE13: Sí | KF13: Sí | KG13: Sí | KH13: Sí | KI13: Sí | KJ13: No | KK13: No | KL13: Sí | KM13: Sí | KN13: Sí | KO13: Sí | KP13: Sí | KQ13: No | KR13: No | KS13: Sí | KT13: Sí | KU13: Sí | KV13: Sí | KW13: Sí | KX13: No | KY13: No | KZ13: No | LA13: Sí | LB13: Sí | LC13: Sí | LD13: Sí | LE13: No | LF13: No | LG13: Sí | LH13: Sí | LI13: Sí | LJ13: Sí | LK13: =IF(OR(LK11="Sábado",LK11="Domingo",LK12="Feriado"),"No","Sí") -> Sí | LL13: No | LM13: No | LN13: Sí | LO13: Sí | LP13: Sí | LQ13: Sí | LR13: Sí | LS13: No | LT13: No | LU13: Sí | LV13: Sí | LW13: Sí | LX13: Sí | LY13: Sí | LZ13: No | MA13: No | MB13: Sí | MC13: Sí | MD13: Sí | ME13: Sí | MF13: Sí | MG13: No | MH13: No | MI13: Sí | MJ13: Sí | MK13: Sí | ML13: Sí | MM13: Sí | MN13: No | MO13: No | MP13: Sí | MQ13: Sí | MR13: Sí | MS13: Sí | MT13: Sí | MU13: No | MV13: No | MW13: Sí | MX13: Sí | MY13: Sí | MZ13: Sí | NA13: Sí | NB13: No | NC13: No | ND13: Sí | NE13: Sí | NF13: Sí | NG13: Sí | NH13: Sí | NI13: No | NJ13: No | NK13: Sí | NL13: Sí | NM13: Sí | NN13: Sí | NO13: Sí | NP13: No | NQ13: No | NR13: Sí | NS13: Sí | NT13: Sí | NU13: Sí | NV13: Sí | NW13: =IF(OR(NW11="Sábado",NW11="Domingo",NW12="Feriado"),"No","Sí") -> No | NX13: No | NY13: No | NZ13: Sí | OA13: Sí | OB13: Sí | OC13: Sí | OD13: No | OE13: No | OF13: Sí | OG13: Sí | OH13: Sí | OI13: Sí | OJ13: Sí | OK13: No | OL13: No | OM13: Sí | ON13: Sí | OO13: Sí | OP13: Sí | OQ13: Sí | OR13: No | OS13: No | OT13: Sí | OU13: Sí | OV13: Sí | OW13: Sí | OX13: Sí | OY13: No | OZ13: No | PA13: Sí | PB13: Sí | PC13: Sí | PD13: Sí | PE13: Sí | PF13: No | PG13: No | PH13: Sí | PI13: Sí | PJ13: Sí | PK13: Sí | PL13: Sí | PM13: No | PN13: No | PO13: Sí | PP13: Sí | PQ13: Sí | PR13: Sí | PS13: Sí | PT13: No | PU13: No | PV13: Sí | PW13: Sí | PX13: Sí | PY13: Sí | PZ13: Sí | QA13: No | QB13: No | QC13: Sí | QD13: Sí | QE13: Sí | QF13: Sí | QG13: No | QH13: No | QI13: =IF(OR(QI11="Sábado",QI11="Domingo",QI12="Feriado"),"No","Sí") -> No | QJ13: Sí | QK13: Sí | QL13: Sí | QM13: Sí | QN13: Sí | QO13: No | QP13: No | QQ13: Sí | QR13: Sí | QS13: Sí | QT13: Sí | QU13: Sí | QV13: No | QW13: No | QX13: Sí | QY13: Sí | QZ13: Sí | RA13: Sí | RB13: Sí | RC13: No | RD13: No | RE13: No | RF13: No | RG13: Sí | RH13: Sí | RI13: Sí | RJ13: No | RK13: No | RL13: Sí | RM13: Sí | RN13: Sí | RO13: Sí | RP13: Sí | RQ13: No | RR13: No | RS13: Sí | RT13: Sí | RU13: Sí | RV13: Sí | RW13: Sí | RX13: No | RY13: No | RZ13: Sí | SA13: Sí | SB13: Sí | SC13: Sí | SD13: Sí | SE13: No | SF13: No | SG13: Sí | SH13: Sí | SI13: Sí | SJ13: Sí | SK13: Sí | SL13: No | SM13: No | SN13: Sí | SO13: Sí | SP13: Sí | SQ13: Sí | SR13: Sí | SS13: No | ST13: No | SU13: =IF(OR(SU11="Sábado",SU11="Domingo",SU12="Feriado"),"No","Sí") -> Sí | SV13: Sí | SW13: Sí | SX13: Sí | SY13: Sí | SZ13: No | TA13: No | TB13: Sí | TC13: Sí | TD13: Sí | TE13: Sí | TF13: No | TG13: No | TH13: No | TI13: Sí | TJ13: Sí | TK13: Sí | TL13: No | TM13: No | TN13: No | TO13: No | TP13: Sí | TQ13: Sí | TR13: Sí | TS13: Sí | TT13: Sí | TU13: No | TV13: No | TW13: Sí | TX13: Sí | TY13: Sí | TZ13: Sí | UA13: Sí | UB13: No | UC13: No | UD13: Sí | UE13: Sí | UF13: Sí | UG13: Sí | UH13: Sí | UI13: No | UJ13: No | UK13: Sí | UL13: Sí | UM13: Sí | UN13: Sí | UO13: Sí | UP13: No | UQ13: No | UR13: Sí | US13: Sí | UT13: Sí | UU13: Sí | UV13: Sí | UW13: No | UX13: No | UY13: No | UZ13: No | VA13: Sí | VB13: Sí | VC13: Sí | VD13: No | VE13: No | VF13: Sí | VG13: =IF(OR(VG11="Sábado",VG11="Domingo",VG12="Feriado"),"No","Sí") -> Sí | VH13: Sí | VI13: Sí | VJ13: Sí | VK13: No | VL13: No | VM13: Sí | VN13: Sí | VO13: Sí | VP13: Sí | VQ13: Sí | VR13: No | VS13: No | VT13: Sí | VU13: Sí | VV13: Sí | VW13: Sí | VX13: Sí | VY13: No | VZ13: No | WA13: Sí | WB13: Sí | WC13: Sí | WD13: Sí | WE13: Sí | WF13: No | WG13: No | WH13: Sí | WI13: Sí | WJ13: Sí | WK13: Sí | WL13: Sí | WM13: No | WN13: No | WO13: Sí | WP13: Sí | WQ13: Sí | WR13: Sí | WS13: No | WT13: No | WU13: No | WV13: Sí | WW13: Sí | WX13: Sí | WY13: Sí | WZ13: Sí | XA13: No | XB13: No | XC13: Sí | XD13: Sí | XE13: Sí | XF13: Sí | XG13: Sí | XH13: No | XI13: No | XJ13: Sí | XK13: Sí | XL13: Sí | XM13: Sí | XN13: Sí | XO13: No | XP13: No | XQ13: Sí | XR13: Sí | XS13: =IF(OR(XS11="Sábado",XS11="Domingo",XS12="Feriado"),"No","Sí") -> Sí | XT13: Sí | XU13: Sí | XV13: No | XW13: No | XX13: Sí | XY13: Sí | XZ13: Sí | YA13: Sí | YB13: No | YC13: No | YD13: No | YE13: Sí | YF13: Sí | YG13: Sí | YH13: Sí | YI13: Sí | YJ13: No | YK13: No | YL13: Sí | YM13: Sí | YN13: Sí | YO13: Sí | YP13: Sí | YQ13: No | YR13: No | YS13: Sí | YT13: Sí | YU13: Sí | YV13: Sí | YW13: Sí | YX13: No | YY13: No | YZ13: No | ZA13: Sí | ZB13: Sí | ZC13: Sí | ZD13: Sí | ZE13: No | ZF13: No | ZG13: Sí | ZH13: Sí | ZI13: Sí | ZJ13: Sí | ZK13: Sí | ZL13: No | ZM13: No | ZN13: Sí | ZO13: Sí | ZP13: Sí | ZQ13: Sí | ZR13: Sí | ZS13: No | ZT13: No | ZU13: Sí | ZV13: Sí | ZW13: Sí | ZX13: Sí | ZY13: Sí | ZZ13: No | AAA13: No | AAB13: Sí | AAC13: Sí | AAD13: Sí | AAE13: =IF(OR(AAE11="Sábado",AAE11="Domingo",AAE12="Feriado"),"No","Sí") -> Sí | AAF13: Sí | AAG13: No | AAH13: No | AAI13: Sí | AAJ13: Sí | AAK13: Sí | AAL13: Sí | AAM13: Sí | AAN13: No | AAO13: No | AAP13: Sí | AAQ13: Sí | AAR13: Sí | AAS13: Sí | AAT13: Sí | AAU13: No
B14: Último día laborable del mes | C14: =+IF( AND(C13="Sí",WORKDAY.INTL(EOMONTH(C10,0)+1,-1,1,Rangos!$B$22:$B$79)=C10),"Sí","No") -> No | D14: =+IF( AND(D13="Sí",WORKDAY.INTL(EOMONTH(D10,0)+1,-1,1,Rangos!$B$22:$B$79)=D10),"Sí","No") -> No | E14: =+IF( AND(E13="Sí",WORKDAY.INTL(EOMONTH(E10,0)+1,-1,1,Rangos!$B$22:$B$79)=E10),"Sí","No") -> No | F14: =+IF( AND(F13="Sí",WORKDAY.INTL(EOMONTH(F10,0)+1,-1,1,Rangos!$B$22:$B$79)=F10),"Sí","No") -> No | G14: =+IF( AND(G13="Sí",WORKDAY.INTL(EOMONTH(G10,0)+1,-1,1,Rangos!$B$22:$B$79)=G10),"Sí","No") -> No | H14: =+IF( AND(H13="Sí",WORKDAY.INTL(EOMONTH(H10,0)+1,-1,1,Rangos!$B$22:$B$79)=H10),"Sí","No") -> No | I14: =+IF( AND(I13="Sí",WORKDAY.INTL(EOMONTH(I10,0)+1,-1,1,Rangos!$B$22:$B$79)=I10),"Sí","No") -> No | J14: =+IF( AND(J13="Sí",WORKDAY.INTL(EOMONTH(J10,0)+1,-1,1,Rangos!$B$22:$B$79)=J10),"Sí","No") -> No | K14: =+IF( AND(K13="Sí",WORKDAY.INTL(EOMONTH(K10,0)+1,-1,1,Rangos!$B$22:$B$79)=K10),"Sí","No") -> No | L14: =+IF( AND(L13="Sí",WORKDAY.INTL(EOMONTH(L10,0)+1,-1,1,Rangos!$B$22:$B$79)=L10),"Sí","No") -> No | M14: =+IF( AND(M13="Sí",WORKDAY.INTL(EOMONTH(M10,0)+1,-1,1,Rangos!$B$22:$B$79)=M10),"Sí","No") -> No | N14: =+IF( AND(N13="Sí",WORKDAY.INTL(EOMONTH(N10,0)+1,-1,1,Rangos!$B$22:$B$79)=N10),"Sí","No") -> Sí | O14: =+IF( AND(O13="Sí",WORKDAY.INTL(EOMONTH(O10,0)+1,-1,1,Rangos!$B$22:$B$79)=O10),"Sí","No") -> No | P14: =+IF( AND(P13="Sí",WORKDAY.INTL(EOMONTH(P10,0)+1,-1,1,Rangos!$B$22:$B$79)=P10),"Sí","No") -> No | Q14: =+IF( AND(Q13="Sí",WORKDAY.INTL(EOMONTH(Q10,0)+1,-1,1,Rangos!$B$22:$B$79)=Q10),"Sí","No") -> No | R14: =+IF( AND(R13="Sí",WORKDAY.INTL(EOMONTH(R10,0)+1,-1,1,Rangos!$B$22:$B$79)=R10),"Sí","No") -> No | S14: =+IF( AND(S13="Sí",WORKDAY.INTL(EOMONTH(S10,0)+1,-1,1,Rangos!$B$22:$B$79)=S10),"Sí","No") -> No | T14: =+IF( AND(T13="Sí",WORKDAY.INTL(EOMONTH(T10,0)+1,-1,1,Rangos!$B$22:$B$79)=T10),"Sí","No") -> No | U14: =+IF( AND(U13="Sí",WORKDAY.INTL(EOMONTH(U10,0)+1,-1,1,Rangos!$B$22:$B$79)=U10),"Sí","No") -> No | V14: =+IF( AND(V13="Sí",WORKDAY.INTL(EOMONTH(V10,0)+1,-1,1,Rangos!$B$22:$B$79)=V10),"Sí","No") -> No | W14: =+IF( AND(W13="Sí",WORKDAY.INTL(EOMONTH(W10,0)+1,-1,1,Rangos!$B$22:$B$79)=W10),"Sí","No") -> No | X14: =+IF( AND(X13="Sí",WORKDAY.INTL(EOMONTH(X10,0)+1,-1,1,Rangos!$B$22:$B$79)=X10),"Sí","No") -> No | Y14: =+IF( AND(Y13="Sí",WORKDAY.INTL(EOMONTH(Y10,0)+1,-1,1,Rangos!$B$22:$B$79)=Y10),"Sí","No") -> No | Z14: =+IF( AND(Z13="Sí",WORKDAY.INTL(EOMONTH(Z10,0)+1,-1,1,Rangos!$B$22:$B$79)=Z10),"Sí","No") -> No | AA14: =+IF( AND(AA13="Sí",WORKDAY.INTL(EOMONTH(AA10,0)+1,-1,1,Rangos!$B$22:$B$79)=AA10),"Sí","No") -> No | AB14: =+IF( AND(AB13="Sí",WORKDAY.INTL(EOMONTH(AB10,0)+1,-1,1,Rangos!$B$22:$B$79)=AB10),"Sí","No") -> No | AC14: =+IF( AND(AC13="Sí",WORKDAY.INTL(EOMONTH(AC10,0)+1,-1,1,Rangos!$B$22:$B$79)=AC10),"Sí","No") -> No | AD14: =+IF( AND(AD13="Sí",WORKDAY.INTL(EOMONTH(AD10,0)+1,-1,1,Rangos!$B$22:$B$79)=AD10),"Sí","No") -> No | AE14: =+IF( AND(AE13="Sí",WORKDAY.INTL(EOMONTH(AE10,0)+1,-1,1,Rangos!$B$22:$B$79)=AE10),"Sí","No") -> No | AF14: =+IF( AND(AF13="Sí",WORKDAY.INTL(EOMONTH(AF10,0)+1,-1,1,Rangos!$B$22:$B$79)=AF10),"Sí","No") -> No | AG14: =+IF( AND(AG13="Sí",WORKDAY.INTL(EOMONTH(AG10,0)+1,-1,1,Rangos!$B$22:$B$79)=AG10),"Sí","No") -> No | AH14: =+IF( AND(AH13="Sí",WORKDAY.INTL(EOMONTH(AH10,0)+1,-1,1,Rangos!$B$22:$B$79)=AH10),"Sí","No") -> No | AI14: =+IF( AND(AI13="Sí",WORKDAY.INTL(EOMONTH(AI10,0)+1,-1,1,Rangos!$B$22:$B$79)=AI10),"Sí","No") -> No | AJ14: =+IF( AND(AJ13="Sí",WORKDAY.INTL(EOMONTH(AJ10,0)+1,-1,1,Rangos!$B$22:$B$79)=AJ10),"Sí","No") -> No | AK14: =+IF( AND(AK13="Sí",WORKDAY.INTL(EOMONTH(AK10,0)+1,-1,1,Rangos!$B$22:$B$79)=AK10),"Sí","No") -> No | AL14: =+IF( AND(AL13="Sí",WORKDAY.INTL(EOMONTH(AL10,0)+1,-1,1,Rangos!$B$22:$B$79)=AL10),"Sí","No") -> No | AM14: =+IF( AND(AM13="Sí",WORKDAY.INTL(EOMONTH(AM10,0)+1,-1,1,Rangos!$B$22:$B$79)=AM10),"Sí","No") -> No | AN14: =+IF( AND(AN13="Sí",WORKDAY.INTL(EOMONTH(AN10,0)+1,-1,1,Rangos!$B$22:$B$79)=AN10),"Sí","No") -> No | AO14: =+IF( AND(AO13="Sí",WORKDAY.INTL(EOMONTH(AO10,0)+1,-1,1,Rangos!$B$22:$B$79)=AO10),"Sí","No") -> No | AP14: =+IF( AND(AP13="Sí",WORKDAY.INTL(EOMONTH(AP10,0)+1,-1,1,Rangos!$B$22:$B$79)=AP10),"Sí","No") -> No | AQ14: =+IF( AND(AQ13="Sí",WORKDAY.INTL(EOMONTH(AQ10,0)+1,-1,1,Rangos!$B$22:$B$79)=AQ10),"Sí","No") -> Sí | AR14: =+IF( AND(AR13="Sí",WORKDAY.INTL(EOMONTH(AR10,0)+1,-1,1,Rangos!$B$22:$B$79)=AR10),"Sí","No") -> No | AS14: =+IF( AND(AS13="Sí",WORKDAY.INTL(EOMONTH(AS10,0)+1,-1,1,Rangos!$B$22:$B$79)=AS10),"Sí","No") -> No | AT14: =+IF( AND(AT13="Sí",WORKDAY.INTL(EOMONTH(AT10,0)+1,-1,1,Rangos!$B$22:$B$79)=AT10),"Sí","No") -> No | AU14: =+IF( AND(AU13="Sí",WORKDAY.INTL(EOMONTH(AU10,0)+1,-1,1,Rangos!$B$22:$B$79)=AU10),"Sí","No") -> No | AV14: =+IF( AND(AV13="Sí",WORKDAY.INTL(EOMONTH(AV10,0)+1,-1,1,Rangos!$B$22:$B$79)=AV10),"Sí","No") -> No | AW14: =+IF( AND(AW13="Sí",WORKDAY.INTL(EOMONTH(AW10,0)+1,-1,1,Rangos!$B$22:$B$79)=AW10),"Sí","No") -> No | AX14: =+IF( AND(AX13="Sí",WORKDAY.INTL(EOMONTH(AX10,0)+1,-1,1,Rangos!$B$22:$B$79)=AX10),"Sí","No") -> No | AY14: =+IF( AND(AY13="Sí",WORKDAY.INTL(EOMONTH(AY10,0)+1,-1,1,Rangos!$B$22:$B$79)=AY10),"Sí","No") -> No | AZ14: =+IF( AND(AZ13="Sí",WORKDAY.INTL(EOMONTH(AZ10,0)+1,-1,1,Rangos!$B$22:$B$79)=AZ10),"Sí","No") -> No | BA14: =+IF( AND(BA13="Sí",WORKDAY.INTL(EOMONTH(BA10,0)+1,-1,1,Rangos!$B$22:$B$79)=BA10),"Sí","No") -> No | BB14: =+IF( AND(BB13="Sí",WORKDAY.INTL(EOMONTH(BB10,0)+1,-1,1,Rangos!$B$22:$B$79)=BB10),"Sí","No") -> No | BC14: =+IF( AND(BC13="Sí",WORKDAY.INTL(EOMONTH(BC10,0)+1,-1,1,Rangos!$B$22:$B$79)=BC10),"Sí","No") -> No | BD14: =+IF( AND(BD13="Sí",WORKDAY.INTL(EOMONTH(BD10,0)+1,-1,1,Rangos!$B$22:$B$79)=BD10),"Sí","No") -> No | BE14: =+IF( AND(BE13="Sí",WORKDAY.INTL(EOMONTH(BE10,0)+1,-1,1,Rangos!$B$22:$B$79)=BE10),"Sí","No") -> No | BF14: =+IF( AND(BF13="Sí",WORKDAY.INTL(EOMONTH(BF10,0)+1,-1,1,Rangos!$B$22:$B$79)=BF10),"Sí","No") -> No | BG14: =+IF( AND(BG13="Sí",WORKDAY.INTL(EOMONTH(BG10,0)+1,-1,1,Rangos!$B$22:$B$79)=BG10),"Sí","No") -> No | BH14: =+IF( AND(BH13="Sí",WORKDAY.INTL(EOMONTH(BH10,0)+1,-1,1,Rangos!$B$22:$B$79)=BH10),"Sí","No") -> No | BI14: =+IF( AND(BI13="Sí",WORKDAY.INTL(EOMONTH(BI10,0)+1,-1,1,Rangos!$B$22:$B$79)=BI10),"Sí","No") -> No | BJ14: =+IF( AND(BJ13="Sí",WORKDAY.INTL(EOMONTH(BJ10,0)+1,-1,1,Rangos!$B$22:$B$79)=BJ10),"Sí","No") -> No | BK14: =+IF( AND(BK13="Sí",WORKDAY.INTL(EOMONTH(BK10,0)+1,-1,1,Rangos!$B$22:$B$79)=BK10),"Sí","No") -> No | BL14: =+IF( AND(BL13="Sí",WORKDAY.INTL(EOMONTH(BL10,0)+1,-1,1,Rangos!$B$22:$B$79)=BL10),"Sí","No") -> No | BM14: =+IF( AND(BM13="Sí",WORKDAY.INTL(EOMONTH(BM10,0)+1,-1,1,Rangos!$B$22:$B$79)=BM10),"Sí","No") -> No | BN14: =+IF( AND(BN13="Sí",WORKDAY.INTL(EOMONTH(BN10,0)+1,-1,1,Rangos!$B$22:$B$79)=BN10),"Sí","No") -> No | BO14: =+IF( AND(BO13="Sí",WORKDAY.INTL(EOMONTH(BO10,0)+1,-1,1,Rangos!$B$22:$B$79)=BO10),"Sí","No") -> No | BP14: =+IF( AND(BP13="Sí",WORKDAY.INTL(EOMONTH(BP10,0)+1,-1,1,Rangos!$B$22:$B$79)=BP10),"Sí","No") -> No | BQ14: =+IF( AND(BQ13="Sí",WORKDAY.INTL(EOMONTH(BQ10,0)+1,-1,1,Rangos!$B$22:$B$79)=BQ10),"Sí","No") -> No | BR14: =+IF( AND(BR13="Sí",WORKDAY.INTL(EOMONTH(BR10,0)+1,-1,1,Rangos!$B$22:$B$79)=BR10),"Sí","No") -> No | BS14: =+IF( AND(BS13="Sí",WORKDAY.INTL(EOMONTH(BS10,0)+1,-1,1,Rangos!$B$22:$B$79)=BS10),"Sí","No") -> No | BT14: =+IF( AND(BT13="Sí",WORKDAY.INTL(EOMONTH(BT10,0)+1,-1,1,Rangos!$B$22:$B$79)=BT10),"Sí","No") -> No | BU14: =+IF( AND(BU13="Sí",WORKDAY.INTL(EOMONTH(BU10,0)+1,-1,1,Rangos!$B$22:$B$79)=BU10),"Sí","No") -> No | BV14: =+IF( AND(BV13="Sí",WORKDAY.INTL(EOMONTH(BV10,0)+1,-1,1,Rangos!$B$22:$B$79)=BV10),"Sí","No") -> No | BW14: =+IF( AND(BW13="Sí",WORKDAY.INTL(EOMONTH(BW10,0)+1,-1,1,Rangos!$B$22:$B$79)=BW10),"Sí","No") -> Sí | BX14: =+IF( AND(BX13="Sí",WORKDAY.INTL(EOMONTH(BX10,0)+1,-1,1,Rangos!$B$22:$B$79)=BX10),"Sí","No") -> No | BY14: =+IF( AND(BY13="Sí",WORKDAY.INTL(EOMONTH(BY10,0)+1,-1,1,Rangos!$B$22:$B$79)=BY10),"Sí","No") -> No | BZ14: =+IF( AND(BZ13="Sí",WORKDAY.INTL(EOMONTH(BZ10,0)+1,-1,1,Rangos!$B$22:$B$79)=BZ10),"Sí","No") -> No | CA14: =+IF( AND(CA13="Sí",WORKDAY.INTL(EOMONTH(CA10,0)+1,-1,1,Rangos!$B$22:$B$79)=CA10),"Sí","No") -> No | CB14: =+IF( AND(CB13="Sí",WORKDAY.INTL(EOMONTH(CB10,0)+1,-1,1,Rangos!$B$22:$B$79)=CB10),"Sí","No") -> No | CC14: =+IF( AND(CC13="Sí",WORKDAY.INTL(EOMONTH(CC10,0)+1,-1,1,Rangos!$B$22:$B$79)=CC10),"Sí","No") -> No | CD14: =+IF( AND(CD13="Sí",WORKDAY.INTL(EOMONTH(CD10,0)+1,-1,1,Rangos!$B$22:$B$79)=CD10),"Sí","No") -> No | CE14: =+IF( AND(CE13="Sí",WORKDAY.INTL(EOMONTH(CE10,0)+1,-1,1,Rangos!$B$22:$B$79)=CE10),"Sí","No") -> No | CF14: =+IF( AND(CF13="Sí",WORKDAY.INTL(EOMONTH(CF10,0)+1,-1,1,Rangos!$B$22:$B$79)=CF10),"Sí","No") -> No | CG14: =+IF( AND(CG13="Sí",WORKDAY.INTL(EOMONTH(CG10,0)+1,-1,1,Rangos!$B$22:$B$79)=CG10),"Sí","No") -> No | CH14: =+IF( AND(CH13="Sí",WORKDAY.INTL(EOMONTH(CH10,0)+1,-1,1,Rangos!$B$22:$B$79)=CH10),"Sí","No") -> No | CI14: =+IF( AND(CI13="Sí",WORKDAY.INTL(EOMONTH(CI10,0)+1,-1,1,Rangos!$B$22:$B$79)=CI10),"Sí","No") -> No | CJ14: =+IF( AND(CJ13="Sí",WORKDAY.INTL(EOMONTH(CJ10,0)+1,-1,1,Rangos!$B$22:$B$79)=CJ10),"Sí","No") -> No | CK14: =+IF( AND(CK13="Sí",WORKDAY.INTL(EOMONTH(CK10,0)+1,-1,1,Rangos!$B$22:$B$79)=CK10),"Sí","No") -> No | CL14: =+IF( AND(CL13="Sí",WORKDAY.INTL(EOMONTH(CL10,0)+1,-1,1,Rangos!$B$22:$B$79)=CL10),"Sí","No") -> No | CM14: =+IF( AND(CM13="Sí",WORKDAY.INTL(EOMONTH(CM10,0)+1,-1,1,Rangos!$B$22:$B$79)=CM10),"Sí","No") -> No | CN14: =+IF( AND(CN13="Sí",WORKDAY.INTL(EOMONTH(CN10,0)+1,-1,1,Rangos!$B$22:$B$79)=CN10),"Sí","No") -> No | CO14: =+IF( AND(CO13="Sí",WORKDAY.INTL(EOMONTH(CO10,0)+1,-1,1,Rangos!$B$22:$B$79)=CO10),"Sí","No") -> No | CP14: =+IF( AND(CP13="Sí",WORKDAY.INTL(EOMONTH(CP10,0)+1,-1,1,Rangos!$B$22:$B$79)=CP10),"Sí","No") -> No | CQ14: =+IF( AND(CQ13="Sí",WORKDAY.INTL(EOMONTH(CQ10,0)+1,-1,1,Rangos!$B$22:$B$79)=CQ10),"Sí","No") -> No | CR14: =+IF( AND(CR13="Sí",WORKDAY.INTL(EOMONTH(CR10,0)+1,-1,1,Rangos!$B$22:$B$79)=CR10),"Sí","No") -> No | CS14: =+IF( AND(CS13="Sí",WORKDAY.INTL(EOMONTH(CS10,0)+1,-1,1,Rangos!$B$22:$B$79)=CS10),"Sí","No") -> No | CT14: =+IF( AND(CT13="Sí",WORKDAY.INTL(EOMONTH(CT10,0)+1,-1,1,Rangos!$B$22:$B$79)=CT10),"Sí","No") -> No | CU14: =+IF( AND(CU13="Sí",WORKDAY.INTL(EOMONTH(CU10,0)+1,-1,1,Rangos!$B$22:$B$79)=CU10),"Sí","No") -> No | CV14: =+IF( AND(CV13="Sí",WORKDAY.INTL(EOMONTH(CV10,0)+1,-1,1,Rangos!$B$22:$B$79)=CV10),"Sí","No") -> No | CW14: =+IF( AND(CW13="Sí",WORKDAY.INTL(EOMONTH(CW10,0)+1,-1,1,Rangos!$B$22:$B$79)=CW10),"Sí","No") -> No | CX14: =+IF( AND(CX13="Sí",WORKDAY.INTL(EOMONTH(CX10,0)+1,-1,1,Rangos!$B$22:$B$79)=CX10),"Sí","No") -> No | CY14: =+IF( AND(CY13="Sí",WORKDAY.INTL(EOMONTH(CY10,0)+1,-1,1,Rangos!$B$22:$B$79)=CY10),"Sí","No") -> No | CZ14: =+IF( AND(CZ13="Sí",WORKDAY.INTL(EOMONTH(CZ10,0)+1,-1,1,Rangos!$B$22:$B$79)=CZ10),"Sí","No") -> No | DA14: =+IF( AND(DA13="Sí",WORKDAY.INTL(EOMONTH(DA10,0)+1,-1,1,Rangos!$B$22:$B$79)=DA10),"Sí","No") -> No | DB14: =+IF( AND(DB13="Sí",WORKDAY.INTL(EOMONTH(DB10,0)+1,-1,1,Rangos!$B$22:$B$79)=DB10),"Sí","No") -> Sí | DC14: =+IF( AND(DC13="Sí",WORKDAY.INTL(EOMONTH(DC10,0)+1,-1,1,Rangos!$B$22:$B$79)=DC10),"Sí","No") -> No | DD14: =+IF( AND(DD13="Sí",WORKDAY.INTL(EOMONTH(DD10,0)+1,-1,1,Rangos!$B$22:$B$79)=DD10),"Sí","No") -> No | DE14: =+IF( AND(DE13="Sí",WORKDAY.INTL(EOMONTH(DE10,0)+1,-1,1,Rangos!$B$22:$B$79)=DE10),"Sí","No") -> No | DF14: =+IF( AND(DF13="Sí",WORKDAY.INTL(EOMONTH(DF10,0)+1,-1,1,Rangos!$B$22:$B$79)=DF10),"Sí","No") -> No | DG14: =+IF( AND(DG13="Sí",WORKDAY.INTL(EOMONTH(DG10,0)+1,-1,1,Rangos!$B$22:$B$79)=DG10),"Sí","No") -> No | DH14: =+IF( AND(DH13="Sí",WORKDAY.INTL(EOMONTH(DH10,0)+1,-1,1,Rangos!$B$22:$B$79)=DH10),"Sí","No") -> No | DI14: =+IF( AND(DI13="Sí",WORKDAY.INTL(EOMONTH(DI10,0)+1,-1,1,Rangos!$B$22:$B$79)=DI10),"Sí","No") -> No | DJ14: =+IF( AND(DJ13="Sí",WORKDAY.INTL(EOMONTH(DJ10,0)+1,-1,1,Rangos!$B$22:$B$79)=DJ10),"Sí","No") -> No | DK14: =+IF( AND(DK13="Sí",WORKDAY.INTL(EOMONTH(DK10,0)+1,-1,1,Rangos!$B$22:$B$79)=DK10),"Sí","No") -> No | DL14: =+IF( AND(DL13="Sí",WORKDAY.INTL(EOMONTH(DL10,0)+1,-1,1,Rangos!$B$22:$B$79)=DL10),"Sí","No") -> No | DM14: =+IF( AND(DM13="Sí",WORKDAY.INTL(EOMONTH(DM10,0)+1,-1,1,Rangos!$B$22:$B$79)=DM10),"Sí","No") -> No | DN14: =+IF( AND(DN13="Sí",WORKDAY.INTL(EOMONTH(DN10,0)+1,-1,1,Rangos!$B$22:$B$79)=DN10),"Sí","No") -> No | DO14: =+IF( AND(DO13="Sí",WORKDAY.INTL(EOMONTH(DO10,0)+1,-1,1,Rangos!$B$22:$B$79)=DO10),"Sí","No") -> No | DP14: =+IF( AND(DP13="Sí",WORKDAY.INTL(EOMONTH(DP10,0)+1,-1,1,Rangos!$B$22:$B$79)=DP10),"Sí","No") -> No | DQ14: =+IF( AND(DQ13="Sí",WORKDAY.INTL(EOMONTH(DQ10,0)+1,-1,1,Rangos!$B$22:$B$79)=DQ10),"Sí","No") -> No | DR14: =+IF( AND(DR13="Sí",WORKDAY.INTL(EOMONTH(DR10,0)+1,-1,1,Rangos!$B$22:$B$79)=DR10),"Sí","No") -> No | DS14: =+IF( AND(DS13="Sí",WORKDAY.INTL(EOMONTH(DS10,0)+1,-1,1,Rangos!$B$22:$B$79)=DS10),"Sí","No") -> No | DT14: =+IF( AND(DT13="Sí",WORKDAY.INTL(EOMONTH(DT10,0)+1,-1,1,Rangos!$B$22:$B$79)=DT10),"Sí","No") -> No | DU14: =+IF( AND(DU13="Sí",WORKDAY.INTL(EOMONTH(DU10,0)+1,-1,1,Rangos!$B$22:$B$79)=DU10),"Sí","No") -> No | DV14: =+IF( AND(DV13="Sí",WORKDAY.INTL(EOMONTH(DV10,0)+1,-1,1,Rangos!$B$22:$B$79)=DV10),"Sí","No") -> No | DW14: =+IF( AND(DW13="Sí",WORKDAY.INTL(EOMONTH(DW10,0)+1,-1,1,Rangos!$B$22:$B$79)=DW10),"Sí","No") -> No | DX14: =+IF( AND(DX13="Sí",WORKDAY.INTL(EOMONTH(DX10,0)+1,-1,1,Rangos!$B$22:$B$79)=DX10),"Sí","No") -> No | DY14: =+IF( AND(DY13="Sí",WORKDAY.INTL(EOMONTH(DY10,0)+1,-1,1,Rangos!$B$22:$B$79)=DY10),"Sí","No") -> No | DZ14: =+IF( AND(DZ13="Sí",WORKDAY.INTL(EOMONTH(DZ10,0)+1,-1,1,Rangos!$B$22:$B$79)=DZ10),"Sí","No") -> No | EA14: =+IF( AND(EA13="Sí",WORKDAY.INTL(EOMONTH(EA10,0)+1,-1,1,Rangos!$B$22:$B$79)=EA10),"Sí","No") -> No | EB14: =+IF( AND(EB13="Sí",WORKDAY.INTL(EOMONTH(EB10,0)+1,-1,1,Rangos!$B$22:$B$79)=EB10),"Sí","No") -> No | EC14: =+IF( AND(EC13="Sí",WORKDAY.INTL(EOMONTH(EC10,0)+1,-1,1,Rangos!$B$22:$B$79)=EC10),"Sí","No") -> No | ED14: =+IF( AND(ED13="Sí",WORKDAY.INTL(EOMONTH(ED10,0)+1,-1,1,Rangos!$B$22:$B$79)=ED10),"Sí","No") -> Sí | EE14: =+IF( AND(EE13="Sí",WORKDAY.INTL(EOMONTH(EE10,0)+1,-1,1,Rangos!$B$22:$B$79)=EE10),"Sí","No") -> No | EF14: =+IF( AND(EF13="Sí",WORKDAY.INTL(EOMONTH(EF10,0)+1,-1,1,Rangos!$B$22:$B$79)=EF10),"Sí","No") -> No | EG14: =+IF( AND(EG13="Sí",WORKDAY.INTL(EOMONTH(EG10,0)+1,-1,1,Rangos!$B$22:$B$79)=EG10),"Sí","No") -> No | EH14: =+IF( AND(EH13="Sí",WORKDAY.INTL(EOMONTH(EH10,0)+1,-1,1,Rangos!$B$22:$B$79)=EH10),"Sí","No") -> No | EI14: =+IF( AND(EI13="Sí",WORKDAY.INTL(EOMONTH(EI10,0)+1,-1,1,Rangos!$B$22:$B$79)=EI10),"Sí","No") -> No | EJ14: =+IF( AND(EJ13="Sí",WORKDAY.INTL(EOMONTH(EJ10,0)+1,-1,1,Rangos!$B$22:$B$79)=EJ10),"Sí","No") -> No | EK14: =+IF( AND(EK13="Sí",WORKDAY.INTL(EOMONTH(EK10,0)+1,-1,1,Rangos!$B$22:$B$79)=EK10),"Sí","No") -> No | EL14: =+IF( AND(EL13="Sí",WORKDAY.INTL(EOMONTH(EL10,0)+1,-1,1,Rangos!$B$22:$B$79)=EL10),"Sí","No") -> No | EM14: =+IF( AND(EM13="Sí",WORKDAY.INTL(EOMONTH(EM10,0)+1,-1,1,Rangos!$B$22:$B$79)=EM10),"Sí","No") -> No | EN14: =+IF( AND(EN13="Sí",WORKDAY.INTL(EOMONTH(EN10,0)+1,-1,1,Rangos!$B$22:$B$79)=EN10),"Sí","No") -> No | EO14: =+IF( AND(EO13="Sí",WORKDAY.INTL(EOMONTH(EO10,0)+1,-1,1,Rangos!$B$22:$B$79)=EO10),"Sí","No") -> No | EP14: =+IF( AND(EP13="Sí",WORKDAY.INTL(EOMONTH(EP10,0)+1,-1,1,Rangos!$B$22:$B$79)=EP10),"Sí","No") -> No | EQ14: =+IF( AND(EQ13="Sí",WORKDAY.INTL(EOMONTH(EQ10,0)+1,-1,1,Rangos!$B$22:$B$79)=EQ10),"Sí","No") -> No | ER14: =+IF( AND(ER13="Sí",WORKDAY.INTL(EOMONTH(ER10,0)+1,-1,1,Rangos!$B$22:$B$79)=ER10),"Sí","No") -> No | ES14: =+IF( AND(ES13="Sí",WORKDAY.INTL(EOMONTH(ES10,0)+1,-1,1,Rangos!$B$22:$B$79)=ES10),"Sí","No") -> No | ET14: =+IF( AND(ET13="Sí",WORKDAY.INTL(EOMONTH(ET10,0)+1,-1,1,Rangos!$B$22:$B$79)=ET10),"Sí","No") -> No | EU14: =+IF( AND(EU13="Sí",WORKDAY.INTL(EOMONTH(EU10,0)+1,-1,1,Rangos!$B$22:$B$79)=EU10),"Sí","No") -> No | EV14: =+IF( AND(EV13="Sí",WORKDAY.INTL(EOMONTH(EV10,0)+1,-1,1,Rangos!$B$22:$B$79)=EV10),"Sí","No") -> No | EW14: =+IF( AND(EW13="Sí",WORKDAY.INTL(EOMONTH(EW10,0)+1,-1,1,Rangos!$B$22:$B$79)=EW10),"Sí","No") -> No | EX14: =+IF( AND(EX13="Sí",WORKDAY.INTL(EOMONTH(EX10,0)+1,-1,1,Rangos!$B$22:$B$79)=EX10),"Sí","No") -> No | EY14: =+IF( AND(EY13="Sí",WORKDAY.INTL(EOMONTH(EY10,0)+1,-1,1,Rangos!$B$22:$B$79)=EY10),"Sí","No") -> No | EZ14: =+IF( AND(EZ13="Sí",WORKDAY.INTL(EOMONTH(EZ10,0)+1,-1,1,Rangos!$B$22:$B$79)=EZ10),"Sí","No") -> No | FA14: =+IF( AND(FA13="Sí",WORKDAY.INTL(EOMONTH(FA10,0)+1,-1,1,Rangos!$B$22:$B$79)=FA10),"Sí","No") -> No | FB14: =+IF( AND(FB13="Sí",WORKDAY.INTL(EOMONTH(FB10,0)+1,-1,1,Rangos!$B$22:$B$79)=FB10),"Sí","No") -> No | FC14: =+IF( AND(FC13="Sí",WORKDAY.INTL(EOMONTH(FC10,0)+1,-1,1,Rangos!$B$22:$B$79)=FC10),"Sí","No") -> No | FD14: =+IF( AND(FD13="Sí",WORKDAY.INTL(EOMONTH(FD10,0)+1,-1,1,Rangos!$B$22:$B$79)=FD10),"Sí","No") -> No | FE14: =+IF( AND(FE13="Sí",WORKDAY.INTL(EOMONTH(FE10,0)+1,-1,1,Rangos!$B$22:$B$79)=FE10),"Sí","No") -> No | FF14: =+IF( AND(FF13="Sí",WORKDAY.INTL(EOMONTH(FF10,0)+1,-1,1,Rangos!$B$22:$B$79)=FF10),"Sí","No") -> No | FG14: =+IF( AND(FG13="Sí",WORKDAY.INTL(EOMONTH(FG10,0)+1,-1,1,Rangos!$B$22:$B$79)=FG10),"Sí","No") -> No | FH14: =+IF( AND(FH13="Sí",WORKDAY.INTL(EOMONTH(FH10,0)+1,-1,1,Rangos!$B$22:$B$79)=FH10),"Sí","No") -> No | FI14: =+IF( AND(FI13="Sí",WORKDAY.INTL(EOMONTH(FI10,0)+1,-1,1,Rangos!$B$22:$B$79)=FI10),"Sí","No") -> No | FJ14: =+IF( AND(FJ13="Sí",WORKDAY.INTL(EOMONTH(FJ10,0)+1,-1,1,Rangos!$B$22:$B$79)=FJ10),"Sí","No") -> Sí | FK14: =+IF( AND(FK13="Sí",WORKDAY.INTL(EOMONTH(FK10,0)+1,-1,1,Rangos!$B$22:$B$79)=FK10),"Sí","No") -> No | FL14: =+IF( AND(FL13="Sí",WORKDAY.INTL(EOMONTH(FL10,0)+1,-1,1,Rangos!$B$22:$B$79)=FL10),"Sí","No") -> No | FM14: =+IF( AND(FM13="Sí",WORKDAY.INTL(EOMONTH(FM10,0)+1,-1,1,Rangos!$B$22:$B$79)=FM10),"Sí","No") -> No | FN14: =+IF( AND(FN13="Sí",WORKDAY.INTL(EOMONTH(FN10,0)+1,-1,1,Rangos!$B$22:$B$79)=FN10),"Sí","No") -> No | FO14: =+IF( AND(FO13="Sí",WORKDAY.INTL(EOMONTH(FO10,0)+1,-1,1,Rangos!$B$22:$B$79)=FO10),"Sí","No") -> No | FP14: =+IF( AND(FP13="Sí",WORKDAY.INTL(EOMONTH(FP10,0)+1,-1,1,Rangos!$B$22:$B$79)=FP10),"Sí","No") -> No | FQ14: =+IF( AND(FQ13="Sí",WORKDAY.INTL(EOMONTH(FQ10,0)+1,-1,1,Rangos!$B$22:$B$79)=FQ10),"Sí","No") -> No | FR14: =+IF( AND(FR13="Sí",WORKDAY.INTL(EOMONTH(FR10,0)+1,-1,1,Rangos!$B$22:$B$79)=FR10),"Sí","No") -> No | FS14: =+IF( AND(FS13="Sí",WORKDAY.INTL(EOMONTH(FS10,0)+1,-1,1,Rangos!$B$22:$B$79)=FS10),"Sí","No") -> No | FT14: =+IF( AND(FT13="Sí",WORKDAY.INTL(EOMONTH(FT10,0)+1,-1,1,Rangos!$B$22:$B$79)=FT10),"Sí","No") -> No | FU14: =+IF( AND(FU13="Sí",WORKDAY.INTL(EOMONTH(FU10,0)+1,-1,1,Rangos!$B$22:$B$79)=FU10),"Sí","No") -> No | FV14: =+IF( AND(FV13="Sí",WORKDAY.INTL(EOMONTH(FV10,0)+1,-1,1,Rangos!$B$22:$B$79)=FV10),"Sí","No") -> No | FW14: =+IF( AND(FW13="Sí",WORKDAY.INTL(EOMONTH(FW10,0)+1,-1,1,Rangos!$B$22:$B$79)=FW10),"Sí","No") -> No | FX14: =+IF( AND(FX13="Sí",WORKDAY.INTL(EOMONTH(FX10,0)+1,-1,1,Rangos!$B$22:$B$79)=FX10),"Sí","No") -> No | FY14: =+IF( AND(FY13="Sí",WORKDAY.INTL(EOMONTH(FY10,0)+1,-1,1,Rangos!$B$22:$B$79)=FY10),"Sí","No") -> No | FZ14: =+IF( AND(FZ13="Sí",WORKDAY.INTL(EOMONTH(FZ10,0)+1,-1,1,Rangos!$B$22:$B$79)=FZ10),"Sí","No") -> No | GA14: =+IF( AND(GA13="Sí",WORKDAY.INTL(EOMONTH(GA10,0)+1,-1,1,Rangos!$B$22:$B$79)=GA10),"Sí","No") -> No | GB14: =+IF( AND(GB13="Sí",WORKDAY.INTL(EOMONTH(GB10,0)+1,-1,1,Rangos!$B$22:$B$79)=GB10),"Sí","No") -> No | GC14: =+IF( AND(GC13="Sí",WORKDAY.INTL(EOMONTH(GC10,0)+1,-1,1,Rangos!$B$22:$B$79)=GC10),"Sí","No") -> No | GD14: =+IF( AND(GD13="Sí",WORKDAY.INTL(EOMONTH(GD10,0)+1,-1,1,Rangos!$B$22:$B$79)=GD10),"Sí","No") -> No | GE14: =+IF( AND(GE13="Sí",WORKDAY.INTL(EOMONTH(GE10,0)+1,-1,1,Rangos!$B$22:$B$79)=GE10),"Sí","No") -> No | GF14: =+IF( AND(GF13="Sí",WORKDAY.INTL(EOMONTH(GF10,0)+1,-1,1,Rangos!$B$22:$B$79)=GF10),"Sí","No") -> No | GG14: =+IF( AND(GG13="Sí",WORKDAY.INTL(EOMONTH(GG10,0)+1,-1,1,Rangos!$B$22:$B$79)=GG10),"Sí","No") -> No | GH14: =+IF( AND(GH13="Sí",WORKDAY.INTL(EOMONTH(GH10,0)+1,-1,1,Rangos!$B$22:$B$79)=GH10),"Sí","No") -> No | GI14: =+IF( AND(GI13="Sí",WORKDAY.INTL(EOMONTH(GI10,0)+1,-1,1,Rangos!$B$22:$B$79)=GI10),"Sí","No") -> No | GJ14: =+IF( AND(GJ13="Sí",WORKDAY.INTL(EOMONTH(GJ10,0)+1,-1,1,Rangos!$B$22:$B$79)=GJ10),"Sí","No") -> No | GK14: =+IF( AND(GK13="Sí",WORKDAY.INTL(EOMONTH(GK10,0)+1,-1,1,Rangos!$B$22:$B$79)=GK10),"Sí","No") -> No | GL14: =+IF( AND(GL13="Sí",WORKDAY.INTL(EOMONTH(GL10,0)+1,-1,1,Rangos!$B$22:$B$79)=GL10),"Sí","No") -> No | GM14: =+IF( AND(GM13="Sí",WORKDAY.INTL(EOMONTH(GM10,0)+1,-1,1,Rangos!$B$22:$B$79)=GM10),"Sí","No") -> No | GN14: =+IF( AND(GN13="Sí",WORKDAY.INTL(EOMONTH(GN10,0)+1,-1,1,Rangos!$B$22:$B$79)=GN10),"Sí","No") -> No | GO14: =+IF( AND(GO13="Sí",WORKDAY.INTL(EOMONTH(GO10,0)+1,-1,1,Rangos!$B$22:$B$79)=GO10),"Sí","No") -> Sí | GP14: =+IF( AND(GP13="Sí",WORKDAY.INTL(EOMONTH(GP10,0)+1,-1,1,Rangos!$B$22:$B$79)=GP10),"Sí","No") -> No | GQ14: =+IF( AND(GQ13="Sí",WORKDAY.INTL(EOMONTH(GQ10,0)+1,-1,1,Rangos!$B$22:$B$79)=GQ10),"Sí","No") -> No | GR14: =+IF( AND(GR13="Sí",WORKDAY.INTL(EOMONTH(GR10,0)+1,-1,1,Rangos!$B$22:$B$79)=GR10),"Sí","No") -> No | GS14: =+IF( AND(GS13="Sí",WORKDAY.INTL(EOMONTH(GS10,0)+1,-1,1,Rangos!$B$22:$B$79)=GS10),"Sí","No") -> No | GT14: =+IF( AND(GT13="Sí",WORKDAY.INTL(EOMONTH(GT10,0)+1,-1,1,Rangos!$B$22:$B$79)=GT10),"Sí","No") -> No | GU14: =+IF( AND(GU13="Sí",WORKDAY.INTL(EOMONTH(GU10,0)+1,-1,1,Rangos!$B$22:$B$79)=GU10),"Sí","No") -> No | GV14: =+IF( AND(GV13="Sí",WORKDAY.INTL(EOMONTH(GV10,0)+1,-1,1,Rangos!$B$22:$B$79)=GV10),"Sí","No") -> No | GW14: =+IF( AND(GW13="Sí",WORKDAY.INTL(EOMONTH(GW10,0)+1,-1,1,Rangos!$B$22:$B$79)=GW10),"Sí","No") -> No | GX14: =+IF( AND(GX13="Sí",WORKDAY.INTL(EOMONTH(GX10,0)+1,-1,1,Rangos!$B$22:$B$79)=GX10),"Sí","No") -> No | GY14: =+IF( AND(GY13="Sí",WORKDAY.INTL(EOMONTH(GY10,0)+1,-1,1,Rangos!$B$22:$B$79)=GY10),"Sí","No") -> No | GZ14: =+IF( AND(GZ13="Sí",WORKDAY.INTL(EOMONTH(GZ10,0)+1,-1,1,Rangos!$B$22:$B$79)=GZ10),"Sí","No") -> No | HA14: =+IF( AND(HA13="Sí",WORKDAY.INTL(EOMONTH(HA10,0)+1,-1,1,Rangos!$B$22:$B$79)=HA10),"Sí","No") -> No | HB14: =+IF( AND(HB13="Sí",WORKDAY.INTL(EOMONTH(HB10,0)+1,-1,1,Rangos!$B$22:$B$79)=HB10),"Sí","No") -> No | HC14: =+IF( AND(HC13="Sí",WORKDAY.INTL(EOMONTH(HC10,0)+1,-1,1,Rangos!$B$22:$B$79)=HC10),"Sí","No") -> No | HD14: =+IF( AND(HD13="Sí",WORKDAY.INTL(EOMONTH(HD10,0)+1,-1,1,Rangos!$B$22:$B$79)=HD10),"Sí","No") -> No | HE14: =+IF( AND(HE13="Sí",WORKDAY.INTL(EOMONTH(HE10,0)+1,-1,1,Rangos!$B$22:$B$79)=HE10),"Sí","No") -> No | HF14: =+IF( AND(HF13="Sí",WORKDAY.INTL(EOMONTH(HF10,0)+1,-1,1,Rangos!$B$22:$B$79)=HF10),"Sí","No") -> No | HG14: =+IF( AND(HG13="Sí",WORKDAY.INTL(EOMONTH(HG10,0)+1,-1,1,Rangos!$B$22:$B$79)=HG10),"Sí","No") -> No | HH14: =+IF( AND(HH13="Sí",WORKDAY.INTL(EOMONTH(HH10,0)+1,-1,1,Rangos!$B$22:$B$79)=HH10),"Sí","No") -> No | HI14: =+IF( AND(HI13="Sí",WORKDAY.INTL(EOMONTH(HI10,0)+1,-1,1,Rangos!$B$22:$B$79)=HI10),"Sí","No") -> No | HJ14: =+IF( AND(HJ13="Sí",WORKDAY.INTL(EOMONTH(HJ10,0)+1,-1,1,Rangos!$B$22:$B$79)=HJ10),"Sí","No") -> No | HK14: =+IF( AND(HK13="Sí",WORKDAY.INTL(EOMONTH(HK10,0)+1,-1,1,Rangos!$B$22:$B$79)=HK10),"Sí","No") -> No | HL14: =+IF( AND(HL13="Sí",WORKDAY.INTL(EOMONTH(HL10,0)+1,-1,1,Rangos!$B$22:$B$79)=HL10),"Sí","No") -> No | HM14: =+IF( AND(HM13="Sí",WORKDAY.INTL(EOMONTH(HM10,0)+1,-1,1,Rangos!$B$22:$B$79)=HM10),"Sí","No") -> No | HN14: =+IF( AND(HN13="Sí",WORKDAY.INTL(EOMONTH(HN10,0)+1,-1,1,Rangos!$B$22:$B$79)=HN10),"Sí","No") -> No | HO14: =+IF( AND(HO13="Sí",WORKDAY.INTL(EOMONTH(HO10,0)+1,-1,1,Rangos!$B$22:$B$79)=HO10),"Sí","No") -> No | HP14: =+IF( AND(HP13="Sí",WORKDAY.INTL(EOMONTH(HP10,0)+1,-1,1,Rangos!$B$22:$B$79)=HP10),"Sí","No") -> No | HQ14: =+IF( AND(HQ13="Sí",WORKDAY.INTL(EOMONTH(HQ10,0)+1,-1,1,Rangos!$B$22:$B$79)=HQ10),"Sí","No") -> Sí | HR14: =+IF( AND(HR13="Sí",WORKDAY.INTL(EOMONTH(HR10,0)+1,-1,1,Rangos!$B$22:$B$79)=HR10),"Sí","No") -> No | HS14: =+IF( AND(HS13="Sí",WORKDAY.INTL(EOMONTH(HS10,0)+1,-1,1,Rangos!$B$22:$B$79)=HS10),"Sí","No") -> No | HT14: =+IF( AND(HT13="Sí",WORKDAY.INTL(EOMONTH(HT10,0)+1,-1,1,Rangos!$B$22:$B$79)=HT10),"Sí","No") -> No | HU14: =+IF( AND(HU13="Sí",WORKDAY.INTL(EOMONTH(HU10,0)+1,-1,1,Rangos!$B$22:$B$79)=HU10),"Sí","No") -> No | HV14: =+IF( AND(HV13="Sí",WORKDAY.INTL(EOMONTH(HV10,0)+1,-1,1,Rangos!$B$22:$B$79)=HV10),"Sí","No") -> No | HW14: =+IF( AND(HW13="Sí",WORKDAY.INTL(EOMONTH(HW10,0)+1,-1,1,Rangos!$B$22:$B$79)=HW10),"Sí","No") -> No | HX14: =+IF( AND(HX13="Sí",WORKDAY.INTL(EOMONTH(HX10,0)+1,-1,1,Rangos!$B$22:$B$79)=HX10),"Sí","No") -> No | HY14: =+IF( AND(HY13="Sí",WORKDAY.INTL(EOMONTH(HY10,0)+1,-1,1,Rangos!$B$22:$B$79)=HY10),"Sí","No") -> No | HZ14: =+IF( AND(HZ13="Sí",WORKDAY.INTL(EOMONTH(HZ10,0)+1,-1,1,Rangos!$B$22:$B$79)=HZ10),"Sí","No") -> No | IA14: =+IF( AND(IA13="Sí",WORKDAY.INTL(EOMONTH(IA10,0)+1,-1,1,Rangos!$B$22:$B$79)=IA10),"Sí","No") -> No | IB14: =+IF( AND(IB13="Sí",WORKDAY.INTL(EOMONTH(IB10,0)+1,-1,1,Rangos!$B$22:$B$79)=IB10),"Sí","No") -> No | IC14: =+IF( AND(IC13="Sí",WORKDAY.INTL(EOMONTH(IC10,0)+1,-1,1,Rangos!$B$22:$B$79)=IC10),"Sí","No") -> No | ID14: =+IF( AND(ID13="Sí",WORKDAY.INTL(EOMONTH(ID10,0)+1,-1,1,Rangos!$B$22:$B$79)=ID10),"Sí","No") -> No | IE14: =+IF( AND(IE13="Sí",WORKDAY.INTL(EOMONTH(IE10,0)+1,-1,1,Rangos!$B$22:$B$79)=IE10),"Sí","No") -> No | IF14: =+IF( AND(IF13="Sí",WORKDAY.INTL(EOMONTH(IF10,0)+1,-1,1,Rangos!$B$22:$B$79)=IF10),"Sí","No") -> No | IG14: =+IF( AND(IG13="Sí",WORKDAY.INTL(EOMONTH(IG10,0)+1,-1,1,Rangos!$B$22:$B$79)=IG10),"Sí","No") -> No | IH14: =+IF( AND(IH13="Sí",WORKDAY.INTL(EOMONTH(IH10,0)+1,-1,1,Rangos!$B$22:$B$79)=IH10),"Sí","No") -> No | II14: =+IF( AND(II13="Sí",WORKDAY.INTL(EOMONTH(II10,0)+1,-1,1,Rangos!$B$22:$B$79)=II10),"Sí","No") -> No | IJ14: =+IF( AND(IJ13="Sí",WORKDAY.INTL(EOMONTH(IJ10,0)+1,-1,1,Rangos!$B$22:$B$79)=IJ10),"Sí","No") -> No | IK14: =+IF( AND(IK13="Sí",WORKDAY.INTL(EOMONTH(IK10,0)+1,-1,1,Rangos!$B$22:$B$79)=IK10),"Sí","No") -> No | IL14: =+IF( AND(IL13="Sí",WORKDAY.INTL(EOMONTH(IL10,0)+1,-1,1,Rangos!$B$22:$B$79)=IL10),"Sí","No") -> No | IM14: =+IF( AND(IM13="Sí",WORKDAY.INTL(EOMONTH(IM10,0)+1,-1,1,Rangos!$B$22:$B$79)=IM10),"Sí","No") -> No | IN14: =+IF( AND(IN13="Sí",WORKDAY.INTL(EOMONTH(IN10,0)+1,-1,1,Rangos!$B$22:$B$79)=IN10),"Sí","No") -> No | IO14: =+IF( AND(IO13="Sí",WORKDAY.INTL(EOMONTH(IO10,0)+1,-1,1,Rangos!$B$22:$B$79)=IO10),"Sí","No") -> No | IP14: =+IF( AND(IP13="Sí",WORKDAY.INTL(EOMONTH(IP10,0)+1,-1,1,Rangos!$B$22:$B$79)=IP10),"Sí","No") -> No | IQ14: =+IF( AND(IQ13="Sí",WORKDAY.INTL(EOMONTH(IQ10,0)+1,-1,1,Rangos!$B$22:$B$79)=IQ10),"Sí","No") -> No | IR14: =+IF( AND(IR13="Sí",WORKDAY.INTL(EOMONTH(IR10,0)+1,-1,1,Rangos!$B$22:$B$79)=IR10),"Sí","No") -> No | IS14: =+IF( AND(IS13="Sí",WORKDAY.INTL(EOMONTH(IS10,0)+1,-1,1,Rangos!$B$22:$B$79)=IS10),"Sí","No") -> No | IT14: =+IF( AND(IT13="Sí",WORKDAY.INTL(EOMONTH(IT10,0)+1,-1,1,Rangos!$B$22:$B$79)=IT10),"Sí","No") -> No | IU14: =+IF( AND(IU13="Sí",WORKDAY.INTL(EOMONTH(IU10,0)+1,-1,1,Rangos!$B$22:$B$79)=IU10),"Sí","No") -> No | IV14: =+IF( AND(IV13="Sí",WORKDAY.INTL(EOMONTH(IV10,0)+1,-1,1,Rangos!$B$22:$B$79)=IV10),"Sí","No") -> No | IW14: =+IF( AND(IW13="Sí",WORKDAY.INTL(EOMONTH(IW10,0)+1,-1,1,Rangos!$B$22:$B$79)=IW10),"Sí","No") -> Sí | IX14: =+IF( AND(IX13="Sí",WORKDAY.INTL(EOMONTH(IX10,0)+1,-1,1,Rangos!$B$22:$B$79)=IX10),"Sí","No") -> No | IY14: =+IF( AND(IY13="Sí",WORKDAY.INTL(EOMONTH(IY10,0)+1,-1,1,Rangos!$B$22:$B$79)=IY10),"Sí","No") -> No | IZ14: =+IF( AND(IZ13="Sí",WORKDAY.INTL(EOMONTH(IZ10,0)+1,-1,1,Rangos!$B$22:$B$79)=IZ10),"Sí","No") -> No | JA14: =+IF( AND(JA13="Sí",WORKDAY.INTL(EOMONTH(JA10,0)+1,-1,1,Rangos!$B$22:$B$79)=JA10),"Sí","No") -> No | JB14: =+IF( AND(JB13="Sí",WORKDAY.INTL(EOMONTH(JB10,0)+1,-1,1,Rangos!$B$22:$B$79)=JB10),"Sí","No") -> No | JC14: =+IF( AND(JC13="Sí",WORKDAY.INTL(EOMONTH(JC10,0)+1,-1,1,Rangos!$B$22:$B$79)=JC10),"Sí","No") -> No | JD14: =+IF( AND(JD13="Sí",WORKDAY.INTL(EOMONTH(JD10,0)+1,-1,1,Rangos!$B$22:$B$79)=JD10),"Sí","No") -> No | JE14: =+IF( AND(JE13="Sí",WORKDAY.INTL(EOMONTH(JE10,0)+1,-1,1,Rangos!$B$22:$B$79)=JE10),"Sí","No") -> No | JF14: =+IF( AND(JF13="Sí",WORKDAY.INTL(EOMONTH(JF10,0)+1,-1,1,Rangos!$B$22:$B$79)=JF10),"Sí","No") -> No | JG14: =+IF( AND(JG13="Sí",WORKDAY.INTL(EOMONTH(JG10,0)+1,-1,1,Rangos!$B$22:$B$79)=JG10),"Sí","No") -> No | JH14: =+IF( AND(JH13="Sí",WORKDAY.INTL(EOMONTH(JH10,0)+1,-1,1,Rangos!$B$22:$B$79)=JH10),"Sí","No") -> No | JI14: =+IF( AND(JI13="Sí",WORKDAY.INTL(EOMONTH(JI10,0)+1,-1,1,Rangos!$B$22:$B$79)=JI10),"Sí","No") -> No | JJ14: =+IF( AND(JJ13="Sí",WORKDAY.INTL(EOMONTH(JJ10,0)+1,-1,1,Rangos!$B$22:$B$79)=JJ10),"Sí","No") -> No | JK14: =+IF( AND(JK13="Sí",WORKDAY.INTL(EOMONTH(JK10,0)+1,-1,1,Rangos!$B$22:$B$79)=JK10),"Sí","No") -> No | JL14: =+IF( AND(JL13="Sí",WORKDAY.INTL(EOMONTH(JL10,0)+1,-1,1,Rangos!$B$22:$B$79)=JL10),"Sí","No") -> No | JM14: =+IF( AND(JM13="Sí",WORKDAY.INTL(EOMONTH(JM10,0)+1,-1,1,Rangos!$B$22:$B$79)=JM10),"Sí","No") -> No | JN14: =+IF( AND(JN13="Sí",WORKDAY.INTL(EOMONTH(JN10,0)+1,-1,1,Rangos!$B$22:$B$79)=JN10),"Sí","No") -> No | JO14: =+IF( AND(JO13="Sí",WORKDAY.INTL(EOMONTH(JO10,0)+1,-1,1,Rangos!$B$22:$B$79)=JO10),"Sí","No") -> No | JP14: =+IF( AND(JP13="Sí",WORKDAY.INTL(EOMONTH(JP10,0)+1,-1,1,Rangos!$B$22:$B$79)=JP10),"Sí","No") -> No | JQ14: =+IF( AND(JQ13="Sí",WORKDAY.INTL(EOMONTH(JQ10,0)+1,-1,1,Rangos!$B$22:$B$79)=JQ10),"Sí","No") -> No | JR14: =+IF( AND(JR13="Sí",WORKDAY.INTL(EOMONTH(JR10,0)+1,-1,1,Rangos!$B$22:$B$79)=JR10),"Sí","No") -> No | JS14: =+IF( AND(JS13="Sí",WORKDAY.INTL(EOMONTH(JS10,0)+1,-1,1,Rangos!$B$22:$B$79)=JS10),"Sí","No") -> No | JT14: =+IF( AND(JT13="Sí",WORKDAY.INTL(EOMONTH(JT10,0)+1,-1,1,Rangos!$B$22:$B$79)=JT10),"Sí","No") -> No | JU14: =+IF( AND(JU13="Sí",WORKDAY.INTL(EOMONTH(JU10,0)+1,-1,1,Rangos!$B$22:$B$79)=JU10),"Sí","No") -> No | JV14: =+IF( AND(JV13="Sí",WORKDAY.INTL(EOMONTH(JV10,0)+1,-1,1,Rangos!$B$22:$B$79)=JV10),"Sí","No") -> No | JW14: =+IF( AND(JW13="Sí",WORKDAY.INTL(EOMONTH(JW10,0)+1,-1,1,Rangos!$B$22:$B$79)=JW10),"Sí","No") -> No | JX14: =+IF( AND(JX13="Sí",WORKDAY.INTL(EOMONTH(JX10,0)+1,-1,1,Rangos!$B$22:$B$79)=JX10),"Sí","No") -> No | JY14: =+IF( AND(JY13="Sí",WORKDAY.INTL(EOMONTH(JY10,0)+1,-1,1,Rangos!$B$22:$B$79)=JY10),"Sí","No") -> No | JZ14: =+IF( AND(JZ13="Sí",WORKDAY.INTL(EOMONTH(JZ10,0)+1,-1,1,Rangos!$B$22:$B$79)=JZ10),"Sí","No") -> No | KA14: =+IF( AND(KA13="Sí",WORKDAY.INTL(EOMONTH(KA10,0)+1,-1,1,Rangos!$B$22:$B$79)=KA10),"Sí","No") -> Sí | KB14: =+IF( AND(KB13="Sí",WORKDAY.INTL(EOMONTH(KB10,0)+1,-1,1,Rangos!$B$22:$B$79)=KB10),"Sí","No") -> No | KC14: =+IF( AND(KC13="Sí",WORKDAY.INTL(EOMONTH(KC10,0)+1,-1,1,Rangos!$B$22:$B$79)=KC10),"Sí","No") -> No | KD14: =+IF( AND(KD13="Sí",WORKDAY.INTL(EOMONTH(KD10,0)+1,-1,1,Rangos!$B$22:$B$79)=KD10),"Sí","No") -> No | KE14: =+IF( AND(KE13="Sí",WORKDAY.INTL(EOMONTH(KE10,0)+1,-1,1,Rangos!$B$22:$B$79)=KE10),"Sí","No") -> No | KF14: =+IF( AND(KF13="Sí",WORKDAY.INTL(EOMONTH(KF10,0)+1,-1,1,Rangos!$B$22:$B$79)=KF10),"Sí","No") -> No | KG14: =+IF( AND(KG13="Sí",WORKDAY.INTL(EOMONTH(KG10,0)+1,-1,1,Rangos!$B$22:$B$79)=KG10),"Sí","No") -> No | KH14: =+IF( AND(KH13="Sí",WORKDAY.INTL(EOMONTH(KH10,0)+1,-1,1,Rangos!$B$22:$B$79)=KH10),"Sí","No") -> No | KI14: =+IF( AND(KI13="Sí",WORKDAY.INTL(EOMONTH(KI10,0)+1,-1,1,Rangos!$B$22:$B$79)=KI10),"Sí","No") -> No | KJ14: =+IF( AND(KJ13="Sí",WORKDAY.INTL(EOMONTH(KJ10,0)+1,-1,1,Rangos!$B$22:$B$79)=KJ10),"Sí","No") -> No | KK14: =+IF( AND(KK13="Sí",WORKDAY.INTL(EOMONTH(KK10,0)+1,-1,1,Rangos!$B$22:$B$79)=KK10),"Sí","No") -> No | KL14: =+IF( AND(KL13="Sí",WORKDAY.INTL(EOMONTH(KL10,0)+1,-1,1,Rangos!$B$22:$B$79)=KL10),"Sí","No") -> No | KM14: =+IF( AND(KM13="Sí",WORKDAY.INTL(EOMONTH(KM10,0)+1,-1,1,Rangos!$B$22:$B$79)=KM10),"Sí","No") -> No | KN14: =+IF( AND(KN13="Sí",WORKDAY.INTL(EOMONTH(KN10,0)+1,-1,1,Rangos!$B$22:$B$79)=KN10),"Sí","No") -> No | KO14: =+IF( AND(KO13="Sí",WORKDAY.INTL(EOMONTH(KO10,0)+1,-1,1,Rangos!$B$22:$B$79)=KO10),"Sí","No") -> No | KP14: =+IF( AND(KP13="Sí",WORKDAY.INTL(EOMONTH(KP10,0)+1,-1,1,Rangos!$B$22:$B$79)=KP10),"Sí","No") -> No | KQ14: =+IF( AND(KQ13="Sí",WORKDAY.INTL(EOMONTH(KQ10,0)+1,-1,1,Rangos!$B$22:$B$79)=KQ10),"Sí","No") -> No | KR14: =+IF( AND(KR13="Sí",WORKDAY.INTL(EOMONTH(KR10,0)+1,-1,1,Rangos!$B$22:$B$79)=KR10),"Sí","No") -> No | KS14: =+IF( AND(KS13="Sí",WORKDAY.INTL(EOMONTH(KS10,0)+1,-1,1,Rangos!$B$22:$B$79)=KS10),"Sí","No") -> No | KT14: =+IF( AND(KT13="Sí",WORKDAY.INTL(EOMONTH(KT10,0)+1,-1,1,Rangos!$B$22:$B$79)=KT10),"Sí","No") -> No | KU14: =+IF( AND(KU13="Sí",WORKDAY.INTL(EOMONTH(KU10,0)+1,-1,1,Rangos!$B$22:$B$79)=KU10),"Sí","No") -> No | KV14: =+IF( AND(KV13="Sí",WORKDAY.INTL(EOMONTH(KV10,0)+1,-1,1,Rangos!$B$22:$B$79)=KV10),"Sí","No") -> No | KW14: =+IF( AND(KW13="Sí",WORKDAY.INTL(EOMONTH(KW10,0)+1,-1,1,Rangos!$B$22:$B$79)=KW10),"Sí","No") -> No | KX14: =+IF( AND(KX13="Sí",WORKDAY.INTL(EOMONTH(KX10,0)+1,-1,1,Rangos!$B$22:$B$79)=KX10),"Sí","No") -> No | KY14: =+IF( AND(KY13="Sí",WORKDAY.INTL(EOMONTH(KY10,0)+1,-1,1,Rangos!$B$22:$B$79)=KY10),"Sí","No") -> No | KZ14: =+IF( AND(KZ13="Sí",WORKDAY.INTL(EOMONTH(KZ10,0)+1,-1,1,Rangos!$B$22:$B$79)=KZ10),"Sí","No") -> No | LA14: =+IF( AND(LA13="Sí",WORKDAY.INTL(EOMONTH(LA10,0)+1,-1,1,Rangos!$B$22:$B$79)=LA10),"Sí","No") -> No | LB14: =+IF( AND(LB13="Sí",WORKDAY.INTL(EOMONTH(LB10,0)+1,-1,1,Rangos!$B$22:$B$79)=LB10),"Sí","No") -> No | LC14: =+IF( AND(LC13="Sí",WORKDAY.INTL(EOMONTH(LC10,0)+1,-1,1,Rangos!$B$22:$B$79)=LC10),"Sí","No") -> No | LD14: =+IF( AND(LD13="Sí",WORKDAY.INTL(EOMONTH(LD10,0)+1,-1,1,Rangos!$B$22:$B$79)=LD10),"Sí","No") -> Sí | LE14: =+IF( AND(LE13="Sí",WORKDAY.INTL(EOMONTH(LE10,0)+1,-1,1,Rangos!$B$22:$B$79)=LE10),"Sí","No") -> No | LF14: =+IF( AND(LF13="Sí",WORKDAY.INTL(EOMONTH(LF10,0)+1,-1,1,Rangos!$B$22:$B$79)=LF10),"Sí","No") -> No | LG14: =+IF( AND(LG13="Sí",WORKDAY.INTL(EOMONTH(LG10,0)+1,-1,1,Rangos!$B$22:$B$79)=LG10),"Sí","No") -> No | LH14: =+IF( AND(LH13="Sí",WORKDAY.INTL(EOMONTH(LH10,0)+1,-1,1,Rangos!$B$22:$B$79)=LH10),"Sí","No") -> No | LI14: =+IF( AND(LI13="Sí",WORKDAY.INTL(EOMONTH(LI10,0)+1,-1,1,Rangos!$B$22:$B$79)=LI10),"Sí","No") -> No | LJ14: =+IF( AND(LJ13="Sí",WORKDAY.INTL(EOMONTH(LJ10,0)+1,-1,1,Rangos!$B$22:$B$79)=LJ10),"Sí","No") -> No | LK14: =+IF( AND(LK13="Sí",WORKDAY.INTL(EOMONTH(LK10,0)+1,-1,1,Rangos!$B$22:$B$79)=LK10),"Sí","No") -> No | LL14: =+IF( AND(LL13="Sí",WORKDAY.INTL(EOMONTH(LL10,0)+1,-1,1,Rangos!$B$22:$B$79)=LL10),"Sí","No") -> No | LM14: =+IF( AND(LM13="Sí",WORKDAY.INTL(EOMONTH(LM10,0)+1,-1,1,Rangos!$B$22:$B$79)=LM10),"Sí","No") -> No | LN14: =+IF( AND(LN13="Sí",WORKDAY.INTL(EOMONTH(LN10,0)+1,-1,1,Rangos!$B$22:$B$79)=LN10),"Sí","No") -> No | LO14: =+IF( AND(LO13="Sí",WORKDAY.INTL(EOMONTH(LO10,0)+1,-1,1,Rangos!$B$22:$B$79)=LO10),"Sí","No") -> No | LP14: =+IF( AND(LP13="Sí",WORKDAY.INTL(EOMONTH(LP10,0)+1,-1,1,Rangos!$B$22:$B$79)=LP10),"Sí","No") -> No | LQ14: =+IF( AND(LQ13="Sí",WORKDAY.INTL(EOMONTH(LQ10,0)+1,-1,1,Rangos!$B$22:$B$79)=LQ10),"Sí","No") -> No | LR14: =+IF( AND(LR13="Sí",WORKDAY.INTL(EOMONTH(LR10,0)+1,-1,1,Rangos!$B$22:$B$79)=LR10),"Sí","No") -> No | LS14: =+IF( AND(LS13="Sí",WORKDAY.INTL(EOMONTH(LS10,0)+1,-1,1,Rangos!$B$22:$B$79)=LS10),"Sí","No") -> No | LT14: =+IF( AND(LT13="Sí",WORKDAY.INTL(EOMONTH(LT10,0)+1,-1,1,Rangos!$B$22:$B$79)=LT10),"Sí","No") -> No | LU14: =+IF( AND(LU13="Sí",WORKDAY.INTL(EOMONTH(LU10,0)+1,-1,1,Rangos!$B$22:$B$79)=LU10),"Sí","No") -> No | LV14: =+IF( AND(LV13="Sí",WORKDAY.INTL(EOMONTH(LV10,0)+1,-1,1,Rangos!$B$22:$B$79)=LV10),"Sí","No") -> No | LW14: =+IF( AND(LW13="Sí",WORKDAY.INTL(EOMONTH(LW10,0)+1,-1,1,Rangos!$B$22:$B$79)=LW10),"Sí","No") -> No | LX14: =+IF( AND(LX13="Sí",WORKDAY.INTL(EOMONTH(LX10,0)+1,-1,1,Rangos!$B$22:$B$79)=LX10),"Sí","No") -> No | LY14: =+IF( AND(LY13="Sí",WORKDAY.INTL(EOMONTH(LY10,0)+1,-1,1,Rangos!$B$22:$B$79)=LY10),"Sí","No") -> No | LZ14: =+IF( AND(LZ13="Sí",WORKDAY.INTL(EOMONTH(LZ10,0)+1,-1,1,Rangos!$B$22:$B$79)=LZ10),"Sí","No") -> No | MA14: =+IF( AND(MA13="Sí",WORKDAY.INTL(EOMONTH(MA10,0)+1,-1,1,Rangos!$B$22:$B$79)=MA10),"Sí","No") -> No | MB14: =+IF( AND(MB13="Sí",WORKDAY.INTL(EOMONTH(MB10,0)+1,-1,1,Rangos!$B$22:$B$79)=MB10),"Sí","No") -> No | MC14: =+IF( AND(MC13="Sí",WORKDAY.INTL(EOMONTH(MC10,0)+1,-1,1,Rangos!$B$22:$B$79)=MC10),"Sí","No") -> No | MD14: =+IF( AND(MD13="Sí",WORKDAY.INTL(EOMONTH(MD10,0)+1,-1,1,Rangos!$B$22:$B$79)=MD10),"Sí","No") -> No | ME14: =+IF( AND(ME13="Sí",WORKDAY.INTL(EOMONTH(ME10,0)+1,-1,1,Rangos!$B$22:$B$79)=ME10),"Sí","No") -> No | MF14: =+IF( AND(MF13="Sí",WORKDAY.INTL(EOMONTH(MF10,0)+1,-1,1,Rangos!$B$22:$B$79)=MF10),"Sí","No") -> No | MG14: =+IF( AND(MG13="Sí",WORKDAY.INTL(EOMONTH(MG10,0)+1,-1,1,Rangos!$B$22:$B$79)=MG10),"Sí","No") -> No | MH14: =+IF( AND(MH13="Sí",WORKDAY.INTL(EOMONTH(MH10,0)+1,-1,1,Rangos!$B$22:$B$79)=MH10),"Sí","No") -> No | MI14: =+IF( AND(MI13="Sí",WORKDAY.INTL(EOMONTH(MI10,0)+1,-1,1,Rangos!$B$22:$B$79)=MI10),"Sí","No") -> No | MJ14: =+IF( AND(MJ13="Sí",WORKDAY.INTL(EOMONTH(MJ10,0)+1,-1,1,Rangos!$B$22:$B$79)=MJ10),"Sí","No") -> Sí | MK14: =+IF( AND(MK13="Sí",WORKDAY.INTL(EOMONTH(MK10,0)+1,-1,1,Rangos!$B$22:$B$79)=MK10),"Sí","No") -> No | ML14: =+IF( AND(ML13="Sí",WORKDAY.INTL(EOMONTH(ML10,0)+1,-1,1,Rangos!$B$22:$B$79)=ML10),"Sí","No") -> No | MM14: =+IF( AND(MM13="Sí",WORKDAY.INTL(EOMONTH(MM10,0)+1,-1,1,Rangos!$B$22:$B$79)=MM10),"Sí","No") -> No | MN14: =+IF( AND(MN13="Sí",WORKDAY.INTL(EOMONTH(MN10,0)+1,-1,1,Rangos!$B$22:$B$79)=MN10),"Sí","No") -> No | MO14: =+IF( AND(MO13="Sí",WORKDAY.INTL(EOMONTH(MO10,0)+1,-1,1,Rangos!$B$22:$B$79)=MO10),"Sí","No") -> No | MP14: =+IF( AND(MP13="Sí",WORKDAY.INTL(EOMONTH(MP10,0)+1,-1,1,Rangos!$B$22:$B$79)=MP10),"Sí","No") -> No | MQ14: =+IF( AND(MQ13="Sí",WORKDAY.INTL(EOMONTH(MQ10,0)+1,-1,1,Rangos!$B$22:$B$79)=MQ10),"Sí","No") -> No | MR14: =+IF( AND(MR13="Sí",WORKDAY.INTL(EOMONTH(MR10,0)+1,-1,1,Rangos!$B$22:$B$79)=MR10),"Sí","No") -> No | MS14: =+IF( AND(MS13="Sí",WORKDAY.INTL(EOMONTH(MS10,0)+1,-1,1,Rangos!$B$22:$B$79)=MS10),"Sí","No") -> No | MT14: =+IF( AND(MT13="Sí",WORKDAY.INTL(EOMONTH(MT10,0)+1,-1,1,Rangos!$B$22:$B$79)=MT10),"Sí","No") -> No | MU14: =+IF( AND(MU13="Sí",WORKDAY.INTL(EOMONTH(MU10,0)+1,-1,1,Rangos!$B$22:$B$79)=MU10),"Sí","No") -> No | MV14: =+IF( AND(MV13="Sí",WORKDAY.INTL(EOMONTH(MV10,0)+1,-1,1,Rangos!$B$22:$B$79)=MV10),"Sí","No") -> No | MW14: =+IF( AND(MW13="Sí",WORKDAY.INTL(EOMONTH(MW10,0)+1,-1,1,Rangos!$B$22:$B$79)=MW10),"Sí","No") -> No | MX14: =+IF( AND(MX13="Sí",WORKDAY.INTL(EOMONTH(MX10,0)+1,-1,1,Rangos!$B$22:$B$79)=MX10),"Sí","No") -> No | MY14: =+IF( AND(MY13="Sí",WORKDAY.INTL(EOMONTH(MY10,0)+1,-1,1,Rangos!$B$22:$B$79)=MY10),"Sí","No") -> No | MZ14: =+IF( AND(MZ13="Sí",WORKDAY.INTL(EOMONTH(MZ10,0)+1,-1,1,Rangos!$B$22:$B$79)=MZ10),"Sí","No") -> No | NA14: =+IF( AND(NA13="Sí",WORKDAY.INTL(EOMONTH(NA10,0)+1,-1,1,Rangos!$B$22:$B$79)=NA10),"Sí","No") -> No | NB14: =+IF( AND(NB13="Sí",WORKDAY.INTL(EOMONTH(NB10,0)+1,-1,1,Rangos!$B$22:$B$79)=NB10),"Sí","No") -> No | NC14: =+IF( AND(NC13="Sí",WORKDAY.INTL(EOMONTH(NC10,0)+1,-1,1,Rangos!$B$22:$B$79)=NC10),"Sí","No") -> No | ND14: =+IF( AND(ND13="Sí",WORKDAY.INTL(EOMONTH(ND10,0)+1,-1,1,Rangos!$B$22:$B$79)=ND10),"Sí","No") -> No | NE14: =+IF( AND(NE13="Sí",WORKDAY.INTL(EOMONTH(NE10,0)+1,-1,1,Rangos!$B$22:$B$79)=NE10),"Sí","No") -> No | NF14: =+IF( AND(NF13="Sí",WORKDAY.INTL(EOMONTH(NF10,0)+1,-1,1,Rangos!$B$22:$B$79)=NF10),"Sí","No") -> No | NG14: =+IF( AND(NG13="Sí",WORKDAY.INTL(EOMONTH(NG10,0)+1,-1,1,Rangos!$B$22:$B$79)=NG10),"Sí","No") -> No | NH14: =+IF( AND(NH13="Sí",WORKDAY.INTL(EOMONTH(NH10,0)+1,-1,1,Rangos!$B$22:$B$79)=NH10),"Sí","No") -> No | NI14: =+IF( AND(NI13="Sí",WORKDAY.INTL(EOMONTH(NI10,0)+1,-1,1,Rangos!$B$22:$B$79)=NI10),"Sí","No") -> No | NJ14: =+IF( AND(NJ13="Sí",WORKDAY.INTL(EOMONTH(NJ10,0)+1,-1,1,Rangos!$B$22:$B$79)=NJ10),"Sí","No") -> No | NK14: =+IF( AND(NK13="Sí",WORKDAY.INTL(EOMONTH(NK10,0)+1,-1,1,Rangos!$B$22:$B$79)=NK10),"Sí","No") -> No | NL14: =+IF( AND(NL13="Sí",WORKDAY.INTL(EOMONTH(NL10,0)+1,-1,1,Rangos!$B$22:$B$79)=NL10),"Sí","No") -> No | NM14: =+IF( AND(NM13="Sí",WORKDAY.INTL(EOMONTH(NM10,0)+1,-1,1,Rangos!$B$22:$B$79)=NM10),"Sí","No") -> No | NN14: =+IF( AND(NN13="Sí",WORKDAY.INTL(EOMONTH(NN10,0)+1,-1,1,Rangos!$B$22:$B$79)=NN10),"Sí","No") -> No | NO14: =+IF( AND(NO13="Sí",WORKDAY.INTL(EOMONTH(NO10,0)+1,-1,1,Rangos!$B$22:$B$79)=NO10),"Sí","No") -> Sí | NP14: =+IF( AND(NP13="Sí",WORKDAY.INTL(EOMONTH(NP10,0)+1,-1,1,Rangos!$B$22:$B$79)=NP10),"Sí","No") -> No | NQ14: =+IF( AND(NQ13="Sí",WORKDAY.INTL(EOMONTH(NQ10,0)+1,-1,1,Rangos!$B$22:$B$79)=NQ10),"Sí","No") -> No | NR14: =+IF( AND(NR13="Sí",WORKDAY.INTL(EOMONTH(NR10,0)+1,-1,1,Rangos!$B$22:$B$79)=NR10),"Sí","No") -> No | NS14: =+IF( AND(NS13="Sí",WORKDAY.INTL(EOMONTH(NS10,0)+1,-1,1,Rangos!$B$22:$B$79)=NS10),"Sí","No") -> No | NT14: =+IF( AND(NT13="Sí",WORKDAY.INTL(EOMONTH(NT10,0)+1,-1,1,Rangos!$B$22:$B$79)=NT10),"Sí","No") -> No | NU14: =+IF( AND(NU13="Sí",WORKDAY.INTL(EOMONTH(NU10,0)+1,-1,1,Rangos!$B$22:$B$79)=NU10),"Sí","No") -> No | NV14: =+IF( AND(NV13="Sí",WORKDAY.INTL(EOMONTH(NV10,0)+1,-1,1,Rangos!$B$22:$B$79)=NV10),"Sí","No") -> No | NW14: =+IF( AND(NW13="Sí",WORKDAY.INTL(EOMONTH(NW10,0)+1,-1,1,Rangos!$B$22:$B$79)=NW10),"Sí","No") -> No | NX14: =+IF( AND(NX13="Sí",WORKDAY.INTL(EOMONTH(NX10,0)+1,-1,1,Rangos!$B$22:$B$79)=NX10),"Sí","No") -> No | NY14: =+IF( AND(NY13="Sí",WORKDAY.INTL(EOMONTH(NY10,0)+1,-1,1,Rangos!$B$22:$B$79)=NY10),"Sí","No") -> No | NZ14: =+IF( AND(NZ13="Sí",WORKDAY.INTL(EOMONTH(NZ10,0)+1,-1,1,Rangos!$B$22:$B$79)=NZ10),"Sí","No") -> No | OA14: =+IF( AND(OA13="Sí",WORKDAY.INTL(EOMONTH(OA10,0)+1,-1,1,Rangos!$B$22:$B$79)=OA10),"Sí","No") -> No | OB14: =+IF( AND(OB13="Sí",WORKDAY.INTL(EOMONTH(OB10,0)+1,-1,1,Rangos!$B$22:$B$79)=OB10),"Sí","No") -> No | OC14: =+IF( AND(OC13="Sí",WORKDAY.INTL(EOMONTH(OC10,0)+1,-1,1,Rangos!$B$22:$B$79)=OC10),"Sí","No") -> No | OD14: =+IF( AND(OD13="Sí",WORKDAY.INTL(EOMONTH(OD10,0)+1,-1,1,Rangos!$B$22:$B$79)=OD10),"Sí","No") -> No | OE14: =+IF( AND(OE13="Sí",WORKDAY.INTL(EOMONTH(OE10,0)+1,-1,1,Rangos!$B$22:$B$79)=OE10),"Sí","No") -> No | OF14: =+IF( AND(OF13="Sí",WORKDAY.INTL(EOMONTH(OF10,0)+1,-1,1,Rangos!$B$22:$B$79)=OF10),"Sí","No") -> No | OG14: =+IF( AND(OG13="Sí",WORKDAY.INTL(EOMONTH(OG10,0)+1,-1,1,Rangos!$B$22:$B$79)=OG10),"Sí","No") -> No | OH14: =+IF( AND(OH13="Sí",WORKDAY.INTL(EOMONTH(OH10,0)+1,-1,1,Rangos!$B$22:$B$79)=OH10),"Sí","No") -> No | OI14: =+IF( AND(OI13="Sí",WORKDAY.INTL(EOMONTH(OI10,0)+1,-1,1,Rangos!$B$22:$B$79)=OI10),"Sí","No") -> No | OJ14: =+IF( AND(OJ13="Sí",WORKDAY.INTL(EOMONTH(OJ10,0)+1,-1,1,Rangos!$B$22:$B$79)=OJ10),"Sí","No") -> No | OK14: =+IF( AND(OK13="Sí",WORKDAY.INTL(EOMONTH(OK10,0)+1,-1,1,Rangos!$B$22:$B$79)=OK10),"Sí","No") -> No | OL14: =+IF( AND(OL13="Sí",WORKDAY.INTL(EOMONTH(OL10,0)+1,-1,1,Rangos!$B$22:$B$79)=OL10),"Sí","No") -> No | OM14: =+IF( AND(OM13="Sí",WORKDAY.INTL(EOMONTH(OM10,0)+1,-1,1,Rangos!$B$22:$B$79)=OM10),"Sí","No") -> No | ON14: =+IF( AND(ON13="Sí",WORKDAY.INTL(EOMONTH(ON10,0)+1,-1,1,Rangos!$B$22:$B$79)=ON10),"Sí","No") -> No | OO14: =+IF( AND(OO13="Sí",WORKDAY.INTL(EOMONTH(OO10,0)+1,-1,1,Rangos!$B$22:$B$79)=OO10),"Sí","No") -> No | OP14: =+IF( AND(OP13="Sí",WORKDAY.INTL(EOMONTH(OP10,0)+1,-1,1,Rangos!$B$22:$B$79)=OP10),"Sí","No") -> No | OQ14: =+IF( AND(OQ13="Sí",WORKDAY.INTL(EOMONTH(OQ10,0)+1,-1,1,Rangos!$B$22:$B$79)=OQ10),"Sí","No") -> No | OR14: =+IF( AND(OR13="Sí",WORKDAY.INTL(EOMONTH(OR10,0)+1,-1,1,Rangos!$B$22:$B$79)=OR10),"Sí","No") -> No | OS14: =+IF( AND(OS13="Sí",WORKDAY.INTL(EOMONTH(OS10,0)+1,-1,1,Rangos!$B$22:$B$79)=OS10),"Sí","No") -> No | OT14: =+IF( AND(OT13="Sí",WORKDAY.INTL(EOMONTH(OT10,0)+1,-1,1,Rangos!$B$22:$B$79)=OT10),"Sí","No") -> Sí | OU14: =+IF( AND(OU13="Sí",WORKDAY.INTL(EOMONTH(OU10,0)+1,-1,1,Rangos!$B$22:$B$79)=OU10),"Sí","No") -> No | OV14: =+IF( AND(OV13="Sí",WORKDAY.INTL(EOMONTH(OV10,0)+1,-1,1,Rangos!$B$22:$B$79)=OV10),"Sí","No") -> No | OW14: =+IF( AND(OW13="Sí",WORKDAY.INTL(EOMONTH(OW10,0)+1,-1,1,Rangos!$B$22:$B$79)=OW10),"Sí","No") -> No | OX14: =+IF( AND(OX13="Sí",WORKDAY.INTL(EOMONTH(OX10,0)+1,-1,1,Rangos!$B$22:$B$79)=OX10),"Sí","No") -> No | OY14: =+IF( AND(OY13="Sí",WORKDAY.INTL(EOMONTH(OY10,0)+1,-1,1,Rangos!$B$22:$B$79)=OY10),"Sí","No") -> No | OZ14: =+IF( AND(OZ13="Sí",WORKDAY.INTL(EOMONTH(OZ10,0)+1,-1,1,Rangos!$B$22:$B$79)=OZ10),"Sí","No") -> No | PA14: =+IF( AND(PA13="Sí",WORKDAY.INTL(EOMONTH(PA10,0)+1,-1,1,Rangos!$B$22:$B$79)=PA10),"Sí","No") -> No | PB14: =+IF( AND(PB13="Sí",WORKDAY.INTL(EOMONTH(PB10,0)+1,-1,1,Rangos!$B$22:$B$79)=PB10),"Sí","No") -> No | PC14: =+IF( AND(PC13="Sí",WORKDAY.INTL(EOMONTH(PC10,0)+1,-1,1,Rangos!$B$22:$B$79)=PC10),"Sí","No") -> No | PD14: =+IF( AND(PD13="Sí",WORKDAY.INTL(EOMONTH(PD10,0)+1,-1,1,Rangos!$B$22:$B$79)=PD10),"Sí","No") -> No | PE14: =+IF( AND(PE13="Sí",WORKDAY.INTL(EOMONTH(PE10,0)+1,-1,1,Rangos!$B$22:$B$79)=PE10),"Sí","No") -> No | PF14: =+IF( AND(PF13="Sí",WORKDAY.INTL(EOMONTH(PF10,0)+1,-1,1,Rangos!$B$22:$B$79)=PF10),"Sí","No") -> No | PG14: =+IF( AND(PG13="Sí",WORKDAY.INTL(EOMONTH(PG10,0)+1,-1,1,Rangos!$B$22:$B$79)=PG10),"Sí","No") -> No | PH14: =+IF( AND(PH13="Sí",WORKDAY.INTL(EOMONTH(PH10,0)+1,-1,1,Rangos!$B$22:$B$79)=PH10),"Sí","No") -> No | PI14: =+IF( AND(PI13="Sí",WORKDAY.INTL(EOMONTH(PI10,0)+1,-1,1,Rangos!$B$22:$B$79)=PI10),"Sí","No") -> No | PJ14: =+IF( AND(PJ13="Sí",WORKDAY.INTL(EOMONTH(PJ10,0)+1,-1,1,Rangos!$B$22:$B$79)=PJ10),"Sí","No") -> No | PK14: =+IF( AND(PK13="Sí",WORKDAY.INTL(EOMONTH(PK10,0)+1,-1,1,Rangos!$B$22:$B$79)=PK10),"Sí","No") -> No | PL14: =+IF( AND(PL13="Sí",WORKDAY.INTL(EOMONTH(PL10,0)+1,-1,1,Rangos!$B$22:$B$79)=PL10),"Sí","No") -> No | PM14: =+IF( AND(PM13="Sí",WORKDAY.INTL(EOMONTH(PM10,0)+1,-1,1,Rangos!$B$22:$B$79)=PM10),"Sí","No") -> No | PN14: =+IF( AND(PN13="Sí",WORKDAY.INTL(EOMONTH(PN10,0)+1,-1,1,Rangos!$B$22:$B$79)=PN10),"Sí","No") -> No | PO14: =+IF( AND(PO13="Sí",WORKDAY.INTL(EOMONTH(PO10,0)+1,-1,1,Rangos!$B$22:$B$79)=PO10),"Sí","No") -> No | PP14: =+IF( AND(PP13="Sí",WORKDAY.INTL(EOMONTH(PP10,0)+1,-1,1,Rangos!$B$22:$B$79)=PP10),"Sí","No") -> No | PQ14: =+IF( AND(PQ13="Sí",WORKDAY.INTL(EOMONTH(PQ10,0)+1,-1,1,Rangos!$B$22:$B$79)=PQ10),"Sí","No") -> No | PR14: =+IF( AND(PR13="Sí",WORKDAY.INTL(EOMONTH(PR10,0)+1,-1,1,Rangos!$B$22:$B$79)=PR10),"Sí","No") -> No | PS14: =+IF( AND(PS13="Sí",WORKDAY.INTL(EOMONTH(PS10,0)+1,-1,1,Rangos!$B$22:$B$79)=PS10),"Sí","No") -> No | PT14: =+IF( AND(PT13="Sí",WORKDAY.INTL(EOMONTH(PT10,0)+1,-1,1,Rangos!$B$22:$B$79)=PT10),"Sí","No") -> No | PU14: =+IF( AND(PU13="Sí",WORKDAY.INTL(EOMONTH(PU10,0)+1,-1,1,Rangos!$B$22:$B$79)=PU10),"Sí","No") -> No | PV14: =+IF( AND(PV13="Sí",WORKDAY.INTL(EOMONTH(PV10,0)+1,-1,1,Rangos!$B$22:$B$79)=PV10),"Sí","No") -> No | PW14: =+IF( AND(PW13="Sí",WORKDAY.INTL(EOMONTH(PW10,0)+1,-1,1,Rangos!$B$22:$B$79)=PW10),"Sí","No") -> No | PX14: =+IF( AND(PX13="Sí",WORKDAY.INTL(EOMONTH(PX10,0)+1,-1,1,Rangos!$B$22:$B$79)=PX10),"Sí","No") -> Sí | PY14: =+IF( AND(PY13="Sí",WORKDAY.INTL(EOMONTH(PY10,0)+1,-1,1,Rangos!$B$22:$B$79)=PY10),"Sí","No") -> No | PZ14: =+IF( AND(PZ13="Sí",WORKDAY.INTL(EOMONTH(PZ10,0)+1,-1,1,Rangos!$B$22:$B$79)=PZ10),"Sí","No") -> No | QA14: =+IF( AND(QA13="Sí",WORKDAY.INTL(EOMONTH(QA10,0)+1,-1,1,Rangos!$B$22:$B$79)=QA10),"Sí","No") -> No | QB14: =+IF( AND(QB13="Sí",WORKDAY.INTL(EOMONTH(QB10,0)+1,-1,1,Rangos!$B$22:$B$79)=QB10),"Sí","No") -> No | QC14: =+IF( AND(QC13="Sí",WORKDAY.INTL(EOMONTH(QC10,0)+1,-1,1,Rangos!$B$22:$B$79)=QC10),"Sí","No") -> No | QD14: =+IF( AND(QD13="Sí",WORKDAY.INTL(EOMONTH(QD10,0)+1,-1,1,Rangos!$B$22:$B$79)=QD10),"Sí","No") -> No | QE14: =+IF( AND(QE13="Sí",WORKDAY.INTL(EOMONTH(QE10,0)+1,-1,1,Rangos!$B$22:$B$79)=QE10),"Sí","No") -> No | QF14: =+IF( AND(QF13="Sí",WORKDAY.INTL(EOMONTH(QF10,0)+1,-1,1,Rangos!$B$22:$B$79)=QF10),"Sí","No") -> No | QG14: =+IF( AND(QG13="Sí",WORKDAY.INTL(EOMONTH(QG10,0)+1,-1,1,Rangos!$B$22:$B$79)=QG10),"Sí","No") -> No | QH14: =+IF( AND(QH13="Sí",WORKDAY.INTL(EOMONTH(QH10,0)+1,-1,1,Rangos!$B$22:$B$79)=QH10),"Sí","No") -> No | QI14: =+IF( AND(QI13="Sí",WORKDAY.INTL(EOMONTH(QI10,0)+1,-1,1,Rangos!$B$22:$B$79)=QI10),"Sí","No") -> No | QJ14: =+IF( AND(QJ13="Sí",WORKDAY.INTL(EOMONTH(QJ10,0)+1,-1,1,Rangos!$B$22:$B$79)=QJ10),"Sí","No") -> No | QK14: =+IF( AND(QK13="Sí",WORKDAY.INTL(EOMONTH(QK10,0)+1,-1,1,Rangos!$B$22:$B$79)=QK10),"Sí","No") -> No | QL14: =+IF( AND(QL13="Sí",WORKDAY.INTL(EOMONTH(QL10,0)+1,-1,1,Rangos!$B$22:$B$79)=QL10),"Sí","No") -> No | QM14: =+IF( AND(QM13="Sí",WORKDAY.INTL(EOMONTH(QM10,0)+1,-1,1,Rangos!$B$22:$B$79)=QM10),"Sí","No") -> No | QN14: =+IF( AND(QN13="Sí",WORKDAY.INTL(EOMONTH(QN10,0)+1,-1,1,Rangos!$B$22:$B$79)=QN10),"Sí","No") -> No | QO14: =+IF( AND(QO13="Sí",WORKDAY.INTL(EOMONTH(QO10,0)+1,-1,1,Rangos!$B$22:$B$79)=QO10),"Sí","No") -> No | QP14: =+IF( AND(QP13="Sí",WORKDAY.INTL(EOMONTH(QP10,0)+1,-1,1,Rangos!$B$22:$B$79)=QP10),"Sí","No") -> No | QQ14: =+IF( AND(QQ13="Sí",WORKDAY.INTL(EOMONTH(QQ10,0)+1,-1,1,Rangos!$B$22:$B$79)=QQ10),"Sí","No") -> No | QR14: =+IF( AND(QR13="Sí",WORKDAY.INTL(EOMONTH(QR10,0)+1,-1,1,Rangos!$B$22:$B$79)=QR10),"Sí","No") -> No | QS14: =+IF( AND(QS13="Sí",WORKDAY.INTL(EOMONTH(QS10,0)+1,-1,1,Rangos!$B$22:$B$79)=QS10),"Sí","No") -> No | QT14: =+IF( AND(QT13="Sí",WORKDAY.INTL(EOMONTH(QT10,0)+1,-1,1,Rangos!$B$22:$B$79)=QT10),"Sí","No") -> No | QU14: =+IF( AND(QU13="Sí",WORKDAY.INTL(EOMONTH(QU10,0)+1,-1,1,Rangos!$B$22:$B$79)=QU10),"Sí","No") -> No | QV14: =+IF( AND(QV13="Sí",WORKDAY.INTL(EOMONTH(QV10,0)+1,-1,1,Rangos!$B$22:$B$79)=QV10),"Sí","No") -> No | QW14: =+IF( AND(QW13="Sí",WORKDAY.INTL(EOMONTH(QW10,0)+1,-1,1,Rangos!$B$22:$B$79)=QW10),"Sí","No") -> No | QX14: =+IF( AND(QX13="Sí",WORKDAY.INTL(EOMONTH(QX10,0)+1,-1,1,Rangos!$B$22:$B$79)=QX10),"Sí","No") -> No | QY14: =+IF( AND(QY13="Sí",WORKDAY.INTL(EOMONTH(QY10,0)+1,-1,1,Rangos!$B$22:$B$79)=QY10),"Sí","No") -> No | QZ14: =+IF( AND(QZ13="Sí",WORKDAY.INTL(EOMONTH(QZ10,0)+1,-1,1,Rangos!$B$22:$B$79)=QZ10),"Sí","No") -> No | RA14: =+IF( AND(RA13="Sí",WORKDAY.INTL(EOMONTH(RA10,0)+1,-1,1,Rangos!$B$22:$B$79)=RA10),"Sí","No") -> No | RB14: =+IF( AND(RB13="Sí",WORKDAY.INTL(EOMONTH(RB10,0)+1,-1,1,Rangos!$B$22:$B$79)=RB10),"Sí","No") -> Sí | RC14: =+IF( AND(RC13="Sí",WORKDAY.INTL(EOMONTH(RC10,0)+1,-1,1,Rangos!$B$22:$B$79)=RC10),"Sí","No") -> No | RD14: =+IF( AND(RD13="Sí",WORKDAY.INTL(EOMONTH(RD10,0)+1,-1,1,Rangos!$B$22:$B$79)=RD10),"Sí","No") -> No | RE14: =+IF( AND(RE13="Sí",WORKDAY.INTL(EOMONTH(RE10,0)+1,-1,1,Rangos!$B$22:$B$79)=RE10),"Sí","No") -> No | RF14: =+IF( AND(RF13="Sí",WORKDAY.INTL(EOMONTH(RF10,0)+1,-1,1,Rangos!$B$22:$B$79)=RF10),"Sí","No") -> No | RG14: =+IF( AND(RG13="Sí",WORKDAY.INTL(EOMONTH(RG10,0)+1,-1,1,Rangos!$B$22:$B$79)=RG10),"Sí","No") -> No | RH14: =+IF( AND(RH13="Sí",WORKDAY.INTL(EOMONTH(RH10,0)+1,-1,1,Rangos!$B$22:$B$79)=RH10),"Sí","No") -> No | RI14: =+IF( AND(RI13="Sí",WORKDAY.INTL(EOMONTH(RI10,0)+1,-1,1,Rangos!$B$22:$B$79)=RI10),"Sí","No") -> No | RJ14: =+IF( AND(RJ13="Sí",WORKDAY.INTL(EOMONTH(RJ10,0)+1,-1,1,Rangos!$B$22:$B$79)=RJ10),"Sí","No") -> No | RK14: =+IF( AND(RK13="Sí",WORKDAY.INTL(EOMONTH(RK10,0)+1,-1,1,Rangos!$B$22:$B$79)=RK10),"Sí","No") -> No | RL14: =+IF( AND(RL13="Sí",WORKDAY.INTL(EOMONTH(RL10,0)+1,-1,1,Rangos!$B$22:$B$79)=RL10),"Sí","No") -> No | RM14: =+IF( AND(RM13="Sí",WORKDAY.INTL(EOMONTH(RM10,0)+1,-1,1,Rangos!$B$22:$B$79)=RM10),"Sí","No") -> No | RN14: =+IF( AND(RN13="Sí",WORKDAY.INTL(EOMONTH(RN10,0)+1,-1,1,Rangos!$B$22:$B$79)=RN10),"Sí","No") -> No | RO14: =+IF( AND(RO13="Sí",WORKDAY.INTL(EOMONTH(RO10,0)+1,-1,1,Rangos!$B$22:$B$79)=RO10),"Sí","No") -> No | RP14: =+IF( AND(RP13="Sí",WORKDAY.INTL(EOMONTH(RP10,0)+1,-1,1,Rangos!$B$22:$B$79)=RP10),"Sí","No") -> No | RQ14: =+IF( AND(RQ13="Sí",WORKDAY.INTL(EOMONTH(RQ10,0)+1,-1,1,Rangos!$B$22:$B$79)=RQ10),"Sí","No") -> No | RR14: =+IF( AND(RR13="Sí",WORKDAY.INTL(EOMONTH(RR10,0)+1,-1,1,Rangos!$B$22:$B$79)=RR10),"Sí","No") -> No | RS14: =+IF( AND(RS13="Sí",WORKDAY.INTL(EOMONTH(RS10,0)+1,-1,1,Rangos!$B$22:$B$79)=RS10),"Sí","No") -> No | RT14: =+IF( AND(RT13="Sí",WORKDAY.INTL(EOMONTH(RT10,0)+1,-1,1,Rangos!$B$22:$B$79)=RT10),"Sí","No") -> No | RU14: =+IF( AND(RU13="Sí",WORKDAY.INTL(EOMONTH(RU10,0)+1,-1,1,Rangos!$B$22:$B$79)=RU10),"Sí","No") -> No | RV14: =+IF( AND(RV13="Sí",WORKDAY.INTL(EOMONTH(RV10,0)+1,-1,1,Rangos!$B$22:$B$79)=RV10),"Sí","No") -> No | RW14: =+IF( AND(RW13="Sí",WORKDAY.INTL(EOMONTH(RW10,0)+1,-1,1,Rangos!$B$22:$B$79)=RW10),"Sí","No") -> No | RX14: =+IF( AND(RX13="Sí",WORKDAY.INTL(EOMONTH(RX10,0)+1,-1,1,Rangos!$B$22:$B$79)=RX10),"Sí","No") -> No | RY14: =+IF( AND(RY13="Sí",WORKDAY.INTL(EOMONTH(RY10,0)+1,-1,1,Rangos!$B$22:$B$79)=RY10),"Sí","No") -> No | RZ14: =+IF( AND(RZ13="Sí",WORKDAY.INTL(EOMONTH(RZ10,0)+1,-1,1,Rangos!$B$22:$B$79)=RZ10),"Sí","No") -> No | SA14: =+IF( AND(SA13="Sí",WORKDAY.INTL(EOMONTH(SA10,0)+1,-1,1,Rangos!$B$22:$B$79)=SA10),"Sí","No") -> No | SB14: =+IF( AND(SB13="Sí",WORKDAY.INTL(EOMONTH(SB10,0)+1,-1,1,Rangos!$B$22:$B$79)=SB10),"Sí","No") -> No | SC14: =+IF( AND(SC13="Sí",WORKDAY.INTL(EOMONTH(SC10,0)+1,-1,1,Rangos!$B$22:$B$79)=SC10),"Sí","No") -> No | SD14: =+IF( AND(SD13="Sí",WORKDAY.INTL(EOMONTH(SD10,0)+1,-1,1,Rangos!$B$22:$B$79)=SD10),"Sí","No") -> No | SE14: =+IF( AND(SE13="Sí",WORKDAY.INTL(EOMONTH(SE10,0)+1,-1,1,Rangos!$B$22:$B$79)=SE10),"Sí","No") -> No | SF14: =+IF( AND(SF13="Sí",WORKDAY.INTL(EOMONTH(SF10,0)+1,-1,1,Rangos!$B$22:$B$79)=SF10),"Sí","No") -> No | SG14: =+IF( AND(SG13="Sí",WORKDAY.INTL(EOMONTH(SG10,0)+1,-1,1,Rangos!$B$22:$B$79)=SG10),"Sí","No") -> Sí | SH14: =+IF( AND(SH13="Sí",WORKDAY.INTL(EOMONTH(SH10,0)+1,-1,1,Rangos!$B$22:$B$79)=SH10),"Sí","No") -> No | SI14: =+IF( AND(SI13="Sí",WORKDAY.INTL(EOMONTH(SI10,0)+1,-1,1,Rangos!$B$22:$B$79)=SI10),"Sí","No") -> No | SJ14: =+IF( AND(SJ13="Sí",WORKDAY.INTL(EOMONTH(SJ10,0)+1,-1,1,Rangos!$B$22:$B$79)=SJ10),"Sí","No") -> No | SK14: =+IF( AND(SK13="Sí",WORKDAY.INTL(EOMONTH(SK10,0)+1,-1,1,Rangos!$B$22:$B$79)=SK10),"Sí","No") -> No | SL14: =+IF( AND(SL13="Sí",WORKDAY.INTL(EOMONTH(SL10,0)+1,-1,1,Rangos!$B$22:$B$79)=SL10),"Sí","No") -> No | SM14: =+IF( AND(SM13="Sí",WORKDAY.INTL(EOMONTH(SM10,0)+1,-1,1,Rangos!$B$22:$B$79)=SM10),"Sí","No") -> No | SN14: =+IF( AND(SN13="Sí",WORKDAY.INTL(EOMONTH(SN10,0)+1,-1,1,Rangos!$B$22:$B$79)=SN10),"Sí","No") -> No | SO14: =+IF( AND(SO13="Sí",WORKDAY.INTL(EOMONTH(SO10,0)+1,-1,1,Rangos!$B$22:$B$79)=SO10),"Sí","No") -> No | SP14: =+IF( AND(SP13="Sí",WORKDAY.INTL(EOMONTH(SP10,0)+1,-1,1,Rangos!$B$22:$B$79)=SP10),"Sí","No") -> No | SQ14: =+IF( AND(SQ13="Sí",WORKDAY.INTL(EOMONTH(SQ10,0)+1,-1,1,Rangos!$B$22:$B$79)=SQ10),"Sí","No") -> No | SR14: =+IF( AND(SR13="Sí",WORKDAY.INTL(EOMONTH(SR10,0)+1,-1,1,Rangos!$B$22:$B$79)=SR10),"Sí","No") -> No | SS14: =+IF( AND(SS13="Sí",WORKDAY.INTL(EOMONTH(SS10,0)+1,-1,1,Rangos!$B$22:$B$79)=SS10),"Sí","No") -> No | ST14: =+IF( AND(ST13="Sí",WORKDAY.INTL(EOMONTH(ST10,0)+1,-1,1,Rangos!$B$22:$B$79)=ST10),"Sí","No") -> No | SU14: =+IF( AND(SU13="Sí",WORKDAY.INTL(EOMONTH(SU10,0)+1,-1,1,Rangos!$B$22:$B$79)=SU10),"Sí","No") -> No | SV14: =+IF( AND(SV13="Sí",WORKDAY.INTL(EOMONTH(SV10,0)+1,-1,1,Rangos!$B$22:$B$79)=SV10),"Sí","No") -> No | SW14: =+IF( AND(SW13="Sí",WORKDAY.INTL(EOMONTH(SW10,0)+1,-1,1,Rangos!$B$22:$B$79)=SW10),"Sí","No") -> No | SX14: =+IF( AND(SX13="Sí",WORKDAY.INTL(EOMONTH(SX10,0)+1,-1,1,Rangos!$B$22:$B$79)=SX10),"Sí","No") -> No | SY14: =+IF( AND(SY13="Sí",WORKDAY.INTL(EOMONTH(SY10,0)+1,-1,1,Rangos!$B$22:$B$79)=SY10),"Sí","No") -> No | SZ14: =+IF( AND(SZ13="Sí",WORKDAY.INTL(EOMONTH(SZ10,0)+1,-1,1,Rangos!$B$22:$B$79)=SZ10),"Sí","No") -> No | TA14: =+IF( AND(TA13="Sí",WORKDAY.INTL(EOMONTH(TA10,0)+1,-1,1,Rangos!$B$22:$B$79)=TA10),"Sí","No") -> No | TB14: =+IF( AND(TB13="Sí",WORKDAY.INTL(EOMONTH(TB10,0)+1,-1,1,Rangos!$B$22:$B$79)=TB10),"Sí","No") -> No | TC14: =+IF( AND(TC13="Sí",WORKDAY.INTL(EOMONTH(TC10,0)+1,-1,1,Rangos!$B$22:$B$79)=TC10),"Sí","No") -> No | TD14: =+IF( AND(TD13="Sí",WORKDAY.INTL(EOMONTH(TD10,0)+1,-1,1,Rangos!$B$22:$B$79)=TD10),"Sí","No") -> No | TE14: =+IF( AND(TE13="Sí",WORKDAY.INTL(EOMONTH(TE10,0)+1,-1,1,Rangos!$B$22:$B$79)=TE10),"Sí","No") -> No | TF14: =+IF( AND(TF13="Sí",WORKDAY.INTL(EOMONTH(TF10,0)+1,-1,1,Rangos!$B$22:$B$79)=TF10),"Sí","No") -> No | TG14: =+IF( AND(TG13="Sí",WORKDAY.INTL(EOMONTH(TG10,0)+1,-1,1,Rangos!$B$22:$B$79)=TG10),"Sí","No") -> No | TH14: =+IF( AND(TH13="Sí",WORKDAY.INTL(EOMONTH(TH10,0)+1,-1,1,Rangos!$B$22:$B$79)=TH10),"Sí","No") -> No | TI14: =+IF( AND(TI13="Sí",WORKDAY.INTL(EOMONTH(TI10,0)+1,-1,1,Rangos!$B$22:$B$79)=TI10),"Sí","No") -> No | TJ14: =+IF( AND(TJ13="Sí",WORKDAY.INTL(EOMONTH(TJ10,0)+1,-1,1,Rangos!$B$22:$B$79)=TJ10),"Sí","No") -> No | TK14: =+IF( AND(TK13="Sí",WORKDAY.INTL(EOMONTH(TK10,0)+1,-1,1,Rangos!$B$22:$B$79)=TK10),"Sí","No") -> Sí | TL14: =+IF( AND(TL13="Sí",WORKDAY.INTL(EOMONTH(TL10,0)+1,-1,1,Rangos!$B$22:$B$79)=TL10),"Sí","No") -> No | TM14: =+IF( AND(TM13="Sí",WORKDAY.INTL(EOMONTH(TM10,0)+1,-1,1,Rangos!$B$22:$B$79)=TM10),"Sí","No") -> No | TN14: =+IF( AND(TN13="Sí",WORKDAY.INTL(EOMONTH(TN10,0)+1,-1,1,Rangos!$B$22:$B$79)=TN10),"Sí","No") -> No | TO14: =+IF( AND(TO13="Sí",WORKDAY.INTL(EOMONTH(TO10,0)+1,-1,1,Rangos!$B$22:$B$79)=TO10),"Sí","No") -> No | TP14: =+IF( AND(TP13="Sí",WORKDAY.INTL(EOMONTH(TP10,0)+1,-1,1,Rangos!$B$22:$B$79)=TP10),"Sí","No") -> No | TQ14: =+IF( AND(TQ13="Sí",WORKDAY.INTL(EOMONTH(TQ10,0)+1,-1,1,Rangos!$B$22:$B$79)=TQ10),"Sí","No") -> No | TR14: =+IF( AND(TR13="Sí",WORKDAY.INTL(EOMONTH(TR10,0)+1,-1,1,Rangos!$B$22:$B$79)=TR10),"Sí","No") -> No | TS14: =+IF( AND(TS13="Sí",WORKDAY.INTL(EOMONTH(TS10,0)+1,-1,1,Rangos!$B$22:$B$79)=TS10),"Sí","No") -> No | TT14: =+IF( AND(TT13="Sí",WORKDAY.INTL(EOMONTH(TT10,0)+1,-1,1,Rangos!$B$22:$B$79)=TT10),"Sí","No") -> No | TU14: =+IF( AND(TU13="Sí",WORKDAY.INTL(EOMONTH(TU10,0)+1,-1,1,Rangos!$B$22:$B$79)=TU10),"Sí","No") -> No | TV14: =+IF( AND(TV13="Sí",WORKDAY.INTL(EOMONTH(TV10,0)+1,-1,1,Rangos!$B$22:$B$79)=TV10),"Sí","No") -> No | TW14: =+IF( AND(TW13="Sí",WORKDAY.INTL(EOMONTH(TW10,0)+1,-1,1,Rangos!$B$22:$B$79)=TW10),"Sí","No") -> No | TX14: =+IF( AND(TX13="Sí",WORKDAY.INTL(EOMONTH(TX10,0)+1,-1,1,Rangos!$B$22:$B$79)=TX10),"Sí","No") -> No | TY14: =+IF( AND(TY13="Sí",WORKDAY.INTL(EOMONTH(TY10,0)+1,-1,1,Rangos!$B$22:$B$79)=TY10),"Sí","No") -> No | TZ14: =+IF( AND(TZ13="Sí",WORKDAY.INTL(EOMONTH(TZ10,0)+1,-1,1,Rangos!$B$22:$B$79)=TZ10),"Sí","No") -> No | UA14: =+IF( AND(UA13="Sí",WORKDAY.INTL(EOMONTH(UA10,0)+1,-1,1,Rangos!$B$22:$B$79)=UA10),"Sí","No") -> No | UB14: =+IF( AND(UB13="Sí",WORKDAY.INTL(EOMONTH(UB10,0)+1,-1,1,Rangos!$B$22:$B$79)=UB10),"Sí","No") -> No | UC14: =+IF( AND(UC13="Sí",WORKDAY.INTL(EOMONTH(UC10,0)+1,-1,1,Rangos!$B$22:$B$79)=UC10),"Sí","No") -> No | UD14: =+IF( AND(UD13="Sí",WORKDAY.INTL(EOMONTH(UD10,0)+1,-1,1,Rangos!$B$22:$B$79)=UD10),"Sí","No") -> No | UE14: =+IF( AND(UE13="Sí",WORKDAY.INTL(EOMONTH(UE10,0)+1,-1,1,Rangos!$B$22:$B$79)=UE10),"Sí","No") -> No | UF14: =+IF( AND(UF13="Sí",WORKDAY.INTL(EOMONTH(UF10,0)+1,-1,1,Rangos!$B$22:$B$79)=UF10),"Sí","No") -> No | UG14: =+IF( AND(UG13="Sí",WORKDAY.INTL(EOMONTH(UG10,0)+1,-1,1,Rangos!$B$22:$B$79)=UG10),"Sí","No") -> No | UH14: =+IF( AND(UH13="Sí",WORKDAY.INTL(EOMONTH(UH10,0)+1,-1,1,Rangos!$B$22:$B$79)=UH10),"Sí","No") -> No | UI14: =+IF( AND(UI13="Sí",WORKDAY.INTL(EOMONTH(UI10,0)+1,-1,1,Rangos!$B$22:$B$79)=UI10),"Sí","No") -> No | UJ14: =+IF( AND(UJ13="Sí",WORKDAY.INTL(EOMONTH(UJ10,0)+1,-1,1,Rangos!$B$22:$B$79)=UJ10),"Sí","No") -> No | UK14: =+IF( AND(UK13="Sí",WORKDAY.INTL(EOMONTH(UK10,0)+1,-1,1,Rangos!$B$22:$B$79)=UK10),"Sí","No") -> No | UL14: =+IF( AND(UL13="Sí",WORKDAY.INTL(EOMONTH(UL10,0)+1,-1,1,Rangos!$B$22:$B$79)=UL10),"Sí","No") -> No | UM14: =+IF( AND(UM13="Sí",WORKDAY.INTL(EOMONTH(UM10,0)+1,-1,1,Rangos!$B$22:$B$79)=UM10),"Sí","No") -> No | UN14: =+IF( AND(UN13="Sí",WORKDAY.INTL(EOMONTH(UN10,0)+1,-1,1,Rangos!$B$22:$B$79)=UN10),"Sí","No") -> No | UO14: =+IF( AND(UO13="Sí",WORKDAY.INTL(EOMONTH(UO10,0)+1,-1,1,Rangos!$B$22:$B$79)=UO10),"Sí","No") -> Sí | UP14: =+IF( AND(UP13="Sí",WORKDAY.INTL(EOMONTH(UP10,0)+1,-1,1,Rangos!$B$22:$B$79)=UP10),"Sí","No") -> No | UQ14: =+IF( AND(UQ13="Sí",WORKDAY.INTL(EOMONTH(UQ10,0)+1,-1,1,Rangos!$B$22:$B$79)=UQ10),"Sí","No") -> No | UR14: =+IF( AND(UR13="Sí",WORKDAY.INTL(EOMONTH(UR10,0)+1,-1,1,Rangos!$B$22:$B$79)=UR10),"Sí","No") -> No | US14: =+IF( AND(US13="Sí",WORKDAY.INTL(EOMONTH(US10,0)+1,-1,1,Rangos!$B$22:$B$79)=US10),"Sí","No") -> No | UT14: =+IF( AND(UT13="Sí",WORKDAY.INTL(EOMONTH(UT10,0)+1,-1,1,Rangos!$B$22:$B$79)=UT10),"Sí","No") -> No | UU14: =+IF( AND(UU13="Sí",WORKDAY.INTL(EOMONTH(UU10,0)+1,-1,1,Rangos!$B$22:$B$79)=UU10),"Sí","No") -> No | UV14: =+IF( AND(UV13="Sí",WORKDAY.INTL(EOMONTH(UV10,0)+1,-1,1,Rangos!$B$22:$B$79)=UV10),"Sí","No") -> No | UW14: =+IF( AND(UW13="Sí",WORKDAY.INTL(EOMONTH(UW10,0)+1,-1,1,Rangos!$B$22:$B$79)=UW10),"Sí","No") -> No | UX14: =+IF( AND(UX13="Sí",WORKDAY.INTL(EOMONTH(UX10,0)+1,-1,1,Rangos!$B$22:$B$79)=UX10),"Sí","No") -> No | UY14: =+IF( AND(UY13="Sí",WORKDAY.INTL(EOMONTH(UY10,0)+1,-1,1,Rangos!$B$22:$B$79)=UY10),"Sí","No") -> No | UZ14: =+IF( AND(UZ13="Sí",WORKDAY.INTL(EOMONTH(UZ10,0)+1,-1,1,Rangos!$B$22:$B$79)=UZ10),"Sí","No") -> No | VA14: =+IF( AND(VA13="Sí",WORKDAY.INTL(EOMONTH(VA10,0)+1,-1,1,Rangos!$B$22:$B$79)=VA10),"Sí","No") -> No | VB14: =+IF( AND(VB13="Sí",WORKDAY.INTL(EOMONTH(VB10,0)+1,-1,1,Rangos!$B$22:$B$79)=VB10),"Sí","No") -> No | VC14: =+IF( AND(VC13="Sí",WORKDAY.INTL(EOMONTH(VC10,0)+1,-1,1,Rangos!$B$22:$B$79)=VC10),"Sí","No") -> No | VD14: =+IF( AND(VD13="Sí",WORKDAY.INTL(EOMONTH(VD10,0)+1,-1,1,Rangos!$B$22:$B$79)=VD10),"Sí","No") -> No | VE14: =+IF( AND(VE13="Sí",WORKDAY.INTL(EOMONTH(VE10,0)+1,-1,1,Rangos!$B$22:$B$79)=VE10),"Sí","No") -> No | VF14: =+IF( AND(VF13="Sí",WORKDAY.INTL(EOMONTH(VF10,0)+1,-1,1,Rangos!$B$22:$B$79)=VF10),"Sí","No") -> No | VG14: =+IF( AND(VG13="Sí",WORKDAY.INTL(EOMONTH(VG10,0)+1,-1,1,Rangos!$B$22:$B$79)=VG10),"Sí","No") -> No | VH14: =+IF( AND(VH13="Sí",WORKDAY.INTL(EOMONTH(VH10,0)+1,-1,1,Rangos!$B$22:$B$79)=VH10),"Sí","No") -> No | VI14: =+IF( AND(VI13="Sí",WORKDAY.INTL(EOMONTH(VI10,0)+1,-1,1,Rangos!$B$22:$B$79)=VI10),"Sí","No") -> No | VJ14: =+IF( AND(VJ13="Sí",WORKDAY.INTL(EOMONTH(VJ10,0)+1,-1,1,Rangos!$B$22:$B$79)=VJ10),"Sí","No") -> No | VK14: =+IF( AND(VK13="Sí",WORKDAY.INTL(EOMONTH(VK10,0)+1,-1,1,Rangos!$B$22:$B$79)=VK10),"Sí","No") -> No | VL14: =+IF( AND(VL13="Sí",WORKDAY.INTL(EOMONTH(VL10,0)+1,-1,1,Rangos!$B$22:$B$79)=VL10),"Sí","No") -> No | VM14: =+IF( AND(VM13="Sí",WORKDAY.INTL(EOMONTH(VM10,0)+1,-1,1,Rangos!$B$22:$B$79)=VM10),"Sí","No") -> No | VN14: =+IF( AND(VN13="Sí",WORKDAY.INTL(EOMONTH(VN10,0)+1,-1,1,Rangos!$B$22:$B$79)=VN10),"Sí","No") -> No | VO14: =+IF( AND(VO13="Sí",WORKDAY.INTL(EOMONTH(VO10,0)+1,-1,1,Rangos!$B$22:$B$79)=VO10),"Sí","No") -> No | VP14: =+IF( AND(VP13="Sí",WORKDAY.INTL(EOMONTH(VP10,0)+1,-1,1,Rangos!$B$22:$B$79)=VP10),"Sí","No") -> No | VQ14: =+IF( AND(VQ13="Sí",WORKDAY.INTL(EOMONTH(VQ10,0)+1,-1,1,Rangos!$B$22:$B$79)=VQ10),"Sí","No") -> Sí | VR14: =+IF( AND(VR13="Sí",WORKDAY.INTL(EOMONTH(VR10,0)+1,-1,1,Rangos!$B$22:$B$79)=VR10),"Sí","No") -> No | VS14: =+IF( AND(VS13="Sí",WORKDAY.INTL(EOMONTH(VS10,0)+1,-1,1,Rangos!$B$22:$B$79)=VS10),"Sí","No") -> No | VT14: =+IF( AND(VT13="Sí",WORKDAY.INTL(EOMONTH(VT10,0)+1,-1,1,Rangos!$B$22:$B$79)=VT10),"Sí","No") -> No | VU14: =+IF( AND(VU13="Sí",WORKDAY.INTL(EOMONTH(VU10,0)+1,-1,1,Rangos!$B$22:$B$79)=VU10),"Sí","No") -> No | VV14: =+IF( AND(VV13="Sí",WORKDAY.INTL(EOMONTH(VV10,0)+1,-1,1,Rangos!$B$22:$B$79)=VV10),"Sí","No") -> No | VW14: =+IF( AND(VW13="Sí",WORKDAY.INTL(EOMONTH(VW10,0)+1,-1,1,Rangos!$B$22:$B$79)=VW10),"Sí","No") -> No | VX14: =+IF( AND(VX13="Sí",WORKDAY.INTL(EOMONTH(VX10,0)+1,-1,1,Rangos!$B$22:$B$79)=VX10),"Sí","No") -> No | VY14: =+IF( AND(VY13="Sí",WORKDAY.INTL(EOMONTH(VY10,0)+1,-1,1,Rangos!$B$22:$B$79)=VY10),"Sí","No") -> No | VZ14: =+IF( AND(VZ13="Sí",WORKDAY.INTL(EOMONTH(VZ10,0)+1,-1,1,Rangos!$B$22:$B$79)=VZ10),"Sí","No") -> No | WA14: =+IF( AND(WA13="Sí",WORKDAY.INTL(EOMONTH(WA10,0)+1,-1,1,Rangos!$B$22:$B$79)=WA10),"Sí","No") -> No | WB14: =+IF( AND(WB13="Sí",WORKDAY.INTL(EOMONTH(WB10,0)+1,-1,1,Rangos!$B$22:$B$79)=WB10),"Sí","No") -> No | WC14: =+IF( AND(WC13="Sí",WORKDAY.INTL(EOMONTH(WC10,0)+1,-1,1,Rangos!$B$22:$B$79)=WC10),"Sí","No") -> No | WD14: =+IF( AND(WD13="Sí",WORKDAY.INTL(EOMONTH(WD10,0)+1,-1,1,Rangos!$B$22:$B$79)=WD10),"Sí","No") -> No | WE14: =+IF( AND(WE13="Sí",WORKDAY.INTL(EOMONTH(WE10,0)+1,-1,1,Rangos!$B$22:$B$79)=WE10),"Sí","No") -> No | WF14: =+IF( AND(WF13="Sí",WORKDAY.INTL(EOMONTH(WF10,0)+1,-1,1,Rangos!$B$22:$B$79)=WF10),"Sí","No") -> No | WG14: =+IF( AND(WG13="Sí",WORKDAY.INTL(EOMONTH(WG10,0)+1,-1,1,Rangos!$B$22:$B$79)=WG10),"Sí","No") -> No | WH14: =+IF( AND(WH13="Sí",WORKDAY.INTL(EOMONTH(WH10,0)+1,-1,1,Rangos!$B$22:$B$79)=WH10),"Sí","No") -> No | WI14: =+IF( AND(WI13="Sí",WORKDAY.INTL(EOMONTH(WI10,0)+1,-1,1,Rangos!$B$22:$B$79)=WI10),"Sí","No") -> No | WJ14: =+IF( AND(WJ13="Sí",WORKDAY.INTL(EOMONTH(WJ10,0)+1,-1,1,Rangos!$B$22:$B$79)=WJ10),"Sí","No") -> No | WK14: =+IF( AND(WK13="Sí",WORKDAY.INTL(EOMONTH(WK10,0)+1,-1,1,Rangos!$B$22:$B$79)=WK10),"Sí","No") -> No | WL14: =+IF( AND(WL13="Sí",WORKDAY.INTL(EOMONTH(WL10,0)+1,-1,1,Rangos!$B$22:$B$79)=WL10),"Sí","No") -> No | WM14: =+IF( AND(WM13="Sí",WORKDAY.INTL(EOMONTH(WM10,0)+1,-1,1,Rangos!$B$22:$B$79)=WM10),"Sí","No") -> No | WN14: =+IF( AND(WN13="Sí",WORKDAY.INTL(EOMONTH(WN10,0)+1,-1,1,Rangos!$B$22:$B$79)=WN10),"Sí","No") -> No | WO14: =+IF( AND(WO13="Sí",WORKDAY.INTL(EOMONTH(WO10,0)+1,-1,1,Rangos!$B$22:$B$79)=WO10),"Sí","No") -> No | WP14: =+IF( AND(WP13="Sí",WORKDAY.INTL(EOMONTH(WP10,0)+1,-1,1,Rangos!$B$22:$B$79)=WP10),"Sí","No") -> No | WQ14: =+IF( AND(WQ13="Sí",WORKDAY.INTL(EOMONTH(WQ10,0)+1,-1,1,Rangos!$B$22:$B$79)=WQ10),"Sí","No") -> No | WR14: =+IF( AND(WR13="Sí",WORKDAY.INTL(EOMONTH(WR10,0)+1,-1,1,Rangos!$B$22:$B$79)=WR10),"Sí","No") -> No | WS14: =+IF( AND(WS13="Sí",WORKDAY.INTL(EOMONTH(WS10,0)+1,-1,1,Rangos!$B$22:$B$79)=WS10),"Sí","No") -> No | WT14: =+IF( AND(WT13="Sí",WORKDAY.INTL(EOMONTH(WT10,0)+1,-1,1,Rangos!$B$22:$B$79)=WT10),"Sí","No") -> No | WU14: =+IF( AND(WU13="Sí",WORKDAY.INTL(EOMONTH(WU10,0)+1,-1,1,Rangos!$B$22:$B$79)=WU10),"Sí","No") -> No | WV14: =+IF( AND(WV13="Sí",WORKDAY.INTL(EOMONTH(WV10,0)+1,-1,1,Rangos!$B$22:$B$79)=WV10),"Sí","No") -> No | WW14: =+IF( AND(WW13="Sí",WORKDAY.INTL(EOMONTH(WW10,0)+1,-1,1,Rangos!$B$22:$B$79)=WW10),"Sí","No") -> No | WX14: =+IF( AND(WX13="Sí",WORKDAY.INTL(EOMONTH(WX10,0)+1,-1,1,Rangos!$B$22:$B$79)=WX10),"Sí","No") -> Sí | WY14: =+IF( AND(WY13="Sí",WORKDAY.INTL(EOMONTH(WY10,0)+1,-1,1,Rangos!$B$22:$B$79)=WY10),"Sí","No") -> No | WZ14: =+IF( AND(WZ13="Sí",WORKDAY.INTL(EOMONTH(WZ10,0)+1,-1,1,Rangos!$B$22:$B$79)=WZ10),"Sí","No") -> No | XA14: =+IF( AND(XA13="Sí",WORKDAY.INTL(EOMONTH(XA10,0)+1,-1,1,Rangos!$B$22:$B$79)=XA10),"Sí","No") -> No | XB14: =+IF( AND(XB13="Sí",WORKDAY.INTL(EOMONTH(XB10,0)+1,-1,1,Rangos!$B$22:$B$79)=XB10),"Sí","No") -> No | XC14: =+IF( AND(XC13="Sí",WORKDAY.INTL(EOMONTH(XC10,0)+1,-1,1,Rangos!$B$22:$B$79)=XC10),"Sí","No") -> No | XD14: =+IF( AND(XD13="Sí",WORKDAY.INTL(EOMONTH(XD10,0)+1,-1,1,Rangos!$B$22:$B$79)=XD10),"Sí","No") -> No | XE14: =+IF( AND(XE13="Sí",WORKDAY.INTL(EOMONTH(XE10,0)+1,-1,1,Rangos!$B$22:$B$79)=XE10),"Sí","No") -> No | XF14: =+IF( AND(XF13="Sí",WORKDAY.INTL(EOMONTH(XF10,0)+1,-1,1,Rangos!$B$22:$B$79)=XF10),"Sí","No") -> No | XG14: =+IF( AND(XG13="Sí",WORKDAY.INTL(EOMONTH(XG10,0)+1,-1,1,Rangos!$B$22:$B$79)=XG10),"Sí","No") -> No | XH14: =+IF( AND(XH13="Sí",WORKDAY.INTL(EOMONTH(XH10,0)+1,-1,1,Rangos!$B$22:$B$79)=XH10),"Sí","No") -> No | XI14: =+IF( AND(XI13="Sí",WORKDAY.INTL(EOMONTH(XI10,0)+1,-1,1,Rangos!$B$22:$B$79)=XI10),"Sí","No") -> No | XJ14: =+IF( AND(XJ13="Sí",WORKDAY.INTL(EOMONTH(XJ10,0)+1,-1,1,Rangos!$B$22:$B$79)=XJ10),"Sí","No") -> No | XK14: =+IF( AND(XK13="Sí",WORKDAY.INTL(EOMONTH(XK10,0)+1,-1,1,Rangos!$B$22:$B$79)=XK10),"Sí","No") -> No | XL14: =+IF( AND(XL13="Sí",WORKDAY.INTL(EOMONTH(XL10,0)+1,-1,1,Rangos!$B$22:$B$79)=XL10),"Sí","No") -> No | XM14: =+IF( AND(XM13="Sí",WORKDAY.INTL(EOMONTH(XM10,0)+1,-1,1,Rangos!$B$22:$B$79)=XM10),"Sí","No") -> No | XN14: =+IF( AND(XN13="Sí",WORKDAY.INTL(EOMONTH(XN10,0)+1,-1,1,Rangos!$B$22:$B$79)=XN10),"Sí","No") -> No | XO14: =+IF( AND(XO13="Sí",WORKDAY.INTL(EOMONTH(XO10,0)+1,-1,1,Rangos!$B$22:$B$79)=XO10),"Sí","No") -> No | XP14: =+IF( AND(XP13="Sí",WORKDAY.INTL(EOMONTH(XP10,0)+1,-1,1,Rangos!$B$22:$B$79)=XP10),"Sí","No") -> No | XQ14: =+IF( AND(XQ13="Sí",WORKDAY.INTL(EOMONTH(XQ10,0)+1,-1,1,Rangos!$B$22:$B$79)=XQ10),"Sí","No") -> No | XR14: =+IF( AND(XR13="Sí",WORKDAY.INTL(EOMONTH(XR10,0)+1,-1,1,Rangos!$B$22:$B$79)=XR10),"Sí","No") -> No | XS14: =+IF( AND(XS13="Sí",WORKDAY.INTL(EOMONTH(XS10,0)+1,-1,1,Rangos!$B$22:$B$79)=XS10),"Sí","No") -> No | XT14: =+IF( AND(XT13="Sí",WORKDAY.INTL(EOMONTH(XT10,0)+1,-1,1,Rangos!$B$22:$B$79)=XT10),"Sí","No") -> No | XU14: =+IF( AND(XU13="Sí",WORKDAY.INTL(EOMONTH(XU10,0)+1,-1,1,Rangos!$B$22:$B$79)=XU10),"Sí","No") -> No | XV14: =+IF( AND(XV13="Sí",WORKDAY.INTL(EOMONTH(XV10,0)+1,-1,1,Rangos!$B$22:$B$79)=XV10),"Sí","No") -> No | XW14: =+IF( AND(XW13="Sí",WORKDAY.INTL(EOMONTH(XW10,0)+1,-1,1,Rangos!$B$22:$B$79)=XW10),"Sí","No") -> No | XX14: =+IF( AND(XX13="Sí",WORKDAY.INTL(EOMONTH(XX10,0)+1,-1,1,Rangos!$B$22:$B$79)=XX10),"Sí","No") -> No | XY14: =+IF( AND(XY13="Sí",WORKDAY.INTL(EOMONTH(XY10,0)+1,-1,1,Rangos!$B$22:$B$79)=XY10),"Sí","No") -> No | XZ14: =+IF( AND(XZ13="Sí",WORKDAY.INTL(EOMONTH(XZ10,0)+1,-1,1,Rangos!$B$22:$B$79)=XZ10),"Sí","No") -> No | YA14: =+IF( AND(YA13="Sí",WORKDAY.INTL(EOMONTH(YA10,0)+1,-1,1,Rangos!$B$22:$B$79)=YA10),"Sí","No") -> Sí | YB14: =+IF( AND(YB13="Sí",WORKDAY.INTL(EOMONTH(YB10,0)+1,-1,1,Rangos!$B$22:$B$79)=YB10),"Sí","No") -> No | YC14: =+IF( AND(YC13="Sí",WORKDAY.INTL(EOMONTH(YC10,0)+1,-1,1,Rangos!$B$22:$B$79)=YC10),"Sí","No") -> No | YD14: =+IF( AND(YD13="Sí",WORKDAY.INTL(EOMONTH(YD10,0)+1,-1,1,Rangos!$B$22:$B$79)=YD10),"Sí","No") -> No | YE14: =+IF( AND(YE13="Sí",WORKDAY.INTL(EOMONTH(YE10,0)+1,-1,1,Rangos!$B$22:$B$79)=YE10),"Sí","No") -> No | YF14: =+IF( AND(YF13="Sí",WORKDAY.INTL(EOMONTH(YF10,0)+1,-1,1,Rangos!$B$22:$B$79)=YF10),"Sí","No") -> No | YG14: =+IF( AND(YG13="Sí",WORKDAY.INTL(EOMONTH(YG10,0)+1,-1,1,Rangos!$B$22:$B$79)=YG10),"Sí","No") -> No | YH14: =+IF( AND(YH13="Sí",WORKDAY.INTL(EOMONTH(YH10,0)+1,-1,1,Rangos!$B$22:$B$79)=YH10),"Sí","No") -> No | YI14: =+IF( AND(YI13="Sí",WORKDAY.INTL(EOMONTH(YI10,0)+1,-1,1,Rangos!$B$22:$B$79)=YI10),"Sí","No") -> No | YJ14: =+IF( AND(YJ13="Sí",WORKDAY.INTL(EOMONTH(YJ10,0)+1,-1,1,Rangos!$B$22:$B$79)=YJ10),"Sí","No") -> No | YK14: =+IF( AND(YK13="Sí",WORKDAY.INTL(EOMONTH(YK10,0)+1,-1,1,Rangos!$B$22:$B$79)=YK10),"Sí","No") -> No | YL14: =+IF( AND(YL13="Sí",WORKDAY.INTL(EOMONTH(YL10,0)+1,-1,1,Rangos!$B$22:$B$79)=YL10),"Sí","No") -> No | YM14: =+IF( AND(YM13="Sí",WORKDAY.INTL(EOMONTH(YM10,0)+1,-1,1,Rangos!$B$22:$B$79)=YM10),"Sí","No") -> No | YN14: =+IF( AND(YN13="Sí",WORKDAY.INTL(EOMONTH(YN10,0)+1,-1,1,Rangos!$B$22:$B$79)=YN10),"Sí","No") -> No | YO14: =+IF( AND(YO13="Sí",WORKDAY.INTL(EOMONTH(YO10,0)+1,-1,1,Rangos!$B$22:$B$79)=YO10),"Sí","No") -> No | YP14: =+IF( AND(YP13="Sí",WORKDAY.INTL(EOMONTH(YP10,0)+1,-1,1,Rangos!$B$22:$B$79)=YP10),"Sí","No") -> No | YQ14: =+IF( AND(YQ13="Sí",WORKDAY.INTL(EOMONTH(YQ10,0)+1,-1,1,Rangos!$B$22:$B$79)=YQ10),"Sí","No") -> No | YR14: =+IF( AND(YR13="Sí",WORKDAY.INTL(EOMONTH(YR10,0)+1,-1,1,Rangos!$B$22:$B$79)=YR10),"Sí","No") -> No | YS14: =+IF( AND(YS13="Sí",WORKDAY.INTL(EOMONTH(YS10,0)+1,-1,1,Rangos!$B$22:$B$79)=YS10),"Sí","No") -> No | YT14: =+IF( AND(YT13="Sí",WORKDAY.INTL(EOMONTH(YT10,0)+1,-1,1,Rangos!$B$22:$B$79)=YT10),"Sí","No") -> No | YU14: =+IF( AND(YU13="Sí",WORKDAY.INTL(EOMONTH(YU10,0)+1,-1,1,Rangos!$B$22:$B$79)=YU10),"Sí","No") -> No | YV14: =+IF( AND(YV13="Sí",WORKDAY.INTL(EOMONTH(YV10,0)+1,-1,1,Rangos!$B$22:$B$79)=YV10),"Sí","No") -> No | YW14: =+IF( AND(YW13="Sí",WORKDAY.INTL(EOMONTH(YW10,0)+1,-1,1,Rangos!$B$22:$B$79)=YW10),"Sí","No") -> No | YX14: =+IF( AND(YX13="Sí",WORKDAY.INTL(EOMONTH(YX10,0)+1,-1,1,Rangos!$B$22:$B$79)=YX10),"Sí","No") -> No | YY14: =+IF( AND(YY13="Sí",WORKDAY.INTL(EOMONTH(YY10,0)+1,-1,1,Rangos!$B$22:$B$79)=YY10),"Sí","No") -> No | YZ14: =+IF( AND(YZ13="Sí",WORKDAY.INTL(EOMONTH(YZ10,0)+1,-1,1,Rangos!$B$22:$B$79)=YZ10),"Sí","No") -> No | ZA14: =+IF( AND(ZA13="Sí",WORKDAY.INTL(EOMONTH(ZA10,0)+1,-1,1,Rangos!$B$22:$B$79)=ZA10),"Sí","No") -> No | ZB14: =+IF( AND(ZB13="Sí",WORKDAY.INTL(EOMONTH(ZB10,0)+1,-1,1,Rangos!$B$22:$B$79)=ZB10),"Sí","No") -> No | ZC14: =+IF( AND(ZC13="Sí",WORKDAY.INTL(EOMONTH(ZC10,0)+1,-1,1,Rangos!$B$22:$B$79)=ZC10),"Sí","No") -> No | ZD14: =+IF( AND(ZD13="Sí",WORKDAY.INTL(EOMONTH(ZD10,0)+1,-1,1,Rangos!$B$22:$B$79)=ZD10),"Sí","No") -> No | ZE14: =+IF( AND(ZE13="Sí",WORKDAY.INTL(EOMONTH(ZE10,0)+1,-1,1,Rangos!$B$22:$B$79)=ZE10),"Sí","No") -> No | ZF14: =+IF( AND(ZF13="Sí",WORKDAY.INTL(EOMONTH(ZF10,0)+1,-1,1,Rangos!$B$22:$B$79)=ZF10),"Sí","No") -> No | ZG14: =+IF( AND(ZG13="Sí",WORKDAY.INTL(EOMONTH(ZG10,0)+1,-1,1,Rangos!$B$22:$B$79)=ZG10),"Sí","No") -> Sí | ZH14: =+IF( AND(ZH13="Sí",WORKDAY.INTL(EOMONTH(ZH10,0)+1,-1,1,Rangos!$B$22:$B$79)=ZH10),"Sí","No") -> No | ZI14: =+IF( AND(ZI13="Sí",WORKDAY.INTL(EOMONTH(ZI10,0)+1,-1,1,Rangos!$B$22:$B$79)=ZI10),"Sí","No") -> No | ZJ14: =+IF( AND(ZJ13="Sí",WORKDAY.INTL(EOMONTH(ZJ10,0)+1,-1,1,Rangos!$B$22:$B$79)=ZJ10),"Sí","No") -> No | ZK14: =+IF( AND(ZK13="Sí",WORKDAY.INTL(EOMONTH(ZK10,0)+1,-1,1,Rangos!$B$22:$B$79)=ZK10),"Sí","No") -> No | ZL14: =+IF( AND(ZL13="Sí",WORKDAY.INTL(EOMONTH(ZL10,0)+1,-1,1,Rangos!$B$22:$B$79)=ZL10),"Sí","No") -> No | ZM14: =+IF( AND(ZM13="Sí",WORKDAY.INTL(EOMONTH(ZM10,0)+1,-1,1,Rangos!$B$22:$B$79)=ZM10),"Sí","No") -> No | ZN14: =+IF( AND(ZN13="Sí",WORKDAY.INTL(EOMONTH(ZN10,0)+1,-1,1,Rangos!$B$22:$B$79)=ZN10),"Sí","No") -> No | ZO14: =+IF( AND(ZO13="Sí",WORKDAY.INTL(EOMONTH(ZO10,0)+1,-1,1,Rangos!$B$22:$B$79)=ZO10),"Sí","No") -> No | ZP14: =+IF( AND(ZP13="Sí",WORKDAY.INTL(EOMONTH(ZP10,0)+1,-1,1,Rangos!$B$22:$B$79)=ZP10),"Sí","No") -> No | ZQ14: =+IF( AND(ZQ13="Sí",WORKDAY.INTL(EOMONTH(ZQ10,0)+1,-1,1,Rangos!$B$22:$B$79)=ZQ10),"Sí","No") -> No | ZR14: =+IF( AND(ZR13="Sí",WORKDAY.INTL(EOMONTH(ZR10,0)+1,-1,1,Rangos!$B$22:$B$79)=ZR10),"Sí","No") -> No | ZS14: =+IF( AND(ZS13="Sí",WORKDAY.INTL(EOMONTH(ZS10,0)+1,-1,1,Rangos!$B$22:$B$79)=ZS10),"Sí","No") -> No | ZT14: =+IF( AND(ZT13="Sí",WORKDAY.INTL(EOMONTH(ZT10,0)+1,-1,1,Rangos!$B$22:$B$79)=ZT10),"Sí","No") -> No | ZU14: =+IF( AND(ZU13="Sí",WORKDAY.INTL(EOMONTH(ZU10,0)+1,-1,1,Rangos!$B$22:$B$79)=ZU10),"Sí","No") -> No | ZV14: =+IF( AND(ZV13="Sí",WORKDAY.INTL(EOMONTH(ZV10,0)+1,-1,1,Rangos!$B$22:$B$79)=ZV10),"Sí","No") -> No | ZW14: =+IF( AND(ZW13="Sí",WORKDAY.INTL(EOMONTH(ZW10,0)+1,-1,1,Rangos!$B$22:$B$79)=ZW10),"Sí","No") -> No | ZX14: =+IF( AND(ZX13="Sí",WORKDAY.INTL(EOMONTH(ZX10,0)+1,-1,1,Rangos!$B$22:$B$79)=ZX10),"Sí","No") -> No | ZY14: =+IF( AND(ZY13="Sí",WORKDAY.INTL(EOMONTH(ZY10,0)+1,-1,1,Rangos!$B$22:$B$79)=ZY10),"Sí","No") -> No | ZZ14: =+IF( AND(ZZ13="Sí",WORKDAY.INTL(EOMONTH(ZZ10,0)+1,-1,1,Rangos!$B$22:$B$79)=ZZ10),"Sí","No") -> No | AAA14: =+IF( AND(AAA13="Sí",WORKDAY.INTL(EOMONTH(AAA10,0)+1,-1,1,Rangos!$B$22:$B$79)=AAA10),"Sí","No") -> No | AAB14: =+IF( AND(AAB13="Sí",WORKDAY.INTL(EOMONTH(AAB10,0)+1,-1,1,Rangos!$B$22:$B$79)=AAB10),"Sí","No") -> No | AAC14: =+IF( AND(AAC13="Sí",WORKDAY.INTL(EOMONTH(AAC10,0)+1,-1,1,Rangos!$B$22:$B$79)=AAC10),"Sí","No") -> No | AAD14: =+IF( AND(AAD13="Sí",WORKDAY.INTL(EOMONTH(AAD10,0)+1,-1,1,Rangos!$B$22:$B$79)=AAD10),"Sí","No") -> No | AAE14: =+IF( AND(AAE13="Sí",WORKDAY.INTL(EOMONTH(AAE10,0)+1,-1,1,Rangos!$B$22:$B$79)=AAE10),"Sí","No") -> No | AAF14: =+IF( AND(AAF13="Sí",WORKDAY.INTL(EOMONTH(AAF10,0)+1,-1,1,Rangos!$B$22:$B$79)=AAF10),"Sí","No") -> No | AAG14: =+IF( AND(AAG13="Sí",WORKDAY.INTL(EOMONTH(AAG10,0)+1,-1,1,Rangos!$B$22:$B$79)=AAG10),"Sí","No") -> No | AAH14: =+IF( AND(AAH13="Sí",WORKDAY.INTL(EOMONTH(AAH10,0)+1,-1,1,Rangos!$B$22:$B$79)=AAH10),"Sí","No") -> No | AAI14: =+IF( AND(AAI13="Sí",WORKDAY.INTL(EOMONTH(AAI10,0)+1,-1,1,Rangos!$B$22:$B$79)=AAI10),"Sí","No") -> No | AAJ14: =+IF( AND(AAJ13="Sí",WORKDAY.INTL(EOMONTH(AAJ10,0)+1,-1,1,Rangos!$B$22:$B$79)=AAJ10),"Sí","No") -> No | AAK14: =+IF( AND(AAK13="Sí",WORKDAY.INTL(EOMONTH(AAK10,0)+1,-1,1,Rangos!$B$22:$B$79)=AAK10),"Sí","No") -> Sí | AAL14: =+IF( AND(AAL13="Sí",WORKDAY.INTL(EOMONTH(AAL10,0)+1,-1,1,Rangos!$B$22:$B$79)=AAL10),"Sí","No") -> No | AAM14: =+IF( AND(AAM13="Sí",WORKDAY.INTL(EOMONTH(AAM10,0)+1,-1,1,Rangos!$B$22:$B$79)=AAM10),"Sí","No") -> No | AAN14: =+IF( AND(AAN13="Sí",WORKDAY.INTL(EOMONTH(AAN10,0)+1,-1,1,Rangos!$B$22:$B$79)=AAN10),"Sí","No") -> No | AAO14: =+IF( AND(AAO13="Sí",WORKDAY.INTL(EOMONTH(AAO10,0)+1,-1,1,Rangos!$B$22:$B$79)=AAO10),"Sí","No") -> No | AAP14: =+IF( AND(AAP13="Sí",WORKDAY.INTL(EOMONTH(AAP10,0)+1,-1,1,Rangos!$B$22:$B$79)=AAP10),"Sí","No") -> No | AAQ14: =+IF( AND(AAQ13="Sí",WORKDAY.INTL(EOMONTH(AAQ10,0)+1,-1,1,Rangos!$B$22:$B$79)=AAQ10),"Sí","No") -> No | AAR14: =+IF( AND(AAR13="Sí",WORKDAY.INTL(EOMONTH(AAR10,0)+1,-1,1,Rangos!$B$22:$B$79)=AAR10),"Sí","No") -> No | AAS14: =+IF( AND(AAS13="Sí",WORKDAY.INTL(EOMONTH(AAS10,0)+1,-1,1,Rangos!$B$22:$B$79)=AAS10),"Sí","No") -> No | AAT14: =+IF( AND(AAT13="Sí",WORKDAY.INTL(EOMONTH(AAT10,0)+1,-1,1,Rangos!$B$22:$B$79)=AAT10),"Sí","No") -> No | AAU14: =+IF( AND(AAU13="Sí",WORKDAY.INTL(EOMONTH(AAU10,0)+1,-1,1,Rangos!$B$22:$B$79)=AAU10),"Sí","No") -> No
B15: Día capitalizable | C15: =+IF(B14="Sí","Sí","No") -> No | D15: No | E15: No | F15: No | G15: No | H15: No | I15: No | J15: No | K15: No | L15: No | M15: No | N15: No | O15: Sí | P15: No | Q15: No | R15: No | S15: No | T15: No | U15: No | V15: No | W15: No | X15: No | Y15: No | Z15: No | AA15: No | AB15: No | AC15: No | AD15: No | AE15: No | AF15: No | AG15: No | AH15: No | AI15: No | AJ15: No | AK15: No | AL15: No | AM15: No | AN15: No | AO15: No | AP15: No | AQ15: No | AR15: Sí | AS15: No | AT15: No | AU15: No | AV15: No | AW15: No | AX15: No | AY15: No | AZ15: No | BA15: No | BB15: No | BC15: No | BD15: No | BE15: No | BF15: No | BG15: No | BH15: No | BI15: No | BJ15: No | BK15: No | BL15: No | BM15: No | BN15: No | BO15: =+IF(BN14="Sí","Sí","No") -> No | BP15: No | BQ15: No | BR15: No | BS15: No | BT15: No | BU15: No | BV15: No | BW15: No | BX15: Sí | BY15: No | BZ15: No | CA15: No | CB15: No | CC15: No | CD15: No | CE15: No | CF15: No | CG15: No | CH15: No | CI15: No | CJ15: No | CK15: No | CL15: No | CM15: No | CN15: No | CO15: No | CP15: No | CQ15: No | CR15: No | CS15: No | CT15: No | CU15: No | CV15: No | CW15: No | CX15: No | CY15: No | CZ15: No | DA15: No | DB15: No | DC15: Sí | DD15: No | DE15: No | DF15: No | DG15: No | DH15: No | DI15: No | DJ15: No | DK15: No | DL15: No | DM15: No | DN15: No | DO15: No | DP15: No | DQ15: No | DR15: No | DS15: No | DT15: No | DU15: No | DV15: No | DW15: No | DX15: No | DY15: No | DZ15: No | EA15: =+IF(DZ14="Sí","Sí","No") -> No | EB15: No | EC15: No | ED15: No | EE15: Sí | EF15: No | EG15: No | EH15: No | EI15: No | EJ15: No | EK15: No | EL15: No | EM15: No | EN15: No | EO15: No | EP15: No | EQ15: No | ER15: No | ES15: No | ET15: No | EU15: No | EV15: No | EW15: No | EX15: No | EY15: No | EZ15: No | FA15: No | FB15: No | FC15: No | FD15: No | FE15: No | FF15: No | FG15: No | FH15: No | FI15: No | FJ15: No | FK15: Sí | FL15: No | FM15: No | FN15: No | FO15: No | FP15: No | FQ15: No | FR15: No | FS15: No | FT15: No | FU15: No | FV15: No | FW15: No | FX15: No | FY15: No | FZ15: No | GA15: No | GB15: No | GC15: No | GD15: No | GE15: No | GF15: No | GG15: No | GH15: No | GI15: No | GJ15: No | GK15: No | GL15: No | GM15: =+IF(GL14="Sí","Sí","No") -> No | GN15: No | GO15: No | GP15: Sí | GQ15: No | GR15: No | GS15: No | GT15: No | GU15: No | GV15: No | GW15: No | GX15: No | GY15: No | GZ15: No | HA15: No | HB15: No | HC15: No | HD15: No | HE15: No | HF15: No | HG15: No | HH15: No | HI15: No | HJ15: No | HK15: No | HL15: No | HM15: No | HN15: No | HO15: No | HP15: No | HQ15: No | HR15: Sí | HS15: No | HT15: No | HU15: No | HV15: No | HW15: No | HX15: No | HY15: No | HZ15: No | IA15: No | IB15: No | IC15: No | ID15: No | IE15: No | IF15: No | IG15: No | IH15: No | II15: No | IJ15: No | IK15: No | IL15: No | IM15: No | IN15: No | IO15: No | IP15: No | IQ15: No | IR15: No | IS15: No | IT15: No | IU15: No | IV15: No | IW15: No | IX15: Sí | IY15: =+IF(IX14="Sí","Sí","No") -> No | IZ15: No | JA15: No | JB15: No | JC15: No | JD15: No | JE15: No | JF15: No | JG15: No | JH15: No | JI15: No | JJ15: No | JK15: No | JL15: No | JM15: No | JN15: No | JO15: No | JP15: No | JQ15: No | JR15: No | JS15: No | JT15: No | JU15: No | JV15: No | JW15: No | JX15: No | JY15: No | JZ15: No | KA15: No | KB15: Sí | KC15: No | KD15: No | KE15: No | KF15: No | KG15: No | KH15: No | KI15: No | KJ15: No | KK15: No | KL15: No | KM15: No | KN15: No | KO15: No | KP15: No | KQ15: No | KR15: No | KS15: No | KT15: No | KU15: No | KV15: No | KW15: No | KX15: No | KY15: No | KZ15: No | LA15: No | LB15: No | LC15: No | LD15: No | LE15: Sí | LF15: No | LG15: No | LH15: No | LI15: No | LJ15: No | LK15: =+IF(LJ14="Sí","Sí","No") -> No | LL15: No | LM15: No | LN15: No | LO15: No | LP15: No | LQ15: No | LR15: No | LS15: No | LT15: No | LU15: No | LV15: No | LW15: No | LX15: No | LY15: No | LZ15: No | MA15: No | MB15: No | MC15: No | MD15: No | ME15: No | MF15: No | MG15: No | MH15: No | MI15: No | MJ15: No | MK15: Sí | ML15: No | MM15: No | MN15: No | MO15: No | MP15: No | MQ15: No | MR15: No | MS15: No | MT15: No | MU15: No | MV15: No | MW15: No | MX15: No | MY15: No | MZ15: No | NA15: No | NB15: No | NC15: No | ND15: No | NE15: No | NF15: No | NG15: No | NH15: No | NI15: No | NJ15: No | NK15: No | NL15: No | NM15: No | NN15: No | NO15: No | NP15: Sí | NQ15: No | NR15: No | NS15: No | NT15: No | NU15: No | NV15: No | NW15: =+IF(NV14="Sí","Sí","No") -> No | NX15: No | NY15: No | NZ15: No | OA15: No | OB15: No | OC15: No | OD15: No | OE15: No | OF15: No | OG15: No | OH15: No | OI15: No | OJ15: No | OK15: No | OL15: No | OM15: No | ON15: No | OO15: No | OP15: No | OQ15: No | OR15: No | OS15: No | OT15: No | OU15: Sí | OV15: No | OW15: No | OX15: No | OY15: No | OZ15: No | PA15: No | PB15: No | PC15: No | PD15: No | PE15: No | PF15: No | PG15: No | PH15: No | PI15: No | PJ15: No | PK15: No | PL15: No | PM15: No | PN15: No | PO15: No | PP15: No | PQ15: No | PR15: No | PS15: No | PT15: No | PU15: No | PV15: No | PW15: No | PX15: No | PY15: Sí | PZ15: No | QA15: No | QB15: No | QC15: No | QD15: No | QE15: No | QF15: No | QG15: No | QH15: No | QI15: =+IF(QH14="Sí","Sí","No") -> No | QJ15: No | QK15: No | QL15: No | QM15: No | QN15: No | QO15: No | QP15: No | QQ15: No | QR15: No | QS15: No | QT15: No | QU15: No | QV15: No | QW15: No | QX15: No | QY15: No | QZ15: No | RA15: No | RB15: No | RC15: Sí | RD15: No | RE15: No | RF15: No | RG15: No | RH15: No | RI15: No | RJ15: No | RK15: No | RL15: No | RM15: No | RN15: No | RO15: No | RP15: No | RQ15: No | RR15: No | RS15: No | RT15: No | RU15: No | RV15: No | RW15: No | RX15: No | RY15: No | RZ15: No | SA15: No | SB15: No | SC15: No | SD15: No | SE15: No | SF15: No | SG15: No | SH15: Sí | SI15: No | SJ15: No | SK15: No | SL15: No | SM15: No | SN15: No | SO15: No | SP15: No | SQ15: No | SR15: No | SS15: No | ST15: No | SU15: =+IF(ST14="Sí","Sí","No") -> No | SV15: No | SW15: No | SX15: No | SY15: No | SZ15: No | TA15: No | TB15: No | TC15: No | TD15: No | TE15: No | TF15: No | TG15: No | TH15: No | TI15: No | TJ15: No | TK15: No | TL15: Sí | TM15: No | TN15: No | TO15: No | TP15: No | TQ15: No | TR15: No | TS15: No | TT15: No | TU15: No | TV15: No | TW15: No | TX15: No | TY15: No | TZ15: No | UA15: No | UB15: No | UC15: No | UD15: No | UE15: No | UF15: No | UG15: No | UH15: No | UI15: No | UJ15: No | UK15: No | UL15: No | UM15: No | UN15: No | UO15: No | UP15: Sí | UQ15: No | UR15: No | US15: No | UT15: No | UU15: No | UV15: No | UW15: No | UX15: No | UY15: No | UZ15: No | VA15: No | VB15: No | VC15: No | VD15: No | VE15: No | VF15: No | VG15: =+IF(VF14="Sí","Sí","No") -> No | VH15: No | VI15: No | VJ15: No | VK15: No | VL15: No | VM15: No | VN15: No | VO15: No | VP15: No | VQ15: No | VR15: Sí | VS15: No | VT15: No | VU15: No | VV15: No | VW15: No | VX15: No | VY15: No | VZ15: No | WA15: No | WB15: No | WC15: No | WD15: No | WE15: No | WF15: No | WG15: No | WH15: No | WI15: No | WJ15: No | WK15: No | WL15: No | WM15: No | WN15: No | WO15: No | WP15: No | WQ15: No | WR15: No | WS15: No | WT15: No | WU15: No | WV15: No | WW15: No | WX15: No | WY15: Sí | WZ15: No | XA15: No | XB15: No | XC15: No | XD15: No | XE15: No | XF15: No | XG15: No | XH15: No | XI15: No | XJ15: No | XK15: No | XL15: No | XM15: No | XN15: No | XO15: No | XP15: No | XQ15: No | XR15: No | XS15: =+IF(XR14="Sí","Sí","No") -> No | XT15: No | XU15: No | XV15: No | XW15: No | XX15: No | XY15: No | XZ15: No | YA15: No | YB15: Sí | YC15: No | YD15: No | YE15: No | YF15: No | YG15: No | YH15: No | YI15: No | YJ15: No | YK15: No | YL15: No | YM15: No | YN15: No | YO15: No | YP15: No | YQ15: No | YR15: No | YS15: No | YT15: No | YU15: No | YV15: No | YW15: No | YX15: No | YY15: No | YZ15: No | ZA15: No | ZB15: No | ZC15: No | ZD15: No | ZE15: No | ZF15: No | ZG15: No | ZH15: Sí | ZI15: No | ZJ15: No | ZK15: No | ZL15: No | ZM15: No | ZN15: No | ZO15: No | ZP15: No | ZQ15: No | ZR15: No | ZS15: No | ZT15: No | ZU15: No | ZV15: No | ZW15: No | ZX15: No | ZY15: No | ZZ15: No | AAA15: No | AAB15: No | AAC15: No | AAD15: No | AAE15: =+IF(AAD14="Sí","Sí","No") -> No | AAF15: No | AAG15: No | AAH15: No | AAI15: No | AAJ15: No | AAK15: No | AAL15: Sí | AAM15: No | AAN15: No | AAO15: No | AAP15: No | AAQ15: No | AAR15: No | AAS15: No | AAT15: No | AAU15: No
B16: Día del mes | C16: =+DAY(C10) -> 20 | D16: 21 | E16: 22 | F16: 23 | G16: 24 | H16: 25 | I16: 26 | J16: 27 | K16: 28 | L16: 29 | M16: 30 | N16: 31 | O16: 1 | P16: 2 | Q16: 3 | R16: 4 | S16: 5 | T16: 6 | U16: 7 | V16: 8 | W16: 9 | X16: 10 | Y16: 11 | Z16: 12 | AA16: 13 | AB16: 14 | AC16: 15 | AD16: 16 | AE16: 17 | AF16: 18 | AG16: 19 | AH16: 20 | AI16: 21 | AJ16: 22 | AK16: 23 | AL16: 24 | AM16: 25 | AN16: 26 | AO16: 27 | AP16: 28 | AQ16: 29 | AR16: 30 | AS16: 31 | AT16: 1 | AU16: 2 | AV16: 3 | AW16: 4 | AX16: 5 | AY16: 6 | AZ16: 7 | BA16: 8 | BB16: 9 | BC16: 10 | BD16: 11 | BE16: 12 | BF16: 13 | BG16: 14 | BH16: 15 | BI16: 16 | BJ16: 17 | BK16: 18 | BL16: 19 | BM16: 20 | BN16: 21 | BO16: =+DAY(BO10) -> 22 | BP16: 23 | BQ16: 24 | BR16: 25 | BS16: 26 | BT16: 27 | BU16: 28 | BV16: 29 | BW16: 30 | BX16: 1 | BY16: 2 | BZ16: 3 | CA16: 4 | CB16: 5 | CC16: 6 | CD16: 7 | CE16: 8 | CF16: 9 | CG16: 10 | CH16: 11 | CI16: 12 | CJ16: 13 | CK16: 14 | CL16: 15 | CM16: 16 | CN16: 17 | CO16: 18 | CP16: 19 | CQ16: 20 | CR16: 21 | CS16: 22 | CT16: 23 | CU16: 24 | CV16: 25 | CW16: 26 | CX16: 27 | CY16: 28 | CZ16: 29 | DA16: 30 | DB16: 31 | DC16: 1 | DD16: 2 | DE16: 3 | DF16: 4 | DG16: 5 | DH16: 6 | DI16: 7 | DJ16: 8 | DK16: 9 | DL16: 10 | DM16: 11 | DN16: 12 | DO16: 13 | DP16: 14 | DQ16: 15 | DR16: 16 | DS16: 17 | DT16: 18 | DU16: 19 | DV16: 20 | DW16: 21 | DX16: 22 | DY16: 23 | DZ16: 24 | EA16: =+DAY(EA10) -> 25 | EB16: 26 | EC16: 27 | ED16: 28 | EE16: 29 | EF16: 30 | EG16: 1 | EH16: 2 | EI16: 3 | EJ16: 4 | EK16: 5 | EL16: 6 | EM16: 7 | EN16: 8 | EO16: 9 | EP16: 10 | EQ16: 11 | ER16: 12 | ES16: 13 | ET16: 14 | EU16: 15 | EV16: 16 | EW16: 17 | EX16: 18 | EY16: 19 | EZ16: 20 | FA16: 21 | FB16: 22 | FC16: 23 | FD16: 24 | FE16: 25 | FF16: 26 | FG16: 27 | FH16: 28 | FI16: 29 | FJ16: 30 | FK16: 31 | FL16: 1 | FM16: 2 | FN16: 3 | FO16: 4 | FP16: 5 | FQ16: 6 | FR16: 7 | FS16: 8 | FT16: 9 | FU16: 10 | FV16: 11 | FW16: 12 | FX16: 13 | FY16: 14 | FZ16: 15 | GA16: 16 | GB16: 17 | GC16: 18 | GD16: 19 | GE16: 20 | GF16: 21 | GG16: 22 | GH16: 23 | GI16: 24 | GJ16: 25 | GK16: 26 | GL16: 27 | GM16: =+DAY(GM10) -> 28 | GN16: 29 | GO16: 30 | GP16: 31 | GQ16: 1 | GR16: 2 | GS16: 3 | GT16: 4 | GU16: 5 | GV16: 6 | GW16: 7 | GX16: 8 | GY16: 9 | GZ16: 10 | HA16: 11 | HB16: 12 | HC16: 13 | HD16: 14 | HE16: 15 | HF16: 16 | HG16: 17 | HH16: 18 | HI16: 19 | HJ16: 20 | HK16: 21 | HL16: 22 | HM16: 23 | HN16: 24 | HO16: 25 | HP16: 26 | HQ16: 27 | HR16: 28 | HS16: 1 | HT16: 2 | HU16: 3 | HV16: 4 | HW16: 5 | HX16: 6 | HY16: 7 | HZ16: 8 | IA16: 9 | IB16: 10 | IC16: 11 | ID16: 12 | IE16: 13 | IF16: 14 | IG16: 15 | IH16: 16 | II16: 17 | IJ16: 18 | IK16: 19 | IL16: 20 | IM16: 21 | IN16: 22 | IO16: 23 | IP16: 24 | IQ16: 25 | IR16: 26 | IS16: 27 | IT16: 28 | IU16: 29 | IV16: 30 | IW16: 31 | IX16: 1 | IY16: =+DAY(IY10) -> 2 | IZ16: 3 | JA16: 4 | JB16: 5 | JC16: 6 | JD16: 7 | JE16: 8 | JF16: 9 | JG16: 10 | JH16: 11 | JI16: 12 | JJ16: 13 | JK16: 14 | JL16: 15 | JM16: 16 | JN16: 17 | JO16: 18 | JP16: 19 | JQ16: 20 | JR16: 21 | JS16: 22 | JT16: 23 | JU16: 24 | JV16: 25 | JW16: 26 | JX16: 27 | JY16: 28 | JZ16: 29 | KA16: 30 | KB16: 1 | KC16: 2 | KD16: 3 | KE16: 4 | KF16: 5 | KG16: 6 | KH16: 7 | KI16: 8 | KJ16: 9 | KK16: 10 | KL16: 11 | KM16: 12 | KN16: 13 | KO16: 14 | KP16: 15 | KQ16: 16 | KR16: 17 | KS16: 18 | KT16: 19 | KU16: 20 | KV16: 21 | KW16: 22 | KX16: 23 | KY16: 24 | KZ16: 25 | LA16: 26 | LB16: 27 | LC16: 28 | LD16: 29 | LE16: 30 | LF16: 31 | LG16: 1 | LH16: 2 | LI16: 3 | LJ16: 4 | LK16: =+DAY(LK10) -> 5 | LL16: 6 | LM16: 7 | LN16: 8 | LO16: 9 | LP16: 10 | LQ16: 11 | LR16: 12 | LS16: 13 | LT16: 14 | LU16: 15 | LV16: 16 | LW16: 17 | LX16: 18 | LY16: 19 | LZ16: 20 | MA16: 21 | MB16: 22 | MC16: 23 | MD16: 24 | ME16: 25 | MF16: 26 | MG16: 27 | MH16: 28 | MI16: 29 | MJ16: 30 | MK16: 1 | ML16: 2 | MM16: 3 | MN16: 4 | MO16: 5 | MP16: 6 | MQ16: 7 | MR16: 8 | MS16: 9 | MT16: 10 | MU16: 11 | MV16: 12 | MW16: 13 | MX16: 14 | MY16: 15 | MZ16: 16 | NA16: 17 | NB16: 18 | NC16: 19 | ND16: 20 | NE16: 21 | NF16: 22 | NG16: 23 | NH16: 24 | NI16: 25 | NJ16: 26 | NK16: 27 | NL16: 28 | NM16: 29 | NN16: 30 | NO16: 31 | NP16: 1 | NQ16: 2 | NR16: 3 | NS16: 4 | NT16: 5 | NU16: 6 | NV16: 7 | NW16: =+DAY(NW10) -> 8 | NX16: 9 | NY16: 10 | NZ16: 11 | OA16: 12 | OB16: 13 | OC16: 14 | OD16: 15 | OE16: 16 | OF16: 17 | OG16: 18 | OH16: 19 | OI16: 20 | OJ16: 21 | OK16: 22 | OL16: 23 | OM16: 24 | ON16: 25 | OO16: 26 | OP16: 27 | OQ16: 28 | OR16: 29 | OS16: 30 | OT16: 31 | OU16: 1 | OV16: 2 | OW16: 3 | OX16: 4 | OY16: 5 | OZ16: 6 | PA16: 7 | PB16: 8 | PC16: 9 | PD16: 10 | PE16: 11 | PF16: 12 | PG16: 13 | PH16: 14 | PI16: 15 | PJ16: 16 | PK16: 17 | PL16: 18 | PM16: 19 | PN16: 20 | PO16: 21 | PP16: 22 | PQ16: 23 | PR16: 24 | PS16: 25 | PT16: 26 | PU16: 27 | PV16: 28 | PW16: 29 | PX16: 30 | PY16: 1 | PZ16: 2 | QA16: 3 | QB16: 4 | QC16: 5 | QD16: 6 | QE16: 7 | QF16: 8 | QG16: 9 | QH16: 10 | QI16: =+DAY(QI10) -> 11 | QJ16: 12 | QK16: 13 | QL16: 14 | QM16: 15 | QN16: 16 | QO16: 17 | QP16: 18 | QQ16: 19 | QR16: 20 | QS16: 21 | QT16: 22 | QU16: 23 | QV16: 24 | QW16: 25 | QX16: 26 | QY16: 27 | QZ16: 28 | RA16: 29 | RB16: 30 | RC16: 31 | RD16: 1 | RE16: 2 | RF16: 3 | RG16: 4 | RH16: 5 | RI16: 6 | RJ16: 7 | RK16: 8 | RL16: 9 | RM16: 10 | RN16: 11 | RO16: 12 | RP16: 13 | RQ16: 14 | RR16: 15 | RS16: 16 | RT16: 17 | RU16: 18 | RV16: 19 | RW16: 20 | RX16: 21 | RY16: 22 | RZ16: 23 | SA16: 24 | SB16: 25 | SC16: 26 | SD16: 27 | SE16: 28 | SF16: 29 | SG16: 30 | SH16: 1 | SI16: 2 | SJ16: 3 | SK16: 4 | SL16: 5 | SM16: 6 | SN16: 7 | SO16: 8 | SP16: 9 | SQ16: 10 | SR16: 11 | SS16: 12 | ST16: 13 | SU16: =+DAY(SU10) -> 14 | SV16: 15 | SW16: 16 | SX16: 17 | SY16: 18 | SZ16: 19 | TA16: 20 | TB16: 21 | TC16: 22 | TD16: 23 | TE16: 24 | TF16: 25 | TG16: 26 | TH16: 27 | TI16: 28 | TJ16: 29 | TK16: 30 | TL16: 31 | TM16: 1 | TN16: 2 | TO16: 3 | TP16: 4 | TQ16: 5 | TR16: 6 | TS16: 7 | TT16: 8 | TU16: 9 | TV16: 10 | TW16: 11 | TX16: 12 | TY16: 13 | TZ16: 14 | UA16: 15 | UB16: 16 | UC16: 17 | UD16: 18 | UE16: 19 | UF16: 20 | UG16: 21 | UH16: 22 | UI16: 23 | UJ16: 24 | UK16: 25 | UL16: 26 | UM16: 27 | UN16: 28 | UO16: 29 | UP16: 30 | UQ16: 31 | UR16: 1 | US16: 2 | UT16: 3 | UU16: 4 | UV16: 5 | UW16: 6 | UX16: 7 | UY16: 8 | UZ16: 9 | VA16: 10 | VB16: 11 | VC16: 12 | VD16: 13 | VE16: 14 | VF16: 15 | VG16: =+DAY(VG10) -> 16 | VH16: 17 | VI16: 18 | VJ16: 19 | VK16: 20 | VL16: 21 | VM16: 22 | VN16: 23 | VO16: 24 | VP16: 25 | VQ16: 26 | VR16: 27 | VS16: 28 | VT16: 1 | VU16: 2 | VV16: 3 | VW16: 4 | VX16: 5 | VY16: 6 | VZ16: 7 | WA16: 8 | WB16: 9 | WC16: 10 | WD16: 11 | WE16: 12 | WF16: 13 | WG16: 14 | WH16: 15 | WI16: 16 | WJ16: 17 | WK16: 18 | WL16: 19 | WM16: 20 | WN16: 21 | WO16: 22 | WP16: 23 | WQ16: 24 | WR16: 25 | WS16: 26 | WT16: 27 | WU16: 28 | WV16: 29 | WW16: 30 | WX16: 31 | WY16: 1 | WZ16: 2 | XA16: 3 | XB16: 4 | XC16: 5 | XD16: 6 | XE16: 7 | XF16: 8 | XG16: 9 | XH16: 10 | XI16: 11 | XJ16: 12 | XK16: 13 | XL16: 14 | XM16: 15 | XN16: 16 | XO16: 17 | XP16: 18 | XQ16: 19 | XR16: 20 | XS16: =+DAY(XS10) -> 21 | XT16: 22 | XU16: 23 | XV16: 24 | XW16: 25 | XX16: 26 | XY16: 27 | XZ16: 28 | YA16: 29 | YB16: 30 | YC16: 1 | YD16: 2 | YE16: 3 | YF16: 4 | YG16: 5 | YH16: 6 | YI16: 7 | YJ16: 8 | YK16: 9 | YL16: 10 | YM16: 11 | YN16: 12 | YO16: 13 | YP16: 14 | YQ16: 15 | YR16: 16 | YS16: 17 | YT16: 18 | YU16: 19 | YV16: 20 | YW16: 21 | YX16: 22 | YY16: 23 | YZ16: 24 | ZA16: 25 | ZB16: 26 | ZC16: 27 | ZD16: 28 | ZE16: 29 | ZF16: 30 | ZG16: 31 | ZH16: 1 | ZI16: 2 | ZJ16: 3 | ZK16: 4 | ZL16: 5 | ZM16: 6 | ZN16: 7 | ZO16: 8 | ZP16: 9 | ZQ16: 10 | ZR16: 11 | ZS16: 12 | ZT16: 13 | ZU16: 14 | ZV16: 15 | ZW16: 16 | ZX16: 17 | ZY16: 18 | ZZ16: 19 | AAA16: 20 | AAB16: 21 | AAC16: 22 | AAD16: 23 | AAE16: =+DAY(AAE10) -> 24 | AAF16: 25 | AAG16: 26 | AAH16: 27 | AAI16: 28 | AAJ16: 29 | AAK16: 30 | AAL16: 1 | AAM16: 2 | AAN16: 3 | AAO16: 4 | AAP16: 5 | AAQ16: 6 | AAR16: 7 | AAS16: 8 | AAT16: 9 | AAU16: 10
B17: Día del periodo | C17: 1 | D17: 2 | E17: 3 | F17: 4 | G17: 5 | H17: 6 | I17: 7 | J17: 8 | K17: 9 | L17: 10 | M17: 11 | N17: 12 | O17: 13 | P17: 14 | Q17: 15 | R17: 16 | S17: 17 | T17: 18 | U17: 19 | V17: 20 | W17: 21 | X17: 22 | Y17: 23 | Z17: 24 | AA17: 25 | AB17: 26 | AC17: 27 | AD17: 28 | AE17: 29 | AF17: 30 | AG17: 31 | AH17: 32 | AI17: 33 | AJ17: 34 | AK17: 35 | AL17: 36 | AM17: 37 | AN17: 38 | AO17: 39 | AP17: 40 | AQ17: 41 | AR17: 42 | AS17: 43 | AT17: 44 | AU17: 45 | AV17: 46 | AW17: 47 | AX17: 48 | AY17: 49 | AZ17: 50 | BA17: 51 | BB17: 52 | BC17: 53 | BD17: 54 | BE17: 55 | BF17: 56 | BG17: 57 | BH17: 58 | BI17: 59 | BJ17: 60 | BK17: 61 | BL17: 62 | BM17: 63 | BN17: 64 | BO17: 65 | BP17: 66 | BQ17: 67 | BR17: 68 | BS17: 69 | BT17: 70 | BU17: 71 | BV17: 72 | BW17: 73 | BX17: 74 | BY17: 75 | BZ17: 76 | CA17: 77 | CB17: 78 | CC17: 79 | CD17: 80 | CE17: 81 | CF17: 82 | CG17: 83 | CH17: 84 | CI17: 85 | CJ17: 86 | CK17: 87 | CL17: 88 | CM17: 89 | CN17: 90 | CO17: 91 | CP17: 92 | CQ17: 93 | CR17: 94 | CS17: 95 | CT17: 96 | CU17: 97 | CV17: 98 | CW17: 99 | CX17: 100 | CY17: 101 | CZ17: 102 | DA17: 103 | DB17: 104 | DC17: 105 | DD17: 106 | DE17: 107 | DF17: 108 | DG17: 109 | DH17: 110 | DI17: 111 | DJ17: 112 | DK17: 113 | DL17: 114 | DM17: 115 | DN17: 116 | DO17: 117 | DP17: 118 | DQ17: 119 | DR17: 120 | DS17: 121 | DT17: 122 | DU17: 123 | DV17: 124 | DW17: 125 | DX17: 126 | DY17: 127 | DZ17: 128 | EA17: 129 | EB17: 130 | EC17: 131 | ED17: 132 | EE17: 133 | EF17: 134 | EG17: 135 | EH17: 136 | EI17: 137 | EJ17: 138 | EK17: 139 | EL17: 140 | EM17: 141 | EN17: 142 | EO17: 143 | EP17: 144 | EQ17: 145 | ER17: 146 | ES17: 147 | ET17: 148 | EU17: 149 | EV17: 150 | EW17: 151 | EX17: 152 | EY17: 153 | EZ17: 154 | FA17: 155 | FB17: 156 | FC17: 157 | FD17: 158 | FE17: 159 | FF17: 160 | FG17: 161 | FH17: 162 | FI17: 163 | FJ17: 164 | FK17: 165 | FL17: 166 | FM17: 167 | FN17: 168 | FO17: 169 | FP17: 170 | FQ17: 171 | FR17: 172 | FS17: 173 | FT17: 174 | FU17: 175 | FV17: 176 | FW17: 177 | FX17: 178 | FY17: 179 | FZ17: 180 | GA17: 181 | GB17: 182 | GC17: 183 | GD17: 184 | GE17: 185 | GF17: 186 | GG17: 187 | GH17: 188 | GI17: 189 | GJ17: 190 | GK17: 191 | GL17: 192 | GM17: 193 | GN17: 194 | GO17: 195 | GP17: 196 | GQ17: 197 | GR17: 198 | GS17: 199 | GT17: 200 | GU17: 201 | GV17: 202 | GW17: 203 | GX17: 204 | GY17: 205 | GZ17: 206 | HA17: 207 | HB17: 208 | HC17: 209 | HD17: 210 | HE17: 211 | HF17: 212 | HG17: 213 | HH17: 214 | HI17: 215 | HJ17: 216 | HK17: 217 | HL17: 218 | HM17: 219 | HN17: 220 | HO17: 221 | HP17: 222 | HQ17: 223 | HR17: 224 | HS17: 225 | HT17: 226 | HU17: 227 | HV17: 228 | HW17: 229 | HX17: 230 | HY17: 231 | HZ17: 232 | IA17: 233 | IB17: 234 | IC17: 235 | ID17: 236 | IE17: 237 | IF17: 238 | IG17: 239 | IH17: 240 | II17: 241 | IJ17: 242 | IK17: 243 | IL17: 244 | IM17: 245 | IN17: 246 | IO17: 247 | IP17: 248 | IQ17: 249 | IR17: 250 | IS17: 251 | IT17: 252 | IU17: 253 | IV17: 254 | IW17: 255 | IX17: 256 | IY17: 257 | IZ17: 258 | JA17: 259 | JB17: 260 | JC17: 261 | JD17: 262 | JE17: 263 | JF17: 264 | JG17: 265 | JH17: 266 | JI17: 267 | JJ17: 268 | JK17: 269 | JL17: 270 | JM17: 271 | JN17: 272 | JO17: 273 | JP17: 274 | JQ17: 275 | JR17: 276 | JS17: 277 | JT17: 278 | JU17: 279 | JV17: 280 | JW17: 281 | JX17: 282 | JY17: 283 | JZ17: 284 | KA17: 285 | KB17: 286 | KC17: 287 | KD17: 288 | KE17: 289 | KF17: 290 | KG17: 291 | KH17: 292 | KI17: 293 | KJ17: 294 | KK17: 295 | KL17: 296 | KM17: 297 | KN17: 298 | KO17: 299 | KP17: 300 | KQ17: 301 | KR17: 302 | KS17: 303 | KT17: 304 | KU17: 305 | KV17: 306 | KW17: 307 | KX17: 308 | KY17: 309 | KZ17: 310 | LA17: 311 | LB17: 312 | LC17: 313 | LD17: 314 | LE17: 315 | LF17: 316 | LG17: 317 | LH17: 318 | LI17: 319 | LJ17: 320 | LK17: 321 | LL17: 322 | LM17: 323 | LN17: 324 | LO17: 325 | LP17: 326 | LQ17: 327 | LR17: 328 | LS17: 329 | LT17: 330 | LU17: 331 | LV17: 332 | LW17: 333 | LX17: 334 | LY17: 335 | LZ17: 336 | MA17: 337 | MB17: 338 | MC17: 339 | MD17: 340 | ME17: 341 | MF17: 342 | MG17: 343 | MH17: 344 | MI17: 345 | MJ17: 346 | MK17: 347 | ML17: 348 | MM17: 349 | MN17: 350 | MO17: 351 | MP17: 352 | MQ17: 353 | MR17: 354 | MS17: 355 | MT17: 356 | MU17: 357 | MV17: 358 | MW17: 359 | MX17: 360 | MY17: 361 | MZ17: 362 | NA17: 363 | NB17: 364 | NC17: 365 | ND17: 366 | NE17: 367 | NF17: 368 | NG17: 369 | NH17: 370 | NI17: 371 | NJ17: 372 | NK17: 373 | NL17: 374 | NM17: 375 | NN17: 376 | NO17: 377 | NP17: 378 | NQ17: 379 | NR17: 380 | NS17: 381 | NT17: 382 | NU17: 383 | NV17: 384 | NW17: 385 | NX17: 386 | NY17: 387 | NZ17: 388 | OA17: 389 | OB17: 390 | OC17: 391 | OD17: 392 | OE17: 393 | OF17: 394 | OG17: 395 | OH17: 396 | OI17: 397 | OJ17: 398 | OK17: 399 | OL17: 400 | OM17: 401 | ON17: 402 | OO17: 403 | OP17: 404 | OQ17: 405 | OR17: 406 | OS17: 407 | OT17: 408 | OU17: 409 | OV17: 410 | OW17: 411 | OX17: 412 | OY17: 413 | OZ17: 414 | PA17: 415 | PB17: 416 | PC17: 417 | PD17: 418 | PE17: 419 | PF17: 420 | PG17: 421 | PH17: 422 | PI17: 423 | PJ17: 424 | PK17: 425 | PL17: 426 | PM17: 427 | PN17: 428 | PO17: 429 | PP17: 430 | PQ17: 431 | PR17: 432 | PS17: 433 | PT17: 434 | PU17: 435 | PV17: 436 | PW17: 437 | PX17: 438 | PY17: 439 | PZ17: 440 | QA17: 441 | QB17: 442 | QC17: 443 | QD17: 444 | QE17: 445 | QF17: 446 | QG17: 447 | QH17: 448 | QI17: 449 | QJ17: 450 | QK17: 451 | QL17: 452 | QM17: 453 | QN17: 454 | QO17: 455 | QP17: 456 | QQ17: 457 | QR17: 458 | QS17: 459 | QT17: 460 | QU17: 461 | QV17: 462 | QW17: 463 | QX17: 464 | QY17: 465 | QZ17: 466 | RA17: 467 | RB17: 468 | RC17: 469 | RD17: 470 | RE17: 471 | RF17: 472 | RG17: 473 | RH17: 474 | RI17: 475 | RJ17: 476 | RK17: 477 | RL17: 478 | RM17: 479 | RN17: 480 | RO17: 481 | RP17: 482 | RQ17: 483 | RR17: 484 | RS17: 485 | RT17: 486 | RU17: 487 | RV17: 488 | RW17: 489 | RX17: 490 | RY17: 491 | RZ17: 492 | SA17: 493 | SB17: 494 | SC17: 495 | SD17: 496 | SE17: 497 | SF17: 498 | SG17: 499 | SH17: 500 | SI17: 501 | SJ17: 502 | SK17: 503 | SL17: 504 | SM17: 505 | SN17: 506 | SO17: 507 | SP17: 508 | SQ17: 509 | SR17: 510 | SS17: 511 | ST17: 512 | SU17: 513 | SV17: 514 | SW17: 515 | SX17: 516 | SY17: 517 | SZ17: 518 | TA17: 519 | TB17: 520 | TC17: 521 | TD17: 522 | TE17: 523 | TF17: 524 | TG17: 525 | TH17: 526 | TI17: 527 | TJ17: 528 | TK17: 529 | TL17: 530 | TM17: 531 | TN17: 532 | TO17: 533 | TP17: 534 | TQ17: 535 | TR17: 536 | TS17: 537 | TT17: 538 | TU17: 539 | TV17: 540 | TW17: 541 | TX17: 542 | TY17: 543 | TZ17: 544 | UA17: 545 | UB17: 546 | UC17: 547 | UD17: 548 | UE17: 549 | UF17: 550 | UG17: 551 | UH17: 552 | UI17: 553 | UJ17: 554 | UK17: 555 | UL17: 556 | UM17: 557 | UN17: 558 | UO17: 559 | UP17: 560 | UQ17: 561 | UR17: 562 | US17: 563 | UT17: 564 | UU17: 565 | UV17: 566 | UW17: 567 | UX17: 568 | UY17: 569 | UZ17: 570 | VA17: 571 | VB17: 572 | VC17: 573 | VD17: 574 | VE17: 575 | VF17: 576 | VG17: 577 | VH17: 578 | VI17: 579 | VJ17: 580 | VK17: 581 | VL17: 582 | VM17: 583 | VN17: 584 | VO17: 585 | VP17: 586 | VQ17: 587 | VR17: 588 | VS17: 589 | VT17: 590 | VU17: 591 | VV17: 592 | VW17: 593 | VX17: 594 | VY17: 595 | VZ17: 596 | WA17: 597 | WB17: 598 | WC17: 599 | WD17: 600 | WE17: 601 | WF17: 602 | WG17: 603 | WH17: 604 | WI17: 605 | WJ17: 606 | WK17: 607 | WL17: 608 | WM17: 609 | WN17: 610 | WO17: 611 | WP17: 612 | WQ17: 613 | WR17: 614 | WS17: 615 | WT17: 616 | WU17: 617 | WV17: 618 | WW17: 619 | WX17: 620 | WY17: 621 | WZ17: 622 | XA17: 623 | XB17: 624 | XC17: 625 | XD17: 626 | XE17: 627 | XF17: 628 | XG17: 629 | XH17: 630 | XI17: 631 | XJ17: 632 | XK17: 633 | XL17: 634 | XM17: 635 | XN17: 636 | XO17: 637 | XP17: 638 | XQ17: 639 | XR17: 640 | XS17: 641 | XT17: 642 | XU17: 643 | XV17: 644 | XW17: 645 | XX17: 646 | XY17: 647 | XZ17: 648 | YA17: 649 | YB17: 650 | YC17: 651 | YD17: 652 | YE17: 653 | YF17: 654 | YG17: 655 | YH17: 656 | YI17: 657 | YJ17: 658 | YK17: 659 | YL17: 660 | YM17: 661 | YN17: 662 | YO17: 663 | YP17: 664 | YQ17: 665 | YR17: 666 | YS17: 667 | YT17: 668 | YU17: 669 | YV17: 670 | YW17: 671 | YX17: 672 | YY17: 673 | YZ17: 674 | ZA17: 675 | ZB17: 676 | ZC17: 677 | ZD17: 678 | ZE17: 679 | ZF17: 680 | ZG17: 681 | ZH17: 682 | ZI17: 683 | ZJ17: 684 | ZK17: 685 | ZL17: 686 | ZM17: 687 | ZN17: 688 | ZO17: 689 | ZP17: 690 | ZQ17: 691 | ZR17: 692 | ZS17: 693 | ZT17: 694 | ZU17: 695 | ZV17: 696 | ZW17: 697 | ZX17: 698 | ZY17: 699 | ZZ17: 700 | AAA17: 701 | AAB17: 702 | AAC17: 703 | AAD17: 704 | AAE17: 705 | AAF17: 706 | AAG17: 707 | AAH17: 708 | AAI17: 709 | AAJ17: 710 | AAK17: 711 | AAL17: 712 | AAM17: 713 | AAN17: 714 | AAO17: 715 | AAP17: 716 | AAQ17: 717 | AAR17: 718 | AAS17: 719 | AAT17: 720 | AAU17: 721
